Workbook

Sheet Config
B3: x

Sheet Wilcoxon Table
A1: Wilcoxon Rank-Sum Test Table
A3: Critical values for W with alpha = .01, two-tailed
A5: n2\n1 | B5: 1 | C5: =B5+1 -> 2 | D5: 3 | E5: 4 | F5: 5 | G5: 6 | H5: 7 | I5: 8 | J5: 9 | K5: 10 | L5: 11 | M5: 12 | N5: 13 | O5: 14 | P5: 15 | Q5: 16 | R5: 17 | S5: 18 | T5: 19 | U5: 20 | V5: 21 | W5: 22 | X5: 23 | Y5: 24 | Z5: 25
A6: 1
A7: =A6+1 -> 2
A8: =A7+1 -> 3
A9: 4
A10: 5 | E10: -- | F10: 15
A11: 6 | E11: 10 | F11: 16 | G11: 23
A12: 7 | E12: 10 | F12: 16 | G12: 24 | H12: 32
A13: 8 | D13: -- | E13: 11 | F13: 17 | G13: 25 | H13: 34 | I13: 43
A14: 9 | D14: 6 | E14: 11 | F14: 18 | G14: 26 | H14: 35 | I14: 45 | J14: 56
A15: 10 | D15: 6 | E15: 12 | F15: 19 | G15: 27 | H15: 37 | I15: 47 | J15: 58 | K15: 71
A16: 11 | D16: 6 | E16: 12 | F16: 20 | G16: 28 | H16: 38 | I16: 49 | J16: 61 | K16: 73 | L16: 87
A17: 12 | D17: 7 | E17: 13 | F17: 21 | G17: 30 | H17: 40 | I17: 51 | J17: 63 | K17: 76 | L17: 90 | M17: 105
A18: 13 | D18: 7 | E18: 13 | F18: 22 | G18: 31 | H18: 41 | I18: 53 | J18: 65 | K18: 79 | L18: 93 | M18: 109 | N18: 125
A19: 14 | D19: 7 | E19: 14 | F19: 22 | G19: 32 | H19: 43 | I19: 54 | J19: 67 | K19: 81 | L19: 96 | M19: 112 | N19: 129 | O19: 147
A20: 15 | D20: 8 | E20: 15 | F20: 23 | G20: 33 | H20: 44 | I20: 56 | J20: 69 | K20: 84 | L20: 99 | M20: 115 | N20: 133 | O20: 151 | P20: 171
A21: 16 | D21: 8 | E21: 15 | F21: 24 | G21: 34 | H21: 46 | I21: 58 | J21: 72 | K21: 86 | L21: 102 | M21: 119 | N21: 136 | O21: 155 | P21: 175 | Q21: 196
A22: 17 | D22: 8 | E22: 16 | F22: 25 | G22: 36 | H22: 47 | I22: 60 | J22: 74 | K22: 89 | L22: 105 | M22: 122 | N22: 140 | O22: 159 | P22: 180 | Q22: 201 | R22: 223
A23: 18 | C23: -- | D23: 8 | E23: 16 | F23: 26 | G23: 37 | H23: 49 | I23: 62 | J23: 76 | K23: 92 | L23: 108 | M23: 125 | N23: 144 | O23: 163 | P23: 184 | Q23: 206 | R23: 228 | S23: 252
A24: 19 | C24: 3 | D24: 9 | E24: 17 | F24: 27 | G24: 38 | H24: 50 | I24: 64 | J24: 78 | K24: 94 | L24: 111 | M24: 129 | N24: 148 | O24: 168 | P24: 189 | Q24: 210 | R24: 234 | S24: 258 | T24: 283
A25: 20 | C25: 3 | D25: 9 | E25: 18 | F25: 28 | G25: 39 | H25: 52 | I25: 66 | J25: 81 | K25: 97 | L25: 114 | M25: 132 | N25: 151 | O25: 172 | P25: 193 | Q25: 215 | R25: 239 | S25: 263 | T25: 289 | U25: 315
A26: 21 | C26: 3 | D26: 9 | E26: 18 | F26: 29 | G26: 40 | H26: 53 | I26: 68 | J26: 83 | K26: 99 | L26: 117 | M26: 136 | N26: 155 | O26: 176 | P26: 198 | Q26: 220 | R26: 244 | S26: 269 | T26: 295 | U26: 322 | V26: 349
A27: 22 | C27: 3 | D27: 10 | E27: 19 | F27: 29 | G27: 42 | H27: 55 | I27: 70 | J27: 85 | K27: 102 | L27: 129 | M27: 139 | N27: 159 | O27: 180 | P27: 202 | Q27: 225 | R27: 249 | S27: 275 | T27: 301 | U27: 328 | V27: 356 | W27: 386
A28: 23 | C28: 3 | D28: 10 | E28: 19 | F28: 30 | G28: 43 | H28: 57 | I28: 71 | J28: 88 | K28: 105 | L28: 123 | M28: 142 | N28: 163 | O28: 184 | P28: 207 | Q28: 230 | R28: 255 | S28: 280 | T28: 307 | U28: 335 | V28: 363 | W28: 393 | X28: 424
A29: 24 | C29: 3 | D29: 10 | E29: 20 | F29: 31 | G29: 44 | H29: 58 | I29: 73 | J29: 90 | K29: 107 | L29: 126 | M29: 146 | N29: 166 | O29: 188 | P29: 211 | Q29: 235 | R29: 260 | S29: 286 | T29: 313 | U29: 341 | V29: 370 | W29: 400 | X29: 431 | Y29: 464
A30: 25 | B30: -- | C30: 3 | D30: 11 | E30: 20 | F30: 32 | G30: 45 | H30: 60 | I30: 75 | J30: 92 | K30: 110 | L30: 129 | M30: 149 | N30: 170 | O30: 192 | P30: 216 | Q30: 240 | R30: 265 | S30: 292 | T30: 319 | U30: 348 | V30: 377 | W30: 408 | X30: 439 | Y30: 472 | Z30: 505
A32: Critical values for W with alpha = .02, two-tailed
A34: n2\n1 | B34: 1 | C34: =B34+1 -> 2 | D34: 3 | E34: 4 | F34: 5 | G34: 6 | H34: 7 | I34: 8 | J34: 9 | K34: 10 | L34: 11 | M34: 12 | N34: 13 | O34: 14 | P34: 15 | Q34: 16 | R34: 17 | S34: 18 | T34: 19 | U34: 20 | V34: 21 | W34: 22 | X34: 23 | Y34: 24 | Z34: 25
A35: 1
A36: =A35+1 -> 2
A37: =A36+1 -> 3
A38: 4 | E38: -
A39: 5 | E39: 10 | F39: 16
A40: 6 | D40: - | E40: 11 | F40: 17 | G40: 24
A41: 7 | D41: 6 | E41: 11 | F41: 18 | G41: 25 | H41: 34
A42: 8 | D42: 6 | E42: 12 | F42: 19 | G42: 27 | H42: 35 | I42: 45
A43: 9 | D43: 7 | E43: 13 | F43: 20 | G43: 28 | H43: 37 | I43: 47 | J43: 59
A44: 10 | D44: 7 | E44: 13 | F44: 21 | G44: 29 | H44: 39 | I44: 49 | J44: 61 | K44: 74
A45: 11 | D45: 7 | E45: 14 | F45: 22 | G45: 30 | H45: 40 | I45: 51 | J45: 63 | K45: 77 | L45: 91
A46: 12 | C46: - | D46: 8 | E46: 15 | F46: 23 | G46: 32 | H46: 42 | I46: 53 | J46: 66 | K46: 79 | L46: 94 | M46: 109
A47: 13 | C47: 3 | D47: 8 | E47: 15 | F47: 24 | G47: 33 | H47: 44 | I47: 56 | J47: 68 | K47: 82 | L47: 97 | M47: 113 | N47: 130
A48: 14 | C48: 3 | D48: 8 | E48: 16 | F48: 25 | G48: 34 | H48: 45 | I48: 58 | J48: 71 | K48: 85 | L48: 100 | M48: 116 | N48: 134 | O48: 152
A49: 15 | C49: 3 | D49: 9 | E49: 17 | F49: 26 | G49: 36 | H49: 47 | I49: 60 | J49: 73 | K49: 88 | L49: 103 | M49: 120 | N49: 138 | O49: 156 | P49: 176
A50: 16 | C50: 3 | D50: 9 | E50: 17 | F50: 27 | G50: 37 | H50: 49 | I50: 62 | J50: 76 | K50: 91 | L50: 107 | M50: 124 | N50: 142 | O50: 161 | P50: 181 | Q50: 202
A51: 17 | C51: 3 | D51: 10 | E51: 18 | F51: 28 | G51: 39 | H51: 51 | I51: 64 | J51: 78 | K51: 93 | L51: 110 | M51: 127 | N51: 146 | O51: 165 | P51: 186 | Q51: 207 | R51: 230
A52: 18 | C52: 3 | D52: 10 | E52: 19 | F52: 29 | G52: 40 | H52: 52 | I52: 66 | J52: 81 | K52: 96 | L52: 113 | M52: 131 | N52: 150 | O52: 170 | P52: 190 | Q52: 212 | R52: 235 | S52: 259
A53: 19 | C53: 4 | D53: 10 | E53: 19 | F53: 30 | G53: 41 | H53: 54 | I53: 68 | J53: 83 | K53: 99 | L53: 116 | M53: 134 | N53: 154 | O53: 174 | P53: 195 | Q53: 218 | R53: 241 | S53: 265 | T53: 291
A54: 20 | C54: 4 | D54: 11 | E54: 20 | F54: 31 | G54: 43 | H54: 56 | I54: 70 | J54: 85 | K54: 102 | L54: 119 | M54: 138 | N54: 158 | O54: 178 | P54: 200 | Q54: 223 | R54: 246 | S54: 271 | T54: 297 | U54: 324
A55: 21 | C55: 4 | D55: 11 | E55: 21 | F55: 32 | G55: 44 | H55: 58 | I55: 72 | J55: 88 | K55: 105 | L55: 123 | M55: 142 | N55: 162 | O55: 183 | P55: 205 | Q55: 228 | R55: 252 | S55: 277 | T55: 303 | U55: 331 | V55: 359
A56: 22 | C56: 4 | D56: 12 | E56: 21 | F56: 33 | G56: 45 | H56: 59 | I56: 74 | J56: 90 | K56: 108 | L56: 126 | M56: 145 | N56: 166 | O56: 187 | P56: 210 | Q56: 233 | R56: 258 | S56: 283 | T56: 310 | U56: 337 | V56: 366 | W56: 396
A57: 23 | C57: 4 | D57: 12 | E57: 22 | F57: 34 | G57: 47 | H57: 61 | I57: 76 | J57: 93 | K57: 110 | L57: 129 | M57: 149 | N57: 170 | O57: 192 | P57: 214 | Q57: 238 | R57: 263 | S57: 289 | T57: 316 | U57: 344 | V57: 373 | W57: 403 | X57: 434
A58: 24 | C58: 4 | D58: 12 | E58: 23 | F58: 35 | G58: 48 | H58: 63 | I58: 78 | J58: 95 | K58: 113 | L58: 132 | M58: 153 | N58: 174 | O58: 196 | P58: 219 | Q58: 244 | R58: 269 | S58: 295 | T58: 323 | U58: 351 | V58: 381 | W58: 411 | X58: 443 | Y58: 475
A59: 25 | B59: - | C59: 4 | D59: 13 | E59: 23 | F59: 36 | G59: 50 | H59: 64 | I59: 81 | J59: 98 | K59: 116 | L59: 136 | M59: 156 | N59: 178 | O59: 200 | P59: 224 | Q59: 249 | R59: 275 | S59: 301 | T59: 329 | U59: 358 | V59: 388 | W59: 419 | X59: 451 | Y59: 484 | Z59: 517
A61: Critical values for W with alpha = .05, two-tailed
A63: n2\n1 | B63: 1 | C63: =B63+1 -> 2 | D63: =C63+1 -> 3 | E63: 4 | F63: 5 | G63: 6 | H63: 7 | I63: 8 | J63: 9 | K63: 10 | L63: 11 | M63: 12 | N63: 13 | O63: 14 | P63: 15 | Q63: 16 | R63: 17 | S63: 18 | T63: 19 | U63: 20 | V63: 21 | W63: 22 | X63: 23 | Y63: 24 | Z63: 25
A64: 1
A65: =A64+1 -> 2
A66: =A65+1 -> 3
A67: 4 | D67: -- | E67: 10
A68: 5 | D68: 6 | E68: 11 | F68: 17
A69: 6 | D69: 7 | E69: 12 | F69: 18 | G69: 26
A70: 7 | C70: -- | D70: 7 | E70: 13 | F70: 20 | G70: 27 | H70: 36
A71: 8 | C71: 3 | D71: 8 | E71: 14 | F71: 21 | G71: 29 | H71: 38 | I71: 49
A72: 9 | C72: 3 | D72: 8 | E72: 14 | F72: 22 | G72: 31 | H72: 40 | I72: 51 | J72: 62
A73: 10 | C73: 3 | D73: 9 | E73: 15 | F73: 23 | G73: 32 | H73: 42 | I73: 53 | J73: 65 | K73: 78
A74: 11 | C74: 3 | D74: 9 | E74: 16 | F74: 24 | G74: 34 | H74: 44 | I74: 55 | J74: 68 | K74: 81 | L74: 96
A75: 12 | C75: 4 | D75: 10 | E75: 17 | F75: 26 | G75: 35 | H75: 46 | I75: 58 | J75: 71 | K75: 84 | L75: 99 | M75: 115
A76: 13 | C76: 4 | D76: 10 | E76: 18 | F76: 27 | G76: 37 | H76: 48 | I76: 60 | J76: 73 | K76: 88 | L76: 103 | M76: 119 | N76: 136
A77: 14 | C77: 4 | D77: 11 | E77: 19 | F77: 28 | G77: 38 | H77: 50 | I77: 62 | J77: 76 | K77: 91 | L77: 106 | M77: 123 | N77: 141 | O77: 160
A78: 15 | C78: 4 | D78: 11 | E78: 20 | F78: 29 | G78: 40 | H78: 52 | I78: 65 | J78: 79 | K78: 94 | L78: 110 | M78: 127 | N78: 145 | O78: 164 | P78: 184
A79: 16 | C79: 4 | D79: 12 | E79: 21 | F79: 30 | G79: 42 | H79: 54 | I79: 67 | J79: 82 | K79: 97 | L79: 113 | M79: 131 | N79: 150 | O79: 169 | P79: 190 | Q79: 211
A80: 17 | C80: 5 | D80: 12 | E80: 21 | F80: 32 | G80: 43 | H80: 56 | I80: 70 | J80: 84 | K80: 100 | L80: 117 | M80: 135 | N80: 154 | O80: 174 | P80: 195 | Q80: 217 | R80: 240
A81: 18 | C81: 5 | D81: 13 | E81: 22 | F81: 33 | G81: 45 | H81: 58 | I81: 72 | J81: 87 | K81: 103 | L81: 121 | M81: 139 | N81: 158 | O81: 179 | P81: 200 | Q81: 222 | R81: 246 | S81: 270
A82: 19 | C82: 5 | D82: 13 | E82: 23 | F82: 34 | G82: 46 | H82: 60 | I82: 74 | J82: 90 | K82: 107 | L82: 124 | M82: 143 | N82: 163 | O82: 183 | P82: 205 | Q82: 228 | R82: 252 | S82: 277 | T82: 303
A83: 20 | C83: 5 | D83: 14 | E83: 24 | F83: 35 | G83: 48 | H83: 62 | I83: 77 | J83: 93 | K83: 110 | L83: 128 | M83: 147 | N83: 167 | O83: 188 | P83: 210 | Q83: 234 | R83: 258 | S83: 283 | T83: 309 | U83: 337
A84: 21 | C84: 6 | D84: 14 | E84: 25 | F84: 37 | G84: 50 | H84: 64 | I84: 79 | J84: 95 | K84: 113 | L84: 131 | M84: 151 | N84: 171 | O84: 193 | P84: 216 | Q84: 239 | R84: 264 | S84: 290 | T84: 316 | U84: 344 | V84: 373
A85: 22 | C85: 6 | D85: 15 | E85: 26 | F85: 38 | G85: 51 | H85: 66 | I85: 81 | J85: 98 | K85: 116 | L85: 135 | M85: 155 | N85: 176 | O85: 198 | P85: 221 | Q85: 245 | R85: 270 | S85: 296 | T85: 323 | U85: 351 | V85: 381 | W85: 411
A86: 23 | C86: 6 | D86: 15 | E86: 27 | F86: 39 | G86: 53 | H86: 68 | I86: 84 | J86: 101 | K86: 119 | L86: 139 | M86: 159 | N86: 180 | O86: 203 | P86: 226 | Q86: 251 | R86: 276 | S86: 303 | T86: 330 | U86: 359 | V86: 388 | W86: 419 | X86: 451
A87: 24 | C87: 6 | D87: 16 | E87: 27 | F87: 40 | G87: 54 | H87: 70 | I87: 86 | J87: 104 | K87: 122 | L87: 142 | M87: 163 | N87: 185 | O87: 207 | P87: 231 | Q87: 256 | R87: 282 | S87: 309 | T87: 337 | U87: 366 | V87: 396 | W87: 427 | X87: 459 | Y87: 492
A88: 25 | B88: -- | C88: 6 | D88: 16 | E88: 28 | F88: 42 | G88: 56 | H88: 72 | I88: 89 | J88: 107 | K88: 126 | L88: 146 | M88: 167 | N88: 189 | O88: 212 | P88: 237 | Q88: 262 | R88: 288 | S88: 316 | T88: 344 | U88: 373 | V88: 404 | W88: 435 | X88: 468 | Y88: 501 | Z88: 536
A90: Critical values for W with alpha = .10, two-tailed
A92: n2\n1 | B92: 1 | C92: =B92+1 -> 2 | D92: 3 | E92: 4 | F92: 5 | G92: 6 | H92: 7 | I92: 8 | J92: 9 | K92: 10 | L92: 11 | M92: 12 | N92: 13 | O92: 14 | P92: 15 | Q92: 16 | R92: 17 | S92: 18 | T92: 19 | U92: 20 | V92: 21 | W92: 22 | X92: 23 | Y92: 24 | Z92: 25
A93: 1
A94: =A93+1 -> 2
A95: =A94+1 -> 3 | D95: 6
A96: 4 | C96: - | D96: 6 | E96: 11
A97: 5 | C97: 3 | D97: 7 | E97: 12 | F97: 19
A98: 6 | C98: 3 | D98: 8 | E98: 13 | F98: 20 | G98: 28
A99: 7 | C99: 3 | D99: 8 | E99: 14 | F99: 21 | G99: 29 | H99: 39
A100: 8 | C100: 4 | D100: 9 | E100: 15 | F100: 23 | G100: 31 | H100: 41 | I100: 51
A101: 9 | C101: 4 | D101: 10 | E101: 16 | F101: 24 | G101: 33 | H101: 43 | I101: 54 | J101: 66
A102: 10 | C102: 4 | D102: 10 | E102: 17 | F102: 26 | G102: 35 | H102: 45 | I102: 56 | J102: 69 | K102: 82
A103: 11 | C103: 4 | D103: 11 | E103: 18 | F103: 27 | G103: 37 | H103: 47 | I103: 59 | J103: 72 | K103: 86 | L103: 100
A104: 12 | C104: 5 | D104: 11 | E104: 19 | F104: 28 | G104: 38 | H104: 49 | I104: 62 | J104: 75 | K104: 89 | L104: 104 | M104: 120
A105: 13 | C105: 5 | D105: 12 | E105: 20 | F105: 30 | G105: 40 | H105: 52 | I105: 64 | J105: 78 | K105: 92 | L105: 108 | M105: 125 | N105: 142
A106: 14 | C106: 6 | D106: 13 | E106: 21 | F106: 31 | G106: 42 | H106: 54 | I106: 67 | J106: 81 | K106: 96 | L106: 112 | M106: 129 | N106: 147 | O106: 166
A107: 15 | C107: 6 | D107: 13 | E107: 22 | F107: 33 | G107: 44 | H107: 56 | I107: 69 | J107: 84 | K107: 99 | L107: 116 | M107: 133 | N107: 152 | O107: 171 | P107: 192
A108: 16 | C108: 6 | D108: 14 | E108: 24 | F108: 34 | G108: 46 | H108: 58 | I108: 72 | J108: 87 | K108: 103 | L108: 120 | M108: 138 | N108: 156 | O108: 176 | P108: 197 | Q108: 219
A109: 17 | C109: 6 | D109: 15 | E109: 25 | F109: 35 | G109: 47 | H109: 61 | I109: 75 | J109: 90 | K109: 106 | L109: 123 | M109: 142 | N109: 161 | O109: 182 | P109: 203 | Q109: 225 | R109: 249
A110: 18 | B110: - | C110: 7 | D110: 15 | E110: 26 | F110: 37 | G110: 49 | H110: 63 | I110: 77 | J110: 93 | K110: 110 | L110: 127 | M110: 146 | N110: 166 | O110: 187 | P110: 208 | Q110: 231 | R110: 255 | S110: 280
A111: 19 | B111: 1 | C111: 7 | D111: 16 | E111: 27 | F111: 38 | G111: 51 | H111: 65 | I111: 80 | J111: 96 | K111: 113 | L111: 131 | M111: 150 | N111: 171 | O111: 192 | P111: 214 | Q111: 237 | R111: 262 | S111: 287 | T111: 313
A112: 20 | B112: 1 | C112: 7 | D112: 17 | E112: 28 | F112: 40 | G112: 53 | H112: 67 | I112: 83 | J112: 99 | K112: 117 | L112: 135 | M112: 155 | N112: 175 | O112: 197 | P112: 220 | Q112: 243 | R112: 268 | S112: 294 | T112: 320 | U112: 348
A113: 21 | B113: 1 | C113: 8 | D113: 17 | E113: 29 | F113: 41 | G113: 55 | H113: 69 | I113: 85 | J113: 102 | K113: 120 | L113: 139 | M113: 159 | N113: 180 | O113: 202 | P113: 225 | Q113: 249 | R113: 274 | S113: 301 | T113: 328 | U113: 356 | V113: 385
A114: 22 | B114: 1 | C114: 8 | D114: 18 | E114: 30 | F114: 43 | G114: 57 | H114: 72 | I114: 88 | J114: 105 | K114: 123 | L114: 143 | M114: 163 | N114: 185 | O114: 207 | P114: 231 | Q114: 255 | R114: 281 | S114: 307 | T114: 335 | U114: 364 | V114: 393 | W114: 424
A115: 23 | B115: 1 | C115: 8 | D115: 19 | E115: 31 | F115: 44 | G115: 58 | H115: 74 | I115: 90 | J115: 108 | K115: 127 | L115: 147 | M115: 168 | N115: 189 | O115: 212 | P115: 236 | Q115: 261 | R115: 287 | S115: 314 | T115: 342 | U115: 371 | V115: 401 | W115: 432 | X115: 465
A116: 24 | B116: 1 | C116: 9 | D116: 19 | E116: 32 | F116: 45 | G116: 60 | H116: 76 | I116: 93 | J116: 111 | K116: 130 | L116: 151 | M116: 172 | N116: 194 | O116: 218 | P116: 242 | Q116: 267 | R116: 294 | S116: 321 | T116: 350 | U116: 379 | V116: 410 | W116: 441 | X116: 474 | Y116: 507
A117: 25 | B117: 1 | C117: 9 | D117: 20 | E117: 33 | F117: 47 | G117: 62 | H117: 78 | I117: 96 | J117: 114 | K117: 134 | L117: 155 | M117: 176 | N117: 199 | O117: 223 | P117: 248 | Q117: 273 | R117: 300 | S117: 328 | T117: 357 | U117: 387 | V117: 418 | W117: 450 | X117: 483 | Y117: 517 | Z117: 552
A119: Critical values for W with alpha = .20, two-tailed
A121: n2\n1 | B121: 1 | C121: =B121+1 -> 2 | D121: 3 | E121: 4 | F121: 5 | G121: 6 | H121: 7 | I121: 8 | J121: 9 | K121: 10 | L121: 11 | M121: 12 | N121: 13 | O121: 14 | P121: 15 | Q121: 16 | R121: 17 | S121: 18 | T121: 19 | U121: 20 | V121: 21 | W121: 22 | X121: 23 | Y121: 24 | Z121: 25
A122: 1
A123: =A122+1 -> 2 | C123: -
A124: =A123+1 -> 3 | C124: 3 | D124: 7
A125: 4 | C125: 3 | D125: 7 | E125: 13
A126: 5 | C126: 4 | D126: 8 | E126: 14 | F126: 20
A127: 6 | C127: 4 | D127: 9 | E127: 15 | F127: 22 | G127: 30
A128: 7 | C128: 4 | D128: 10 | E128: 16 | F128: 23 | G128: 32 | H128: 41
A129: 8 | B129: - | C129: 5 | D129: 11 | E129: 17 | F129: 25 | G129: 34 | H129: 44 | I129: 55
A130: 9 | B130: 1 | C130: 5 | D130: 11 | E130: 19 | F130: 27 | G130: 36 | H130: 46 | I130: 58 | J130: 70
A131: 10 | B131: 1 | C131: 6 | D131: 12 | E131: 20 | F131: 28 | G131: 38 | H131: 49 | I131: 60 | J131: 73 | K131: 87
A132: 11 | B132: 1 | C132: 6 | D132: 13 | E132: 21 | F132: 30 | G132: 40 | H132: 51 | I132: 63 | J132: 76 | K132: 91 | L132: 106
A133: 12 | B133: 1 | C133: 7 | D133: 14 | E133: 22 | F133: 32 | G133: 42 | H133: 54 | I133: 66 | J133: 80 | K133: 94 | L133: 110 | M133: 127
A134: 13 | B134: 1 | C134: 7 | D134: 15 | E134: 23 | F134: 33 | G134: 44 | H134: 56 | I134: 69 | J134: 83 | K134: 98 | L134: 114 | M134: 131 | N134: 149
A135: 14 | B135: 1 | C135: 8 | D135: 16 | E135: 25 | F135: 35 | G135: 46 | H135: 59 | I135: 72 | J135: 86 | K135: 102 | L135: 118 | M135: 136 | N135: 154 | O135: 174
A136: 15 | B136: 1 | C136: 8 | D136: 16 | E136: 26 | F136: 37 | G136: 48 | H136: 61 | I136: 75 | J136: 90 | K136: 106 | L136: 123 | M136: 141 | N136: 159 | O136: 179 | P136: 200
A137: 16 | B137: 1 | C137: 8 | D137: 17 | E137: 27 | F137: 38 | G137: 50 | H137: 64 | I137: 78 | J137: 93 | K137: 109 | L137: 127 | M137: 145 | N137: 165 | O137: 185 | P137: 206 | Q137: 229
A138: 17 | B138: 1 | C138: 9 | D138: 18 | E138: 28 | F138: 40 | G138: 52 | H138: 66 | I138: 81 | J138: 97 | K138: 113 | L138: 131 | M138: 150 | N138: 170 | O138: 190 | P138: 212 | Q138: 235 | R138: 259
A139: 18 | B139: 1 | C139: 9 | D139: 19 | E139: 30 | F139: 42 | G139: 55 | H139: 69 | I139: 84 | J139: 100 | K139: 117 | L139: 135 | M139: 155 | N139: 175 | O139: 196 | P139: 218 | Q139: 242 | R139: 266 | S139: 291
A140: 19 | B140: 2 | C140: 10 | D140: 20 | E140: 31 | F140: 43 | G140: 57 | H140: 71 | I140: 87 | J140: 103 | K140: 121 | L140: 139 | M140: 159 | N140: 180 | O140: 202 | P140: 224 | Q140: 248 | R140: 273 | S140: 299 | T140: 325
A141: 20 | B141: 2 | C141: 10 | D141: 21 | E141: 32 | F141: 45 | G141: 59 | H141: 74 | I141: 90 | J141: 107 | K141: 125 | L141: 144 | M141: 164 | N141: 185 | O141: 207 | P141: 230 | Q141: 255 | R141: 280 | S141: 306 | T141: 333 | U141: 361
A142: 21 | B142: 2 | C142: 11 | D142: 21 | E142: 33 | F142: 47 | G142: 61 | H142: 76 | I142: 92 | J142: 110 | K142: 128 | L142: 148 | M142: 169 | N142: 190 | O142: 213 | P142: 236 | Q142: 261 | R142: 287 | S142: 313 | T142: 341 | U142: 370 | V142: 399
A143: 22 | B143: 2 | C143: 11 | D143: 22 | E143: 35 | F143: 48 | G143: 63 | H143: 79 | I143: 95 | J143: 113 | K143: 132 | L143: 152 | M143: 173 | N143: 195 | O143: 218 | P143: 242 | Q143: 267 | R143: 294 | S143: 321 | T143: 349 | U143: 378 | V143: 408 | W143: 439
A144: 23 | B144: 2 | C144: 12 | D144: 23 | E144: 36 | F144: 50 | G144: 65 | H144: 81 | I144: 98 | J144: 117 | K144: 136 | L144: 156 | M144: 178 | N144: 200 | O144: 224 | P144: 248 | Q144: 274 | R144: 300 | S144: 328 | T144: 357 | U144: 386 | V144: 417 | W144: 448 | X144: 481
A145: 24 | B145: 2 | C145: 12 | D145: 24 | E145: 38 | F145: 51 | G145: 67 | H145: 84 | I145: 101 | J145: 120 | K145: 140 | L145: 161 | M145: 183 | N145: 205 | O145: 229 | P145: 254 | Q145: 280 | R145: 307 | S145: 335 | T145: 364 | U145: 394 | V145: 425 | W145: 457 | X145: 491 | Y145: 525
A146: 25 | B146: 2 | C146: 12 | D146: 25 | E146: 38 | F146: 53 | G146: 69 | H146: 86 | I146: 104 | J146: 123 | K146: 144 | L146: 165 | M146: 187 | N146: 211 | O146: 235 | P146: 260 | Q146: 287 | R146: 314 | S146: 343 | T146: 372 | U146: 403 | V146: 434 | W146: 467 | X146: 500 | Y146: 535 | Z146: 570

Sheet Mann Table
A1: Mann-Whitney Table
A3: n1\n2 | B3: 2 | C3: =B3+1 -> 3 | D3: =C3+1 -> 4 | E3: 5 | F3: 6 | G3: 7 | H3: 8 | I3: 9 | J3: 10 | K3: 11 | L3: 12 | M3: 13 | N3: 14 | O3: 15 | P3: 16 | Q3: 17 | R3: 18 | S3: 19 | T3: 20
A4: 2 | H4: 0 | I4: 0 | J4: 0 | K4: 0 | L4: 1 | M4: 1 | N4: 1 | O4: 1 | P4: 1 | Q4: 2 | R4: 2 | S4: 2 | T4: 2
A5: =A4+1 -> 3 | E5: 0 | F5: 1 | G5: 1 | H5: 2 | I5: 2 | J5: 3 | K5: 3 | L5: 4 | M5: 4 | N5: 5 | O5: 5 | P5: 6 | Q5: 6 | R5: 7 | S5: 7 | T5: 8
A6: =A5+1 -> 4 | D6: 0 | E6: 1 | F6: 2 | G6: 3 | H6: 4 | I6: 4 | J6: 5 | K6: 6 | L6: 7 | M6: 8 | N6: 9 | O6: 10 | P6: 11 | Q6: 11 | R6: 12 | S6: 13 | T6: 14
A7: 5 | C7: 0 | D7: 1 | E7: 2 | F7: 3 | G7: 5 | H7: 6 | I7: 7 | J7: 8 | K7: 9 | L7: 11 | M7: 12 | N7: 13 | O7: 14 | P7: 15 | Q7: 17 | R7: 18 | S7: 19 | T7: 20
A8: 6 | C8: 1 | D8: 2 | E8: 3 | F8: 5 | G8: 6 | H8: 7 | I8: 10 | J8: 11 | K8: 13 | L8: 14 | M8: 16 | N8: 17 | O8: 19 | P8: 21 | Q8: 22 | R8: 24 | S8: 25 | T8: 27
A9: 7 | C9: 1 | D9: 3 | E9: 5 | F9: 6 | G9: 8 | H9: 10 | I9: 12 | J9: 14 | K9: 16 | L9: 18 | M9: 20 | N9: 22 | O9: 24 | P9: 26 | Q9: 28 | R9: 30 | S9: 32 | T9: 34
A10: 8 | B10: 0 | C10: 2 | D10: 4 | E10: 6 | F10: 7 | G10: 10 | H10: 13 | I10: 15 | J10: 17 | K10: 19 | L10: 22 | M10: 24 | N10: 26 | O10: 29 | P10: 31 | Q10: 34 | R10: 36 | S10: 38 | T10: 41
A11: 9 | B11: 0 | C11: 2 | D11: 4 | E11: 7 | F11: 10 | G11: 12 | H11: 15 | I11: 17 | J11: 20 | K11: 23 | L11: 26 | M11: 28 | N11: 31 | O11: 34 | P11: 37 | Q11: 39 | R11: 42 | S11: 45 | T11: 48
A12: 10 | B12: 0 | C12: 3 | D12: 5 | E12: 8 | F12: 11 | G12: 14 | H12: 17 | I12: 20 | J12: 23 | K12: 26 | L12: 29 | M12: 33 | N12: 36 | O12: 39 | P12: 42 | Q12: 45 | R12: 48 | S12: 52 | T12: 55
A13: 11 | B13: 0 | C13: 3 | D13: 6 | E13: 9 | F13: 13 | G13: 16 | H13: 19 | I13: 23 | J13: 26 | K13: 30 | L13: 33 | M13: 37 | N13: 40 | O13: 44 | P13: 47 | Q13: 51 | R13: 55 | S13: 58 | T13: 62
A14: 12 | B14: 1 | C14: 4 | D14: 7 | E14: 11 | F14: 14 | G14: 18 | H14: 22 | I14: 26 | J14: 29 | K14: 33 | L14: 37 | M14: 41 | N14: 45 | O14: 49 | P14: 53 | Q14: 57 | R14: 61 | S14: 65 | T14: 69
A15: 13 | B15: 1 | C15: 4 | D15: 8 | E15: 12 | F15: 16 | G15: 20 | H15: 24 | I15: 28 | J15: 33 | K15: 37 | L15: 41 | M15: 45 | N15: 50 | O15: 54 | P15: 59 | Q15: 63 | R15: 67 | S15: 72 | T15: 76
A16: 14 | B16: 1 | C16: 5 | D16: 9 | E16: 13 | F16: 17 | G16: 22 | H16: 26 | I16: 31 | J16: 36 | K16: 40 | L16: 45 | M16: 50 | N16: 55 | O16: 59 | P16: 64 | Q16: 67 | R16: 74 | S16: 78 | T16: 83
A17: 15 | B17: 1 | C17: 5 | D17: 10 | E17: 14 | F17: 19 | G17: 24 | H17: 29 | I17: 34 | J17: 39 | K17: 44 | L17: 49 | M17: 54 | N17: 59 | O17: 64 | P17: 70 | Q17: 75 | R17: 80 | S17: 85 | T17: 90
A18: 16 | B18: 1 | C18: 6 | D18: 11 | E18: 15 | F18: 21 | G18: 26 | H18: 31 | I18: 37 | J18: 42 | K18: 47 | L18: 53 | M18: 59 | N18: 64 | O18: 70 | P18: 75 | Q18: 81 | R18: 86 | S18: 92 | T18: 98
A19: 17 | B19: 2 | C19: 6 | D19: 11 | E19: 17 | F19: 22 | G19: 28 | H19: 34 | I19: 39 | J19: 45 | K19: 51 | L19: 57 | M19: 63 | N19: 67 | O19: 75 | P19: 81 | Q19: 87 | R19: 93 | S19: 99 | T19: 105
A20: 18 | B20: 2 | C20: 7 | D20: 12 | E20: 18 | F20: 24 | G20: 30 | H20: 36 | I20: 42 | J20: 48 | K20: 55 | L20: 61 | M20: 67 | N20: 74 | O20: 80 | P20: 86 | Q20: 93 | R20: 99 | S20: 106 | T20: 112
A21: 19 | B21: 2 | C21: 7 | D21: 13 | E21: 19 | F21: 25 | G21: 32 | H21: 38 | I21: 45 | J21: 52 | K21: 58 | L21: 65 | M21: 72 | N21: 78 | O21: 85 | P21: 92 | Q21: 99 | R21: 106 | S21: 113 | T21: 119
A22: 20 | B22: 2 | C22: 8 | D22: 13 | E22: 20 | F22: 27 | G22: 34 | H22: 41 | I22: 48 | J22: 55 | K22: 62 | L22: 69 | M22: 76 | N22: 83 | O22: 90 | P22: 98 | Q22: 105 | R22: 112 | S22: 119 | T22: 127
A24: Critical values for U with alpha = .05, two-tailed
A26: Mann-Whitney Table
A28: n1\n2 | B28: 2 | C28: =B28+1 -> 3 | D28: =C28+1 -> 4 | E28: 5 | F28: 6 | G28: 7 | H28: 8 | I28: 9 | J28: 10 | K28: 11 | L28: 12 | M28: 13 | N28: 14 | O28: 15 | P28: 16 | Q28: 17 | R28: 18 | S28: 19 | T28: 20
A29: 2 | S29: 0 | T29: 0
A30: =A29+1 -> 3 | I30: 0 | J30: 0 | K30: 0 | L30: 1 | M30: 1 | N30: 1 | O30: 2 | P30: 2 | Q30: 2 | R30: 2 | S30: 3 | T30: 3
A31: =A30+1 -> 4 | F31: 0 | G31: 0 | H31: 1 | I31: 1 | J31: 2 | K31: 2 | L31: 3 | M31: 3 | N31: 4 | O31: 5 | P31: 5 | Q31: 6 | R31: 6 | S31: 7 | T31: 8
A32: 5 | E32: 0 | F32: 1 | G32: 1 | H32: 2 | I32: 3 | J32: 4 | K32: 5 | L32: 6 | M32: 7 | N32: 7 | O32: 8 | P32: 9 | Q32: 10 | R32: 11 | S32: 12 | T32: 13
A33: 6 | D33: 0 | E33: 1 | F33: 2 | G33: 3 | H33: 4 | I33: 5 | J33: 6 | K33: 7 | L33: 9 | M33: 10 | N33: 11 | O33: 12 | P33: 13 | Q33: 15 | R33: 16 | S33: 17 | T33: 18
A34: 7 | D34: 0 | E34: 1 | F34: 3 | G34: 4 | H34: 6 | I34: 7 | J34: 9 | K34: 10 | L34: 12 | M34: 13 | N34: 15 | O34: 16 | P34: 18 | Q34: 19 | R34: 21 | S34: 22 | T34: 24
A35: 8 | D35: 1 | E35: 2 | F35: 4 | G35: 6 | H35: 7 | I35: 9 | J35: 11 | K35: 13 | L35: 15 | M35: 17 | N35: 18 | O35: 20 | P35: 22 | Q35: 24 | R35: 26 | S35: 28 | T35: 30
A36: 9 | C36: 0 | D36: 1 | E36: 3 | F36: 5 | G36: 7 | H36: 9 | I36: 11 | J36: 13 | K36: 16 | L36: 18 | M36: 20 | N36: 22 | O36: 24 | P36: 27 | Q36: 29 | R36: 31 | S36: 33 | T36: 36
A37: 10 | C37: 0 | D37: 2 | E37: 4 | F37: 6 | G37: 9 | H37: 11 | I37: 13 | J37: 16 | K37: 18 | L37: 21 | M37: 24 | N37: 26 | O37: 29 | P37: 31 | Q37: 34 | R37: 37 | S37: 39 | T37: 42
A38: 11 | C38: 0 | D38: 2 | E38: 5 | F38: 7 | G38: 10 | H38: 13 | I38: 16 | J38: 18 | K38: 21 | L38: 24 | M38: 27 | N38: 30 | O38: 33 | P38: 36 | Q38: 39 | R38: 42 | S38: 45 | T38: 46
A39: 12 | C39: 1 | D39: 3 | E39: 6 | F39: 9 | G39: 12 | H39: 15 | I39: 18 | J39: 21 | K39: 24 | L39: 27 | M39: 31 | N39: 34 | O39: 37 | P39: 41 | Q39: 44 | R39: 47 | S39: 51 | T39: 54
A40: 13 | C40: 1 | D40: 3 | E40: 7 | F40: 10 | G40: 13 | H40: 17 | I40: 20 | J40: 24 | K40: 27 | L40: 31 | M40: 34 | N40: 38 | O40: 42 | P40: 45 | Q40: 49 | R40: 53 | S40: 56 | T40: 60
A41: 14 | C41: 1 | D41: 4 | E41: 7 | F41: 11 | G41: 15 | H41: 18 | I41: 22 | J41: 26 | K41: 30 | L41: 34 | M41: 38 | N41: 42 | O41: 46 | P41: 50 | Q41: 54 | R41: 58 | S41: 63 | T41: 67
A42: 15 | C42: 2 | D42: 5 | E42: 8 | F42: 12 | G42: 16 | H42: 20 | I42: 24 | J42: 29 | K42: 33 | L42: 37 | M42: 42 | N42: 46 | O42: 51 | P42: 55 | Q42: 60 | R42: 64 | S42: 69 | T42: 73
A43: 16 | C43: 2 | D43: 5 | E43: 9 | F43: 13 | G43: 18 | H43: 22 | I43: 27 | J43: 31 | K43: 36 | L43: 41 | M43: 45 | N43: 50 | O43: 55 | P43: 60 | Q43: 65 | R43: 70 | S43: 74 | T43: 79
A44: 17 | C44: 2 | D44: 6 | E44: 10 | F44: 15 | G44: 19 | H44: 24 | I44: 29 | J44: 34 | K44: 39 | L44: 44 | M44: 49 | N44: 54 | O44: 60 | P44: 65 | Q44: 70 | R44: 75 | S44: 81 | T44: 86
A45: 18 | C45: 2 | D45: 6 | E45: 11 | F45: 16 | G45: 21 | H45: 26 | I45: 31 | J45: 37 | K45: 42 | L45: 47 | M45: 53 | N45: 58 | O45: 64 | P45: 70 | Q45: 75 | R45: 81 | S45: 87 | T45: 92
A46: 19 | B46: 0 | C46: 3 | D46: 7 | E46: 12 | F46: 17 | G46: 22 | H46: 28 | I46: 33 | J46: 39 | K46: 45 | L46: 51 | M46: 56 | N46: 63 | O46: 69 | P46: 74 | Q46: 81 | R46: 87 | S46: 93 | T46: 99
A47: 20 | B47: 0 | C47: 3 | D47: 8 | E47: 13 | F47: 18 | G47: 24 | H47: 30 | I47: 36 | J47: 42 | K47: 46 | L47: 54 | M47: 60 | N47: 67 | O47: 73 | P47: 79 | Q47: 86 | R47: 92 | S47: 99 | T47: 105
A49: Critical values for U with alpha = .01, two-tailed
A51: Mann-Whitney Table
A53: n1\n2 | B53: 2 | C53: =B53+1 -> 3 | D53: =C53+1 -> 4 | E53: 5 | F53: 6 | G53: 7 | H53: 8 | I53: 9 | J53: 10 | K53: 11 | L53: 12 | M53: 13 | N53: 14 | O53: 15 | P53: 16 | Q53: 17 | R53: 18 | S53: 19 | T53: 20
A54: 2
A55: =A54+1 -> 3 | C55: 0 | D55: 0 | E55: 1 | F55: 2 | G55: 2 | H55: 3 | I55: 4 | J55: 4 | K55: 5 | L55: 5 | M55: 6 | N55: 7 | O55: 7 | P55: 8 | Q55: 9 | R55: 9 | S55: 10 | T55: 11
A56: =A55+1 -> 4 | C56: 0 | D56: 1 | E56: 2 | F56: 3 | G56: 4 | H56: 5 | I56: 6 | J56: 7 | K56: 8 | L56: 9 | M56: 10 | N56: 11 | O56: 12 | P56: 14 | Q56: 15 | R56: 16 | S56: 17 | T56: 18
A57: 5 | C57: 1 | D57: 2 | E57: 4 | F57: 5 | G57: 6 | H57: 8 | I57: 9 | J57: 11 | K57: 12 | L57: 13 | M57: 15 | N57: 16 | O57: 18 | P57: 19 | Q57: 20 | R57: 22 | S57: 23 | T57: 25
A58: 6 | C58: 2 | D58: 3 | E58: 5 | F58: 7 | G58: 8 | H58: 10 | I58: 12 | J58: 14 | K58: 16 | L58: 17 | M58: 19 | N58: 21 | O58: 23 | P58: 25 | Q58: 26 | R58: 28 | S58: 30 | T58: 32
A59: 7 | C59: 2 | D59: 4 | E59: 6 | F59: 8 | G59: 11 | H59: 13 | I59: 15 | J59: 17 | K59: 19 | L59: 21 | M59: 24 | N59: 26 | O59: 28 | P59: 30 | Q59: 33 | R59: 35 | S59: 37 | T59: 39
A60: 8 | C60: 3 | D60: 5 | E60: 8 | F60: 10 | G60: 13 | H60: 15 | I60: 18 | J60: 20 | K60: 23 | L60: 26 | M60: 28 | N60: 31 | O60: 33 | P60: 36 | Q60: 39 | R60: 41 | S60: 44 | T60: 47
A61: 9 | C61: 4 | D61: 6 | E61: 9 | F61: 12 | G61: 15 | H61: 18 | I61: 21 | J61: 24 | K61: 27 | L61: 30 | M61: 33 | N61: 36 | O61: 39 | P61: 42 | Q61: 45 | R61: 48 | S61: 51 | T61: 54
A62: 10 | C62: 4 | D62: 7 | E62: 11 | F62: 14 | G62: 17 | H62: 20 | I62: 24 | J62: 27 | K62: 31 | L62: 34 | M62: 37 | N62: 41 | O62: 44 | P62: 48 | Q62: 51 | R62: 55 | S62: 58 | T62: 62
A63: 11 | C63: 5 | D63: 8 | E63: 12 | F63: 16 | G63: 19 | H63: 23 | I63: 27 | J63: 31 | K63: 34 | L63: 38 | M63: 42 | N63: 46 | O63: 50 | P63: 54 | Q63: 57 | R63: 61 | S63: 65 | T63: 69
A64: 12 | C64: 5 | D64: 9 | E64: 13 | F64: 17 | G64: 21 | H64: 26 | I64: 30 | J64: 34 | K64: 38 | L64: 42 | M64: 47 | N64: 51 | O64: 55 | P64: 60 | Q64: 64 | R64: 68 | S64: 72 | T64: 77
A65: 13 | C65: 6 | D65: 10 | E65: 15 | F65: 19 | G65: 24 | H65: 28 | I65: 33 | J65: 37 | K65: 42 | L65: 47 | M65: 51 | N65: 56 | O65: 61 | P65: 65 | Q65: 70 | R65: 75 | S65: 80 | T65: 84
A66: 14 | C66: 7 | D66: 11 | E66: 16 | F66: 21 | G66: 26 | H66: 31 | I66: 36 | J66: 41 | K66: 46 | L66: 51 | M66: 56 | N66: 61 | O66: 66 | P66: 71 | Q66: 77 | R66: 82 | S66: 87 | T66: 92
A67: 15 | C67: 7 | D67: 12 | E67: 18 | F67: 23 | G67: 28 | H67: 33 | I67: 39 | J67: 44 | K67: 50 | L67: 55 | M67: 61 | N67: 66 | O67: 72 | P67: 77 | Q67: 83 | R67: 88 | S67: 94 | T67: 100
A68: 16 | C68: 8 | D68: 14 | E68: 19 | F68: 25 | G68: 30 | H68: 36 | I68: 42 | J68: 48 | K68: 54 | L68: 60 | M68: 65 | N68: 71 | O68: 77 | P68: 83 | Q68: 89 | R68: 95 | S68: 101 | T68: 107
A69: 17 | C69: 9 | D69: 15 | E69: 20 | F69: 26 | G69: 33 | H69: 39 | I69: 45 | J69: 51 | K69: 57 | L69: 64 | M69: 70 | N69: 77 | O69: 83 | P69: 89 | Q69: 96 | R69: 102 | S69: 109 | T69: 115
A70: 18 | C70: 9 | D70: 16 | E70: 22 | F70: 28 | G70: 35 | H70: 41 | I70: 48 | J70: 55 | K70: 61 | L70: 68 | M70: 75 | N70: 82 | O70: 88 | P70: 95 | Q70: 102 | R70: 109 | S70: 116 | T70: 123
A71: 19 | C71: 10 | D71: 17 | E71: 23 | F71: 30 | G71: 37 | H71: 44 | I71: 51 | J71: 58 | K71: 65 | L71: 72 | M71: 80 | N71: 87 | O71: 94 | P71: 101 | Q71: 109 | R71: 116 | S71: 123 | T71: 130
A72: 20 | C72: 11 | D72: 18 | E72: 25 | F72: 32 | G72: 39 | H72: 47 | I72: 54 | J72: 62 | K72: 69 | L72: 77 | M72: 84 | N72: 92 | O72: 100 | P72: 107 | Q72: 115 | R72: 123 | S72: 130 | T72: 138
A74: Critical values for U with alpha = .10, two-tailed
A76: Mann-Whitney Table
A78: n1\n2 | B78: 2 | C78: =B78+1 -> 3 | D78: =C78+1 -> 4 | E78: 5 | F78: 6 | G78: 7 | H78: 8 | I78: 9 | J78: 10 | K78: 11 | L78: 12 | M78: 13 | N78: 14 | O78: 15 | P78: 16 | Q78: 17 | R78: 18 | S78: 19 | T78: 20
A79: 2
A80: =A79+1 -> 3 | C80: -- | D80: 0 | E80: 0 | F80: 0 | G80: 0 | H80: 0 | I80: 1 | J80: 1 | K80: 1 | L80: 2 | M80: 2 | N80: 2 | O80: 3 | P80: 3 | Q80: 4 | R80: 4 | S80: 4 | T80: 5
A81: =A80+1 -> 4 | C81: -- | D81: -- | E81: 0 | F81: 1 | G81: 1 | H81: 2 | I81: 3 | J81: 3 | K81: 4 | L81: 5 | M81: 5 | N81: 6 | O81: 7 | P81: 7 | Q81: 8 | R81: 9 | S81: 9 | T81: 10
A82: 5 | C82: -- | D82: 0 | E82: 1 | F82: 2 | G82: 3 | H82: 4 | I82: 5 | J82: 6 | K82: 7 | L82: 8 | M82: 9 | N82: 10 | O82: 11 | P82: 12 | Q82: 13 | R82: 14 | S82: 15 | T82: 16
A83: 6 | C83: -- | D83: 1 | E83: 2 | F83: 3 | G83: 4 | H83: 6 | I83: 7 | J83: 8 | K83: 9 | L83: 11 | M83: 12 | N83: 13 | O83: 15 | P83: 16 | Q83: 18 | R83: 19 | S83: 20 | T83: 22
A84: 7 | C84: 0 | D84: 1 | E84: 3 | F84: 4 | G84: 6 | H84: 7 | I84: 9 | J84: 11 | K84: 12 | L84: 14 | M84: 16 | N84: 17 | O84: 19 | P84: 21 | Q84: 23 | R84: 24 | S84: 26 | T84: 28
A85: 8 | C85: 0 | D85: 2 | E85: 4 | F85: 6 | G85: 7 | H85: 9 | I85: 11 | J85: 13 | K85: 15 | L85: 17 | M85: 20 | N85: 22 | O85: 24 | P85: 26 | Q85: 28 | R85: 30 | S85: 32 | T85: 34
A86: 9 | C86: 1 | D86: 3 | E86: 5 | F86: 7 | G86: 9 | H86: 11 | I86: 14 | J86: 16 | K86: 18 | L86: 21 | M86: 23 | N86: 26 | O86: 28 | P86: 31 | Q86: 33 | R86: 36 | S86: 38 | T86: 40
A87: 10 | C87: 1 | D87: 3 | E87: 6 | F87: 8 | G87: 11 | H87: 13 | I87: 16 | J87: 19 | K87: 22 | L87: 24 | M87: 27 | N87: 30 | O87: 33 | P87: 36 | Q87: 38 | R87: 41 | S87: 44 | T87: 47
A88: 11 | C88: 1 | D88: 4 | E88: 7 | F88: 9 | G88: 12 | H88: 15 | I88: 18 | J88: 22 | K88: 25 | L88: 28 | M88: 31 | N88: 34 | O88: 37 | P88: 41 | Q88: 44 | R88: 47 | S88: 50 | T88: 53
A89: 12 | C89: 2 | D89: 5 | E89: 8 | F89: 11 | G89: 14 | H89: 17 | I89: 21 | J89: 24 | K89: 28 | L89: 31 | M89: 35 | N89: 38 | O89: 42 | P89: 46 | Q89: 49 | R89: 53 | S89: 56 | T89: 60
A90: 13 | C90: 2 | D90: 5 | E90: 9 | F90: 12 | G90: 16 | H90: 20 | I90: 23 | J90: 27 | K90: 31 | L90: 35 | M90: 39 | N90: 43 | O90: 47 | P90: 51 | Q90: 55 | R90: 59 | S90: 63 | T90: 67
A91: 14 | C91: 2 | D91: 6 | E91: 10 | F91: 13 | G91: 17 | H91: 22 | I91: 26 | J91: 30 | K91: 34 | L91: 38 | M91: 43 | N91: 47 | O91: 51 | P91: 56 | Q91: 60 | R91: 65 | S91: 69 | T91: 73
A92: 15 | C92: 3 | D92: 7 | E92: 11 | F92: 15 | G92: 19 | H92: 24 | I92: 28 | J92: 33 | K92: 37 | L92: 42 | M92: 47 | N92: 51 | O92: 56 | P92: 61 | Q92: 66 | R92: 70 | S92: 75 | T92: 80
A93: 16 | C93: 3 | D93: 7 | E93: 12 | F93: 16 | G93: 21 | H93: 26 | I93: 31 | J93: 36 | K93: 41 | L93: 46 | M93: 51 | N93: 56 | O93: 61 | P93: 66 | Q93: 71 | R93: 76 | S93: 82 | T93: 87
A94: 17 | C94: 4 | D94: 8 | E94: 13 | F94: 18 | G94: 23 | H94: 28 | I94: 33 | J94: 38 | K94: 44 | L94: 49 | M94: 55 | N94: 60 | O94: 66 | P94: 71 | Q94: 77 | R94: 82 | S94: 88 | T94: 93
A95: 18 | C95: 4 | D95: 9 | E95: 14 | F95: 19 | G95: 24 | H95: 30 | I95: 36 | J95: 41 | K95: 47 | L95: 53 | M95: 59 | N95: 65 | O95: 70 | P95: 76 | Q95: 82 | R95: 88 | S95: 94 | T95: 100
A96: 19 | C96: 4 | D96: 9 | E96: 15 | F96: 20 | G96: 26 | H96: 32 | I96: 38 | J96: 44 | K96: 50 | L96: 56 | M96: 63 | N96: 69 | O96: 75 | P96: 82 | Q96: 88 | R96: 94 | S96: 101 | T96: 107
A97: 20 | C97: 5 | D97: 10 | E97: 16 | F97: 22 | G97: 28 | H97: 34 | I97: 40 | J97: 47 | K97: 53 | L97: 60 | M97: 67 | N97: 73 | O97: 80 | P97: 87 | Q97: 93 | R97: 100 | S97: 107 | T97: 114
A99: Critical values for U with alpha = .02, two-tailed
A101: Mann-Whitney Table
A103: n1\n2 | B103: 2 | C103: =B103+1 -> 3 | D103: 4 | E103: 5 | F103: 6 | G103: 7 | H103: 8 | I103: 9 | J103: 10 | K103: 11 | L103: 12 | M103: 13 | N103: 14 | O103: 15 | P103: 16 | Q103: 17 | R103: 18 | S103: 19 | T103: 20
A104: 2
A105: =A104+1 -> 3 | L105: 0 | M105: 0 | N105: 0 | O105: 1 | P105: 1 | Q105: 1 | R105: 1 | S105: 1 | T105: 2
A106: =A105+1 -> 4 | H106: 0 | I106: 0 | J106: 1 | K106: 1 | L106: 2 | M106: 2 | N106: 3 | O106: 3 | P106: 4 | Q106: 4 | R106: 5 | S106: 5 | T106: 5
A107: 5 | F107: 0 | G107: 0 | H107: 1 | I107: 2 | J107: 3 | K107: 3 | L107: 4 | M107: 5 | N107: 6 | O107: 6 | P107: 7 | Q107: 8 | R107: 9 | S107: 9 | T107: 10
A108: 6 | E108: 0 | F108: 1 | G108: 2 | H108: 3 | I108: 4 | J108: 5 | K108: 6 | L108: 7 | M108: 8 | N108: 9 | O108: 10 | P108: 11 | Q108: 12 | R108: 13 | S108: 14 | T108: 15
A109: 7 | E109: 0 | F109: 2 | G109: 3 | H109: 4 | I109: 5 | J109: 7 | K109: 8 | L109: 9 | M109: 11 | N109: 12 | O109: 13 | P109: 15 | Q109: 16 | R109: 18 | S109: 19 | T109: 20
A110: 8 | D110: 0 | E110: 1 | F110: 3 | G110: 4 | H110: 6 | I110: 7 | J110: 9 | K110: 11 | L110: 12 | M110: 14 | N110: 16 | O110: 17 | P110: 19 | Q110: 21 | R110: 22 | S110: 24 | T110: 26
A111: 9 | D111: 0 | E111: 2 | F111: 4 | G111: 5 | H111: 7 | I111: 9 | J111: 11 | K111: 13 | L111: 15 | M111: 17 | N111: 19 | O111: 21 | P111: 23 | Q111: 25 | R111: 27 | S111: 29 | T111: 31
A112: 10 | D112: 1 | E112: 3 | F112: 5 | G112: 7 | H112: 9 | I112: 11 | J112: 13 | K112: 16 | L112: 18 | M112: 20 | N112: 23 | O112: 25 | P112: 27 | Q112: 30 | R112: 32 | S112: 35 | T112: 37
A113: 11 | D113: 1 | E113: 3 | F113: 6 | G113: 8 | H113: 11 | I113: 13 | J113: 16 | K113: 18 | L113: 21 | M113: 24 | N113: 26 | O113: 29 | P113: 32 | Q113: 35 | R113: 37 | S113: 40 | T113: 43
A114: 12 | C114: 0 | D114: 2 | E114: 4 | F114: 7 | G114: 9 | H114: 12 | I114: 15 | J114: 18 | K114: 21 | L114: 24 | M114: 27 | N114: 30 | O114: 33 | P114: 36 | Q114: 39 | R114: 43 | S114: 46 | T114: 49
A115: 13 | C115: 0 | D115: 2 | E115: 5 | F115: 8 | G115: 11 | H115: 14 | I115: 17 | J115: 20 | K115: 24 | L115: 27 | M115: 30 | N115: 34 | O115: 37 | P115: 41 | Q115: 44 | R115: 48 | S115: 51 | T115: 55
A116: 14 | C116: 0 | D116: 3 | E116: 6 | F116: 9 | G116: 12 | H116: 16 | I116: 19 | J116: 23 | K116: 26 | L116: 30 | M116: 34 | N116: 38 | O116: 41 | P116: 45 | Q116: 49 | R116: 53 | S116: 57 | T116: 61
A117: 15 | C117: 1 | D117: 3 | E117: 6 | F117: 10 | G117: 13 | H117: 17 | I117: 21 | J117: 25 | K117: 29 | L117: 33 | M117: 37 | N117: 41 | O117: 46 | P117: 50 | Q117: 54 | R117: 58 | S117: 62 | T117: 67
A118: 16 | C118: 1 | D118: 4 | E118: 7 | F118: 11 | G118: 15 | H118: 19 | I118: 23 | J118: 27 | K118: 32 | L118: 36 | M118: 41 | N118: 45 | O118: 50 | P118: 54 | Q118: 59 | R118: 64 | S118: 68 | T118: 73
A119: 17 | C119: 1 | D119: 4 | E119: 8 | F119: 12 | G119: 16 | H119: 21 | I119: 25 | J119: 30 | K119: 35 | L119: 39 | M119: 44 | N119: 49 | O119: 54 | P119: 59 | Q119: 64 | R119: 69 | S119: 74 | T119: 79
A120: 18 | C120: 1 | D120: 5 | E120: 9 | F120: 13 | G120: 18 | H120: 22 | I120: 27 | J120: 32 | K120: 37 | L120: 43 | M120: 48 | N120: 53 | O120: 58 | P120: 64 | Q120: 69 | R120: 74 | S120: 80 | T120: 85
A121: 19 | C121: 1 | D121: 5 | E121: 9 | F121: 14 | G121: 19 | H121: 24 | I121: 29 | J121: 35 | K121: 40 | L121: 46 | M121: 51 | N121: 57 | O121: 62 | P121: 68 | Q121: 74 | R121: 80 | S121: 85 | T121: 91
A122: 20 | C122: 2 | D122: 5 | E122: 10 | F122: 15 | G122: 20 | H122: 26 | I122: 31 | J122: 37 | K122: 43 | L122: 49 | M122: 55 | N122: 61 | O122: 67 | P122: 73 | Q122: 79 | R122: 85 | S122: 91 | T122: 97
A124: Critical values for U with alpha = .005, two-tailed
A126: Mann-Whitney Table
A128: n1\n2 | B128: 2 | C128: =B128+1 -> 3 | D128: 4 | E128: 5 | F128: 6 | G128: 7 | H128: 8 | I128: 9 | J128: 10 | K128: 11 | L128: 12 | M128: 13 | N128: 14 | O128: 15 | P128: 16 | Q128: 17 | R128: 18 | S128: 19 | T128: 20
A129: 2 | C129: 0 | D129: 0 | E129: 1 | F129: 1 | G129: 1 | H129: 2 | I129: 2 | J129: 3 | K129: 3 | L129: 4 | M129: 4 | N129: 5 | O129: 5 | P129: 5 | Q129: 6 | R129: 6 | S129: 7 | T129: 7
A130: =A129+1 -> 3 | B130: 0 | C130: 1 | D130: 1 | E130: 2 | F130: 3 | G130: 4 | H130: 5 | I130: 5 | J130: 6 | K130: 7 | L130: 8 | M130: 9 | N130: 10 | O130: 10 | P130: 11 | Q130: 12 | R130: 13 | S130: 14 | T130: 15
A131: =A130+1 -> 4 | B131: 0 | C131: 1 | D131: 3 | E131: 4 | F131: 5 | G131: 6 | H131: 7 | I131: 9 | J131: 10 | K131: 11 | L131: 12 | M131: 13 | N131: 15 | O131: 17 | P131: 18 | Q131: 20 | R131: 21 | S131: 22 | T131: 23
A132: 5 | B132: 1 | C132: 2 | D132: 4 | E132: 5 | F132: 7 | G132: 8 | H132: 10 | I132: 12 | J132: 13 | K132: 15 | L132: 17 | M132: 18 | N132: 20 | O132: 22 | P132: 23 | Q132: 25 | R132: 27 | S132: 28 | T132: 30
A133: 6 | B133: 1 | C133: 3 | D133: 5 | E133: 7 | F133: 9 | G133: 11 | H133: 13 | I133: 15 | J133: 17 | K133: 19 | L133: 21 | M133: 23 | N133: 25 | O133: 27 | P133: 29 | Q133: 31 | R133: 34 | S133: 36 | T133: 38
A134: 7 | B134: 1 | C134: 4 | D134: 6 | E134: 8 | F134: 11 | G134: 13 | H134: 16 | I134: 18 | J134: 21 | K134: 23 | L134: 26 | M134: 28 | N134: 31 | O134: 33 | P134: 36 | Q134: 41 | R134: 43 | S134: 46 | T134: 48
A135: 8 | B135: 2 | C135: 5 | D135: 7 | E135: 10 | F135: 13 | G135: 16 | H135: 19 | I135: 22 | J135: 24 | K135: 27 | L135: 30 | M135: 33 | N135: 36 | O135: 39 | P135: 42 | Q135: 45 | R135: 48 | S135: 51 | T135: 54
A136: 9 | B136: 2 | C136: 5 | D136: 9 | E136: 12 | F136: 15 | G136: 18 | H136: 22 | I136: 25 | J136: 28 | K136: 31 | L136: 35 | M136: 38 | N136: 41 | O136: 45 | P136: 48 | Q136: 52 | R136: 55 | S136: 58 | T136: 62
A137: 10 | B137: 3 | C137: 6 | D137: 10 | E137: 13 | F137: 17 | G137: 21 | H137: 24 | I137: 28 | J137: 32 | K137: 36 | L137: 39 | M137: 43 | N137: 47 | O137: 51 | P137: 54 | Q137: 58 | R137: 62 | S137: 66 | T137: 70
A138: 11 | B138: 3 | C138: 7 | D138: 11 | E138: 15 | F138: 19 | G138: 23 | H138: 27 | I138: 31 | J138: 36 | K138: 40 | L138: 44 | M138: 48 | N138: 52 | O138: 57 | P138: 61 | Q138: 65 | R138: 69 | S138: 73 | T138: 78
A139: 12 | B139: 4 | C139: 8 | D139: 12 | E139: 17 | F139: 21 | G139: 26 | H139: 30 | I139: 35 | J139: 39 | K139: 44 | L139: 49 | M139: 53 | N139: 58 | O139: 63 | P139: 67 | Q139: 72 | R139: 77 | S139: 81 | T139: 86
A140: 13 | B140: 4 | C140: 9 | D140: 13 | E140: 18 | F140: 23 | G140: 28 | H140: 33 | I140: 38 | J140: 43 | K140: 48 | L140: 53 | M140: 58 | N140: 63 | O140: 68 | P140: 74 | Q140: 79 | R140: 84 | S140: 89 | T140: 94
A141: 14 | B141: 5 | C141: 10 | D141: 15 | E141: 20 | F141: 25 | G141: 31 | H141: 36 | I141: 41 | J141: 47 | K141: 52 | L141: 58 | M141: 63 | N141: 69 | O141: 74 | P141: 80 | Q141: 85 | R141: 91 | S141: 97 | T141: 102
A142: 15 | B142: 5 | C142: 10 | D142: 17 | E142: 22 | F142: 27 | G142: 33 | H142: 39 | I142: 45 | J142: 51 | K142: 57 | L142: 63 | M142: 68 | N142: 74 | O142: 80 | P142: 86 | Q142: 92 | R142: 98 | S142: 104 | T142: 110
A143: 16 | B143: 5 | C143: 11 | D143: 18 | E143: 23 | F143: 29 | G143: 36 | H143: 42 | I143: 48 | J143: 54 | K143: 61 | L143: 67 | M143: 74 | N143: 80 | O143: 86 | P143: 93 | Q143: 99 | R143: 106 | S143: 112 | T143: 119
A144: 17 | B144: 6 | C144: 12 | D144: 20 | E144: 25 | F144: 31 | G144: 41 | H144: 45 | I144: 52 | J144: 58 | K144: 65 | L144: 72 | M144: 79 | N144: 85 | O144: 92 | P144: 99 | Q144: 106 | R144: 113 | S144: 120 | T144: 127
A145: 18 | B145: 6 | C145: 13 | D145: 21 | E145: 27 | F145: 34 | G145: 43 | H145: 48 | I145: 55 | J145: 62 | K145: 69 | L145: 77 | M145: 84 | N145: 91 | O145: 98 | P145: 106 | Q145: 113 | R145: 120 | S145: 128 | T145: 135
A146: 19 | B146: 7 | C146: 14 | D146: 22 | E146: 28 | F146: 36 | G146: 46 | H146: 51 | I146: 58 | J146: 66 | K146: 73 | L146: 81 | M146: 89 | N146: 97 | O146: 104 | P146: 112 | Q146: 120 | R146: 128 | S146: 135 | T146: 143
A147: 20 | B147: 7 | C147: 15 | D147: 23 | E147: 30 | F147: 38 | G147: 48 | H147: 54 | I147: 62 | J147: 70 | K147: 78 | L147: 86 | M147: 94 | N147: 102 | O147: 110 | P147: 119 | Q147: 127 | R147: 135 | S147: 143 | T147: 151
A149: Critical values for U with alpha = .20, two-tailed

Sheet RSign Table
A1: Table of Critical Values for Wilcoxon Matched Pairs Signed Rank Test
A2: (two tailed significance levels)
B4: alpha values
A5: n | B5: 0.001 | C5: 0.002 | D5: 0.01 | E5: 0.02 | F5: 0.05 | G5: 0.1 | H5: 0.2 | K5: n | L5: 0.001 | M5: 0.01 | N5: 0.02 | O5: 0.05 | P5: 0.1
A6: 5 | B6: -- | C6: -- | D6: -- | E6: -- | F6: -- | G6: 0 | H6: 2 | K6: 41 | L6: 183 | M6: 233 | N6: 252 | O6: 279 | P6: 302
A7: 6 | B7: -- | C7: -- | D7: -- | E7: -- | F7: 0 | G7: 2 | H7: 4 | K7: 42 | L7: 195 | M7: 247 | N7: 266 | O7: 294 | P7: 319
A8: 7 | B8: -- | C8: -- | D8: -- | E8: 0 | F8: 2 | G8: 3 | H8: 6 | K8: 43 | L8: 207 | M8: 261 | N8: 280 | O8: 310 | P8: 336
A9: 8 | B9: -- | C9: -- | D9: 0 | E9: 1 | F9: 3 | G9: 5 | H9: 8 | K9: 44 | L9: 220 | M9: 276 | N9: 296 | O9: 327 | P9: 353
A10: 9 | B10: -- | C10: -- | D10: 1 | E10: 3 | F10: 5 | G10: 8 | H10: 11 | K10: 45 | L10: 233 | M10: 291 | N10: 312 | O10: 343 | P10: 371
A11: 10 | B11: -- | C11: 0 | D11: 3 | E11: 5 | F11: 8 | G11: 10 | H11: 14 | K11: 46 | L11: 246 | M11: 307 | N11: 328 | O11: 361 | P11: 389
A12: 11 | B12: 0 | C12: 1 | D12: 5 | E12: 7 | F12: 10 | G12: 13 | H12: 18 | K12: 47 | L12: 260 | M12: 322 | N12: 345 | O12: 378 | P12: 407
A13: 12 | B13: 1 | C13: 2 | D13: 7 | E13: 9 | F13: 13 | G13: 17 | H13: 22 | K13: 48 | L13: 274 | M13: 339 | N13: 362 | O13: 396 | P13: 426
A14: 13 | B14: 2 | C14: 4 | D14: 9 | E14: 12 | F14: 17 | G14: 21 | H14: 26 | K14: 49 | L14: 289 | M14: 355 | N14: 379 | O14: 415 | P14: 446
A15: 14 | B15: 4 | C15: 6 | D15: 12 | E15: 15 | F15: 21 | G15: 25 | H15: 31 | K15: 50 | L15: 304 | M15: 373 | N15: 397 | O15: 434 | P15: 466
A16: 15 | B16: 6 | C16: 8 | D16: 15 | E16: 19 | F16: 25 | G16: 30 | H16: 37
A17: 16 | B17: 8 | C17: 11 | D17: 19 | E17: 23 | F17: 29 | G17: 35 | H17: 42
A18: 17 | B18: 11 | C18: 14 | D18: 23 | E18: 27 | F18: 34 | G18: 41 | H18: 49
A19: 18 | B19: 14 | C19: 18 | D19: 27 | E19: 32 | F19: 40 | G19: 47 | H19: 55
A20: 19 | B20: 18 | C20: 21 | D20: 32 | E20: 37 | F20: 46 | G20: 53 | H20: 62
A21: 20 | B21: 21 | C21: 23 | D21: 37 | E21: 43 | F21: 52 | G21: 60 | H21: 70
A22: 21 | B22: 25 | C22: 32 | D22: 42 | E22: 49 | F22: 58 | G22: 67 | H22: 78
A23: 22 | B23: 30 | C23: 34 | D23: 48 | E23: 56 | F23: 65 | G23: 75 | H23: 86
A24: 23 | B24: 35 | C24: 40 | D24: 54 | E24: 62 | F24: 73 | G24: 83 | H24: 95
A25: 24 | B25: 40 | C25: 46 | D25: 61 | E25: 69 | F25: 81 | G25: 91 | H25: 104
A26: 25 | B26: 45 | C26: 51 | D26: 68 | E26: 77 | F26: 89 | G26: 100 | H26: 115
A27: 26 | B27: 51 | C27: 58 | D27: 75 | E27: 84 | F27: 98 | G27: 110 | H27: 124
A28: 27 | B28: 57 | C28: 63 | D28: 83 | E28: 92 | F28: 107 | G28: 119 | H28: 135
A29: 28 | B29: 64 | C29: 71 | D29: 91 | E29: 101 | F29: 116 | G29: 130 | H29: 146
A30: 29 | B30: 71 | C30: 80 | D30: 100 | E30: 110 | F30: 126 | G30: 140 | H30: 157
A31: 30 | B31: 78 | C31: 85 | D31: 109 | E31: 120 | F31: 137 | G31: 151 | H31: 169
A32: 31 | B32: 86 | C32: 95 | D32: 118 | E32: 130 | F32: 147 | G32: 163 | H32: 181
A33: 32 | B33: 94 | C33: 102 | D33: 128 | E33: 140 | F33: 159 | G33: 175 | H33: 195
A34: 33 | B34: 102 | C34: 111 | D34: 138 | E34: 151 | F34: 170 | G34: 187 | H34: 208
A35: 34 | B35: 111 | C35: 123 | D35: 148 | E35: 162 | F35: 182 | G35: 200 | H35: 221
A36: 35 | B36: 120 | C36: 130 | D36: 159 | E36: 173 | F36: 195 | G36: 213 | H36: 236
A37: 36 | B37: 130 | C37: 139 | D37: 171 | E37: 185 | F37: 208 | G37: 227 | H37: 250
A38: 37 | B38: 140 | C38: 153 | D38: 182 | E38: 198 | F38: 221 | G38: 241 | H38: 266
A39: 38 | B39: 150 | C39: 163 | D39: 194 | E39: 211 | F39: 235 | G39: 256 | H39: 281
A40: 39 | B40: 161 | C40: 176 | D40: 207 | E40: 224 | F40: 249 | G40: 271 | H40: 297
A41: 40 | B41: 172 | C41: 186 | D41: 220 | E41: 238 | F41: 264 | G41: 286 | H41: 314
A42: 41 | B42: 183 | D42: 233 | E42: 252 | F42: 279 | G42: 302
A43: 42 | B43: 195 | D43: 247 | E43: 266 | F43: 294 | G43: 319
A44: 43 | B44: 207 | D44: 261 | E44: 280 | F44: 310 | G44: 336
A45: 44 | B45: 220 | D45: 276 | E45: 296 | F45: 327 | G45: 353
A46: 45 | B46: 233 | D46: 291 | E46: 312 | F46: 343 | G46: 371
A47: 46 | B47: 246 | D47: 307 | E47: 328 | F47: 361 | G47: 389
A48: 47 | B48: 260 | D48: 322 | E48: 345 | F48: 378 | G48: 407
A49: 48 | B49: 274 | D49: 339 | E49: 362 | F49: 396 | G49: 426
A50: 49 | B50: 289 | D50: 355 | E50: 379 | F50: 415 | G50: 446
A51: 50 | B51: 304 | D51: 373 | E51: 397 | F51: 434 | G51: 466
A54: For a one-tailed test, alpha is half the value given;
A55: e.g. α = .025 (one-tailed) is equivalent to α = .05 (two-tailed)
A57: n = the number of subjects and the value given is the critical W value for a particular n and α
A59: The obtained value of W-obs is statistically significant if it is ≤ the value W-crit given in the table
A61: E.g.: if W-obs 22 and n = 22 and α = ,05 (two-tailed) or = .025 (one-tailed) then since W-crit = 25,
A62: the conclusion is that the difference is unlikely due solely to chance.

Sheet Runs Table
A1: Runs Table
A3: n1 | B3: n2 | C3: r - lower | D3: r - upper | F3: n1 | G3: n2 | H3: r - lower | I3: r - upper | K3: n1 | L3: n2 | M3: r - lower | N3: r - upper | P3: n1 | Q3: n2 | R3: r - lower | S3: r - upper | U3: n1 | V3: n2 | W3: r - lower | X3: r - upper | Z3: n1 | AA3: n2 | AB3: r - lower | AC3: r - upper | AE3: n1 | AF3: n2 | AG3: r - lower | AH3: r - upper | AJ3: 13 | AK3: =AJ3 -> 13 | AL3: 9 | AM3: 19 | AO3: n1 | AP3: n2 | AQ3: r - lower | AR3: r - upper | AT3: n1 | AU3: n2 | AV3: r - lower | AW3: r - upper | AY3: n1 | AZ3: n2 | BA3: r - lower | BB3: r - upper | BD3: n1 | BE3: n2 | BF3: r - lower | BG3: r - upper | BI3: n1 | BJ3: n2 | BK3: r - lower | BL3: r - upper | BN3: n1 | BO3: n2 | BP3: r - lower | BQ3: r - upper | BS3: n1 | BT3: n2 | BU3: r - lower | BV3: r - upper | BX3: n1 | BY3: n2 | BZ3: r - lower | CA3: r - upper
A4: 20 | B4: 20 | C4: 15 | D4: 27 | F4: 19 | G4: =F4 -> 19 | H4: 14 | I4: 26 | K4: 18 | L4: =K4 -> 18 | M4: 13 | N4: 25 | P4: 17 | Q4: =P4 -> 17 | R4: 12 | S4: 24 | U4: 16 | V4: =U4 -> 16 | W4: 12 | X4: 22 | Z4: 15 | AA4: =Z4 -> 15 | AB4: 11 | AC4: 21 | AE4: 14 | AF4: =AE4 -> 14 | AG4: 10 | AH4: 20 | AJ4: 13 | AK4: =AK3-1 -> 12 | AL4: 8 | AM4: 19 | AO4: 12 | AP4: =AO4 -> 12 | AQ4: 8 | AR4: 18 | AT4: 11 | AU4: =AT4 -> 11 | AV4: 8 | AW4: 16 | AY4: 10 | AZ4: =AY4 -> 10 | BA4: 7 | BB4: 15 | BD4: 9 | BE4: =BD4 -> 9 | BF4: 6 | BG4: 14 | BI4: 8 | BJ4: =BI4 -> 8 | BK4: 5 | BL4: 13 | BN4: 7 | BO4: =BN4 -> 7 | BP4: 4 | BQ4: 12 | BS4: 6 | BT4: =BS4 -> 6 | BU4: 4 | BV4: 10 | BX4: 5 | BY4: =BX4 -> 5 | BZ4: 3 | CA4: 9
A5: 20 | B5: =B4-1 -> 19 | C5: 14 | D5: 26 | F5: 19 | G5: =G4-1 -> 18 | H5: 14 | I5: 25 | K5: 18 | L5: =L4-1 -> 17 | M5: 13 | N5: 24 | P5: 17 | Q5: =Q4-1 -> 16 | R5: 12 | S5: 23 | U5: 16 | V5: =V4-1 -> 15 | W5: 11 | X5: 22 | Z5: 15 | AA5: =AA4-1 -> 14 | AB5: 10 | AC5: 21 | AE5: 14 | AF5: =AF4-1 -> 13 | AG5: 10 | AH5: 19 | AJ5: 13 | AK5: 11 | AL5: 8 | AM5: 18 | AO5: 12 | AP5: =AP4-1 -> 11 | AQ5: 8 | AR5: 17 | AT5: 11 | AU5: =AU4-1 -> 10 | AV5: 7 | AW5: 16 | AY5: 10 | AZ5: =AZ4-1 -> 9 | BA5: 6 | BB5: 15 | BD5: 9 | BE5: =BE4-1 -> 8 | BF5: 6 | BG5: 13 | BI5: 8 | BJ5: =BJ4-1 -> 7 | BK5: 5 | BL5: 12 | BN5: 7 | BO5: =BO4-1 -> 6 | BP5: 4 | BQ5: 11 | BS5: 6 | BT5: =BT4-1 -> 5 | BU5: 4 | BV5: 9 | BX5: 5 | BY5: =BY4-1 -> 4 | BZ5: 3 | CA5: 8
A6: 20 | B6: =B5-1 -> 18 | C6: 14 | D6: 26 | F6: 19 | G6: =G5-1 -> 17 | H6: 13 | I6: 25 | K6: 18 | L6: 16 | M6: 12 | N6: 24 | P6: 17 | Q6: 15 | R6: 12 | S6: 22 | U6: 16 | V6: 14 | W6: 11 | X6: 21 | Z6: 15 | AA6: 13 | AB6: 10 | AC6: 20 | AE6: 14 | AF6: 12 | AG6: 9 | AH6: 19 | AJ6: 13 | AK6: 10 | AL6: 8 | AM6: 17 | AO6: 12 | AP6: 10 | AQ6: 8 | AR6: 16 | AT6: 11 | AU6: 9 | AV6: 7 | AW6: 15 | AY6: 10 | AZ6: 8 | BA6: 6 | BB6: 14 | BD6: 9 | BE6: 7 | BF6: 5 | BG6: 13 | BI6: 8 | BJ6: 6 | BK6: 4 | BL6: 11 | BN6: 7 | BO6: =BO5-1 -> 5 | BP6: 4 | BQ6: 10 | BS6: 6 | BT6: =BT5-1 -> 4 | BU6: 3 | BV6: 8 | BX6: 5 | BY6: =BY5-1 -> 3
A7: 20 | B7: 17 | C7: 14 | D7: 25 | F7: 19 | G7: 16 | H7: 13 | I7: 24 | K7: 18 | L7: 15 | M7: 12 | N7: 23 | P7: 17 | Q7: 14 | R7: 11 | S7: 22 | U7: 16 | V7: 13 | W7: 10 | X7: 21 | Z7: 15 | AA7: 12 | AB7: 9 | AC7: 19 | AE7: 14 | AF7: 11 | AG7: 9 | AH7: 18 | AJ7: 13 | AK7: 9 | AL7: 7 | AM7: 16 | AO7: 12 | AP7: 9 | AQ7: 7 | AR7: 15 | AT7: 11 | AU7: 8 | AV7: 6 | AW7: 14 | AY7: 10 | AZ7: 7 | BA7: 6 | BB7: 13 | BD7: 9 | BE7: 6 | BF7: 5 | BG7: 12 | BI7: 8 | BJ7: 5 | BK7: 4 | BL7: 10 | BN7: 7 | BO7: =BO6-1 -> 4 | BP7: 3 | BS7: 6 | BT7: =BT6-1 -> 3 | BU7: 3 | BX7: 5 | BY7: =BY6-1 -> 2
A8: 20 | B8: 16 | C8: 13 | D8: 24 | F8: 19 | G8: 15 | H8: 12 | I8: 23 | K8: 18 | L8: 14 | M8: 11 | N8: 22 | P8: 17 | Q8: 13 | R8: 11 | S8: 21 | U8: 16 | V8: 12 | W8: 10 | X8: 21 | Z8: 15 | AA8: 11 | AB8: 9 | AC8: 18 | AE8: 14 | AF8: 10 | AG8: 8 | AH8: 17 | AJ8: 13 | AK8: 8 | AL8: 7 | AM8: 15 | AO8: 12 | AP8: 8 | AQ8: 7 | AR8: 15 | AT8: 11 | AU8: 7 | AV8: 6 | AW8: 13 | AY8: 10 | AZ8: 6 | BA8: 5 | BB8: 12 | BD8: 9 | BE8: 5 | BF8: 4 | BI8: 8 | BJ8: 4 | BK8: 4 | BN8: 7 | BO8: =BO7-1 -> 3 | BP8: 3 | BS8: 6 | BT8: =BT7-1 -> 2
A9: 20 | B9: 15 | C9: 13 | D9: 24 | F9: 19 | G9: 14 | H9: 12 | I9: 22 | K9: 18 | L9: 13 | M9: 11 | N9: 21 | P9: 17 | Q9: 12 | R9: 10 | S9: 20 | U9: 16 | V9: 11 | W9: 9 | X9: 19 | Z9: 15 | AA9: 10 | AB9: 8 | AC9: 17 | AE9: 14 | AF9: 9 | AG9: 8 | AH9: 16 | AJ9: 13 | AK9: 7 | AL9: 6 | AM9: 14 | AO9: 12 | AP9: 7 | AQ9: 6 | AR9: 13 | AT9: 11 | AU9: 6 | AV9: 5 | AW9: 12 | AY9: 10 | AZ9: 5 | BA9: 4 | BD9: 9 | BE9: 4 | BF9: 4 | BI9: 8 | BJ9: 3 | BK9: 3 | BN9: 7 | BO9: =BO8-1 -> 2
A10: 20 | B10: 14 | C10: 12 | D10: 23 | F10: 19 | G10: 13 | H10: 11 | I10: 21 | K10: 18 | L10: 12 | M10: 10 | N10: 21 | P10: 17 | Q10: 11 | R10: 10 | S10: 19 | U10: 16 | V10: 10 | W10: 9 | X10: 18 | Z10: 15 | AA10: 9 | AB10: 8 | AC10: 19 | AE10: 14 | AF10: 8 | AG10: 7 | AH10: 15 | AJ10: 13 | AK10: 6 | AL10: 6 | AO10: 12 | AP10: 6 | AQ10: 5 | AR10: 12 | AT10: 11 | AU10: 5 | AV10: 5 | AY10: 10 | AZ10: 4 | BA10: 4 | BD10: 9 | BE10: 3 | BF10: 3 | BI10: 8 | BJ10: 2
A11: 20 | B11: 13 | C11: 11 | D11: 22 | F11: 19 | G11: 12 | H11: 11 | I11: 21 | K11: 18 | L11: 11 | M11: 10 | N11: 19 | P11: 17 | Q11: 10 | R11: 9 | S11: 18 | U11: 16 | V11: 9 | W11: 8 | X11: 19 | Z11: 15 | AA11: 8 | AB11: 7 | AC11: 15 | AE11: 14 | AF11: 7 | AG11: 6 | AH11: 14 | AJ11: 13 | AK11: 5 | AL11: 5 | AO11: 12 | AP11: 5 | AQ11: 5 | AT11: 11 | AU11: 4 | AV11: 4 | AY11: 10 | AZ11: 3 | BA11: 3 | BD11: 9 | BE11: 2
A12: 20 | B12: 12 | C12: 11 | D12: 21 | F12: 19 | G12: 11 | H12: 10 | I12: 20 | K12: 18 | L12: 10 | M12: 9 | N12: 18 | P12: 17 | Q12: 9 | R12: 8 | S12: 19 | U12: 16 | V12: 8 | W12: 7 | X12: 16 | Z12: 15 | AA12: 7 | AB12: 7 | AC12: 14 | AE12: 14 | AF12: 6 | AG12: 6 | AJ12: 13 | AK12: 4 | AL12: 4 | AO12: 12 | AP12: 4 | AQ12: 4 | AT12: 11 | AU12: 3 | AV12: 3 | AY12: 10 | AZ12: 2
A13: 20 | B13: 11 | C13: 10 | D13: 20 | F13: 19 | G13: 10 | H13: 9 | I13: 19 | K13: 18 | L13: 9 | M13: 9 | N13: 19 | P13: 17 | Q13: 8 | R13: 8 | S13: 16 | U13: 16 | V13: 7 | W13: 7 | Z13: 15 | AA13: 6 | AB13: 6 | AE13: 14 | AF13: 5 | AG13: 5 | AJ13: 13 | AK13: 3 | AL13: 3 | AO13: 12 | AP13: 3 | AQ13: 3 | AT13: 11 | AU13: 2
A14: 20 | B14: 10 | C14: 10 | D14: 19 | F14: 19 | G14: 9 | H14: 9 | I14: 19 | K14: 18 | L14: 8 | M14: 8 | N14: 16 | P14: 17 | Q14: 7 | R14: 7 | U14: 16 | V14: 6 | W14: 6 | Z14: 15 | AA14: 5 | AB14: 5 | AE14: 14 | AF14: 4 | AG14: 4 | AJ14: 13 | AK14: 2 | AL14: 3 | AO14: 12 | AP14: 2 | AQ14: 3
A15: 20 | B15: 9 | C15: 9 | D15: 19 | F15: 19 | G15: 8 | H15: 8 | I15: 16 | K15: 18 | L15: 7 | M15: 7 | P15: 17 | Q15: 6 | R15: 6 | U15: 16 | V15: 5 | W15: 5 | Z15: 15 | AA15: 4 | AB15: 4 | AE15: 14 | AF15: 3 | AG15: 3
A16: 20 | B16: 8 | C16: 8 | D16: 16 | F16: 19 | G16: 7 | H16: 7 | K16: 18 | L16: 6 | M16: 6 | P16: 17 | Q16: 5 | R16: 5 | U16: 16 | V16: 4 | W16: 5 | Z16: 15 | AA16: 3 | AB16: 4 | AE16: 14 | AF16: 2 | AG16: 3
A17: 20 | B17: 7 | C17: 7 | F17: 19 | G17: 6 | H17: 7 | K17: 18 | L17: 5 | M17: 6 | P17: 17 | Q17: 4 | R17: 5 | U17: 16 | V17: 3 | W17: 4 | Z17: 15 | AA17: 2 | AB17: 3
A18: 20 | B18: 6 | C18: 7 | F18: 19 | G18: 5 | H18: 6 | K18: 18 | L18: 4 | M18: 5 | P18: 17 | Q18: 3 | R18: 4 | U18: 16 | V18: 2 | W18: 3
A19: 20 | B19: 5 | C19: 6 | F19: 19 | G19: 4 | H19: 5 | K19: 18 | L19: 3 | M19: 4 | P19: 17 | Q19: 2 | R19: 3
A20: 20 | B20: 4 | C20: 5 | F20: 19 | G20: 3 | H20: 4 | K20: 18 | L20: 2 | M20: 3
A21: 20 | B21: 3 | C21: 4 | F21: 19 | G21: 2 | H21: 3
A22: 20 | B22: 2 | C22: 3
A24: Range listed for r are the values for which null hypothesis (that the runs are random) is not rejected at 5% level
AE25: 9 | AF25: =AE25 -> 9 | AG25: 6 | AH25: 14 | AJ25: 8 | AK25: =AJ25 -> 8 | AL25: 5 | AM25: 13 | AO25: 7 | AP25: =AO25 -> 7 | AQ25: 4 | AR25: 12 | AT25: 6 | AU25: =AT25 -> 6 | AV25: 4 | AW25: 10 | AY25: 5 | AZ25: =AY25 -> 5 | BA25: 3 | BB25: 9
AE26: 9 | AF26: =AF25-1 -> 8 | AG26: 6 | AH26: 13 | AJ26: 8 | AK26: =AK25-1 -> 7 | AL26: 5 | AM26: 12 | AO26: 7 | AP26: =AP25-1 -> 6 | AQ26: 4 | AR26: 11 | AT26: 6 | AU26: =AU25-1 -> 5 | AV26: 4 | AW26: 9 | AY26: 5 | AZ26: =AZ25-1 -> 4 | BA26: 3 | BB26: 8
AE27: 9 | AF27: 7 | AG27: 5 | AH27: 13 | AJ27: 8 | AK27: 6 | AL27: 4 | AM27: 11 | AO27: 7 | AP27: =AP26-1 -> 5 | AQ27: 4 | AR27: 10 | AT27: 6 | AU27: =AU26-1 -> 4 | AV27: 3 | AW27: 8 | AY27: 5 | AZ27: =AZ26-1 -> 3
AE28: 9 | AF28: 6 | AG28: 5 | AH28: 12 | AJ28: 8 | AK28: 5 | AL28: 4 | AM28: 10 | AO28: 7 | AP28: =AP27-1 -> 4 | AQ28: 3 | AT28: 6 | AU28: =AU27-1 -> 3 | AV28: 3 | AY28: 5 | AZ28: =AZ27-1 -> 2
AE29: 9 | AF29: 5 | AG29: 4 | AJ29: 8 | AK29: 4 | AL29: 4 | AO29: 7 | AP29: =AP28-1 -> 3 | AQ29: 3 | AT29: 6 | AU29: =AU28-1 -> 2
AE30: 9 | AF30: 4 | AG30: 4 | AJ30: 8 | AK30: 3 | AL30: 3 | AO30: 7 | AP30: =AP29-1 -> 2
AE31: 9 | AF31: 3 | AG31: 3 | AJ31: 8 | AK31: 2
AE32: 9 | AF32: 2

Sheet KS Table
A1: Kolmogrov-Smirnov Table - one sample
A3: n \ α | B3: 0.001 | C3: 0.01 | D3: 0.02 | E3: 0.05 | F3: 0.1 | G3: 0.15 | H3: 0.2
A4: 1 | C4: 0.995 | D4: 0.99 | E4: 0.975 | F4: 0.95 | G4: 0.925 | H4: 0.9
A5: 2 | B5: 0.97764 | C5: 0.9293 | D5: 0.9 | E5: 0.84189 | F5: 0.77639 | G5: 0.72614 | H5: 0.68377
A6: 3 | B6: 0.92063 | C6: 0.829 | D6: 0.78456 | E6: 0.7076 | F6: 0.63604 | G6: 0.59582 | H6: 0.56481
A7: 4 | B7: 0.85046 | C7: 0.73421 | D7: 0.68887 | E7: 0.62394 | F7: 0.56522 | G7: 0.52476 | H7: 0.49265
A8: 5 | B8: 0.78137 | C8: 0.66855 | D8: 0.62718 | E8: 0.56327 | F8: 0.50945 | G8: 0.47439 | H8: 0.44697
A9: 6 | B9: 0.72479 | C9: 0.6166 | D9: 0.57741 | E9: 0.51926 | F9: 0.46799 | G9: 0.43526 | H9: 0.41035
A10: 7 | B10: 0.6793 | C10: 0.5758 | D10: 0.53844 | E10: 0.48343 | F10: 0.43607 | G10: 0.40497 | H10: 0.38145
A11: 8 | B11: 0.64098 | C11: 0.5418 | D11: 0.50654 | E11: 0.45427 | F11: 0.40962 | G11: 0.38062 | H11: 0.35828
A12: 9 | B12: 0.60846 | C12: 0.5133 | D12: 0.4796 | E12: 0.43001 | F12: 0.38746 | G12: 0.36006 | H12: 0.33907
A13: 10 | B13: 0.58042 | C13: 0.48895 | D13: 0.45662 | E13: 0.40925 | F13: 0.36866 | G13: 0.3425 | H13: 0.32257
A14: 11 | B14: 0.55588 | C14: 0.4677 | D14: 0.4367 | E14: 0.39122 | F14: 0.35242 | G14: 0.32734 | H14: 0.30826
A15: 12 | B15: 0.53422 | C15: 0.44905 | D15: 0.41918 | E15: 0.37543 | F15: 0.33815 | G15: 0.31408 | H15: 0.29573
A16: 13 | B16: 0.5149 | C16: 0.43246 | D16: 0.40362 | E16: 0.36143 | F16: 0.32548 | G16: 0.30233 | H16: 0.28466
A17: 14 | B17: 0.49753 | C17: 0.4176 | D17: 0.3897 | E17: 0.3489 | F17: 0.31417 | G17: 0.29181 | H17: 0.27477
A18: 15 | B18: 0.48182 | C18: 0.4042 | D18: 0.37713 | E18: 0.3376 | F18: 0.30397 | G18: 0.28233 | H18: 0.26585
A19: 16 | B19: 0.4675 | C19: 0.392 | D19: 0.36571 | E19: 0.32733 | F19: 0.29471 | G19: 0.27372 | H19: 0.25774
A20: 17 | B20: 0.4544 | C20: 0.38085 | D20: 0.35528 | E20: 0.31796 | F20: 0.28627 | G20: 0.26587 | H20: 0.25035
A21: 18 | B21: 0.44234 | C21: 0.37063 | D21: 0.34569 | E21: 0.30936 | F21: 0.27851 | G21: 0.25867 | H21: 0.24356
A22: 19 | B22: 0.43119 | C22: 0.36116 | D22: 0.33685 | E22: 0.30142 | F22: 0.27135 | G22: 0.25202 | H22: 0.23731
A23: 20 | B23: 0.42085 | C23: 0.3524 | D23: 0.32866 | E23: 0.29407 | F23: 0.26473 | G23: 0.24587 | H23: 0.23152
A24: 25 | B24: 0.37843 | C24: 0.31656 | D24: 0.30349 | E24: 0.26404 | F24: 0.23767 | G24: 0.22074 | H24: 0.20786
A25: 30 | B25: 0.34672 | C25: 0.28988 | D25: 0.27704 | E25: 0.2417 | F25: 0.21756 | G25: 0.20207 | H25: 0.19029
A26: 35 | B26: 0.32187 | C26: 0.26898 | D26: 0.25649 | E26: 0.22424 | F26: 0.20184 | G26: 0.18748 | H26: 0.17655
A27: 40 | B27: 0.30169 | C27: 0.2518776131 | D27: 0.23993 | E27: 0.21017 | F27: 0.18939 | G27: 0.1761 | H27: 0.16601
A28: 45 | B28: 0.28482 | C28: 0.2377961576 | D28: 0.22621 | E28: 0.19842 | F28: 0.17881 | G28: 0.16626 | H28: 0.15673
A29: 50 | B29: 0.27051 | C29: 0.2258505458 | D29: 0.2146 | E29: 0.18845 | F29: 0.16982 | G29: 0.1579 | H29: 0.14886
A30: > | B30: 1.94947 | C30: 1.62762 | D30: 1.51743 | E30: 1.3581 | F30: 1.22385 | G30: 1.13795 | H30: 1.07275
A32: If calculated ratio is greater than value shown, then reject
A33: the null hypothesis at the chosen level of confidence (α).

Sheet KS2 Table
A1: Kolmogrov-Smirnov Table - two sample
A3: α = .01
B4: 2 | C4: 3 | D4: 4 | E4: 5 | F4: 6 | G4: 7 | H4: 8 | I4: 9 | J4: 10 | K4: 11 | L4: 12 | M4: 13 | N4: 14 | O4: 15 | P4: 16 | Q4: 17 | R4: 18 | S4: 19 | T4: 20
A5: 2 | B5: - | C5: - | D5: - | E5: - | F5: - | G5: - | H5: - | I5: - | J5: - | K5: - | L5: - | M5: - | N5: - | O5: - | P5: - | Q5: - | R5: - | S5: 38 | T5: 40
A6: 3 | B6: - | C6: - | D6: - | E6: - | F6: - | G6: - | H6: - | I6: 27 | J6: 30 | K6: 33 | L6: 36 | M6: 39 | N6: 42 | O6: 42 | P6: 45 | Q6: 48 | R6: 51 | S6: 54 | T6: 57
A7: 4 | B7: - | C7: - | D7: - | E7: - | F7: 24 | G7: 28 | H7: 32 | I7: 36 | J7: 36 | K7: 40 | L7: 44 | M7: 48 | N7: 48 | O7: 52 | P7: 56 | Q7: 60 | R7: 60 | S7: 64 | T7: 68
A8: 5 | B8: - | C8: - | D8: - | E8: 25 | F8: 30 | G8: 35 | H8: 35 | I8: 40 | J8: 45 | K8: 45 | L8: 50 | M8: 52 | N8: 56 | O8: 60 | P8: 64 | Q8: 68 | R8: 70 | S8: 71 | T8: 80
A9: 6 | B9: - | C9: - | D9: 24 | E9: 30 | F9: 36 | G9: 36 | H9: 40 | I9: 45 | J9: 48 | K9: 54 | L9: 60 | M9: 60 | N9: 64 | O9: 69 | P9: 70 | Q9: 73 | R9: 84 | S9: 83 | T9: 88
A10: 7 | B10: - | C10: - | D10: 28 | E10: 35 | F10: 36 | G10: 42 | H10: 48 | I10: 49 | J10: 53 | K10: 59 | L10: 60 | M10: 65 | N10: 77 | O10: 75 | P10: 77 | Q10: 84 | R10: 87 | S10: 91 | T10: 93
A11: 8 | B11: - | C11: - | D11: 32 | E11: 35 | F11: 40 | G11: 48 | H11: 56 | I11: 55 | J11: 60 | K11: 64 | L11: 68 | M11: 72 | N11: 76 | O11: 81 | P11: 88 | Q11: 88 | R11: 94 | S11: 98 | T11: 104
A12: 9 | B12: - | C12: 27 | D12: 36 | E12: 40 | F12: 45 | G12: 49 | H12: 55 | I12: 63 | J12: 63 | K12: 70 | L12: 75 | M12: 78 | N12: 84 | O12: 90 | P12: 94 | Q12: 99 | R12: 108 | S12: 107 | T12: 111
A13: 10 | B13: - | C13: 30 | D13: 36 | E13: 45 | F13: 48 | G13: 53 | H13: 60 | I13: 63 | J13: 80 | K13: 77 | L13: 80 | M13: 84 | N13: 90 | O13: 100 | P13: 100 | Q13: 106 | R13: 108 | S13: 113 | T13: 130
A14: 11 | B14: - | C14: 33 | D14: 40 | E14: 45 | F14: 54 | G14: 59 | H14: 64 | I14: 70 | J14: 77 | K14: 88 | L14: 86 | M14: 91 | N14: 96 | O14: 102 | P14: 106 | Q14: 110 | R14: 118 | S14: 122 | T14: 127
A15: 12 | B15: - | C15: 36 | D15: 44 | E15: 50 | F15: 60 | G15: 60 | H15: 68 | I15: 75 | J15: 80 | K15: 86 | L15: 96 | M15: 95 | N15: 104 | O15: 108 | P15: 116 | Q15: 119 | R15: 126 | S15: 130 | T15: 140
A16: 13 | B16: - | C16: 39 | D16: 48 | E16: 52 | F16: 60 | G16: 65 | H16: 72 | I16: 78 | J16: 84 | K16: 91 | L16: 95 | M16: 117 | N16: 104 | O16: 115 | P16: 121 | Q16: 127 | R16: 131 | S16: 138 | T16: 143
A17: 14 | B17: - | C17: 47 | D17: 48 | E17: 56 | F17: 64 | G17: 77 | H17: 76 | I17: 84 | J17: 90 | K17: 96 | L17: 104 | M17: 104 | N17: 126 | O17: 123 | P17: 126 | Q17: 134 | R17: 140 | S17: 148 | T17: 152
A18: 15 | B18: - | C18: 42 | D18: 52 | E18: 60 | F18: 69 | G18: 75 | H18: 81 | I18: 90 | J18: 100 | K18: 102 | L18: 108 | M18: 115 | N18: 123 | O18: 135 | P18: 133 | Q18: 142 | R18: 147 | S18: 152 | T18: 160
A20: α = .02
B21: 2 | C21: 3 | D21: 4 | E21: 5 | F21: 6 | G21: 7 | H21: 8 | I21: 9 | J21: 10 | K21: 11 | L21: 12 | M21: 13 | N21: 14 | O21: 15 | P21: 16 | Q21: 17 | R21: 18 | S21: 19 | T21: 20
A22: 2
A23: 3 | C23: - | D23: - | E23: - | F23: - | G23: 19 | H23: 22 | I23: 27 | J23: 28 | K23: 31 | L23: 33 | M23: 34 | N23: 37 | O23: 42 | P23: 43 | Q23: 43 | R23: 48 | S23: 49 | T23: 52
A24: 4 | C24: - | D24: - | E24: 17 | F24: 22 | G24: 25 | H24: 32 | I24: 29 | J24: 34 | K24: 37 | L24: 40 | M24: 41 | N24: 46 | O24: 46 | P24: 52 | Q24: 53 | R24: 56 | S24: 57 | T24: 64
A25: 5 | C25: - | D25: 17 | E25: 25 | F25: 26 | G25: 29 | H25: 33 | I25: 36 | J25: 40 | K25: 41 | L25: 46 | M25: 48 | N25: 51 | O25: 60 | P25: 56 | Q25: 61 | R25: 63 | S25: 67 | T25: 75
A26: 6 | C26: - | D26: 22 | E26: 26 | F26: 36 | G26: 31 | H26: 38 | I26: 42 | J26: 44 | K26: 49 | L26: 54 | M26: 54 | N26: 60 | O26: 63 | P26: 66 | Q26: 68 | R26: 78 | S26: 77 | T26: 80
A27: 7 | C27: 19 | D27: 25 | E27: 29 | F27: 31 | G27: 42 | H27: 42 | I27: 46 | J27: 50 | K27: 53 | L27: 57 | M27: 59 | N27: 70 | O27: 70 | P27: 71 | Q27: 75 | R27: 81 | S27: 85 | T27: 87
A28: 8 | C28: 22 | D28: 32 | E28: 33 | F28: 38 | G28: 42 | H28: 48 | I28: 49 | J28: 56 | K28: 59 | L28: 64 | M28: 66 | N28: 72 | O28: 75 | P28: 88 | Q28: 81 | R28: 88 | S28: 91 | T28: 100
A29: 9 | C29: 27 | D29: 29 | E29: 36 | F29: 42 | G29: 46 | H29: 49 | I29: 63 | J29: 61 | K29: 62 | L29: 69 | M29: 73 | N29: 77 | O29: 84 | P29: 86 | Q29: 92 | R29: 99 | S29: 99 | T29: 103
A30: 10 | C30: 28 | D30: 34 | E30: 40 | F30: 44 | G30: 50 | H30: 56 | I30: 61 | J30: 70 | K30: 69 | L30: 74 | M30: 78 | N30: 84 | O30: 90 | P30: 94 | Q30: 97 | R30: 104 | S30: 104 | T30: 120
A31: 11 | C31: 31 | D31: 37 | E31: 41 | F31: 49 | G31: 53 | H31: 59 | I31: 62 | J31: 69 | K31: 88 | L31: 77 | M31: 85 | N31: 89 | O31: 95 | P31: 100 | Q31: 104 | R31: 108 | S31: 114 | T31: 117
A32: 12 | C32: 33 | D32: 40 | E32: 46 | F32: 54 | G32: 57 | H32: 64 | I32: 69 | J32: 74 | K32: 77 | L32: 96 | M32: 92 | N32: 94 | O32: 102 | P32: 108 | Q32: 111 | R32: 120 | S32: 121 | T32: 128
A33: 13 | C33: 34 | D33: 41 | E33: 48 | F33: 54 | G33: 59 | H33: 66 | I33: 73 | J33: 78 | K33: 85 | L33: 92 | M33: 104 | N33: 102 | O33: 106 | P33: 112 | Q33: 118 | R33: 121 | S33: 127 | T33: 135
A34: 14 | C34: 37 | D34: 46 | E34: 51 | F34: 60 | G34: 70 | H34: 72 | I34: 77 | J34: 84 | K34: 89 | L34: 94 | M34: 102 | N34: 112 | O34: 111 | P34: 120 | Q34: 124 | R34: 130 | S34: 135 | T34: 142
A35: 15 | C35: 42 | D35: 46 | E35: 60 | F35: 63 | G35: 70 | H35: 75 | I35: 84 | J35: 90 | K35: 95 | L35: 102 | M35: 106 | N35: 111 | O35: 135 | P35: 120 | Q35: 130 | R35: 138 | S35: 142 | T35: 150
A37: α = .05
B38: 2 | C38: 3 | D38: 4 | E38: 5 | F38: 6 | G38: 7 | H38: 8 | I38: 9 | J38: 10 | K38: 11 | L38: 12 | M38: 13 | N38: 14 | O38: 15 | P38: 16 | Q38: 17 | R38: 18 | S38: 19 | T38: 20
A39: 2 | B39: - | C39: - | D39: - | E39: - | F39: - | G39: - | H39: 16 | I39: 18 | J39: 20 | K39: 22 | L39: 24 | M39: 26 | N39: 26 | O39: 28 | P39: 30 | Q39: 32 | R39: 34 | S39: 36 | T39: 38
A40: 3 | B40: - | C40: - | D40: - | E40: 15 | F40: 18 | G40: 21 | H40: 21 | I40: 24 | J40: 27 | K40: 30 | L40: 30 | M40: 33 | N40: 36 | O40: 36 | P40: 39 | Q40: 42 | R40: 45 | S40: 45 | T40: 48
A41: 4 | B41: - | C41: - | D41: 16 | E41: 20 | F41: 20 | G41: 24 | H41: 28 | I41: 28 | J41: 30 | K41: 33 | L41: 36 | M41: 39 | N41: 42 | O41: 44 | P41: 48 | Q41: 48 | R41: 50 | S41: 53 | T41: 60
A42: 5 | B42: - | C42: 15 | D42: 20 | E42: 25 | F42: 24 | G42: 28 | H42: 30 | I42: 35 | J42: 40 | K42: 39 | L42: 43 | M42: 45 | N42: 46 | O42: 55 | P42: 54 | Q42: 55 | R42: 60 | S42: 61 | T42: 65
A43: 6 | B43: - | C43: 18 | D43: 20 | E43: 24 | F43: 30 | G43: 30 | H43: 34 | I43: 39 | J43: 40 | K43: 43 | L43: 48 | M43: 52 | N43: 54 | O43: 57 | P43: 60 | Q43: 62 | R43: 72 | S43: 70 | T43: 72
A44: 7 | B44: - | C44: 21 | D44: 24 | E44: 28 | F44: 30 | G44: 42 | H44: 40 | I44: 42 | J44: 46 | K44: 48 | L44: 53 | M44: 56 | N44: 63 | O44: 62 | P44: 64 | Q44: 68 | R44: 70 | S44: 76 | T44: 79
A45: 8 | B45: 16 | C45: 21 | D45: 28 | E45: 30 | F45: 34 | G45: 40 | H45: 48 | I45: 46 | J45: 48 | K45: 53 | L45: 60 | M45: 62 | N45: 64 | O45: 67 | P45: 80 | Q45: 77 | R45: 80 | S45: 82 | T45: 88
A46: 9 | B46: 18 | C46: 24 | D46: 28 | E46: 35 | F46: 39 | G46: 42 | H46: 46 | I46: 54 | J46: 53 | K46: 59 | L46: 63 | M46: 65 | N46: 70 | O46: 75 | P46: 78 | Q46: 82 | R46: 92 | S46: 89 | T46: 93
A47: 10 | B47: 20 | C47: 27 | D47: 30 | E47: 40 | F47: 40 | G47: 46 | H47: 48 | I47: 53 | J47: 70 | K47: 60 | L47: 66 | M47: 70 | N47: 74 | O47: 80 | P47: 84 | Q47: 89 | R47: 92 | S47: 94 | T47: 110
A48: 11 | B48: 22 | C48: 30 | D48: 33 | E48: 39 | F48: 43 | G48: 48 | H48: 53 | I48: 59 | J48: 60 | K48: 77 | L48: 72 | M48: 75 | N48: 8 | O48: 84 | P48: 89 | Q48: 93 | R48: 97 | S48: 102 | T48: 107
A49: 12 | B49: 24 | C49: 30 | D49: 36 | E49: 43 | F49: 48 | G49: 53 | H49: 60 | I49: 63 | J49: 66 | K49: 72 | L49: 84 | M49: 81 | N49: 86 | O49: 93 | P49: 96 | Q49: 100 | R49: 108 | S49: 108 | T49: 116
A50: 13 | B50: 26 | C50: 33 | D50: 39 | E50: 45 | F50: 52 | G50: 56 | H50: 62 | I50: 65 | J50: 70 | K50: 75 | L50: 81 | M50: 91 | N50: 89 | O50: 96 | P50: 101 | Q50: 105 | R50: 110 | S50: 114 | T50: 120
A51: 14 | B51: 26 | C51: 36 | D51: 42 | E51: 46 | F51: 54 | G51: 63 | H51: 64 | I51: 70 | J51: 74 | K51: 82 | L51: 86 | M51: 89 | N51: 112 | O51: 98 | P51: 106 | Q51: 111 | R51: 116 | S51: 121 | T51: 126
A52: 15 | B52: 28 | C52: 36 | D52: 44 | E52: 55 | F52: 57 | G52: 62 | H52: 67 | I52: 75 | J52: 80 | K52: 84 | L52: 93 | M52: 96 | N52: 98 | O52: 120 | P52: 114 | Q52: 116 | R52: 123 | S52: 127 | T52: 135
A54: α = .10
B55: 2 | C55: 3 | D55: 4 | E55: 5 | F55: 6 | G55: 7 | H55: 8 | I55: 9 | J55: 10 | K55: 11 | L55: 12 | M55: 13 | N55: 14 | O55: 15 | P55: 16 | Q55: 17 | R55: 18 | S55: 19 | T55: 20
A56: 2 | B56: - | C56: - | D56: - | E56: 10 | F56: 12 | G56: 14 | H56: 16 | I56: 18 | J56: 18 | K56: 20 | L56: 22 | M56: 24 | N56: 24 | O56: 26 | P56: 28 | Q56: 30 | R56: 32 | S56: 32 | T56: 34
A57: 3 | B57: - | C57: 9 | D57: 12 | E57: 15 | F57: 15 | G57: 18 | H57: 21 | I57: 21 | J57: 24 | K57: 27 | L57: 27 | M57: 30 | N57: 33 | O57: 33 | P57: 36 | Q57: 36 | R57: 39 | S57: 42 | T57: 42
A58: 4 | B58: - | C58: 12 | D58: 16 | E58: 16 | F58: 18 | G58: 21 | H58: 24 | I58: 27 | J58: 28 | K58: 29 | L58: 36 | M58: 35 | N58: 38 | O58: 40 | P58: 44 | Q58: 44 | R58: 46 | S58: 49 | T58: 52
A59: 5 | B59: 10 | C59: 15 | D59: 16 | E59: 20 | F59: 24 | G59: 25 | H59: 27 | I59: 30 | J59: 35 | K59: 35 | L59: 36 | M59: 40 | N59: 42 | O59: 50 | P59: 48 | Q59: 50 | R59: 52 | S59: 56 | T59: 60
A60: 6 | B60: 12 | C60: 15 | D60: 18 | E60: 24 | F60: 30 | G60: 28 | H60: 30 | I60: 33 | J60: 36 | K60: 38 | L60: 48 | M60: 46 | N60: 48 | O60: 51 | P60: 54 | Q60: 56 | R60: 66 | S60: 64 | T60: 66
A61: 7 | B61: 14 | C61: 18 | D61: 21 | E61: 25 | F61: 28 | G61: 38 | H61: 34 | I61: 36 | J61: 40 | K61: 44 | L61: 46 | M61: 50 | N61: 56 | O61: 56 | P61: 59 | Q61: 61 | R61: 65 | S61: 69 | T61: 72
A62: 8 | B62: 16 | C62: 21 | D62: 24 | E62: 27 | F62: 30 | G62: 34 | H62: 40 | I62: 40 | J62: 44 | K62: 48 | L62: 52 | M62: 54 | N62: 58 | O62: 60 | P62: 72 | Q62: 68 | R62: 72 | S62: 74 | T62: 80
A63: 9 | B63: 18 | C63: 21 | D63: 27 | E63: 30 | F63: 33 | G63: 36 | H63: 40 | I63: 54 | J63: 50 | K63: 52 | L63: 57 | M63: 59 | N63: 63 | O63: 69 | P63: 69 | Q63: 74 | R63: 81 | S63: 80 | T63: 84
A64: 10 | B64: 18 | C64: 24 | D64: 28 | E64: 35 | F64: 36 | G64: 40 | H64: 44 | I64: 50 | J64: 60 | K64: 57 | L64: 60 | M64: 64 | N64: 68 | O64: 75 | P64: 76 | Q64: 79 | R64: 82 | S64: 85 | T64: 100
A65: 11 | B65: 20 | C65: 27 | D65: 29 | E65: 35 | F65: 38 | G65: 44 | H65: 48 | I65: 52 | J65: 57 | K65: 66 | L65: 64 | M65: 67 | N65: 73 | O65: 76 | P65: 80 | Q65: 85 | R65: 88 | S65: 92 | T65: 96
A66: 12 | B66: 22 | C66: 27 | D66: 36 | E66: 36 | F66: 48 | G66: 46 | H66: 52 | I66: 57 | J66: 60 | K66: 64 | L66: 72 | M66: 71 | N66: 78 | O66: 84 | P66: 88 | Q66: 90 | R66: 96 | S66: 99 | T66: 104
A67: 13 | B67: 24 | C67: 30 | D67: 35 | E67: 40 | F67: 46 | G67: 50 | H67: 54 | I67: 59 | J67: 64 | K67: 67 | L67: 71 | M67: 91 | N67: 78 | O67: 87 | P67: 91 | Q67: 96 | R67: 99 | S67: 104 | T67: 108
A68: 14 | B68: 24 | C68: 33 | D68: 38 | E68: 42 | F68: 48 | G68: 56 | H68: 58 | I68: 63 | J68: 68 | K68: 73 | L68: 78 | M68: 78 | N68: 98 | O68: 92 | P68: 96 | Q68: 100 | R68: 104 | S68: 110 | T68: 114
A69: 15 | B69: 26 | C69: 33 | D69: 40 | E69: 50 | F69: 51 | G69: 56 | H69: 60 | I69: 69 | J69: 75 | K69: 76 | L69: 84 | M69: 87 | N69: 92 | O69: 105 | P69: 101 | Q69: 105 | R69: 111 | S69: 114 | T69: 125
A71: α = .20
B72: 2 | C72: 3 | D72: 4 | E72: 5 | F72: 6 | G72: 7 | H72: 8 | I72: 9 | J72: 10 | K72: 11 | L72: 12 | M72: 13 | N72: 14 | O72: 15 | P72: 16 | Q72: 17 | R72: 18 | S72: 19 | T72: 20
A73: 2
A74: 3 | C74: 9 | D74: 10 | E74: 11 | F74: 15 | G74: 15 | H74: 16 | I74: 21 | J74: 19 | K74: 22 | L74: 24 | M74: 25 | N74: 26 | O74: 30 | P74: 30 | Q74: 32 | R74: 36 | S74: 36 | T74: 37
A75: 4 | C75: 10 | D75: 16 | E75: 13 | F75: 16 | G75: 18 | H75: 24 | I75: 21 | J75: 24 | K75: 26 | L75: 32 | M75: 29 | N75: 32 | O75: 34 | P75: 40 | Q75: 37 | R75: 40 | S75: 41 | T75: 48
A76: 5 | C76: 11 | D76: 13 | E76: 20 | F76: 19 | G76: 21 | H76: 23 | I76: 26 | J76: 30 | K76: 30 | L76: 32 | M76: 35 | N76: 37 | O76: 45 | P76: 41 | Q76: 44 | R76: 46 | S76: 47 | T76: 55
A77: 6 | C77: 15 | D77: 16 | E77: 19 | F77: 24 | G77: 24 | H77: 26 | I77: 30 | J77: 32 | K77: 33 | L77: 42 | M77: 37 | N77: 42 | O77: 45 | P77: 48 | Q77: 49 | R77: 54 | S77: 54 | T77: 56
A78: 7 | C78: 15 | D78: 18 | E78: 21 | F78: 24 | G78: 35 | H78: 28 | I78: 32 | J78: 34 | K78: 38 | L78: 40 | M78: 44 | N78: 49 | O78: 48 | P78: 51 | Q78: 54 | R78: 56 | S78: 59 | T78: 61
A79: 8 | C79: 16 | D79: 24 | E79: 23 | F79: 26 | G79: 28 | H79: 40 | I79: 33 | J79: 40 | K79: 41 | L79: 48 | M79: 47 | N79: 50 | O79: 52 | P79: 64 | Q79: 57 | R79: 62 | S79: 64 | T79: 72
A80: 9 | C80: 21 | D80: 21 | E80: 26 | F80: 30 | G80: 32 | H80: 33 | I80: 45 | J80: 43 | K80: 45 | L80: 51 | M80: 51 | N80: 54 | O80: 60 | P80: 61 | Q80: 65 | R80: 72 | S80: 70 | T80: 73
A81: 10 | C81: 19 | D81: 24 | E81: 30 | F81: 32 | G81: 34 | H81: 40 | I81: 43 | J81: 50 | K81: 48 | L81: 52 | M81: 55 | N81: 60 | O81: 65 | P81: 66 | Q81: 69 | R81: 72 | S81: 74 | T81: 90
A82: 11 | C82: 22 | D82: 26 | E82: 30 | F82: 33 | G82: 38 | H82: 41 | I82: 45 | J82: 48 | K82: 66 | L82: 54 | M82: 59 | N82: 63 | O82: 66 | P82: 69 | Q82: 72 | R82: 76 | S82: 79 | T82: 84
A83: 12 | C83: 24 | D83: 32 | E83: 32 | F83: 42 | G83: 40 | H83: 48 | I83: 51 | J83: 52 | K83: 54 | L83: 72 | M83: 61 | N83: 68 | O83: 72 | P83: 76 | Q83: 77 | R83: 84 | S83: 85 | T83: 92
A84: 13 | C84: 25 | D84: 29 | E84: 35 | F84: 37 | G84: 44 | H84: 47 | I84: 51 | J84: 55 | K84: 59 | L84: 61 | M84: 78 | N84: 72 | O84: 75 | P84: 79 | Q84: 81 | R84: 87 | S84: 89 | T84: 95
A85: 14 | C85: 26 | D85: 32 | E85: 37 | F85: 42 | G85: 49 | H85: 50 | I85: 54 | J85: 60 | K85: 63 | L85: 68 | M85: 72 | N85: 84 | O85: 80 | P85: 84 | Q85: 87 | R85: 92 | S85: 94 | T85: 100
A86: 15 | C86: 30 | D86: 34 | E86: 45 | F86: 45 | G86: 48 | H86: 52 | I86: 60 | J86: 65 | K86: 66 | L86: 72 | M86: 75 | N86: 80 | O86: 90 | P86: 87 | Q86: 91 | R86: 99 | S86: 100 | T86: 110

Sheet Lil Table
A1: Lilliefors Test Table
A3: n \ α | B3: 0.01 | C3: 0.05 | D3: 0.1 | E3: 0.15 | F3: 0.2
A4: 4 | B4: 0.4129 | C4: 0.3754 | D4: 0.3456 | E4: 0.3216 | F4: 0.3027
A5: 5 | B5: 0.3959 | C5: 0.3427 | D5: 0.3188 | E5: 0.3027 | F5: 0.2893
A6: 6 | B6: 0.3728 | C6: 0.3245 | D6: 0.2982 | E6: 0.2816 | F6: 0.2694
A7: 7 | B7: 0.3504 | C7: 0.3041 | D7: 0.2802 | E7: 0.2641 | F7: 0.2521
A8: 8 | B8: 0.3331 | C8: 0.2875 | D8: 0.2649 | E8: 0.2502 | F8: 0.2387
A9: 9 | B9: 0.3162 | C9: 0.2744 | D9: 0.2522 | E9: 0.2382 | F9: 0.2273
A10: 10 | B10: 0.3037 | C10: 0.2616 | D10: 0.241 | E10: 0.2273 | F10: 0.2171
A11: 11 | B11: 0.2905 | C11: 0.2506 | D11: 0.2306 | E11: 0.2179 | F11: 0.208
A12: 12 | B12: 0.2812 | C12: 0.2426 | D12: 0.2228 | E12: 0.2101 | F12: 0.2004
A13: 13 | B13: 0.2714 | C13: 0.2337 | D13: 0.2147 | E13: 0.2025 | F13: 0.1932
A14: 14 | B14: 0.2627 | C14: 0.2257 | D14: 0.2077 | E14: 0.1959 | F14: 0.1869
A15: 15 | B15: 0.2545 | C15: 0.2196 | D15: 0.2016 | E15: 0.1899 | F15: 0.1811
A16: 16 | B16: 0.2477 | C16: 0.2128 | D16: 0.1956 | E16: 0.1843 | F16: 0.1758
A17: 17 | B17: 0.2408 | C17: 0.2071 | D17: 0.1902 | E17: 0.1794 | F17: 0.1711
A18: 18 | B18: 0.2345 | C18: 0.2018 | D18: 0.1852 | E18: 0.1747 | F18: 0.1666
A19: 19 | B19: 0.2285 | C19: 0.1965 | D19: 0.1803 | E19: 0.17 | F19: 0.1624
A20: 20 | B20: 0.2226 | C20: 0.192 | D20: 0.1764 | E20: 0.1666 | F20: 0.1589
A21: 21 | B21: 0.219 | C21: 0.1881 | D21: 0.1726 | E21: 0.1629 | F21: 0.1553
A22: 22 | B22: 0.2141 | C22: 0.184 | D22: 0.169 | E22: 0.1592 | F22: 0.1517
A23: 23 | B23: 0.209 | C23: 0.1798 | D23: 0.165 | E23: 0.1555 | F23: 0.1484
A24: 24 | B24: 0.2053 | C24: 0.1766 | D24: 0.1619 | E24: 0.1527 | F24: 0.1458
A25: 25 | B25: 0.201 | C25: 0.1726 | D25: 0.1589 | E25: 0.1498 | F25: 0.1429
A26: 26 | B26: 0.1985 | C26: 0.1699 | D26: 0.1562 | E26: 0.1472 | F26: 0.1406
A27: 27 | B27: 0.1941 | C27: 0.1665 | D27: 0.1533 | E27: 0.1448 | F27: 0.1381
A28: 28 | B28: 0.1911 | C28: 0.1641 | D28: 0.1509 | E28: 0.1423 | F28: 0.1358
A29: 29 | B29: 0.1886 | C29: 0.1614 | D29: 0.1483 | E29: 0.1398 | F29: 0.1334
A30: 30 | B30: 0.1848 | C30: 0.159 | D30: 0.146 | E30: 0.1378 | F30: 0.1315
A31: 31 | B31: 0.182 | C31: 0.1559 | D31: 0.1432 | E31: 0.1353 | F31: 0.1291
A32: 32 | B32: 0.1798 | C32: 0.1542 | D32: 0.1415 | E32: 0.1336 | F32: 0.1274
A33: 33 | B33: 0.177 | C33: 0.1518 | D33: 0.1392 | E33: 0.1314 | F33: 0.1254
A34: 34 | B34: 0.1747 | C34: 0.1497 | D34: 0.1373 | E34: 0.1295 | F34: 0.1236
A35: 35 | B35: 0.172 | C35: 0.1478 | D35: 0.1356 | E35: 0.1278 | F35: 0.122
A36: 36 | B36: 0.1695 | C36: 0.1454 | D36: 0.1336 | E36: 0.126 | F36: 0.1203
A37: 37 | B37: 0.1677 | C37: 0.1436 | D37: 0.132 | E37: 0.1245 | F37: 0.1188
A38: 38 | B38: 0.1653 | C38: 0.1421 | D38: 0.1303 | E38: 0.123 | F38: 0.1174
A39: 39 | B39: 0.1634 | C39: 0.1402 | D39: 0.1288 | E39: 0.1214 | F39: 0.1159
A40: 40 | B40: 0.1616 | C40: 0.1386 | D40: 0.1275 | E40: 0.1204 | F40: 0.1147
A41: 41 | B41: 0.1599 | C41: 0.1373 | D41: 0.1258 | E41: 0.1186 | F41: 0.1131
A42: 42 | B42: 0.1573 | C42: 0.1353 | D42: 0.1244 | E42: 0.1172 | F42: 0.1119
A43: 43 | B43: 0.1556 | C43: 0.1339 | D43: 0.1228 | E43: 0.1159 | F43: 0.1106
A44: 44 | B44: 0.1542 | C44: 0.1322 | D44: 0.1216 | E44: 0.1148 | F44: 0.1095
A45: 45 | B45: 0.1525 | C45: 0.1309 | D45: 0.1204 | E45: 0.1134 | F45: 0.1083
A46: 46 | B46: 0.1512 | C46: 0.1293 | D46: 0.1189 | E46: 0.1123 | F46: 0.1071
A47: 47 | B47: 0.1499 | C47: 0.1282 | D47: 0.118 | E47: 0.1113 | F47: 0.1062
A48: 48 | B48: 0.1476 | C48: 0.1269 | D48: 0.1165 | E48: 0.1098 | F48: 0.1047
A49: 49 | B49: 0.1463 | C49: 0.1256 | D49: 0.1153 | E49: 0.1089 | F49: 0.104
A50: 50 | B50: 0.1457 | C50: 0.1246 | D50: 0.1142 | E50: 0.1079 | F50: 0.103
A51: > | B51: 1.035 | C51: 0.895 | D51: 0.819 | E51: 0.775 | F51: 0.741
A53: If calculated ratio is greater than value shown, then reject
A54: the null hypothesis at the chosen level of confidence (α).

Sheet AD Table
A1: Anderson-Darling Tables
C3: 0.001 | D3: 0.005 | E3: 0.01 | F3: 0.025 | G3: 0.05 | H3: 0.1 | I3: 0.15 | J3: 0.25
A4: Specified | C4: 5.9671 | D4: 4.4971 | E4: 3.8784 | F4: 3.0775 | G4: 2.4922 | H4: 1.933 | I4: 1.6212 | J4: 1.2479
C6: 0.0025 | D6: 0.005 | E6: 0.01 | F6: 0.025 | G6: 0.05 | H6: 0.1 | I6: 0.15 | J6: 0.2 | K6: 0.25
A7: Expon | C7: 2.534 | D7: 2.244 | E7: 1.959 | F7: 1.591 | G7: 1.321 | H7: 1.062 | I7: 0.916 | J7: 0.816 | K7: 0.736
A9: Gumbel | C9: 0.01 | D9: 0.025 | E9: 0.05 | F9: 0.1 | G9: 0.25
A10: Weibull | C10: 1.038 | D10: 0.877 | E10: 0.757 | F10: 0.637 | G10: 0.474
B12: k \ α | C12: 0.005 | D12: 0.01 | E12: 0.025 | F12: 0.05 | G12: 0.1 | H12: 0.25
A13: Gamma | B13: 1 | C13: 1.227 | D13: 1.092 | E13: 0.917 | F13: 0.786 | G13: 0.657 | H13: 0.486
B14: 2 | C14: 1.19 | D14: 1.062 | E14: 0.894 | F14: 0.768 | G14: 0.643 | H14: 0.477
B15: 3 | C15: 1.178 | D15: 1.052 | E15: 0.886 | F15: 0.762 | G15: 0.639 | H15: 0.475
B16: 4 | C16: 1.173 | D16: 1.048 | E16: 0.883 | F16: 0.759 | G16: 0.637 | H16: 0.473
B17: 5 | C17: 1.17 | D17: 1.045 | E17: 0.881 | F17: 0.758 | G17: 0.635 | H17: 0.472
B18: 6 | C18: 1.168 | D18: 1.043 | E18: 0.88 | F18: 0.757 | G18: 0.635 | H18: 0.472
B19: 8 | C19: 1.165 | D19: 1.041 | E19: 0.878 | F19: 0.755 | G19: 0.634 | H19: 0.471
B20: 10 | C20: 1.164 | D20: 1.04 | E20: 0.877 | F20: 0.754 | G20: 0.633 | H20: 0.471
B21: 12 | C21: 1.162 | D21: 1.038 | E21: 0.876 | F21: 0.754 | G21: 0.633 | H21: 0.471
B22: 15 | C22: 1.162 | D22: 1.038 | E22: 0.876 | F22: 0.754 | G22: 0.632 | H22: 0.47
B23: 20 | C23: 1.161 | D23: 1.037 | E23: 0.875 | F23: 0.753 | G23: 0.632 | H23: 0.47
B24: > | C24: 1.159 | D24: 1.035 | E24: 0.873 | F24: 0.752 | G24: 0.631 | H24: 0.47
B26: α | C26: 0.005 | D26: 0.01 | E26: 0.025 | F26: 0.05 | G26: 0.1 | H26: 0.2
A27: Normal | B27: a | C27: 1.1578 | D27: 1.0348 | E27: 0.8728 | F27: 0.7514 | G27: 0.6305 | H27: 0.5091
B28: b | C28: 1.063 | D28: 1.013 | E28: 0.881 | F28: 0.795 | G28: 0.75 | H28: 0.756
B29: d | C29: 1.34 | D29: 0.93 | E29: 0.94 | F29: 0.89 | G29: 0.8 | H29: 0.39
C31: 0.005 | D31: 0.01 | E31: 0.025 | F31: 0.05 | G31: 0.1 | H31: 0.25
A32: Logistic | C32: 1.01 | D32: 0.906 | E32: 0.769 | F32: 0.66 | G32: 0.523 | H32: 0.426
B34: n \ α | C34: 0.01 | D34: 0.025 | E34: 0.05 | F34: 0.1 | G34: 0.25 | H34: 0.5
A35: Laplace | B35: 10 | C35: 1.234 | D35: 1.023 | E35: 0.869 | F35: 0.714 | G35: 0.513 | H35: 0.366
B36: 15 | C36: 1.415 | D36: 1.16 | E36: 0.991 | F36: 0.807 | G36: 0.57 | H36: 0.397
B37: 20 | C37: 1.336 | D37: 1.103 | E37: 0.93 | F37: 0.76 | G37: 0.541 | H37: 0.381
B38: 35 | C38: 1.438 | D38: 1.179 | E38: 0.987 | F38: 0.797 | G38: 0.568 | H38: 0.396
B39: 50 | C39: 1.373 | D39: 1.045 | E39: 0.881 | F39: 0.758 | G39: 0.635 | H39: 0.472
B40: 75 | C40: 1.442 | D40: 1.178 | E40: 0.984 | F40: 0.797 | G40: 0.567 | H40: 0.395
B41: 100 | C41: 1.408 | D41: 1.156 | E41: 0.972 | F41: 0.792 | G41: 0.561 | H41: 0.394
B42: > | C42: 1.442 | D42: 1.177 | E42: 0.983 | F42: 0.798 | G42: 0.567 | H42: 0.396
B44: n \ α | C44: 0.01 | D44: 0.05 | E44: 0.1 | F44: 0.15 | G44: 0.25 | H44: 0.5
A45: Gen Pareto | B45: 10 | C45: 0.74982 | D45: 0.59692 | E45: 0.50029 | F45: 0.4476 | G45: 0.37187 | H45: 0.27728
B46: 15 | C46: 0.86288 | D46: 0.60644 | E46: 0.53025 | F46: 0.47889 | G46: 0.39257 | H46: 0.2856
B47: 20 | C47: 0.92691 | D47: 0.61466 | E47: 0.553 | F47: 0.49856 | G47: 0.40527 | H47: 0.29214
B48: 25 | C48: 0.99783 | D48: 0.62331 | E48: 0.56828 | F48: 0.50625 | G48: 0.41646 | H48: 0.29982
B49: 30 | C49: 1.10657 | D49: 0.63985 | E49: 0.58442 | F49: 0.51656 | G49: 0.4274 | H49: 0.30483
B50: 35 | C50: 1.28695 | D50: 0.66443 | E50: 0.64405 | F50: 0.55529 | G50: 0.43887 | H50: 0.30901
B51: 40 | C51: 1.58493 | D51: 0.69582 | E51: 0.65815 | F51: 0.59098 | G51: 0.45689 | H51: 0.32299
B52: 50 | C52: 1.91943 | D52: 0.8455 | E52: 0.70945 | F52: 0.62397 | G52: 0.52598 | H52: 0.37126
B53: 100 | C53: 2.68975 | D53: 1.91479 | E53: 0.91608 | F53: 0.8767 | G53: 0.76689 | H53: 0.51268
B55: n \ α | C55: 0.01 | D55: 0.025 | E55: 0.05 | F55: 0.1 | G55: 0.15 | H55: 0.25
A56: Cauchy | B56: 5 | C56: 2.16 | D56: 2 | E56: 1.77 | F56: 1.4 | G56: 1.14 | H56: 0.835
B57: 8 | C57: 5.24 | D57: 4.27 | E57: 3.2 | F57: 2.06 | G57: 1.52 | H57: 0.992
B58: 10 | C58: 7.5 | D58: 5.58 | E58: 3.77 | F58: 2.27 | G58: 1.63 | H58: 1.04
B59: 12 | C59: 9.51 | D59: 6.43 | E59: 4.14 | F59: 2.33 | G59: 1.65 | H59: 1.04
B60: 15 | C60: 11.5 | D60: 7.2 | E60: 4.25 | F60: 2.28 | G60: 1.61 | H60: 1.02
B61: 20 | C61: 14.57 | D61: 7.58 | E61: 4.05 | F61: 2.13 | G61: 1.51 | H61: 0.975
B62: 25 | C62: 14.96 | D62: 6.91 | E62: 3.57 | F62: 1.94 | G62: 1.4 | H62: 0.914
B63: 30 | C63: 13.8 | D63: 5.86 | E63: 3.09 | F63: 1.76 | G63: 1.3 | H63: 0.875
B64: 40 | C64: 10.2 | D64: 4.23 | E64: 2.48 | F64: 1.53 | G64: 1.16 | H64: 0.812
B65: 50 | C65: 7.49 | D65: 3.37 | E65: 2.14 | F65: 1.41 | G65: 1.08 | H65: 0.774
B66: 60 | C66: 5.32 | D66: 2.76 | E66: 1.92 | F66: 1.3 | G66: 1.02 | H66: 0.743
B67: 100 | C67: 3.3 | D67: 2.05 | E67: 1.52 | F67: 1.14 | G67: 0.927 | H67: 0.689
B68: > | C68: 1.9 | D68: 1.52 | E68: 1.225 | F68: 0.949 | G68: 0.78 | H68: 0.615
A70: Benford | C70: 0.01 | D70: 0.025 | E70: 0.05 | F70: 0.1 | G70: 0.25 | H70: 0.5
C71: 3.688 | D71: 2.89 | E71: 2.304 | F71: 1.743 | G71: 1.06 | H71: 0.596

Sheet AD2 Table
D1: alpha | E1: 0.01 | G1: alpha | H1: 0.05 | J1: alpha | K1: 0.1
A2: m | B2: n | D2: crit | E2: prob | G2: crit | H2: prob | J2: crit | K2: prob
A3: 2 | B3: 4 | D3: -- | E3: -- | G3: -- | H3: -- | J3: 2.25 | K3: 0.133
A4: 2 | B4: 5 | D4: -- | E4: -- | G4: -- | H4: -- | J4: 2.477 | K4: 0.095
A5: 2 | B5: 6 | D5: -- | E5: -- | G5: 2.676 | H5: 0.071 | J5: 1.787 | K5: 0.143
A6: 2 | B6: 7 | D6: -- | E6: -- | G6: 2.855 | H6: 0.056 | J6: 1.982 | K6: 0.111
A7: 2 | B7: 8 | D7: -- | E7: -- | G7: 3.017 | H7: 0.044 | J7: 2.157 | K7: 0.089
A8: 2 | B8: 9 | D8: -- | E8: -- | G8: 3.165 | H8: 0.036 | J8: 1.889 | K8: 0.109
A9: 2 | B9: 10 | D9: -- | E9: -- | G9: 3.302 | H9: 0.03 | J9: 2.026 | K9: 0.081
A10: 2 | B10: 11 | D10: 3.43 | E10: 0.026 | G10: 2.597 | H10: 0.051 | J10: 2.065 | K10: 0.103
A11: 2 | B11: 12 | D11: 3.549 | E11: 0.022 | G11: 2.722 | H11: 0.044 | J11: 1.813 | K11: 0.11
A12: 2 | B12: 13 | D12: 3.66 | E12: 0.011 | G12: 2.386 | H12: 0.053 | J12: 1.93 | K12: 0.095
A13: 2 | B13: 14 | D13: 3.765 | E13: 0.017 | G13: 2.492 | H13: 0.05 | J13: 1.965 | K13: 0.1
A14: 2 | B14: 15 | D14: =AVERAGE(D13,D15) -> 3.8625 | E14: =AVERAGE(E13,E15) -> 0.015 | G14: =AVERAGE(G13,G15) -> 2.559 | H14: =AVERAGE(H13,H15) -> 0.051 | J14: =AVERAGE(J13,J15) -> 1.9575 | K14: =AVERAGE(K13,K15) -> 0.1025
A15: 2 | B15: 16 | D15: 3.96 | E15: 0.013 | G15: 2.626 | H15: 0.052 | J15: 1.95 | K15: 0.105
A16: 2 | B16: 17 | D16: =AVERAGE(D15,D17) -> 4.0475 | E16: =AVERAGE(E15,E17) -> 0.012 | G16: =AVERAGE(G15,G17) -> 2.527 | H16: =AVERAGE(H15,H17) -> 0.0525 | J16: =AVERAGE(J15,J17) -> 1.955 | K16: =AVERAGE(K15,K17) -> 0.1
A17: 2 | B17: 18 | D17: 4.135 | E17: 0.011 | G17: 2.428 | H17: 0.053 | J17: 1.96 | K17: 0.095
A18: 3 | B18: 3 | D18: -- | E18: -- | G18: -- | H18: -- | J18: 2.4 | K18: 0.1
A19: 3 | B19: 4 | D19: -- | E19: -- | G19: 2.743 | H19: 0.057 | J19: 1.917 | K19: 0.114
A20: 3 | B20: 5 | D20: -- | E20: -- | G20: 3.039 | H20: 0.036 | J20: 2.257 | K20: 0.071
A21: 3 | B21: 6 | D21: 3.302 | E21: 0.024 | G21: 2.552 | H21: 0.048 | J21: 2.016 | K21: 0.095
A22: 3 | B22: 7 | D22: 3.538 | E22: 0.018 | G22: 2.297 | H22: 0.05 | J22: 1.916 | K22: 0.1
A23: 3 | B23: 8 | D23: 3.754 | E23: 0.012 | G23: 2.512 | H23: 0.049 | J23: 1.867 | K23: 0.091
A24: 3 | B24: 9 | D24: 3.952 | E24: 0.009 | G24: 2.485 | H24: 0.056 | J24: 1.855 | K24: 0.1
A25: 3 | B25: 10 | D25: 3.523 | E25: 0.011 | G25: 2.432 | H25: 0.049 | J25: 1.876 | K25: 0.098
A26: 3 | B26: 11 | D26: 3.64 | E26: 0.011 | G26: 2.36 | H26: 0.05 | J26: 1.944 | K26: 0.099
A27: 3 | B27: 12 | D27: 3.81 | E27: 0.099 | G27: 2.423 | H27: 0.048 | J27: 1.876 | K27: 0.101
A28: 3 | B28: 13 | D28: 3.491 | E28: 0.011 | G28: 2.364 | H28: 0.05 | J28: 1.942 | K28: 0.1
A29: 3 | B29: 14 | D29: 3.645 | E29: 0.009 | G29: 2.405 | H29: 0.05 | J29: 1.899 | K29: 0.1
A30: 3 | B30: 15 | D30: 3.637 | E30: 0.01 | G30: 2.362 | H30: 0.049 | J30: 1.992 | K30: 0.101
A31: 3 | B31: 16 | D31: 3.587 | E31: 0.01 | G31: 2.429 | H31: 0.05 | J31: 1.948 | K31: 0.099
A32: 3 | B32: 17 | D32: 3.693 | E32: 0.011 | G32: 2.409 | H32: 0.051 | J32: 1.935 | K32: 0.1
A33: 4 | B33: 4 | D33: 3.152 | E33: 0.029 | G33: 2.402 | H33: 0.057 | J33: 1.869 | K33: 0.114
A34: 4 | B34: 5 | D34: 3.507 | E34: 0.016 | G34: 2.292 | H34: 0.048 | J34: 1.912 | K34: 0.095
A35: 4 | B35: 6 | D35: 3.822 | E35: 0.01 | G35: 2.282 | H35: 0.048 | J35: 1.939 | K35: 0.095
A36: 4 | B36: 7 | D36: 3.476 | E36: 0.012 | G36: 2.479 | H36: 0.049 | J36: 1.995 | K36: 0.097
A37: 4 | B37: 8 | D37: 3.287 | E37: 0.012 | G37: 2.412 | H37: 0.049 | J37: 1.878 | K37: 0.1
A38: 4 | B38: 9 | D38: 3.556 | E38: 0.008 | G38: 2.362 | H38: 0.05 | J38: 1.836 | K38: 0.101
A39: 4 | B39: 10 | D39: 3.44 | E39: 0.01 | G39: 2.411 | H39: 0.05 | J39: 1.875 | K39: 0.099
A40: 4 | B40: 11 | D40: 3.551 | E40: 0.01 | G40: 2.468 | H40: 0.05 | J40: 1.872 | K40: 0.1
A41: 4 | B41: 12 | D41: 3.597 | E41: 0.01 | G41: 2.404 | H41: 0.05 | J41: 1.903 | K41: 0.101
A42: 4 | B42: 13 | D42: =AVERAGE(D41,D43) -> 3.566 | E42: 0.01 | G42: =AVERAGE(G41,G43) -> 2.396 | H42: 0.05 | J42: =AVERAGE(J41,J43) -> 1.9005 | K42: 0.1005
A43: 4 | B43: 14 | D43: 3.535 | E43: 0.01 | G43: 2.388 | H43: 0.05 | J43: 1.898 | K43: 0.1
A44: 4 | B44: 15 | D44: =AVERAGE(D43,D45) -> 3.567 | E44: 0.01 | G44: =AVERAGE(G43,G45) -> 2.3895 | H44: 0.05 | J44: =AVERAGE(J43,J45) -> 1.896 | K44: 0.1
A45: 4 | B45: 16 | D45: 3.599 | E45: 0.01 | G45: 2.391 | H45: 0.05 | J45: 1.894 | K45: 0.1
A46: 5 | B46: 5 | D46: 3.913 | E46: 0.008 | G46: 2.392 | H46: 0.048 | J46: 1.953 | K46: 0.095
A47: 5 | B47: 6 | D47: 3.675 | E47: 0.009 | G47: 2.382 | H47: 0.052 | J47: 1.861 | K47: 0.1
A48: 5 | B48: 7 | D48: 3.562 | E48: 0.01 | G48: 2.391 | H48: 0.051 | J48: 1.826 | K48: 0.101
A49: 5 | B49: 8 | D49: 3.456 | E49: 0.011 | G49: 2.38 | H49: 0.05 | J49: 1.859 | K49: 0.1
A50: 5 | B50: 9 | D50: 3.445 | E50: 0.01 | G50: 2.413 | H50: 0.05 | J50: 1.858 | K50: 0.1
A51: 5 | B51: 10 | D51: 3.427 | E51: 0.01 | G51: 2.378 | H51: 0.05 | J51: 1.889 | K51: 0.1
A52: 5 | B52: 11 | D52: =AVERAGE(D51,D53) -> 3.4955 | E52: 0.01 | G52: =AVERAGE(G51,G53) -> 2.3795 | H52: 0.05 | J52: =AVERAGE(J51,J53) -> 1.887 | K52: 0.1
A53: 5 | B53: 12 | D53: 3.564 | E53: 0.01 | G53: 2.381 | H53: 0.05 | J53: 1.885 | K53: 0.1
A54: 5 | B54: 13 | D54: =AVERAGE(D53,D55) -> 3.5955 | E54: 0.01 | G54: =AVERAGE(G53,G55) -> 2.3945 | H54: 0.05 | J54: =AVERAGE(J53,J55) -> 1.892 | K54: 0.1
A55: 5 | B55: 14 | D55: 3.627 | E55: 0.01 | G55: 2.408 | H55: 0.05 | J55: 1.899 | K55: 0.1
A56: 5 | B56: 15 | D56: 3.589 | E56: 0.01 | G56: 2.405 | H56: 0.05 | J56: 1.898 | K56: 0.1
A57: 6 | B57: 6 | D57: 3.664 | E57: 0.009 | G57: 2.27 | H57: 0.054 | J57: 1.865 | K57: 0.097
A58: 6 | B58: 7 | D58: 3.41 | E58: 0.011 | G58: 2.339 | H58: 0.05 | J58: 1.872 | K58: 0.1
A59: 6 | B59: 8 | D59: 3.473 | E59: 0.011 | G59: 2.374 | H59: 0.049 | J59: 1.894 | K59: 0.1
A60: 6 | B60: 9 | D60: 3.508 | E60: 0.01 | G60: 2.366 | H60: 0.049 | J60: 1.869 | K60: 0.1
A61: 6 | B61: 10 | D61: 3.505 | E61: 0.01 | G61: 2.391 | H61: 0.05 | J61: 1.878 | K61: 0.1
A62: 6 | B62: 11 | D62: 3.522 | E62: 0.01 | G62: 2.396 | H62: 0.05 | J62: 1.878 | K62: 0.1
A63: 6 | B63: 12 | D63: 3.56 | E63: 0.01 | G63: 2.399 | H63: 0.05 | J63: 1.887 | K63: 0.1
A64: 7 | B64: 7 | D64: 3.473 | E64: 0.011 | G64: 2.374 | H64: 0.049 | J64: 1.859 | K64: 0.1
A65: 7 | B65: 8 | D65: 3.561 | E65: 0.01 | G65: 2.381 | H65: 0.05 | J65: 1.859 | K65: 0.1
A66: 7 | B66: 9 | D66: 3.526 | E66: 0.01 | G66: 2.401 | H66: 0.05 | J66: 1.878 | K66: 0.1
A67: 7 | B67: 10 | D67: 3.541 | E67: 0.01 | G67: 2.39 | H67: 0.05 | J67: 1.873 | K67: 0.1
A68: 7 | B68: 11 | D68: 3.551 | E68: 0.01 | G68: 2.383 | H68: 0.05 | J68: 1.879 | K68: 0.1
A69: 8 | B69: 8 | D69: 3.494 | E69: 0.01 | G69: 2.356 | H69: 0.05 | J69: 1.896 | K69: 0.1
A70: inf | B70: inf | D70: 3.857 | G70: 2.492 | J70: 1.933

Sheet SW Table
A1: Shapiro-Wilk Tables
A3: Table 1
A5: n = | B5: 2 | C5: =B5+1 -> 3 | D5: =C5+1 -> 4 | E5: 5 | F5: 6 | G5: 7 | H5: 8 | I5: 9 | J5: 10 | K5: 11 | L5: 12 | M5: =L5+1 -> 13 | N5: =M5+1 -> 14 | O5: 15 | P5: 16 | Q5: 17 | R5: 18 | S5: 19 | T5: 20 | U5: 21 | V5: 22 | W5: 23 | X5: 24 | Y5: =X5+1 -> 25 | Z5: =Y5+1 -> 26 | AA5: =Z5+1 -> 27 | AB5: 28 | AC5: 29 | AD5: 30 | AE5: 31 | AF5: 32 | AG5: 33 | AH5: 34 | AI5: 35 | AJ5: 36 | AK5: 37 | AL5: 38 | AM5: 39 | AN5: 40 | AO5: 41 | AP5: 42 | AQ5: 43 | AR5: 44 | AS5: 45 | AT5: 46 | AU5: 47 | AV5: 48 | AW5: 49 | AX5: 50
A6: a1 | B6: 0.7071 | C6: 0.7071 | D6: 0.6872 | E6: 0.6646 | F6: 0.6431 | G6: 0.6233 | H6: 0.6052 | I6: 0.5888 | J6: 0.5739 | K6: 0.5601 | L6: 0.5475 | M6: 0.5359 | N6: 0.5251 | O6: 0.515 | P6: 0.5056 | Q6: 0.4968 | R6: 0.4886 | S6: 0.4808 | T6: 0.4734 | U6: 0.4643 | V6: 0.459 | W6: 0.4542 | X6: 0.4493 | Y6: 0.445 | Z6: 0.4407 | AA6: 0.4366 | AB6: 0.4328 | AC6: 0.4291 | AD6: 0.4254 | AE6: 0.422 | AF6: 0.4188 | AG6: 0.4156 | AH6: 0.4127 | AI6: 0.4096 | AJ6: 0.4068 | AK6: 0.404 | AL6: 0.4015 | AM6: 0.3989 | AN6: 0.3964 | AO6: 0.394 | AP6: 0.3917 | AQ6: 0.3894 | AR6: 0.3872 | AS6: 0.385 | AT6: 0.383 | AU6: 0.3808 | AV6: 0.3789 | AW6: 0.377 | AX6: 0.3751
A7: a2 | D7: 0.1677 | E7: 0.2413 | F7: 0.2806 | G7: 0.3031 | H7: 0.3164 | I7: 0.3244 | J7: 0.3291 | K7: 0.3315 | L7: 0.3325 | M7: 0.3325 | N7: 0.3318 | O7: 0.3306 | P7: 0.329 | Q7: 0.3273 | R7: 0.3253 | S7: 0.3232 | T7: 0.3211 | U7: 0.3185 | V7: 0.3156 | W7: 0.3126 | X7: 0.3098 | Y7: 0.3069 | Z7: 0.3043 | AA7: 0.3018 | AB7: 0.2992 | AC7: 0.2968 | AD7: 0.2944 | AE7: 0.2921 | AF7: 0.2898 | AG7: 0.2876 | AH7: 0.2854 | AI7: 0.2834 | AJ7: 0.2813 | AK7: 0.2794 | AL7: 0.2774 | AM7: 0.2755 | AN7: 0.2737 | AO7: 0.2719 | AP7: 0.2701 | AQ7: 0.2684 | AR7: 0.2667 | AS7: 0.2651 | AT7: 0.2635 | AU7: 0.262 | AV7: 0.2604 | AW7: 0.2589 | AX7: 0.2574
A8: a3 | F8: 0.0875 | G8: 0.1401 | H8: 0.1743 | I8: 0.1976 | J8: 0.2141 | K8: 0.226 | L8: 0.2347 | M8: 0.2412 | N8: 0.246 | O8: 0.2495 | P8: 0.2521 | Q8: 0.254 | R8: 0.2553 | S8: 0.2561 | T8: 0.2565 | U8: 0.2578 | V8: 0.2571 | W8: 0.2563 | X8: 0.2554 | Y8: 0.2543 | Z8: 0.2533 | AA8: 0.2522 | AB8: 0.251 | AC8: 0.2499 | AD8: 0.2487 | AE8: 0.2475 | AF8: 0.2463 | AG8: 0.2451 | AH8: 0.2439 | AI8: 0.2427 | AJ8: 0.2415 | AK8: 0.2403 | AL8: 0.2391 | AM8: 0.238 | AN8: 0.2368 | AO8: 0.2357 | AP8: 0.2345 | AQ8: 0.2334 | AR8: 0.2323 | AS8: 0.2313 | AT8: 0.2302 | AU8: 0.2291 | AV8: 0.2281 | AW8: 0.2271 | AX8: 0.226
A9: a4 | H9: 0.0561 | I9: 0.0947 | J9: 0.1224 | K9: 0.1429 | L9: 0.1586 | M9: 0.1707 | N9: 0.1802 | O9: 0.1878 | P9: 0.1939 | Q9: 0.1988 | R9: 0.2027 | S9: 0.2059 | T9: 0.2085 | U9: 0.2119 | V9: 0.2131 | W9: 0.2139 | X9: 0.2145 | Y9: 0.2148 | Z9: 0.2151 | AA9: 0.2152 | AB9: 0.2151 | AC9: 0.215 | AD9: 0.2148 | AE9: 0.2145 | AF9: 0.2141 | AG9: 0.2137 | AH9: 0.2132 | AI9: 0.2127 | AJ9: 0.2121 | AK9: 0.2116 | AL9: 0.211 | AM9: 0.2104 | AN9: 0.2098 | AO9: 0.2091 | AP9: 0.2085 | AQ9: 0.2078 | AR9: 0.2072 | AS9: 0.2065 | AT9: 0.2058 | AU9: 0.2052 | AV9: 0.2045 | AW9: 0.2038 | AX9: 0.2032
A10: a5 | J10: 0.0399 | K10: 0.0695 | L10: 0.0922 | M10: 0.1099 | N10: 0.124 | O10: 0.1353 | P10: 0.1447 | Q10: 0.1524 | R10: 0.1587 | S10: 0.1641 | T10: 0.1686 | U10: 0.1736 | V10: 0.1764 | W10: 0.1787 | X10: 0.1807 | Y10: 0.1822 | Z10: 0.1836 | AA10: 0.1848 | AB10: 0.1857 | AC10: 0.1864 | AD10: 0.187 | AE10: 0.1874 | AF10: 0.1878 | AG10: 0.188 | AH10: 0.1882 | AI10: 0.1883 | AJ10: 0.1883 | AK10: 0.1883 | AL10: 0.1881 | AM10: 0.188 | AN10: 0.1878 | AO10: 0.1876 | AP10: 0.1874 | AQ10: 0.1871 | AR10: 0.1868 | AS10: 0.1865 | AT10: 0.1862 | AU10: 0.1859 | AV10: 0.1855 | AW10: 0.1851 | AX10: 0.1847
A11: a6 | L11: 0.0303 | M11: 0.0539 | N11: 0.0727 | O11: 0.088 | P11: 0.1005 | Q11: 0.1109 | R11: 0.1197 | S11: 0.1271 | T11: 0.1334 | U11: 0.1399 | V11: 0.1443 | W11: 0.148 | X11: 0.1512 | Y11: 0.1539 | Z11: 0.1563 | AA11: 0.1584 | AB11: 0.1601 | AC11: 0.1616 | AD11: 0.163 | AE11: 0.1641 | AF11: 0.1651 | AG11: 0.166 | AH11: 0.1667 | AI11: 0.1673 | AJ11: 0.1678 | AK11: 0.1683 | AL11: 0.1686 | AM11: 0.1689 | AN11: 0.1691 | AO11: 0.1693 | AP11: 0.1694 | AQ11: 0.1695 | AR11: 0.1695 | AS11: 0.1695 | AT11: 0.1695 | AU11: 0.1695 | AV11: 0.1693 | AW11: 0.1692 | AX11: 0.1691
A12: a7 | N12: 0.024 | O12: 0.0433 | P12: 0.0593 | Q12: 0.0725 | R12: 0.0837 | S12: 0.0932 | T12: 0.1013 | U12: 0.1092 | V12: 0.115 | W12: 0.1201 | X12: 0.1245 | Y12: 0.1283 | Z12: 0.1316 | AA12: 0.1346 | AB12: 0.1372 | AC12: 0.1395 | AD12: 0.1415 | AE12: 0.1433 | AF12: 0.1449 | AG12: 0.1463 | AH12: 0.1475 | AI12: 0.1487 | AJ12: 0.1496 | AK12: 0.1505 | AL12: 0.1513 | AM12: 0.152 | AN12: 0.1526 | AO12: 0.1531 | AP12: 0.1535 | AQ12: 0.1539 | AR12: 0.1542 | AS12: 0.1545 | AT12: 0.1548 | AU12: 0.155 | AV12: 0.1551 | AW12: 0.1553 | AX12: 0.1554
A13: a8 | P13: 0.0196 | Q13: 0.0359 | R13: 0.0496 | S13: 0.0612 | T13: 0.0711 | U13: 0.0804 | V13: 0.0878 | W13: 0.0941 | X13: 0.0997 | Y13: 0.1046 | Z13: 0.1089 | AA13: 0.1128 | AB13: 0.1162 | AC13: 0.1192 | AD13: 0.1219 | AE13: 0.1243 | AF13: 0.1265 | AG13: 0.1284 | AH13: 0.1301 | AI13: 0.1317 | AJ13: 0.1331 | AK13: 0.1344 | AL13: 0.1356 | AM13: 0.1366 | AN13: 0.1376 | AO13: 0.1384 | AP13: 0.1392 | AQ13: 0.1398 | AR13: 0.1405 | AS13: 0.141 | AT13: 0.1415 | AU13: 0.142 | AV13: 0.1423 | AW13: 0.1427 | AX13: 0.143
A14: a9 | R14: 0.0163 | S14: 0.0303 | T14: 0.0422 | U14: 0.053 | V14: 0.0618 | W14: 0.0696 | X14: 0.0764 | Y14: 0.0823 | Z14: 0.0876 | AA14: 0.0923 | AB14: 0.0965 | AC14: 0.1002 | AD14: 0.1036 | AE14: 0.1066 | AF14: 0.1093 | AG14: 0.1118 | AH14: 0.114 | AI14: 0.116 | AJ14: 0.1179 | AK14: 0.1196 | AL14: 0.1211 | AM14: 0.1225 | AN14: 0.1237 | AO14: 0.1249 | AP14: 0.1259 | AQ14: 0.1269 | AR14: 0.1278 | AS14: 0.1286 | AT14: 0.1293 | AU14: 0.13 | AV14: 0.1306 | AW14: 0.1312 | AX14: 0.1317
A15: a10 | T15: 0.014 | U15: 0.0263 | V15: 0.0368 | W15: 0.0459 | X15: 0.0539 | Y15: 0.061 | Z15: 0.0672 | AA15: 0.0728 | AB15: 0.0778 | AC15: 0.0822 | AD15: 0.0862 | AE15: 0.0899 | AF15: 0.0931 | AG15: 0.0961 | AH15: 0.0988 | AI15: 0.1013 | AJ15: 0.1036 | AK15: 0.1056 | AL15: 0.1075 | AM15: 0.1092 | AN15: 0.1108 | AO15: 0.1123 | AP15: 0.1136 | AQ15: 0.1149 | AR15: 0.116 | AS15: 0.117 | AT15: 0.118 | AU15: 0.1189 | AV15: 0.1197 | AW15: 0.1205 | AX15: 0.1212
A16: a11 | V16: 0.0122 | W16: 0.0228 | X16: 0.0321 | Y16: 0.0403 | Z16: 0.0476 | AA16: 0.054 | AB16: 0.0598 | AC16: 0.065 | AD16: 0.0697 | AE16: 0.0739 | AF16: 0.0777 | AG16: 0.0812 | AH16: 0.0844 | AI16: 0.0873 | AJ16: 0.09 | AK16: 0.0924 | AL16: 0.0947 | AM16: 0.0967 | AN16: 0.0986 | AO16: 0.1004 | AP16: 0.102 | AQ16: 0.1035 | AR16: 0.1049 | AS16: 0.1062 | AT16: 0.1073 | AU16: 0.1085 | AV16: 0.1095 | AW16: 0.1105 | AX16: 0.1113
A17: a12 | W17: 0 | X17: 0.0107 | Y17: 0.02 | Z17: 0.0284 | AA17: 0.0358 | AB17: 0.0424 | AC17: 0.0483 | AD17: 0.0537 | AE17: 0.0585 | AF17: 0.0629 | AG17: 0.0669 | AH17: 0.0706 | AI17: 0.0739 | AJ17: 0.077 | AK17: 0.0798 | AL17: 0.0824 | AM17: 0.0848 | AN17: 0.087 | AO17: 0.0891 | AP17: 0.0909 | AQ17: 0.0927 | AR17: 0.0943 | AS17: 0.0959 | AT17: 0.0972 | AU17: 0.0986 | AV17: 0.0998 | AW17: 0.101 | AX17: 0.102
A18: a13 | Y18: 0 | Z18: 0.0094 | AA18: 0.0178 | AB18: 0.0253 | AC18: 0.032 | AD18: 0.0381 | AE18: 0.0435 | AF18: 0.0485 | AG18: 0.053 | AH18: 0.0572 | AI18: 0.061 | AJ18: 0.0645 | AK18: 0.0677 | AL18: 0.0706 | AM18: 0.0733 | AN18: 0.0759 | AO18: 0.0782 | AP18: 0.0804 | AQ18: 0.0824 | AR18: 0.0842 | AS18: 0.086 | AT18: 0.0876 | AU18: 0.0892 | AV18: 0.0906 | AW18: 0.0919 | AX18: 0.0932
A19: a14 | AA19: 0 | AB19: 0.0084 | AC19: 0.0159 | AD19: 0.0227 | AE19: 0.0289 | AF19: 0.0344 | AG19: 0.0395 | AH19: 0.0441 | AI19: 0.0484 | AJ19: 0.0523 | AK19: 0.0559 | AL19: 0.0592 | AM19: 0.0622 | AN19: 0.0651 | AO19: 0.0677 | AP19: 0.0701 | AQ19: 0.0724 | AR19: 0.0745 | AS19: 0.0765 | AT19: 0.0783 | AU19: 0.0801 | AV19: 0.0817 | AW19: 0.0832 | AX19: 0.0846
A20: a15 | AC20: 0 | AD20: 0.0076 | AE20: 0.0144 | AF20: 0.0206 | AG20: 0.0262 | AH20: 0.0314 | AI20: 0.0361 | AJ20: 0.0404 | AK20: 0.0444 | AL20: 0.0481 | AM20: 0.0515 | AN20: 0.0546 | AO20: 0.0575 | AP20: 0.0602 | AQ20: 0.0628 | AR20: 0.0651 | AS20: 0.0673 | AT20: 0.0694 | AU20: 0.0713 | AV20: 0.0731 | AW20: 0.0748 | AX20: 0.0764
A21: a16 | AE21: 0 | AF21: 0.0068 | AG21: 0.0131 | AH21: 0.0187 | AI21: 0.0239 | AJ21: 0.0287 | AK21: 0.0331 | AL21: 0.0372 | AM21: 0.0409 | AN21: 0.0444 | AO21: 0.0476 | AP21: 0.0506 | AQ21: 0.0534 | AR21: 0.056 | AS21: 0.0584 | AT21: 0.0607 | AU21: 0.0628 | AV21: 0.0648 | AW21: 0.0667 | AX21: 0.0685
A22: a17 | AG22: 0 | AH22: 0.0062 | AI22: 0.0119 | AJ22: 0.0172 | AK22: 0.022 | AL22: 0.0264 | AM22: 0.0305 | AN22: 0.0343 | AO22: 0.0379 | AP22: 0.0411 | AQ22: 0.0442 | AR22: 0.0471 | AS22: 0.0497 | AT22: 0.0522 | AU22: 0.0546 | AV22: 0.0568 | AW22: 0.0588 | AX22: 0.0608
A23: a18 | AI23: 0 | AJ23: 0.0057 | AK23: 0.011 | AL23: 0.0158 | AM23: 0.0203 | AN23: 0.0244 | AO23: 0.0283 | AP23: 0.0318 | AQ23: 0.0352 | AR23: 0.0383 | AS23: 0.0412 | AT23: 0.0439 | AU23: 0.0465 | AV23: 0.0489 | AW23: 0.0511 | AX23: 0.0532
A24: a19 | AK24: 0 | AL24: 0.0053 | AM24: 0.0101 | AN24: 0.0146 | AO24: 0.0188 | AP24: 0.0227 | AQ24: 0.0263 | AR24: 0.0296 | AS24: 0.0328 | AT24: 0.0357 | AU24: 0.0385 | AV24: 0.0411 | AW24: 0.0436 | AX24: 0.0459
A25: a20 | AM25: 0 | AN25: 0.0049 | AO25: 0.0094 | AP25: 0.0136 | AQ25: 0.0175 | AR25: 0.0211 | AS25: 0.0245 | AT25: 0.0277 | AU25: 0.0307 | AV25: 0.0335 | AW25: 0.0361 | AX25: 0.0386
A26: a21 | AO26: 0 | AP26: 0.0045 | AQ26: 0.0087 | AR26: 0.0126 | AS26: 0.0163 | AT26: 0.0197 | AU26: 0.0229 | AV26: 0.0259 | AW26: 0.0288 | AX26: 0.0314
A27: a22 | AQ27: 0 | AR27: 0.0042 | AS27: 0.0081 | AT27: 0.0118 | AU27: 0.0153 | AV27: 0.0185 | AW27: 0.0215 | AX27: 0.0244
A28: a23 | AS28: 0 | AT28: 0.0039 | AU28: 0.0076 | AV28: 0.0111 | AW28: 0.0143 | AX28: 0.0174
A29: a24 | AU29: 0 | AV29: 0.0037 | AW29: 0.0071 | AX29: 0.0104
A30: a25 | AW30: 0 | AX30: 0.0035
A32: Table 2
A34: n \ p | B34: 0.01 | C34: 0.02 | D34: 0.05 | E34: 0.1 | F34: 0.5 | G34: 0.9 | H34: 0.95 | I34: 0.98 | J34: 0.99
A35: 3 | B35: 0.753 | C35: 0.756 | D35: 0.767 | E35: 0.789 | F35: 0.959 | G35: 0.998 | H35: 0.999 | I35: 1 | J35: 1
A36: =A35+1 -> 4 | B36: 0.687 | C36: 0.707 | D36: 0.748 | E36: 0.792 | F36: 0.935 | G36: 0.987 | H36: 0.992 | I36: 0.996 | J36: 0.997
A37: =A36+1 -> 5 | B37: 0.686 | C37: 0.715 | D37: 0.762 | E37: 0.806 | F37: 0.927 | G37: 0.979 | H37: 0.986 | I37: 0.991 | J37: 0.993
A38: 6 | B38: 0.713 | C38: 0.743 | D38: 0.788 | E38: 0.826 | F38: 0.927 | G38: 0.974 | H38: 0.981 | I38: 0.986 | J38: 0.989
A39: 7 | B39: 0.73 | C39: 0.76 | D39: 0.803 | E39: 0.838 | F39: 0.928 | G39: 0.972 | H39: 0.979 | I39: 0.985 | J39: 0.988
A40: 8 | B40: 0.749 | C40: 0.778 | D40: 0.818 | E40: 0.851 | F40: 0.932 | G40: 0.972 | H40: 0.978 | I40: 0.984 | J40: 0.987
A41: 9 | B41: 0.764 | C41: 0.791 | D41: 0.829 | E41: 0.859 | F41: 0.935 | G41: 0.972 | H41: 0.978 | I41: 0.984 | J41: 0.986
A42: 10 | B42: 0.781 | C42: 0.806 | D42: 0.842 | E42: 0.869 | F42: 0.938 | G42: 0.972 | H42: 0.978 | I42: 0.983 | J42: 0.986
A43: 11 | B43: 0.792 | C43: 0.817 | D43: 0.85 | E43: 0.876 | F43: 0.94 | G43: 0.973 | H43: 0.979 | I43: 0.984 | J43: 0.986
A44: 12 | B44: 0.805 | C44: 0.828 | D44: 0.859 | E44: 0.883 | F44: 0.943 | G44: 0.973 | H44: 0.979 | I44: 0.984 | J44: 0.986
A45: 13 | B45: 0.814 | C45: 0.837 | D45: 0.866 | E45: 0.889 | F45: 0.945 | G45: 0.974 | H45: 0.979 | I45: 0.984 | J45: 0.986
A46: 14 | B46: 0.825 | C46: 0.846 | D46: 0.874 | E46: 0.895 | F46: 0.947 | G46: 0.975 | H46: 0.98 | I46: 0.984 | J46: 0.986
A47: 15 | B47: 0.835 | C47: 0.855 | D47: 0.881 | E47: 0.901 | F47: 0.95 | G47: 0.975 | H47: 0.98 | I47: 0.984 | J47: 0.987
A48: 16 | B48: 0.844 | C48: 0.863 | D48: 0.887 | E48: 0.906 | F48: 0.952 | G48: 0.976 | H48: 0.981 | I48: 0.985 | J48: 0.987
A49: 17 | B49: 0.851 | C49: 0.869 | D49: 0.892 | E49: 0.91 | F49: 0.954 | G49: 0.977 | H49: 0.981 | I49: 0.985 | J49: 0.987
A50: 18 | B50: 0.858 | C50: 0.874 | D50: 0.897 | E50: 0.914 | F50: 0.956 | G50: 0.978 | H50: 0.982 | I50: 0.986 | J50: 0.988
A51: 19 | B51: 0.863 | C51: 0.879 | D51: 0.901 | E51: 0.917 | F51: 0.957 | G51: 0.978 | H51: 0.982 | I51: 0.986 | J51: 0.988
A52: 20 | B52: 0.868 | C52: 0.884 | D52: 0.905 | E52: 0.92 | F52: 0.959 | G52: 0.979 | H52: 0.983 | I52: 0.986 | J52: 0.988
A53: 21 | B53: 0.873 | C53: 0.888 | D53: 0.908 | E53: 0.923 | F53: 0.96 | G53: 0.98 | H53: 0.983 | I53: 0.987 | J53: 0.989
A54: 22 | B54: 0.878 | C54: 0.892 | D54: 0.911 | E54: 0.926 | F54: 0.961 | G54: 0.98 | H54: 0.984 | I54: 0.987 | J54: 0.989
A55: 23 | B55: 0.881 | C55: 0.895 | D55: 0.914 | E55: 0.928 | F55: 0.962 | G55: 0.981 | H55: 0.984 | I55: 0.987 | J55: 0.989
A56: 24 | B56: 0.884 | C56: 0.898 | D56: 0.916 | E56: 0.93 | F56: 0.963 | G56: 0.981 | H56: 0.984 | I56: 0.987 | J56: 0.989
A57: 25 | B57: 0.888 | C57: 0.901 | D57: 0.918 | E57: 0.931 | F57: 0.964 | G57: 0.981 | H57: 0.985 | I57: 0.988 | J57: 0.989
A58: 26 | B58: 0.891 | C58: 0.904 | D58: 0.92 | E58: 0.933 | F58: 0.965 | G58: 0.982 | H58: 0.985 | I58: 0.988 | J58: 0.989
A59: 27 | B59: 0.894 | C59: 0.906 | D59: 0.923 | E59: 0.935 | F59: 0.965 | G59: 0.982 | H59: 0.985 | I59: 0.988 | J59: 0.99
A60: 28 | B60: 0.896 | C60: 0.908 | D60: 0.924 | E60: 0.936 | F60: 0.966 | G60: 0.982 | H60: 0.985 | I60: 0.988 | J60: 0.99
A61: 29 | B61: 0.898 | C61: 0.91 | D61: 0.926 | E61: 0.937 | F61: 0.966 | G61: 0.982 | H61: 0.985 | I61: 0.988 | J61: 0.99
A62: 30 | B62: 0.9 | C62: 0.912 | D62: 0.927 | E62: 0.939 | F62: 0.967 | G62: 0.983 | H62: 0.985 | I62: 0.988 | J62: 0.99
A63: 31 | B63: 0.902 | C63: 0.914 | D63: 0.929 | E63: 0.94 | F63: 0.967 | G63: 0.983 | H63: 0.986 | I63: 0.988 | J63: 0.99
A64: 32 | B64: 0.904 | C64: 0.915 | D64: 0.93 | E64: 0.941 | F64: 0.968 | G64: 0.983 | H64: 0.986 | I64: 0.988 | J64: 0.99
A65: 33 | B65: 0.906 | C65: 0.917 | D65: 0.931 | E65: 0.942 | F65: 0.968 | G65: 0.983 | H65: 0.986 | I65: 0.989 | J65: 0.99
A66: 34 | B66: 0.908 | C66: 0.919 | D66: 0.933 | E66: 0.943 | F66: 0.969 | G66: 0.983 | H66: 0.986 | I66: 0.989 | J66: 0.99
A67: 35 | B67: 0.91 | C67: 0.92 | D67: 0.934 | E67: 0.944 | F67: 0.969 | G67: 0.984 | H67: 0.986 | I67: 0.989 | J67: 0.99
A68: 36 | B68: 0.912 | C68: 0.922 | D68: 0.935 | E68: 0.945 | F68: 0.97 | G68: 0.984 | H68: 0.986 | I68: 0.989 | J68: 0.99
A69: 37 | B69: 0.914 | C69: 0.924 | D69: 0.936 | E69: 0.946 | F69: 0.97 | G69: 0.984 | H69: 0.987 | I69: 0.989 | J69: 0.99
A70: 38 | B70: 0.916 | C70: 0.925 | D70: 0.938 | E70: 0.947 | F70: 0.971 | G70: 0.984 | H70: 0.987 | I70: 0.989 | J70: 0.99
A71: 39 | B71: 0.917 | C71: 0.927 | D71: 0.939 | E71: 0.948 | F71: 0.971 | G71: 0.984 | H71: 0.987 | I71: 0.989 | J71: 0.991
A72: 40 | B72: 0.919 | C72: 0.928 | D72: 0.94 | E72: 0.949 | F72: 0.972 | G72: 0.985 | H72: 0.987 | I72: 0.989 | J72: 0.991
A73: 41 | B73: 0.92 | C73: 0.929 | D73: 0.941 | E73: 0.95 | F73: 0.972 | G73: 0.985 | H73: 0.987 | I73: 0.989 | J73: 0.991
A74: 42 | B74: 0.922 | C74: 0.93 | D74: 0.942 | E74: 0.951 | F74: 0.972 | G74: 0.985 | H74: 0.987 | I74: 0.989 | J74: 0.991
A75: 43 | B75: 0.923 | C75: 0.932 | D75: 0.943 | E75: 0.951 | F75: 0.973 | G75: 0.985 | H75: 0.987 | I75: 0.99 | J75: 0.991
A76: 44 | B76: 0.924 | C76: 0.933 | D76: 0.944 | E76: 0.952 | F76: 0.973 | G76: 0.985 | H76: 0.987 | I76: 0.99 | J76: 0.991
A77: 45 | B77: 0.926 | C77: 0.934 | D77: 0.945 | E77: 0.953 | F77: 0.973 | G77: 0.985 | H77: 0.988 | I77: 0.99 | J77: 0.991
A78: 46 | B78: 0.927 | C78: 0.935 | D78: 0.945 | E78: 0.953 | F78: 0.974 | G78: 0.985 | H78: 0.988 | I78: 0.99 | J78: 0.991
A79: 47 | B79: 0.928 | C79: 0.936 | D79: 0.946 | E79: 0.954 | F79: 0.974 | G79: 0.985 | H79: 0.988 | I79: 0.99 | J79: 0.991
A80: 48 | B80: 0.929 | C80: 0.937 | D80: 0.947 | E80: 0.954 | F80: 0.974 | G80: 0.985 | H80: 0.988 | I80: 0.99 | J80: 0.991
A81: 49 | B81: 0.929 | C81: 0.937 | D81: 0.947 | E81: 0.955 | F81: 0.974 | G81: 0.985 | H81: 0.988 | I81: 0.99 | J81: 0.991
A82: 50 | B82: 0.93 | C82: 0.938 | D82: 0.947 | E82: 0.955 | F82: 0.974 | G82: 0.985 | H82: 0.988 | I82: 0.99 | J82: 0.991

Sheet Stud. Q Table
A1: Studentized Q Table - critical value for q(k, df, α)
B3: Alpha | C3: 0.1
B4: k -->
A5: df | B5: 2 | C5: 3 | D5: 4 | E5: 5 | F5: 6 | G5: 7 | H5: 8 | I5: 9 | J5: 10 | K5: 11 | L5: 12 | M5: 13 | N5: 14 | O5: 15 | P5: 16 | Q5: 17 | R5: 18 | S5: 19 | T5: 20
A6: 1 | B6: 8.929 | C6: 13.437 | D6: 16.358 | E6: 18.488 | F6: 20.15 | G6: 21.504 | H6: 22.642 | I6: 23.621 | J6: 24.477 | K6: 25.237 | L6: 25.918 | M6: 26.536 | N6: 27.1 | O6: 27.618 | P6: 28.097 | Q6: 28.542 | R6: 28.958 | S6: 29.347 | T6: 29.713
A7: 2 | B7: 4.129 | C7: 5.733 | D7: 6.772 | E7: 7.538 | F7: 8.139 | G7: 8.633 | H7: 9.049 | I7: 9.409 | J7: 9.725 | K7: 10.006 | L7: 10.259 | M7: 10.488 | N7: 10.698 | O7: 10.891 | P7: 11.07 | Q7: 11.237 | R7: 11.392 | S7: 11.538 | T7: 11.676
A8: 3 | B8: 3.328 | C8: 4.467 | D8: 5.199 | E8: 5.738 | F8: 6.162 | G8: 6.511 | H8: 6.806 | I8: 7.062 | J8: 7.287 | K8: 7.487 | L8: 7.667 | M8: 7.831 | N8: 7.982 | O8: 8.12 | P8: 8.248 | Q8: 8.368 | R8: 8.479 | S8: 8.584 | T8: 8.683
A9: 4 | B9: 3.015 | C9: 3.976 | D9: 4.586 | E9: 5.035 | F9: 5.388 | G9: 5.679 | H9: 5.926 | I9: 6.139 | J9: 6.327 | K9: 6.494 | L9: 6.645 | M9: 6.783 | N9: 6.909 | O9: 7.025 | P9: 7.132 | Q9: 7.233 | R9: 7.326 | S9: 7.414 | T9: 7.497
A10: 5 | B10: 2.85 | C10: 3.717 | D10: 4.264 | E10: 4.664 | F10: 4.979 | G10: 5.238 | H10: 5.458 | I10: 5.648 | J10: 5.816 | K10: 5.965 | L10: 6.1 | M10: 6.223 | N10: 6.336 | O10: 6.439 | P10: 6.536 | Q10: 6.626 | R10: 6.71 | S10: 6.788 | T10: 6.863
A11: 6 | B11: 2.748 | C11: 3.558 | D11: 4.065 | E11: 4.435 | F11: 4.726 | G11: 4.966 | H11: 5.168 | I11: 5.344 | J11: 5.499 | K11: 5.637 | L11: 5.762 | M11: 5.875 | N11: 5.979 | O11: 6.075 | P11: 6.164 | Q11: 6.247 | R11: 6.325 | S11: 6.398 | T11: 6.466
A12: 7 | B12: 2.679 | C12: 3.451 | D12: 3.931 | E12: 4.28 | F12: 4.555 | G12: 4.78 | H12: 4.971 | I12: 5.137 | J12: 5.283 | K12: 5.413 | L12: 5.53 | M12: 5.637 | N12: 5.735 | O12: 5.826 | P12: 5.91 | Q12: 5.988 | R12: 6.061 | S12: 6.13 | T12: 6.195
A13: 8 | B13: 2.63 | C13: 3.374 | D13: 3.834 | E13: 4.169 | F13: 4.431 | G13: 4.646 | H13: 4.829 | I13: 4.987 | J13: 5.126 | K13: 5.25 | L13: 5.362 | M13: 5.464 | N13: 5.558 | O13: 5.644 | P13: 5.724 | Q13: 5.799 | R13: 5.869 | S13: 5.935 | T13: 5.997
A14: 9 | B14: 2.592 | C14: 3.316 | D14: 3.761 | E14: 4.084 | F14: 4.337 | G14: 4.545 | H14: 4.721 | I14: 4.873 | J14: 5.007 | K14: 5.126 | L14: 5.234 | M14: 5.333 | N14: 5.423 | O14: 5.506 | P14: 5.583 | Q14: 5.655 | R14: 5.722 | S14: 5.786 | T14: 5.845
A15: 10 | B15: 2.563 | C15: 3.27 | D15: 3.704 | E15: 4.018 | F15: 4.264 | G15: 4.465 | H15: 4.636 | I15: 4.783 | J15: 4.913 | K15: 5.029 | L15: 5.134 | M15: 5.229 | N15: 5.316 | O15: 5.397 | P15: 5.472 | Q15: 5.542 | R15: 5.607 | S15: 5.668 | T15: 5.726
A16: 11 | B16: 2.54 | C16: 3.234 | D16: 3.658 | E16: 3.965 | F16: 4.205 | G16: 4.401 | H16: 4.567 | I16: 4.711 | J16: 4.838 | K16: 4.951 | L16: 5.053 | M16: 5.145 | N16: 5.231 | O16: 5.309 | P16: 5.382 | Q16: 5.45 | R16: 5.514 | S16: 5.573 | T16: 5.63
A17: 12 | B17: 2.521 | C17: 3.204 | D17: 3.621 | E17: 3.921 | F17: 4.156 | G17: 4.349 | H17: 4.511 | I17: 4.652 | J17: 4.776 | K17: 4.886 | L17: 4.986 | M17: 5.076 | N17: 5.16 | O17: 5.236 | P17: 5.308 | Q17: 5.374 | R17: 5.436 | S17: 5.495 | T17: 5.55
A18: 13 | B18: 2.504 | C18: 3.179 | D18: 3.589 | E18: 3.885 | F18: 4.116 | G18: 4.304 | H18: 4.464 | I18: 4.602 | J18: 4.724 | K18: 4.832 | L18: 4.93 | M18: 5.019 | N18: 5.1 | O18: 5.175 | P18: 5.245 | Q18: 5.31 | R18: 5.371 | S18: 5.429 | T18: 5.483
A19: 14 | B19: 2.491 | C19: 3.158 | D19: 3.563 | E19: 3.854 | F19: 4.081 | G19: 4.267 | H19: 4.424 | I19: 4.56 | J19: 4.679 | K19: 4.786 | L19: 4.882 | M19: 4.969 | N19: 5.05 | O19: 5.124 | P19: 5.192 | Q19: 5.256 | R19: 5.316 | S19: 5.372 | T19: 5.426
A20: 15 | B20: 2.479 | C20: 3.14 | D20: 3.54 | E20: 3.828 | F20: 4.052 | G20: 4.235 | H20: 4.39 | I20: 4.524 | J20: 4.641 | K20: 4.746 | L20: 4.841 | M20: 4.927 | N20: 5.006 | O20: 5.079 | P20: 5.146 | Q20: 5.209 | R20: 5.268 | S20: 5.324 | T20: 5.376
A21: 16 | B21: 2.469 | C21: 3.124 | D21: 3.52 | E21: 3.804 | F21: 4.026 | G21: 4.207 | H21: 4.36 | I21: 4.492 | J21: 4.608 | K21: 4.712 | L21: 4.805 | M21: 4.89 | N21: 4.968 | O21: 5.04 | P21: 5.106 | Q21: 5.169 | R21: 5.227 | S21: 5.282 | T21: 5.333
A22: 17 | B22: 2.46 | C22: 3.11 | D22: 3.503 | E22: 3.784 | F22: 4.003 | G22: 4.182 | H22: 4.334 | I22: 4.464 | J22: 4.579 | K22: 4.681 | L22: 4.774 | M22: 4.857 | N22: 4.934 | O22: 5.005 | P22: 5.071 | Q22: 5.133 | R22: 5.19 | S22: 5.244 | T22: 5.295
A23: 18 | B23: 2.452 | C23: 3.098 | D23: 3.487 | E23: 3.766 | F23: 3.984 | G23: 4.161 | H23: 4.31 | I23: 4.44 | J23: 4.553 | K23: 4.654 | L23: 4.746 | M23: 4.829 | N23: 4.905 | O23: 4.975 | P23: 5.04 | Q23: 5.101 | R23: 5.158 | S23: 5.211 | T23: 5.262
A24: 19 | B24: 2.445 | C24: 3.087 | D24: 3.474 | E24: 3.751 | F24: 3.966 | G24: 4.142 | H24: 4.29 | I24: 4.418 | J24: 4.53 | K24: 4.63 | L24: 4.721 | M24: 4.803 | N24: 4.878 | O24: 4.948 | P24: 5.012 | Q24: 5.072 | R24: 5.129 | S24: 5.182 | T24: 5.232
A25: 20 | B25: 2.439 | C25: 3.077 | D25: 3.462 | E25: 3.736 | F25: 3.95 | G25: 4.124 | H25: 4.271 | I25: 4.398 | J25: 4.51 | K25: 4.609 | L25: 4.699 | M25: 4.78 | N25: 4.855 | O25: 4.923 | P25: 4.987 | Q25: 5.047 | R25: 5.103 | S25: 5.155 | T25: 5.205
A26: 21 | B26: 2.433 | C26: 3.069 | D26: 3.451 | E26: 3.724 | F26: 3.936 | G26: 4.109 | H26: 4.255 | I26: 4.38 | J26: 4.491 | K26: 4.59 | L26: 4.678 | M26: 4.759 | N26: 4.833 | O26: 4.901 | P26: 4.965 | Q26: 5.024 | R26: 5.079 | S26: 5.131 | T26: 5.18
A27: 22 | B27: 2.428 | C27: 3.061 | D27: 3.441 | E27: 3.712 | F27: 3.923 | G27: 4.095 | H27: 4.239 | I27: 4.364 | J27: 4.474 | K27: 4.572 | L27: 4.66 | M27: 4.74 | N27: 4.814 | O27: 4.882 | P27: 4.944 | Q27: 5.003 | R27: 5.058 | S27: 5.109 | T27: 5.158
A28: 23 | B28: 2.424 | C28: 3.054 | D28: 3.432 | E28: 3.701 | F28: 3.911 | G28: 4.082 | H28: 4.226 | I28: 4.35 | J28: 4.459 | K28: 4.556 | L28: 4.644 | M28: 4.723 | N28: 4.796 | O28: 4.863 | P28: 4.926 | Q28: 4.984 | R28: 5.038 | S28: 5.089 | T28: 5.138
A29: 24 | B29: 2.42 | C29: 3.047 | D29: 3.423 | E29: 3.692 | F29: 3.9 | G29: 4.07 | H29: 4.213 | I29: 4.336 | J29: 4.445 | K29: 4.541 | L29: 4.628 | M29: 4.707 | N29: 4.78 | O29: 4.847 | P29: 4.909 | Q29: 4.966 | R29: 5.02 | S29: 5.071 | T29: 5.119
A30: 25 | B30: 2.416 | C30: 3.041 | D30: 3.416 | E30: 3.683 | F30: 3.89 | G30: 4.059 | H30: 4.201 | I30: 4.324 | J30: 4.432 | K30: 4.528 | L30: 4.614 | M30: 4.693 | N30: 4.765 | O30: 4.831 | P30: 4.893 | Q30: 4.95 | R30: 5.004 | S30: 5.055 | T30: 5.102
A31: 26 | B31: 2.412 | C31: 3.036 | D31: 3.409 | E31: 3.675 | F31: 3.881 | G31: 4.049 | H31: 4.191 | I31: 4.313 | J31: 4.42 | K31: 4.515 | L31: 4.601 | M31: 4.68 | N31: 4.751 | O31: 4.817 | P31: 4.878 | Q31: 4.936 | R31: 4.989 | S31: 5.039 | T31: 5.086
A32: 27 | B32: 2.409 | C32: 3.03 | D32: 3.402 | E32: 3.667 | F32: 3.873 | G32: 4.04 | H32: 4.181 | I32: 4.302 | J32: 4.409 | K32: 4.504 | L32: 4.59 | M32: 4.667 | N32: 4.739 | O32: 4.804 | P32: 4.865 | Q32: 4.922 | R32: 4.975 | S32: 5.025 | T32: 5.072
A33: 28 | B33: 2.406 | C33: 3.026 | D33: 3.396 | E33: 3.66 | F33: 3.865 | G33: 4.032 | H33: 4.172 | I33: 4.293 | J33: 4.399 | K33: 4.493 | L33: 4.579 | M33: 4.656 | N33: 4.727 | O33: 4.792 | P33: 4.853 | Q33: 4.909 | R33: 4.962 | S33: 5.012 | T33: 5.058
A34: 29 | B34: 2.403 | C34: 3.021 | D34: 3.391 | E34: 3.654 | F34: 3.858 | G34: 4.024 | H34: 4.163 | I34: 4.284 | J34: 4.389 | K34: 4.484 | L34: 4.568 | M34: 4.645 | N34: 4.716 | O34: 4.781 | P34: 4.841 | Q34: 4.897 | R34: 4.95 | S34: 4.999 | T34: 5.046
A35: 30 | B35: 2.4 | C35: 3.017 | D35: 3.386 | E35: 3.648 | F35: 3.851 | G35: 4.016 | H35: 4.155 | I35: 4.275 | J35: 4.381 | K35: 4.474 | L35: 4.559 | M35: 4.635 | N35: 4.706 | O35: 4.77 | P35: 4.83 | Q35: 4.886 | R35: 4.939 | S35: 4.988 | T35: 5.034
A36: 31 | B36: 2.398 | C36: 3.013 | D36: 3.381 | E36: 3.642 | F36: 3.845 | G36: 4.009 | H36: 4.148 | I36: 4.268 | J36: 4.372 | K36: 4.466 | L36: 4.55 | M36: 4.626 | N36: 4.696 | O36: 4.76 | P36: 4.82 | Q36: 4.876 | R36: 4.928 | S36: 4.977 | T36: 5.023
A37: 32 | B37: 2.396 | C37: 3.01 | D37: 3.376 | E37: 3.637 | F37: 3.839 | G37: 4.003 | H37: 4.141 | I37: 4.26 | J37: 4.365 | K37: 4.458 | L37: 4.541 | M37: 4.617 | N37: 4.687 | O37: 4.751 | P37: 4.811 | Q37: 4.866 | R37: 4.918 | S37: 4.967 | T37: 5.013
A38: 33 | B38: 2.393 | C38: 3.006 | D38: 3.372 | E38: 3.632 | F38: 3.833 | G38: 3.997 | H38: 4.135 | I38: 4.253 | J38: 4.357 | K38: 4.45 | L38: 4.533 | M38: 4.609 | N38: 4.679 | O38: 4.743 | P38: 4.802 | Q38: 4.857 | R38: 4.909 | S38: 4.957 | T38: 5.003
A39: 34 | B39: 2.391 | C39: 3.003 | D39: 3.368 | E39: 3.627 | F39: 3.828 | G39: 3.991 | H39: 4.129 | I39: 4.247 | J39: 4.351 | K39: 4.443 | L39: 4.526 | M39: 4.602 | N39: 4.671 | O39: 4.734 | P39: 4.794 | Q39: 4.849 | R39: 4.9 | S39: 4.949 | T39: 4.994
A40: 35 | B40: 2.389 | C40: 3 | D40: 3.364 | E40: 3.623 | F40: 3.823 | G40: 3.986 | H40: 4.123 | I40: 4.241 | J40: 4.344 | K40: 4.436 | L40: 4.519 | M40: 4.594 | N40: 4.663 | O40: 4.727 | P40: 4.786 | Q40: 4.841 | R40: 4.892 | S40: 4.94 | T40: 4.986
A41: 36 | B41: 2.388 | C41: 2.998 | D41: 3.361 | E41: 3.619 | F41: 3.819 | G41: 3.981 | H41: 4.117 | I41: 4.235 | J41: 4.338 | K41: 4.43 | L41: 4.512 | M41: 4.588 | N41: 4.656 | O41: 4.72 | P41: 4.778 | Q41: 4.833 | R41: 4.884 | S41: 4.932 | T41: 4.978
A42: 37 | B42: 2.386 | C42: 2.995 | D42: 3.357 | E42: 3.615 | F42: 3.814 | G42: 3.976 | H42: 4.112 | I42: 4.23 | J42: 4.332 | K42: 4.424 | L42: 4.506 | M42: 4.581 | N42: 4.65 | O42: 4.713 | P42: 4.771 | Q42: 4.826 | R42: 4.877 | S42: 4.925 | T42: 4.97
A43: 38 | B43: 2.384 | C43: 2.992 | D43: 3.354 | E43: 3.611 | F43: 3.81 | G43: 3.972 | H43: 4.107 | I43: 4.224 | J43: 4.327 | K43: 4.418 | L43: 4.5 | M43: 4.575 | N43: 4.643 | O43: 4.706 | P43: 4.765 | Q43: 4.819 | R43: 4.87 | S43: 4.918 | T43: 4.963
A44: 39 | B44: 2.383 | C44: 2.99 | D44: 3.351 | E44: 3.608 | F44: 3.806 | G44: 3.967 | H44: 4.103 | I44: 4.22 | J44: 4.322 | K44: 4.413 | L44: 4.495 | M44: 4.569 | N44: 4.637 | O44: 4.7 | P44: 4.758 | Q44: 4.812 | R44: 4.863 | S44: 4.911 | T44: 4.956
A45: 40 | B45: 2.381 | C45: 2.988 | D45: 3.348 | E45: 3.605 | F45: 3.802 | G45: 3.963 | H45: 4.099 | I45: 4.215 | J45: 4.317 | K45: 4.408 | L45: 4.49 | M45: 4.564 | N45: 4.632 | O45: 4.694 | P45: 4.752 | Q45: 4.806 | R45: 4.857 | S45: 4.904 | T45: 4.949
A46: 48 | B46: 2.372 | C46: 2.973 | D46: 3.33 | E46: 3.583 | F46: 3.778 | G46: 3.937 | H46: 4.07 | I46: 4.185 | J46: 4.285 | K46: 4.375 | L46: 4.455 | M46: 4.528 | N46: 4.595 | O46: 4.656 | P46: 4.713 | Q46: 4.766 | R46: 4.816 | S46: 4.863 | T46: 4.907
A47: 60 | B47: 2.363 | C47: 2.959 | D47: 3.312 | E47: 3.562 | F47: 3.755 | G47: 3.911 | H47: 4.042 | I47: 4.155 | J47: 4.254 | K47: 4.342 | L47: 4.421 | M47: 4.493 | N47: 4.558 | O47: 4.619 | P47: 4.675 | Q47: 4.727 | R47: 4.775 | S47: 4.821 | T47: 4.864
A48: 80 | B48: 2.353 | C48: 2.945 | D48: 3.294 | E48: 3.541 | F48: 3.731 | G48: 3.885 | H48: 4.014 | I48: 4.125 | J48: 4.223 | K48: 4.309 | L48: 4.387 | M48: 4.457 | N48: 4.521 | O48: 4.581 | P48: 4.636 | Q48: 4.687 | R48: 4.735 | S48: 4.78 | T48: 4.822
A49: 120 | B49: 2.344 | C49: 2.93 | D49: 3.276 | E49: 3.52 | F49: 3.707 | G49: 3.859 | H49: 3.986 | I49: 4.096 | J49: 4.191 | K49: 4.276 | L49: 4.353 | M49: 4.422 | N49: 4.485 | O49: 4.543 | P49: 4.597 | Q49: 4.647 | R49: 4.694 | S49: 4.738 | T49: 4.779
A50: 240 | B50: 2.335 | C50: 2.916 | D50: 3.258 | E50: 3.499 | F50: 3.684 | G50: 3.834 | H50: 3.959 | I50: 4.066 | J50: 4.16 | K50: 4.244 | L50: 4.319 | M50: 4.386 | N50: 4.448 | O50: 4.505 | P50: 4.558 | Q50: 4.607 | R50: 4.653 | S50: 4.696 | T50: 4.737
A51: 480 | B51: =AVERAGE(B50,B52) -> 2.3305 | C51: =AVERAGE(C50,C52) -> 2.909 | D51: 3.249 | E51: 3.4885 | F51: 3.6725 | G51: 3.821 | H51: 3.945 | I51: 4.0515 | J51: 4.1445 | K51: 4.2275 | L51: 4.302 | M51: 4.3685 | N51: 4.43 | O51: 4.4865 | P51: 4.5385 | Q51: 4.5875 | R51: 4.6325 | S51: 4.675 | T51: 4.7155
A52: > | B52: 2.326 | C52: 2.902 | D52: 3.24 | E52: 3.478 | F52: 3.661 | G52: 3.808 | H52: 3.931 | I52: 4.037 | J52: 4.129 | K52: 4.211 | L52: 4.285 | M52: 4.351 | N52: 4.412 | O52: 4.468 | P52: 4.519 | Q52: 4.568 | R52: 4.612 | S52: 4.654 | T52: 4.694
B54: Alpha | C54: 0.05
B55: k -->
A56: df | B56: 2 | C56: 3 | D56: 4 | E56: 5 | F56: 6 | G56: 7 | H56: 8 | I56: 9 | J56: 10 | K56: 11 | L56: 12 | M56: 13 | N56: 14 | O56: 15 | P56: 16 | Q56: 17 | R56: 18 | S56: 19 | T56: 20
A57: 1 | B57: 17.969 | C57: 26.976 | D57: 32.819 | E57: 37.082 | F57: 40.408 | G57: 43.119 | H57: 45.397 | I57: 47.357 | J57: 49.071 | K57: 50.592 | L57: 51.957 | M57: 53.194 | N57: 54.323 | O57: 55.361 | P57: 56.32 | Q57: 57.212 | R57: 58.044 | S57: 58.824 | T57: 59.558
A58: 2 | B58: 6.085 | C58: 8.331 | D58: 9.798 | E58: 10.881 | F58: 11.734 | G58: 12.435 | H58: 13.027 | I58: 13.539 | J58: 13.988 | K58: 14.389 | L58: 14.749 | M58: 15.076 | N58: 15.375 | O58: 15.65 | P58: 15.905 | Q58: 16.143 | R58: 16.365 | S58: 16.573 | T58: 16.769
A59: 3 | B59: 4.501 | C59: 5.91 | D59: 6.825 | E59: 7.502 | F59: 8.037 | G59: 8.478 | H59: 8.852 | I59: 9.177 | J59: 9.462 | K59: 9.717 | L59: 9.946 | M59: 10.155 | N59: 10.346 | O59: 10.522 | P59: 10.686 | Q59: 10.838 | R59: 10.98 | S59: 11.114 | T59: 11.24
A60: 4 | B60: 3.926 | C60: 5.04 | D60: 5.757 | E60: 6.287 | F60: 6.706 | G60: 7.053 | H60: 7.347 | I60: 7.602 | J60: 7.826 | K60: 8.027 | L60: 8.208 | M60: 8.373 | N60: 8.524 | O60: 8.664 | P60: 8.793 | Q60: 8.914 | R60: 9.027 | S60: 9.133 | T60: 9.233
A61: 5 | B61: 3.635 | C61: 4.602 | D61: 5.218 | E61: 5.673 | F61: 6.033 | G61: 6.33 | H61: 6.582 | I61: 6.801 | J61: 6.995 | K61: 7.167 | L61: 7.323 | M61: 7.466 | N61: 7.596 | O61: 7.716 | P61: 7.828 | Q61: 7.932 | R61: 8.03 | S61: 8.122 | T61: 8.208
A62: 6 | B62: 3.46 | C62: 4.339 | D62: 4.896 | E62: 5.305 | F62: 5.628 | G62: 5.895 | H62: 6.122 | I62: 6.319 | J62: 6.493 | K62: 6.649 | L62: 6.789 | M62: 6.917 | N62: 7.034 | O62: 7.143 | P62: 7.244 | Q62: 7.338 | R62: 7.426 | S62: 7.508 | T62: 7.586
A63: 7 | B63: 3.344 | C63: 4.165 | D63: 4.681 | E63: 5.06 | F63: 5.359 | G63: 5.606 | H63: 5.815 | I63: 5.997 | J63: 6.158 | K63: 6.302 | L63: 6.431 | M63: 6.55 | N63: 6.658 | O63: 6.759 | P63: 6.852 | Q63: 6.939 | R63: 7.02 | S63: 7.097 | T63: 7.169
A64: 8 | B64: 3.261 | C64: 4.041 | D64: 4.529 | E64: 4.886 | F64: 5.167 | G64: 5.399 | H64: 5.596 | I64: 5.767 | J64: 5.918 | K64: 6.053 | L64: 6.175 | M64: 6.287 | N64: 6.389 | O64: 6.483 | P64: 6.571 | Q64: 6.653 | R64: 6.729 | S64: 6.801 | T64: 6.869
A65: 9 | B65: 3.199 | C65: 3.948 | D65: 4.415 | E65: 4.755 | F65: 5.024 | G65: 5.244 | H65: 5.432 | I65: 5.595 | J65: 5.738 | K65: 5.867 | L65: 5.983 | M65: 6.089 | N65: 6.186 | O65: 6.276 | P65: 6.359 | Q65: 6.437 | R65: 6.51 | S65: 6.579 | T65: 6.643
A66: 10 | B66: 3.151 | C66: 3.877 | D66: 4.327 | E66: 4.654 | F66: 4.912 | G66: 5.124 | H66: 5.304 | I66: 5.46 | J66: 5.598 | K66: 5.722 | L66: 5.833 | M66: 5.935 | N66: 6.028 | O66: 6.114 | P66: 6.194 | Q66: 6.269 | R66: 6.339 | S66: 6.405 | T66: 6.467
A67: 11 | B67: 3.113 | C67: 3.82 | D67: 4.256 | E67: 4.574 | F67: 4.823 | G67: 5.028 | H67: 5.202 | I67: 5.353 | J67: 5.486 | K67: 5.605 | L67: 5.713 | M67: 5.811 | N67: 5.901 | O67: 5.984 | P67: 6.062 | Q67: 6.134 | R67: 6.202 | S67: 6.265 | T67: 6.325
A68: 12 | B68: 3.081 | C68: 3.773 | D68: 4.199 | E68: 4.508 | F68: 4.75 | G68: 4.95 | H68: 5.119 | I68: 5.265 | J68: 5.395 | K68: 5.51 | L68: 5.615 | M68: 5.71 | N68: 5.797 | O68: 5.878 | P68: 5.953 | Q68: 6.023 | R68: 6.089 | S68: 6.151 | T68: 6.209
A69: 13 | B69: 3.055 | C69: 3.734 | D69: 4.151 | E69: 4.453 | F69: 4.69 | G69: 4.884 | H69: 5.049 | I69: 5.192 | J69: 5.318 | K69: 5.431 | L69: 5.533 | M69: 5.625 | N69: 5.711 | O69: 5.789 | P69: 5.862 | Q69: 5.931 | R69: 5.995 | S69: 6.055 | T69: 6.112
A70: 14 | B70: 3.033 | C70: 3.701 | D70: 4.111 | E70: 4.407 | F70: 4.639 | G70: 4.829 | H70: 4.99 | I70: 5.13 | J70: 5.253 | K70: 5.364 | L70: 5.463 | M70: 5.554 | N70: 5.637 | O70: 5.714 | P70: 5.785 | Q70: 5.852 | R70: 5.915 | S70: 5.973 | T70: 6.029
A71: 15 | B71: 3.014 | C71: 3.673 | D71: 4.076 | E71: 4.367 | F71: 4.595 | G71: 4.782 | H71: 4.94 | I71: 5.077 | J71: 5.198 | K71: 5.306 | L71: 5.403 | M71: 5.492 | N71: 5.574 | O71: 5.649 | P71: 5.719 | Q71: 5.785 | R71: 5.846 | S71: 5.904 | T71: 5.958
A72: 16 | B72: 2.998 | C72: 3.649 | D72: 4.046 | E72: 4.333 | F72: 4.557 | G72: 4.741 | H72: 4.896 | I72: 5.031 | J72: 5.15 | K72: 5.256 | L72: 5.352 | M72: 5.439 | N72: 5.519 | O72: 5.593 | P72: 5.662 | Q72: 5.726 | R72: 5.786 | S72: 5.843 | T72: 5.896
A73: 17 | B73: 2.984 | C73: 3.628 | D73: 4.02 | E73: 4.303 | F73: 4.524 | G73: 4.705 | H73: 4.858 | I73: 4.991 | J73: 5.108 | K73: 5.212 | L73: 5.306 | M73: 5.392 | N73: 5.471 | O73: 5.544 | P73: 5.612 | Q73: 5.675 | R73: 5.734 | S73: 5.79 | T73: 5.842
A74: 18 | B74: 2.971 | C74: 3.609 | D74: 3.997 | E74: 4.276 | F74: 4.494 | G74: 4.673 | H74: 4.824 | I74: 4.955 | J74: 5.071 | K74: 5.173 | L74: 5.266 | M74: 5.351 | N74: 5.429 | O74: 5.501 | P74: 5.567 | Q74: 5.629 | R74: 5.688 | S74: 5.743 | T74: 5.794
A75: 19 | B75: 2.96 | C75: 3.593 | D75: 3.977 | E75: 4.253 | F75: 4.468 | G75: 4.645 | H75: 4.794 | I75: 4.924 | J75: 5.037 | K75: 5.139 | L75: 5.231 | M75: 5.314 | N75: 5.391 | O75: 5.462 | P75: 5.528 | Q75: 5.589 | R75: 5.647 | S75: 5.701 | T75: 5.752
A76: 20 | B76: 2.95 | C76: 3.578 | D76: 3.958 | E76: 4.232 | F76: 4.445 | G76: 4.62 | H76: 4.768 | I76: 4.895 | J76: 5.008 | K76: 5.108 | L76: 5.199 | M76: 5.282 | N76: 5.357 | O76: 5.427 | P76: 5.492 | Q76: 5.553 | R76: 5.61 | S76: 5.663 | T76: 5.714
A77: 21 | B77: 2.941 | C77: 3.565 | D77: 3.942 | E77: 4.213 | F77: 4.424 | G77: 4.597 | H77: 4.743 | I77: 4.87 | J77: 4.981 | K77: 5.081 | L77: 5.17 | M77: 5.252 | N77: 5.327 | O77: 5.396 | P77: 5.46 | Q77: 5.52 | R77: 5.576 | S77: 5.629 | T77: 5.679
A78: 22 | B78: 2.933 | C78: 3.553 | D78: 3.927 | E78: 4.196 | F78: 4.405 | G78: 4.577 | H78: 4.722 | I78: 4.847 | J78: 4.957 | K78: 5.056 | L78: 5.144 | M78: 5.225 | N78: 5.299 | O78: 5.368 | P78: 5.431 | Q78: 5.491 | R78: 5.546 | S78: 5.599 | T78: 5.648
A79: 23 | B79: 2.926 | C79: 3.542 | D79: 3.914 | E79: 4.18 | F79: 4.388 | G79: 4.558 | H79: 4.702 | I79: 4.826 | J79: 4.935 | K79: 5.033 | L79: 5.121 | M79: 5.201 | N79: 5.274 | O79: 5.342 | P79: 5.405 | Q79: 5.464 | R79: 5.519 | S79: 5.571 | T79: 5.62
A80: 24 | B80: 2.919 | C80: 3.532 | D80: 3.901 | E80: 4.166 | F80: 4.373 | G80: 4.541 | H80: 4.684 | I80: 4.807 | J80: 4.915 | K80: 5.012 | L80: 5.099 | M80: 5.179 | N80: 5.251 | O80: 5.319 | P80: 5.381 | Q80: 5.439 | R80: 5.494 | S80: 5.545 | T80: 5.594
A81: 25 | B81: 2.913 | C81: 3.523 | D81: 3.89 | E81: 4.153 | F81: 4.358 | G81: 4.526 | H81: 4.667 | I81: 4.789 | J81: 4.897 | K81: 4.993 | L81: 5.079 | M81: 5.158 | N81: 5.23 | O81: 5.297 | P81: 5.359 | Q81: 5.417 | R81: 5.471 | S81: 5.522 | T81: 5.57
A82: 26 | B82: 2.907 | C82: 3.514 | D82: 3.88 | E82: 4.141 | F82: 4.345 | G82: 4.511 | H82: 4.652 | I82: 4.773 | J82: 4.88 | K82: 4.975 | L82: 5.061 | M82: 5.139 | N82: 5.211 | O82: 5.277 | P82: 5.339 | Q82: 5.396 | R82: 5.45 | S82: 5.5 | T82: 5.548
A83: 27 | B83: 2.902 | C83: 3.506 | D83: 3.87 | E83: 4.13 | F83: 4.333 | G83: 4.498 | H83: 4.638 | I83: 4.758 | J83: 4.864 | K83: 4.959 | L83: 5.044 | M83: 5.122 | N83: 5.193 | O83: 5.259 | P83: 5.32 | Q83: 5.377 | R83: 5.43 | S83: 5.48 | T83: 5.528
A84: 28 | B84: 2.897 | C84: 3.499 | D84: 3.861 | E84: 4.12 | F84: 4.322 | G84: 4.486 | H84: 4.625 | I84: 4.745 | J84: 4.85 | K84: 4.944 | L84: 5.029 | M84: 5.106 | N84: 5.177 | O84: 5.242 | P84: 5.302 | Q84: 5.359 | R84: 5.412 | S84: 5.462 | T84: 5.509
A85: 29 | B85: 2.892 | C85: 3.493 | D85: 3.853 | E85: 4.111 | F85: 4.311 | G85: 4.475 | H85: 4.613 | I85: 4.732 | J85: 4.837 | K85: 4.93 | L85: 5.014 | M85: 5.091 | N85: 5.161 | O85: 5.226 | P85: 5.286 | Q85: 5.342 | R85: 5.395 | S85: 5.445 | T85: 5.491
A86: 30 | B86: 2.888 | C86: 3.486 | D86: 3.845 | E86: 4.102 | F86: 4.301 | G86: 4.464 | H86: 4.601 | I86: 4.72 | J86: 4.824 | K86: 4.917 | L86: 5.001 | M86: 5.077 | N86: 5.147 | O86: 5.211 | P86: 5.271 | Q86: 5.327 | R86: 5.379 | S86: 5.429 | T86: 5.475
A87: 31 | B87: 2.884 | C87: 3.481 | D87: 3.838 | E87: 4.094 | F87: 4.292 | G87: 4.454 | H87: 4.591 | I87: 4.709 | J87: 4.812 | K87: 4.905 | L87: 4.988 | M87: 5.064 | N87: 5.134 | O87: 5.198 | P87: 5.257 | Q87: 5.313 | R87: 5.365 | S87: 5.414 | T87: 5.46
A88: 32 | B88: 2.881 | C88: 3.475 | D88: 3.832 | E88: 4.086 | F88: 4.284 | G88: 4.445 | H88: 4.581 | I88: 4.698 | J88: 4.802 | K88: 4.894 | L88: 4.976 | M88: 5.052 | N88: 5.121 | O88: 5.185 | P88: 5.244 | Q88: 5.299 | R88: 5.351 | S88: 5.4 | T88: 5.445
A89: 33 | B89: 2.877 | C89: 3.47 | D89: 3.825 | E89: 4.079 | F89: 4.276 | G89: 4.436 | H89: 4.572 | I89: 4.689 | J89: 4.791 | K89: 4.883 | L89: 4.965 | M89: 5.04 | N89: 5.109 | O89: 5.173 | P89: 5.232 | Q89: 5.287 | R89: 5.338 | S89: 5.386 | T89: 5.432
A90: 34 | B90: 2.874 | C90: 3.465 | D90: 3.82 | E90: 4.072 | F90: 4.268 | G90: 4.428 | H90: 4.563 | I90: 4.68 | J90: 4.782 | K90: 4.873 | L90: 4.955 | M90: 5.03 | N90: 5.098 | O90: 5.161 | P90: 5.22 | Q90: 5.275 | R90: 5.326 | S90: 5.374 | T90: 5.42
A91: 35 | B91: 2.871 | C91: 3.461 | D91: 3.814 | E91: 4.066 | F91: 4.261 | G91: 4.421 | H91: 4.555 | I91: 4.671 | J91: 4.773 | K91: 4.863 | L91: 4.945 | M91: 5.02 | N91: 5.088 | O91: 5.151 | P91: 5.209 | Q91: 5.264 | R91: 5.315 | S91: 5.362 | T91: 5.408
A92: 36 | B92: 2.868 | C92: 3.457 | D92: 3.809 | E92: 4.06 | F92: 4.255 | G92: 4.414 | H92: 4.547 | I92: 4.663 | J92: 4.764 | K92: 4.855 | L92: 4.936 | M92: 5.01 | N92: 5.078 | O92: 5.141 | P92: 5.199 | Q92: 5.253 | R92: 5.304 | S92: 5.352 | T92: 5.397
A93: 37 | B93: 2.865 | C93: 3.453 | D93: 3.804 | E93: 4.054 | F93: 4.249 | G93: 4.407 | H93: 4.54 | I93: 4.655 | J93: 4.756 | K93: 4.846 | L93: 4.927 | M93: 5.001 | N93: 5.069 | O93: 5.131 | P93: 5.189 | Q93: 5.243 | R93: 5.294 | S93: 5.341 | T93: 5.386
A94: 38 | B94: 2.863 | C94: 3.449 | D94: 3.799 | E94: 4.049 | F94: 4.243 | G94: 4.4 | H94: 4.533 | I94: 4.648 | J94: 4.749 | K94: 4.838 | L94: 4.919 | M94: 4.993 | N94: 5.06 | O94: 5.122 | P94: 5.18 | Q94: 5.234 | R94: 5.284 | S94: 5.331 | T94: 5.376
A95: 39 | B95: 2.861 | C95: 3.445 | D95: 3.795 | E95: 4.044 | F95: 4.237 | G95: 4.394 | H95: 4.527 | I95: 4.641 | J95: 4.741 | K95: 4.831 | L95: 4.911 | M95: 4.985 | N95: 5.052 | O95: 5.114 | P95: 5.171 | Q95: 5.225 | R95: 5.275 | S95: 5.322 | T95: 5.367
A96: 40 | B96: 2.858 | C96: 3.442 | D96: 3.791 | E96: 4.039 | F96: 4.232 | G96: 4.388 | H96: 4.521 | I96: 4.634 | J96: 4.735 | K96: 4.824 | L96: 4.904 | M96: 4.977 | N96: 5.044 | O96: 5.106 | P96: 5.163 | Q96: 5.216 | R96: 5.266 | S96: 5.313 | T96: 5.358
A97: 48 | B97: 2.843 | C97: 3.42 | D97: 3.764 | E97: 4.008 | F97: 4.197 | G97: 4.351 | H97: 4.481 | I97: 4.592 | J97: 4.69 | K97: 4.777 | L97: 4.856 | M97: 4.927 | N97: 4.993 | O97: 5.053 | P97: 5.109 | Q97: 5.161 | R97: 5.21 | S97: 5.256 | T97: 5.299
A98: 60 | B98: 2.829 | C98: 3.399 | D98: 3.737 | E98: 3.977 | F98: 4.163 | G98: 4.314 | H98: 4.441 | I98: 4.55 | J98: 4.646 | K98: 4.732 | L98: 4.808 | M98: 4.878 | N98: 4.942 | O98: 5.001 | P98: 5.056 | Q98: 5.107 | R98: 5.154 | S98: 5.199 | T98: 5.241
A99: 80 | B99: 2.814 | C99: 3.377 | D99: 3.711 | E99: 3.947 | F99: 4.129 | G99: 4.277 | H99: 4.402 | I99: 4.509 | J99: 4.603 | K99: 4.686 | L99: 4.761 | M99: 4.829 | N99: 4.892 | O99: 4.949 | P99: 5.003 | Q99: 5.052 | R99: 5.099 | S99: 5.142 | T99: 5.183
A100: 120 | B100: 2.8 | C100: 3.356 | D100: 3.685 | E100: 3.917 | F100: 4.096 | G100: 4.241 | H100: 4.363 | I100: 4.468 | J100: 4.56 | K100: 4.641 | L100: 4.714 | M100: 4.781 | N100: 4.842 | O100: 4.898 | P100: 4.95 | Q100: 4.998 | R100: 5.043 | S100: 5.086 | T100: 5.126
A101: 240 | B101: 2.786 | C101: 3.335 | D101: 3.659 | E101: 3.887 | F101: 4.063 | G101: 4.205 | H101: 4.324 | I101: 4.427 | J101: 4.517 | K101: 4.596 | L101: 4.668 | M101: 4.733 | N101: 4.792 | O101: 4.847 | P101: 4.897 | Q101: 4.944 | R101: 4.988 | S101: 5.03 | T101: 5.069
A102: 480 | B102: =AVERAGE(B101,B103) -> 2.779 | C102: =AVERAGE(C101,C103) -> 3.3245 | D102: 3.646 | E102: 3.8725 | F102: 4.0465 | G102: 4.1875 | H102: 4.305 | I102: 4.407 | J102: 4.4955 | K102: 4.574 | L102: 4.645 | M102: 4.709 | N102: 4.7675 | O102: 4.8215 | P102: 4.871 | Q102: 4.9175 | R102: 4.961 | S102: 5.002 | T102: 5.0405
A103: > | B103: 2.772 | C103: 3.314 | D103: 3.633 | E103: 3.858 | F103: 4.03 | G103: 4.17 | H103: 4.286 | I103: 4.387 | J103: 4.474 | K103: 4.552 | L103: 4.622 | M103: 4.685 | N103: 4.743 | O103: 4.796 | P103: 4.845 | Q103: 4.891 | R103: 4.934 | S103: 4.974 | T103: 5.012
B105: Alpha | C105: 0.01
B106: k -->
A107: df | B107: 2 | C107: 3 | D107: 4 | E107: 5 | F107: 6 | G107: 7 | H107: 8 | I107: 9 | J107: 10 | K107: 11 | L107: 12 | M107: 13 | N107: 14 | O107: 15 | P107: 16 | Q107: 17 | R107: 18 | S107: 19 | T107: 20
A108: 1 | B108: 90.024 | C108: 135.041 | D108: 164.258 | E108: 185.575 | F108: 202.21 | G108: 215.769 | H108: 227.166 | I108: 236.966 | J108: 245.542 | K108: 253.151 | L108: 259.979 | M108: 266.165 | N108: 271.812 | O108: 277.003 | P108: 281.803 | Q108: 286.263 | R108: 290.426 | S108: 294.328 | T108: 297.997
A109: 2 | B109: 14.036 | C109: 19.019 | D109: 22.294 | E109: 24.717 | F109: 26.629 | G109: 28.201 | H109: 29.53 | I109: 30.679 | J109: 31.689 | K109: 32.589 | L109: 33.398 | M109: 34.134 | N109: 34.806 | O109: 35.426 | P109: 36 | Q109: 36.534 | R109: 37.034 | S109: 37.502 | T109: 37.943
A110: 3 | B110: 8.26 | C110: 10.619 | D110: 12.17 | E110: 13.324 | F110: 14.241 | G110: 14.998 | H110: 15.641 | I110: 16.199 | J110: 16.691 | K110: 17.13 | L110: 17.526 | M110: 17.887 | N110: 18.217 | O110: 18.522 | P110: 18.805 | Q110: 19.068 | R110: 19.315 | S110: 19.546 | T110: 19.765
A111: 4 | B111: 6.511 | C111: 8.12 | D111: 9.173 | E111: 9.958 | F111: 10.583 | G111: 11.101 | H111: 11.542 | I111: 11.925 | J111: 12.264 | K111: 12.567 | L111: 12.84 | M111: 13.09 | N111: 13.318 | O111: 13.53 | P111: 13.726 | Q111: 13.909 | R111: 14.081 | S111: 14.242 | T111: 14.394
A112: 5 | B112: 5.702 | C112: 6.976 | D112: 7.804 | E112: 8.421 | F112: 8.913 | G112: 9.321 | H112: 9.669 | I112: 9.971 | J112: 10.239 | K112: 10.479 | L112: 10.696 | M112: 10.894 | N112: 11.076 | O112: 11.244 | P112: 11.4 | Q112: 11.545 | R112: 11.682 | S112: 11.811 | T112: 11.932
A113: 6 | B113: 5.243 | C113: 6.331 | D113: 7.033 | E113: 7.556 | F113: 7.972 | G113: 8.318 | H113: 8.612 | I113: 8.869 | J113: 9.097 | K113: 9.3 | L113: 9.485 | M113: 9.653 | N113: 9.808 | O113: 9.951 | P113: 10.084 | Q113: 10.208 | R113: 10.325 | S113: 10.434 | T113: 10.538
A114: 7 | B114: 4.949 | C114: 5.919 | D114: 6.542 | E114: 7.005 | F114: 7.373 | G114: 7.678 | H114: 7.939 | I114: 8.166 | J114: 8.367 | K114: 8.548 | L114: 8.711 | M114: 8.86 | N114: 8.997 | O114: 9.124 | P114: 9.242 | Q114: 9.353 | R114: 9.456 | S114: 9.553 | T114: 9.645
A115: 8 | B115: 4.745 | C115: 5.635 | D115: 6.204 | E115: 6.625 | F115: 6.959 | G115: 7.237 | H115: 7.474 | I115: 7.68 | J115: 7.863 | K115: 8.027 | L115: 8.176 | M115: 8.311 | N115: 8.436 | O115: 8.552 | P115: 8.659 | Q115: 8.76 | R115: 8.854 | S115: 8.943 | T115: 9.027
A116: 9 | B116: 4.596 | C116: 5.428 | D116: 5.957 | E116: 6.347 | F116: 6.657 | G116: 6.915 | H116: 7.134 | I116: 7.325 | J116: 7.494 | K116: 7.646 | L116: 7.784 | M116: 7.91 | N116: 8.025 | O116: 8.132 | P116: 8.232 | Q116: 8.325 | R116: 8.412 | S116: 8.495 | T116: 8.573
A117: 10 | B117: 4.482 | C117: 5.27 | D117: 5.769 | E117: 6.136 | F117: 6.428 | G117: 6.669 | H117: 6.875 | I117: 7.054 | J117: 7.213 | K117: 7.356 | L117: 7.485 | M117: 7.603 | N117: 7.712 | O117: 7.812 | P117: 7.906 | Q117: 7.993 | R117: 8.075 | S117: 8.153 | T117: 8.226
A118: 11 | B118: 4.392 | C118: 5.146 | D118: 5.621 | E118: 5.97 | F118: 6.247 | G118: 6.476 | H118: 6.671 | I118: 6.841 | J118: 6.992 | K118: 7.127 | L118: 7.25 | M118: 7.362 | N118: 7.464 | O118: 7.56 | P118: 7.648 | Q118: 7.731 | R118: 7.809 | S118: 7.883 | T118: 7.952
A119: 12 | B119: 4.32 | C119: 5.046 | D119: 5.502 | E119: 5.836 | F119: 6.101 | G119: 6.32 | H119: 6.507 | I119: 6.67 | J119: 6.814 | K119: 6.943 | L119: 7.06 | M119: 7.166 | N119: 7.265 | O119: 7.356 | P119: 7.441 | Q119: 7.52 | R119: 7.594 | S119: 7.664 | T119: 7.73
A120: 13 | B120: 4.26 | C120: 4.964 | D120: 5.404 | E120: 5.726 | F120: 5.981 | G120: 6.192 | H120: 6.372 | I120: 6.528 | J120: 6.666 | K120: 6.791 | L120: 6.903 | M120: 7.006 | N120: 7.1 | O120: 7.188 | P120: 7.269 | Q120: 7.345 | R120: 7.417 | S120: 7.484 | T120: 7.548
A121: 14 | B121: 4.21 | C121: 4.895 | D121: 5.322 | E121: 5.634 | F121: 5.881 | G121: 6.085 | H121: 6.258 | I121: 6.409 | J121: 6.543 | K121: 6.663 | L121: 6.772 | M121: 6.871 | N121: 6.962 | O121: 7.047 | P121: 7.125 | Q121: 7.199 | R121: 7.268 | S121: 7.333 | T121: 7.394
A122: 15 | B122: 4.167 | C122: 4.836 | D122: 5.252 | E122: 5.556 | F122: 5.796 | G122: 5.994 | H122: 6.162 | I122: 6.309 | J122: 6.438 | K122: 6.555 | L122: 6.66 | M122: 6.756 | N122: 6.845 | O122: 6.927 | P122: 7.003 | Q122: 7.074 | R122: 7.141 | S122: 7.204 | T122: 7.264
A123: 16 | B123: 4.131 | C123: 4.786 | D123: 5.192 | E123: 5.489 | F123: 5.722 | G123: 5.915 | H123: 6.079 | I123: 6.222 | J123: 6.348 | K123: 6.461 | L123: 6.564 | M123: 6.658 | N123: 6.744 | O123: 6.823 | P123: 6.897 | Q123: 6.967 | R123: 7.032 | S123: 7.093 | T123: 7.151
A124: 17 | B124: 4.099 | C124: 4.742 | D124: 5.14 | E124: 5.43 | F124: 5.659 | G124: 5.847 | H124: 6.007 | I124: 6.147 | J124: 6.27 | K124: 6.38 | L124: 6.48 | M124: 6.572 | N124: 6.656 | O124: 6.733 | P124: 6.806 | Q124: 6.873 | R124: 6.937 | S124: 6.997 | T124: 7.053
A125: 18 | B125: 4.071 | C125: 4.703 | D125: 5.094 | E125: 5.379 | F125: 5.603 | G125: 5.787 | H125: 5.944 | I125: 6.081 | J125: 6.201 | K125: 6.309 | L125: 6.407 | M125: 6.496 | N125: 6.579 | O125: 6.655 | P125: 6.725 | Q125: 6.791 | R125: 6.854 | S125: 6.912 | T125: 6.967
A126: 19 | B126: 4.046 | C126: 4.669 | D126: 5.054 | E126: 5.334 | F126: 5.553 | G126: 5.735 | H126: 5.889 | I126: 6.022 | J126: 6.141 | K126: 6.246 | L126: 6.342 | M126: 6.43 | N126: 6.51 | O126: 6.585 | P126: 6.654 | Q126: 6.719 | R126: 6.78 | S126: 6.837 | T126: 6.891
A127: 20 | B127: 4.024 | C127: 4.639 | D127: 5.018 | E127: 5.293 | F127: 5.51 | G127: 5.688 | H127: 5.839 | I127: 5.97 | J127: 6.086 | K127: 6.19 | L127: 6.285 | M127: 6.37 | N127: 6.449 | O127: 6.523 | P127: 6.591 | Q127: 6.654 | R127: 6.714 | S127: 6.77 | T127: 6.823
A128: 21 | B128: 4.004 | C128: 4.612 | D128: 4.986 | E128: 5.257 | F128: 5.47 | G128: 5.646 | H128: 5.794 | I128: 5.924 | J128: 6.038 | K128: 6.14 | L128: 6.233 | M128: 6.317 | N128: 6.395 | O128: 6.467 | P128: 6.534 | Q128: 6.596 | R128: 6.655 | S128: 6.71 | T128: 6.762
A129: 22 | B129: 3.986 | C129: 4.588 | D129: 4.957 | E129: 5.225 | F129: 5.435 | G129: 5.608 | H129: 5.754 | I129: 5.882 | J129: 5.994 | K129: 6.095 | L129: 6.186 | M129: 6.269 | N129: 6.346 | O129: 6.417 | P129: 6.482 | Q129: 6.544 | R129: 6.602 | S129: 6.656 | T129: 6.707
A130: 23 | B130: 3.97 | C130: 4.566 | D130: 4.931 | E130: 5.195 | F130: 5.403 | G130: 5.573 | H130: 5.718 | I130: 5.844 | J130: 5.955 | K130: 6.054 | L130: 6.144 | M130: 6.226 | N130: 6.301 | O130: 6.371 | P130: 6.436 | Q130: 6.497 | R130: 6.553 | S130: 6.607 | T130: 6.658
A131: 24 | B131: 3.955 | C131: 4.546 | D131: 4.907 | E131: 5.168 | F131: 5.373 | G131: 5.542 | H131: 5.685 | I131: 5.809 | J131: 5.919 | K131: 6.017 | L131: 6.105 | M131: 6.186 | N131: 6.261 | O131: 6.33 | P131: 6.394 | Q131: 6.453 | R131: 6.51 | S131: 6.562 | T131: 6.612
A132: 25 | B132: 3.942 | C132: 4.527 | D132: 4.885 | E132: 5.144 | F132: 5.347 | G132: 5.513 | H132: 5.655 | I132: 5.778 | J132: 5.886 | K132: 5.983 | L132: 6.07 | M132: 6.15 | N132: 6.224 | O132: 6.292 | P132: 6.355 | Q132: 6.414 | R132: 6.469 | S132: 6.522 | T132: 6.571
A133: 26 | B133: 3.93 | C133: 4.51 | D133: 4.865 | E133: 5.121 | F133: 5.322 | G133: 5.487 | H133: 5.627 | I133: 5.749 | J133: 5.856 | K133: 5.951 | L133: 6.038 | M133: 6.117 | N133: 6.19 | O133: 6.257 | P133: 6.319 | Q133: 6.378 | R133: 6.432 | S133: 6.484 | T133: 6.533
A134: 27 | B134: 3.918 | C134: 4.495 | D134: 4.847 | E134: 5.101 | F134: 5.3 | G134: 5.463 | H134: 5.602 | I134: 5.722 | J134: 5.828 | K134: 5.923 | L134: 6.008 | M134: 6.087 | N134: 6.158 | O134: 6.225 | P134: 6.287 | Q134: 6.344 | R134: 6.399 | S134: 6.45 | T134: 6.498
A135: 28 | B135: 3.908 | C135: 4.481 | D135: 4.83 | E135: 5.082 | F135: 5.279 | G135: 5.441 | H135: 5.578 | I135: 5.697 | J135: 5.802 | K135: 5.896 | L135: 5.981 | M135: 6.058 | N135: 6.129 | O135: 6.195 | P135: 6.256 | Q135: 6.314 | R135: 6.367 | S135: 6.418 | T135: 6.465
A136: 29 | B136: 3.898 | C136: 4.467 | D136: 4.814 | E136: 5.064 | F136: 5.26 | G136: 5.42 | H136: 5.556 | I136: 5.674 | J136: 5.778 | K136: 5.871 | L136: 5.955 | M136: 6.032 | N136: 6.103 | O136: 6.168 | P136: 6.228 | Q136: 6.285 | R136: 6.338 | S136: 6.388 | T136: 6.435
A137: 30 | B137: 3.889 | C137: 4.455 | D137: 4.799 | E137: 5.048 | F137: 5.242 | G137: 5.401 | H137: 5.536 | I137: 5.653 | J137: 5.756 | K137: 5.848 | L137: 5.932 | M137: 6.008 | N137: 6.078 | O137: 6.142 | P137: 6.202 | Q137: 6.258 | R137: 6.311 | S137: 6.361 | T137: 6.407
A138: 31 | B138: 3.881 | C138: 4.443 | D138: 4.786 | E138: 5.032 | F138: 5.225 | G138: 5.383 | H138: 5.517 | I138: 5.633 | J138: 5.736 | K138: 5.827 | L138: 5.91 | M138: 5.985 | N138: 6.055 | O138: 6.119 | P138: 6.178 | Q138: 6.234 | R138: 6.286 | S138: 6.335 | T138: 6.381
A139: 32 | B139: 3.873 | C139: 4.433 | D139: 4.773 | E139: 5.018 | F139: 5.21 | G139: 5.367 | H139: 5.5 | I139: 5.615 | J139: 5.716 | K139: 5.807 | L139: 5.889 | M139: 5.964 | N139: 6.033 | O139: 6.096 | P139: 6.155 | Q139: 6.211 | R139: 6.262 | S139: 6.311 | T139: 6.357
A140: 33 | B140: 3.865 | C140: 4.423 | D140: 4.761 | E140: 5.005 | F140: 5.195 | G140: 5.351 | H140: 5.483 | I140: 5.598 | J140: 5.698 | K140: 5.789 | L140: 5.87 | M140: 5.944 | N140: 6.013 | O140: 6.076 | P140: 6.134 | Q140: 6.189 | R140: 6.24 | S140: 6.289 | T140: 6.334
A141: 34 | B141: 3.859 | C141: 4.413 | D141: 4.75 | E141: 4.992 | F141: 5.181 | G141: 5.336 | H141: 5.468 | I141: 5.581 | J141: 5.682 | K141: 5.771 | L141: 5.852 | M141: 5.926 | N141: 5.994 | O141: 6.056 | P141: 6.114 | Q141: 6.169 | R141: 6.22 | S141: 6.268 | T141: 6.313
A142: 35 | B142: 3.852 | C142: 4.404 | D142: 4.739 | E142: 4.98 | F142: 5.169 | G142: 5.323 | H142: 5.453 | I142: 5.566 | J142: 5.666 | K142: 5.755 | L142: 5.835 | M142: 5.908 | N142: 5.976 | O142: 6.038 | P142: 6.096 | Q142: 6.15 | R142: 6.2 | S142: 6.248 | T142: 6.293
A143: 36 | B143: 3.846 | C143: 4.396 | D143: 4.729 | E143: 4.969 | F143: 5.156 | G143: 5.31 | H143: 5.439 | I143: 5.552 | J143: 5.651 | K143: 5.739 | L143: 5.819 | M143: 5.892 | N143: 5.959 | O143: 6.021 | P143: 6.078 | Q143: 6.132 | R143: 6.182 | S143: 6.229 | T143: 6.274
A144: 37 | B144: 3.84 | C144: 4.388 | D144: 4.72 | E144: 4.959 | F144: 5.145 | G144: 5.298 | H144: 5.427 | I144: 5.538 | J144: 5.637 | K144: 5.725 | L144: 5.804 | M144: 5.876 | N144: 5.943 | O144: 6.004 | P144: 6.061 | Q144: 6.115 | R144: 6.165 | S144: 6.212 | T144: 6.256
A145: 38 | B145: 3.835 | C145: 4.381 | D145: 4.711 | E145: 4.949 | F145: 5.134 | G145: 5.286 | H145: 5.414 | I145: 5.526 | J145: 5.623 | K145: 5.711 | L145: 5.79 | M145: 5.862 | N145: 5.928 | O145: 5.989 | P145: 6.046 | Q145: 6.099 | R145: 6.148 | S145: 6.195 | T145: 6.239
A146: 39 | B146: 3.83 | C146: 4.374 | D146: 4.703 | E146: 4.94 | F146: 5.124 | G146: 5.275 | H146: 5.403 | I146: 5.513 | J146: 5.611 | K146: 5.698 | L146: 5.776 | M146: 5.848 | N146: 5.914 | O146: 5.974 | P146: 6.031 | Q146: 6.084 | R146: 6.133 | S146: 6.179 | T146: 6.223
A147: 40 | B147: 3.825 | C147: 4.367 | D147: 4.695 | E147: 4.931 | F147: 5.114 | G147: 5.265 | H147: 5.392 | I147: 5.502 | J147: 5.599 | K147: 5.685 | L147: 5.764 | M147: 5.835 | N147: 5.9 | O147: 5.961 | P147: 6.017 | Q147: 6.069 | R147: 6.118 | S147: 6.165 | T147: 6.208
A148: 48 | B148: 3.793 | C148: 4.324 | D148: 4.644 | E148: 4.874 | F148: 5.052 | G148: 5.198 | H148: 5.322 | I148: 5.428 | J148: 5.522 | K148: 5.606 | L148: 5.681 | M148: 5.75 | N148: 5.814 | O148: 5.872 | P148: 5.926 | Q148: 5.977 | R148: 6.024 | S148: 6.069 | T148: 6.111
A149: 60 | B149: 3.762 | C149: 4.282 | D149: 4.594 | E149: 4.818 | F149: 4.991 | G149: 5.133 | H149: 5.253 | I149: 5.356 | J149: 5.447 | K149: 5.528 | L149: 5.601 | M149: 5.667 | N149: 5.728 | O149: 5.784 | P149: 5.837 | Q149: 5.886 | R149: 5.931 | S149: 5.974 | T149: 6.015
A150: 80 | B150: 3.732 | C150: 4.241 | D150: 4.545 | E150: 4.763 | F150: 4.931 | G150: 5.069 | H150: 5.185 | I150: 5.284 | J150: 5.372 | K150: 5.451 | L150: 5.521 | M150: 5.585 | N150: 5.644 | O150: 5.698 | P150: 5.749 | Q150: 5.796 | R150: 5.84 | S150: 5.881 | T150: 5.92
A151: 120 | B151: 3.702 | C151: 4.2 | D151: 4.497 | E151: 4.709 | F151: 4.872 | G151: 5.005 | H151: 5.118 | I151: 5.214 | J151: 5.299 | K151: 5.375 | L151: 5.443 | M151: 5.505 | N151: 5.561 | O151: 5.614 | P151: 5.662 | Q151: 5.708 | R151: 5.75 | S151: 5.79 | T151: 5.827
A152: 240 | B152: 3.672 | C152: 4.16 | D152: 4.45 | E152: 4.655 | F152: 4.814 | G152: 4.943 | H152: 5.052 | I152: 5.145 | J152: 5.227 | K152: 5.3 | L152: 5.366 | M152: 5.426 | N152: 5.48 | O152: 5.53 | P152: 5.577 | Q152: 5.621 | R152: 5.661 | S152: 5.699 | T152: 5.735
A153: 480 | B153: =AVERAGE(B152,B154) -> 3.6575 | C153: =AVERAGE(C152,C154) -> 4.14 | D153: 4.4265 | E153: 4.629 | F153: 4.7855 | G153: 4.9125 | H153: 5.0195 | I153: 5.1115 | J153: 5.192 | K153: 5.2635 | L153: 5.328 | M153: 5.387 | N153: 5.44 | O153: 5.489 | P153: 5.535 | Q153: 5.578 | R153: 5.6175 | S153: 5.655 | T153: 5.69
A154: > | B154: 3.643 | C154: 4.12 | D154: 4.403 | E154: 4.603 | F154: 4.757 | G154: 4.882 | H154: 4.987 | I154: 5.078 | J154: 5.157 | K154: 5.227 | L154: 5.29 | M154: 5.348 | N154: 5.4 | O154: 5.448 | P154: 5.493 | Q154: 5.535 | R154: 5.574 | S154: 5.611 | T154: 5.645

Sheet Stud. Q Table 2
A1: Studentized Q Table - critical value for q(k, df, α)
A3: Alpha | B3: 0.1
B4: k -->
A5: df | B5: 2 | C5: =B5+1 -> 3 | D5: =C5+1 -> 4 | E5: 5 | F5: 6 | G5: 7 | H5: 8 | I5: 9 | J5: 10 | K5: 11 | L5: 12 | M5: 13 | N5: =M5+1 -> 14 | O5: =N5+1 -> 15 | P5: =O5+1 -> 16 | Q5: =P5+2 -> 18 | R5: =Q5+2 -> 20 | S5: 22 | T5: =R5+4 -> 24 | U5: 26 | V5: =T5+4 -> 28 | W5: 30 | X5: =V5+4 -> 32 | Y5: 34 | Z5: =X5+4 -> 36 | AA5: 38 | AB5: =Z5+4 -> 40 | AC5: 50 | AD5: 60 | AE5: 70 | AF5: 80 | AG5: 90 | AH5: 100
A6: 1 | B6: 8.929 | C6: 13.437 | D6: 16.358 | E6: 18.488 | F6: 20.15 | G6: 21.504 | H6: 22.642 | I6: 23.621 | J6: 24.477 | K6: 25.237 | L6: 25.918 | M6: 26.536 | N6: 27.1 | O6: 27.618 | P6: 28.097 | Q6: 28.958 | R6: 29.713 | S6: 30.39 | T6: 30.99 | U6: 31.54 | V6: 32.04 | W6: 32.5 | X6: 32.93 | Y6: 33.33 | Z6: 33.71 | AA6: 34.06 | AB6: 34.38 | AC6: 35.79 | AD6: 36.91 | AE6: 37.83 | AF6: 38.62 | AG6: 39.3 | AH6: 39.91
A7: 2 | B7: 4.129 | C7: 5.733 | D7: 6.772 | E7: 7.538 | F7: 8.139 | G7: 8.633 | H7: 9.049 | I7: 9.409 | J7: 9.725 | K7: 10.006 | L7: 10.259 | M7: 10.488 | N7: 10.698 | O7: 10.891 | P7: 11.07 | Q7: 11.392 | R7: 11.676 | S7: 11.93 | T7: 12.16 | U7: 12.36 | V7: 12.55 | W7: 12.73 | X7: 12.89 | Y7: 13.04 | Z7: 13.18 | AA7: 13.31 | AB7: 13.44 | AC7: 13.97 | AD7: 14.4 | AE7: 14.75 | AF7: 15.05 | AG7: 15.31 | AH7: 15.54
A8: 3 | B8: 3.328 | C8: 4.467 | D8: 5.199 | E8: 5.738 | F8: 6.162 | G8: 6.511 | H8: 6.806 | I8: 7.062 | J8: 7.287 | K8: 7.487 | L8: 7.667 | M8: 7.831 | N8: 7.982 | O8: 8.12 | P8: 8.248 | Q8: 8.479 | R8: 8.683 | S8: 8.864 | T8: 9.029 | U8: 9.177 | V8: 9.314 | W8: 9.44 | X8: 9.557 | Y8: 9.666 | Z8: 9.768 | AA8: 9.864 | AB8: 9.954 | AC8: 10.34 | AD8: 10.65 | AE8: 10.91 | AF8: 11.12 | AG8: 11.31 | AH8: 11.48
A9: 4 | B9: 3.015 | C9: 3.976 | D9: 4.586 | E9: 5.035 | F9: 5.388 | G9: 5.679 | H9: 5.926 | I9: 6.139 | J9: 6.327 | K9: 6.494 | L9: 6.645 | M9: 6.783 | N9: 6.909 | O9: 7.025 | P9: 7.132 | Q9: 7.326 | R9: 7.497 | S9: 7.65 | T9: 7.789 | U9: 7.914 | V9: 8.029 | W9: 8.135 | X9: 8.234 | Y9: 8.326 | Z9: 8.412 | AA9: 8.493 | AB9: 8.569 | AC9: 8.806 | AD9: 9.156 | AE9: 9.373 | AF9: 9.557 | AG9: 9.718 | AH9: 9.86
A10: 5 | B10: 2.85 | C10: 3.717 | D10: 4.264 | E10: 4.664 | F10: 4.979 | G10: 5.238 | H10: 5.458 | I10: 5.648 | J10: 5.816 | K10: 5.965 | L10: 6.1 | M10: 6.223 | N10: 6.336 | O10: 6.439 | P10: 6.536 | Q10: 6.71 | R10: 6.863 | S10: 7 | T10: 7.123 | U10: 7.236 | V10: 7.34 | W10: 7.435 | X10: 7.523 | Y10: 7.606 | Z10: 7.683 | AA10: 7.756 | AB10: 7.825 | AC10: 8.118 | AD10: 8.353 | AE10: 8.548 | AF10: 8.715 | AG10: 8.859 | AH10: 8.988
A11: 6 | B11: 2.748 | C11: 3.558 | D11: 4.065 | E11: 4.435 | F11: 4.726 | G11: 4.966 | H11: 5.168 | I11: 5.344 | J11: 5.499 | K11: 5.637 | L11: 5.762 | M11: 5.875 | N11: 5.979 | O11: 6.075 | P11: 6.164 | Q11: 6.325 | R11: 6.466 | S11: 6.593 | T11: 6.708 | U11: 6.812 | V11: 6.908 | W11: 6.996 | X11: 7.078 | Y11: 7.155 | Z11: 7.227 | AA11: 7.294 | AB11: 7.358 | AC11: 7.63 | AD11: 7.848 | AE11: 8.029 | AF11: 8.184 | AG11: 8.319 | AH11: 8.438
A12: 7 | B12: 2.679 | C12: 3.451 | D12: 3.931 | E12: 4.28 | F12: 4.555 | G12: 4.78 | H12: 4.971 | I12: 5.137 | J12: 5.283 | K12: 5.413 | L12: 5.53 | M12: 5.637 | N12: 5.735 | O12: 5.826 | P12: 5.91 | Q12: 6.061 | R12: 6.195 | S12: 6.315 | T12: 6.422 | U12: 6.521 | V12: 6.611 | W12: 6.695 | X12: 6.773 | Y12: 6.845 | Z12: 6.913 | AA12: 6.976 | AB12: 7.036 | AC12: 7.294 | AD12: 7.5 | AE12: 7.672 | AF12: 7.818 | AG12: 7.946 | AH12: 8.059
A13: 8 | B13: 2.63 | C13: 3.374 | D13: 3.834 | E13: 4.169 | F13: 4.431 | G13: 4.646 | H13: 4.829 | I13: 4.987 | J13: 5.126 | K13: 5.25 | L13: 5.362 | M13: 5.464 | N13: 5.558 | O13: 5.644 | P13: 5.724 | Q13: 5.869 | R13: 5.997 | S13: 6.111 | T13: 6.214 | U13: 6.308 | V13: 6.395 | W13: 6.475 | X13: 6.549 | Y13: 6.618 | Z13: 6.683 | AA13: 6.744 | AB13: 6.801 | AC13: 7.048 | AD13: 7.245 | AE13: 7.409 | AF13: 7.55 | AG13: 7.672 | AH13: 7.78
A14: 9 | B14: 2.592 | C14: 3.316 | D14: 3.761 | E14: 4.084 | F14: 4.337 | G14: 4.545 | H14: 4.721 | I14: 4.873 | J14: 5.007 | K14: 5.126 | L14: 5.234 | M14: 5.333 | N14: 5.423 | O14: 5.506 | P14: 5.583 | Q14: 5.722 | R14: 5.845 | S14: 5.956 | T14: 6.055 | U14: 6.146 | V14: 6.229 | W14: 6.306 | X14: 6.378 | Y14: 6.444 | Z14: 6.507 | AA14: 6.566 | AB14: 6.621 | AC14: 6.859 | AD14: 7.05 | AE14: 7.208 | AF14: 7.343 | AG14: 7.461 | AH14: 7.566
A15: 10 | B15: 2.563 | C15: 3.27 | D15: 3.704 | E15: 4.018 | F15: 4.264 | G15: 4.465 | H15: 4.636 | I15: 4.783 | J15: 4.913 | K15: 5.029 | L15: 5.134 | M15: 5.229 | N15: 5.316 | O15: 5.397 | P15: 5.472 | Q15: 5.607 | R15: 5.726 | S15: 5.833 | T15: 5.93 | U15: 6.017 | V15: 6.098 | W15: 6.173 | X15: 6.242 | Y15: 6.307 | Z15: 6.368 | AA15: 6.425 | AB15: 6.479 | AC15: 6.709 | AD15: 6.895 | AE15: 7.048 | AF15: 7.18 | AG15: 7.295 | AH15: 7.396
A16: 11 | B16: 2.54 | C16: 3.234 | D16: 3.658 | E16: 3.965 | F16: 4.205 | G16: 4.401 | H16: 4.567 | I16: 4.711 | J16: 4.838 | K16: 4.951 | L16: 5.053 | M16: 5.145 | N16: 5.231 | O16: 5.309 | P16: 5.382 | Q16: 5.514 | R16: 5.63 | S16: 5.734 | T16: 5.828 | U16: 5.914 | V16: 5.992 | W16: 6.065 | X16: 6.132 | Y16: 6.196 | Z16: 6.255 | AA16: 6.31 | AB16: 6.363 | AC16: 6.588 | AD16: 6.768 | AE16: 6.918 | AF16: 7.047 | AG16: 7.158 | AH16: 7.258
A17: 12 | B17: 2.521 | C17: 3.204 | D17: 3.621 | E17: 3.921 | F17: 4.156 | G17: 4.349 | H17: 4.511 | I17: 4.652 | J17: 4.776 | K17: 4.886 | L17: 4.986 | M17: 5.076 | N17: 5.16 | O17: 5.236 | P17: 5.308 | Q17: 5.436 | R17: 5.55 | S17: 5.652 | T17: 5.744 | U17: 5.827 | V17: 5.904 | W17: 5.976 | X17: 6.042 | Y17: 6.103 | Z17: 6.161 | AA17: 6.215 | AB17: 6.267 | AC17: 6.487 | AD17: 6.663 | AE17: 6.81 | AF17: 6.936 | AG17: 7.045 | AH17: 7.142
A18: 13 | B18: 2.504 | C18: 3.179 | D18: 3.589 | E18: 3.885 | F18: 4.116 | G18: 4.304 | H18: 4.464 | I18: 4.602 | J18: 4.724 | K18: 4.832 | L18: 4.93 | M18: 5.019 | N18: 5.1 | O18: 5.175 | P18: 5.245 | Q18: 5.371 | R18: 5.483 | S18: 5.583 | T18: 5.673 | U18: 5.755 | V18: 5.83 | W18: 5.9 | X18: 5.965 | Y18: 6.025 | Z18: 6.082 | AA18: 6.135 | AB18: 6.186 | AC18: 6.402 | AD18: 6.575 | AE18: 6.719 | AF18: 6.842 | AG18: 6.949 | AH18: 7.045
A19: 14 | B19: 2.491 | C19: 3.158 | D19: 3.563 | E19: 3.854 | F19: 4.081 | G19: 4.267 | H19: 4.424 | I19: 4.56 | J19: 4.679 | K19: 4.786 | L19: 4.882 | M19: 4.969 | N19: 5.05 | O19: 5.124 | P19: 5.192 | Q19: 5.316 | R19: 5.426 | S19: 5.524 | T19: 5.612 | U19: 5.693 | V19: 5.767 | W19: 5.836 | X19: 5.899 | Y19: 5.959 | Z19: 6.014 | AA19: 6.067 | AB19: 6.116 | AC19: 6.329 | AD19: 6.499 | AE19: 6.641 | AF19: 6.762 | AG19: 6.868 | AH19: 6.961
A20: 15 | B20: 2.479 | C20: 3.14 | D20: 3.54 | E20: 3.828 | F20: 4.052 | G20: 4.235 | H20: 4.39 | I20: 4.524 | J20: 4.641 | K20: 4.746 | L20: 4.841 | M20: 4.927 | N20: 5.006 | O20: 5.079 | P20: 5.146 | Q20: 5.268 | R20: 5.376 | S20: 5.473 | T20: 5.56 | U20: 5.639 | V20: 5.713 | W20: 5.78 | X20: 5.843 | Y20: 5.901 | Z20: 5.956 | AA20: 6.008 | AB20: 6.057 | AC20: 6.266 | AD20: 6.433 | AE20: 6.573 | AF20: 6.692 | AG20: 6.796 | AH20: 6.888
A21: 16 | B21: 2.469 | C21: 3.124 | D21: 3.52 | E21: 3.804 | F21: 4.026 | G21: 4.207 | H21: 4.36 | I21: 4.492 | J21: 4.608 | K21: 4.712 | L21: 4.805 | M21: 4.89 | N21: 4.968 | O21: 5.04 | P21: 5.106 | Q21: 5.227 | R21: 5.333 | S21: 5.428 | T21: 5.515 | U21: 5.593 | V21: 5.665 | W21: 5.732 | X21: 5.793 | Y21: 5.851 | Z21: 5.905 | AA21: 5.956 | AB21: 6.004 | AC21: 6.21 | AD21: 6.376 | AE21: 6.513 | AF21: 6.631 | AG21: 6.734 | AH21: 6.825
A22: 17 | B22: 2.46 | C22: 3.11 | D22: 3.503 | E22: 3.784 | F22: 4.003 | G22: 4.182 | H22: 4.334 | I22: 4.464 | J22: 4.579 | K22: 4.681 | L22: 4.774 | M22: 4.857 | N22: 4.934 | O22: 5.005 | P22: 5.071 | Q22: 5.19 | R22: 5.295 | S22: 5.389 | T22: 5.474 | U22: 5.552 | V22: 5.623 | W22: 5.689 | X22: 5.75 | Y22: 5.806 | Z22: 5.86 | AA22: 5.91 | AB22: 5.958 | AC22: 6.162 | AD22: 6.325 | AE22: 6.461 | AF22: 6.577 | AG22: 6.679 | AH22: 6.769
A23: 18 | B23: 2.452 | C23: 3.098 | D23: 3.487 | E23: 3.766 | F23: 3.984 | G23: 4.161 | H23: 4.31 | I23: 4.44 | J23: 4.553 | K23: 4.654 | L23: 4.746 | M23: 4.829 | N23: 4.905 | O23: 4.975 | P23: 5.04 | Q23: 5.158 | R23: 5.262 | S23: 5.355 | T23: 5.439 | U23: 5.515 | V23: 5.585 | W23: 5.65 | X23: 5.711 | Y23: 5.767 | Z23: 5.82 | AA23: 5.87 | AB23: 5.917 | AC23: 6.113 | AD23: 6.28 | AE23: 6.414 | AF23: 6.529 | AG23: 6.63 | AH23: 6.719
A24: 19 | B24: 2.445 | C24: 3.087 | D24: 3.474 | E24: 3.751 | F24: 3.966 | G24: 4.142 | H24: 4.29 | I24: 4.418 | J24: 4.53 | K24: 4.63 | L24: 4.721 | M24: 4.803 | N24: 4.878 | O24: 4.948 | P24: 5.012 | Q24: 5.129 | R24: 5.232 | S24: 5.324 | T24: 5.407 | U24: 5.483 | V24: 5.552 | W24: 5.616 | X24: 5.676 | Y24: 5.732 | Z24: 5.784 | AA24: 5.833 | AB24: 5.88 | AC24: 6.079 | AD24: 6.239 | AE24: 6.372 | AF24: 6.486 | AG24: 6.585 | AH24: 6.674
A25: 20 | B25: 2.439 | C25: 3.077 | D25: 3.462 | E25: 3.736 | F25: 3.95 | G25: 4.124 | H25: 4.271 | I25: 4.398 | J25: 4.51 | K25: 4.609 | L25: 4.699 | M25: 4.78 | N25: 4.855 | O25: 4.923 | P25: 4.987 | Q25: 5.103 | R25: 5.205 | S25: 5.296 | T25: 5.378 | U25: 5.453 | V25: 5.522 | W25: 5.586 | X25: 5.645 | Y25: 5.7 | Z25: 5.752 | AA25: 5.801 | AB25: 5.847 | AC25: 6.044 | AD25: 6.203 | AE25: 6.335 | AF25: 6.447 | AG25: 6.546 | AH25: 6.633
A26: 24 | B26: 2.42 | C26: 3.047 | D26: 3.423 | E26: 3.692 | F26: 3.9 | G26: 4.07 | H26: 4.213 | I26: 4.336 | J26: 4.445 | K26: 4.541 | L26: 4.628 | M26: 4.707 | N26: 4.78 | O26: 4.847 | P26: 4.909 | Q26: 5.02 | R26: 5.119 | S26: 5.208 | T26: 5.287 | U26: 5.36 | V26: 5.427 | W26: 5.489 | X26: 5.546 | Y26: 5.6 | Z26: 5.65 | AA26: 5.697 | AB26: 5.741 | AC26: 5.933 | AD26: 6.086 | AE26: 6.214 | AF26: 6.324 | AG26: 6.419 | AH26: 6.503
A27: 30 | B27: 2.4 | C27: 3.017 | D27: 3.386 | E27: 3.648 | F27: 3.851 | G27: 4.016 | H27: 4.155 | I27: 4.275 | J27: 4.381 | K27: 4.474 | L27: 4.559 | M27: 4.635 | N27: 4.706 | O27: 4.77 | P27: 4.83 | Q27: 4.939 | R27: 5.034 | S27: 5.12 | T27: 5.197 | U27: 5.267 | V27: 5.332 | W27: 5.392 | X27: 5.447 | Y27: 5.499 | Z27: 5.547 | AA27: 5.593 | AB27: 5.636 | AC27: 5.821 | AD27: 5.969 | AE27: 6.093 | AF27: 6.198 | AG27: 6.291 | AH27: 6.372
A28: 40 | B28: 2.381 | C28: 2.988 | D28: 3.348 | E28: 3.605 | F28: 3.802 | G28: 3.963 | H28: 4.099 | I28: 4.215 | J28: 4.317 | K28: 4.408 | L28: 4.49 | M28: 4.564 | N28: 4.632 | O28: 4.694 | P28: 4.752 | Q28: 4.857 | R28: 4.949 | S28: 5.032 | T28: 5.107 | U28: 5.174 | V28: 5.236 | W28: 5.294 | X28: 5.347 | Y28: 5.397 | Z28: 5.444 | AA28: 5.488 | AB28: 5.529 | AC28: 5.708 | AD28: 5.85 | AE28: 5.969 | AF28: 6.071 | AG28: 6.16 | AH28: 6.238
A29: 60 | B29: 2.363 | C29: 2.959 | D29: 3.312 | E29: 3.562 | F29: 3.755 | G29: 3.911 | H29: 4.042 | I29: 4.155 | J29: 4.254 | K29: 4.342 | L29: 4.421 | M29: 4.493 | N29: 4.558 | O29: 4.619 | P29: 4.675 | Q29: 4.775 | R29: 4.864 | S29: 4.944 | T29: 5.015 | U29: 5.081 | V29: 5.141 | W29: 5.196 | X29: 5.247 | Y29: 5.295 | Z29: 5.34 | AA29: 5.382 | AB29: 5.422 | AC29: 5.593 | AD29: 5.73 | AE29: 5.844 | AF29: 5.941 | AG29: 6.026 | AH29: 6.102
A30: 120 | B30: 2.344 | C30: 2.93 | D30: 3.276 | E30: 3.52 | F30: 3.707 | G30: 3.859 | H30: 3.986 | I30: 4.096 | J30: 4.191 | K30: 4.276 | L30: 4.353 | M30: 4.422 | N30: 4.485 | O30: 4.543 | P30: 4.597 | Q30: 4.694 | R30: 4.779 | S30: 4.656 | T30: 4.924 | U30: 4.987 | V30: 5.044 | W30: 5.097 | X30: 5.146 | Y30: 5.192 | Z30: 5.235 | AA30: 5.275 | AB30: 5.313 | AC30: 5.476 | AD30: 5.606 | AE30: 5.715 | AF30: 5.808 | AG30: 5.888 | AH30: 5.96
A31: 240 | B31: =AVERAGE(B30,B33) -> 2.335 | C31: =AVERAGE(C30,C33) -> 2.916 | D31: 3.258 | E31: 3.499 | F31: 3.684 | G31: 3.8335 | H31: 3.9585 | I31: 4.0665 | J31: 4.16 | K31: 4.2435 | L31: 4.319 | M31: 4.3865 | N31: 4.4485 | O31: 4.5055 | P31: 4.558 | Q31: 4.653 | R31: 4.7365 | S31: 4.7115 | T31: 4.878 | U31: 4.9395 | V31: 4.9955 | W31: 5.047 | X31: 5.095 | Y31: 5.1395 | Z31: 5.1815 | AA31: 5.2205 | AB31: 5.2575 | AC31: 5.4165 | AD31: 5.543 | AE31: 5.6485 | AF31: 5.7385 | AG31: 5.8165 | AH31: 5.886
A32: 480 | B32: =AVERAGE(B31,B33) -> 2.3305 | C32: =AVERAGE(C31,C33) -> 2.909 | D32: 3.249 | E32: 3.4885 | F32: 3.6725 | G32: 3.82075 | H32: 3.94475 | I32: 4.05175 | J32: 4.1445 | K32: 4.22725 | L32: 4.302 | M32: 4.36875 | N32: 4.43025 | O32: 4.48675 | P32: 4.5385 | Q32: 4.6325 | R32: 4.71525 | S32: 4.73925 | T32: 4.855 | U32: 4.91575 | V32: 4.97125 | W32: 5.022 | X32: 5.0695 | Y32: 5.11325 | Z32: 5.15475 | AA32: 5.19325 | AB32: 5.22975 | AC32: 5.38675 | AD32: 5.5115 | AE32: 5.61525 | AF32: 5.70375 | AG32: 5.78075 | AH32: 5.849
A33: > | B33: 2.326 | C33: 2.902 | D33: 3.24 | E33: 3.478 | F33: 3.661 | G33: 3.808 | H33: 3.931 | I33: 4.037 | J33: 4.129 | K33: 4.211 | L33: 4.285 | M33: 4.351 | N33: 4.412 | O33: 4.468 | P33: 4.519 | Q33: 4.612 | R33: 4.694 | S33: 4.767 | T33: 4.832 | U33: 4.892 | V33: 4.947 | W33: 4.997 | X33: 5.044 | Y33: 5.087 | Z33: 5.128 | AA33: 5.166 | AB33: 5.202 | AC33: 5.357 | AD33: 5.48 | AE33: 5.582 | AF33: 5.669 | AG33: 5.745 | AH33: 5.812
A35: Alpha | B35: 0.05
B36: k -->
A37: df | B37: 2 | C37: =B37+1 -> 3 | D37: =C37+1 -> 4 | E37: 5 | F37: 6 | G37: 7 | H37: 8 | I37: 9 | J37: 10 | K37: 11 | L37: 12 | M37: 13 | N37: =M37+1 -> 14 | O37: =N37+1 -> 15 | P37: =O37+1 -> 16 | Q37: =P37+2 -> 18 | R37: =Q37+2 -> 20 | S37: 22 | T37: =R37+4 -> 24 | U37: 26 | V37: =T37+4 -> 28 | W37: 30 | X37: =V37+4 -> 32 | Y37: 34 | Z37: =X37+4 -> 36 | AA37: 38 | AB37: =Z37+4 -> 40 | AC37: 50 | AD37: 60 | AE37: 70 | AF37: 80 | AG37: 90 | AH37: 100
A38: 1 | B38: 17.97 | C38: 26.98 | D38: 32.82 | E38: 37.08 | F38: 40.41 | G38: 43.12 | H38: 45.4 | I38: 47.36 | J38: 49.07 | K38: 50.59 | L38: 51.96 | M38: 53.2 | N38: 54.33 | O38: 55.36 | P38: 56.32 | Q38: 58.04 | R38: 59.56 | S38: 60.91 | T38: 62.12 | U38: 63.22 | V38: 64.23 | W38: 65.15 | X38: 66.01 | Y38: 66.81 | Z38: 67.56 | AA38: 68.26 | AB38: 68.92 | AC38: 71.73 | AD38: 73.97 | AE38: 75.82 | AF38: 77.4 | AG38: 78.77 | AH38: 79.98
A39: 2 | B39: 6.085 | C39: 8.331 | D39: 9.798 | E39: 10.88 | F39: 11.74 | G39: 12.44 | H39: 13.03 | I39: 13.54 | J39: 13.99 | K39: 14.39 | L39: 14.75 | M39: 15.08 | N39: 15.38 | O39: 15.65 | P39: 15.91 | Q39: 16.37 | R39: 16.77 | S39: 17.13 | T39: 17.45 | U39: 17.75 | V39: 18.02 | W39: 18.27 | X39: 18.5 | Y39: 18.72 | Z39: 18.92 | AA39: 19.11 | AB39: 19.28 | AC39: 20.05 | AD39: 20.66 | AE39: 21.16 | AF39: 21.59 | AG39: 21.96 | AH39: 22.29
A40: 3 | B40: 4.501 | C40: 5.91 | D40: 6.825 | E40: 7.502 | F40: 8.037 | G40: 8.478 | H40: 8.853 | I40: 9.177 | J40: 9.462 | K40: 9.717 | L40: 9.946 | M40: 10.15 | N40: 10.35 | O40: 10.53 | P40: 10.69 | Q40: 10.98 | R40: 11.24 | S40: 11.47 | T40: 11.68 | U40: 11.87 | V40: 12.05 | W40: 12.21 | X40: 12.36 | Y40: 12.5 | Z40: 12.63 | AA40: 12.75 | AB40: 12.87 | AC40: 13.36 | AD40: 13.76 | AE40: 14.08 | AF40: 14.36 | AG40: 14.61 | AH40: 14.82
A41: 4 | B41: 3.927 | C41: 5.04 | D41: 5.757 | E41: 6.287 | F41: 6.707 | G41: 7.053 | H41: 7.347 | I41: 7.602 | J41: 7.826 | K41: 8.027 | L41: 8.208 | M41: 8.373 | N41: 8.525 | O41: 8.664 | P41: 8.794 | Q41: 9.028 | R41: 9.233 | S41: 9.418 | T41: 9.584 | U41: 9.736 | V41: 9.875 | W41: 10 | X41: 10.12 | Y41: 10.23 | Z41: 10.34 | AA41: 10.44 | AB41: 10.53 | AC41: 10.93 | AD41: 11.24 | AE41: 11.51 | AF41: 11.73 | AG41: 11.92 | AH41: 12.09
A42: 5 | B42: 3.635 | C42: 4.602 | D42: 5.218 | E42: 5.673 | F42: 6.033 | G42: 6.33 | H42: 6.582 | I42: 6.802 | J42: 6.995 | K42: 7.168 | L42: 7.324 | M42: 7.466 | N42: 7.596 | O42: 7.717 | P42: 7.828 | Q42: 8.03 | R42: 8.208 | S42: 8.368 | T42: 8.512 | U42: 8.643 | V42: 8.764 | W42: 8.875 | X42: 8.979 | Y42: 9.075 | Z42: 9.165 | AA42: 9.25 | AB42: 9.33 | AC42: 9.674 | AD42: 9.949 | AE42: 10.18 | AF42: 10.38 | AG42: 10.54 | AH42: 10.69
A43: 6 | B43: 3.461 | C43: 4.339 | D43: 4.896 | E43: 5.305 | F43: 5.628 | G43: 5.895 | H43: 6.122 | I43: 6.319 | J43: 6.493 | K43: 6.649 | L43: 6.789 | M43: 6.917 | N43: 7.034 | O43: 7.143 | P43: 7.244 | Q43: 7.426 | R43: 7.587 | S43: 7.73 | T43: 7.861 | U43: 7.979 | V43: 8.088 | W43: 8.189 | X43: 8.283 | Y43: 8.37 | Z43: 8.452 | AA43: 8.529 | AB43: 8.601 | AC43: 8.913 | AD43: 9.163 | AE43: 9.37 | AF43: 9.548 | AG43: 9.702 | AH43: 9.839
A44: 7 | B44: 3.344 | C44: 4.165 | D44: 4.681 | E44: 5.06 | F44: 5.359 | G44: 5.606 | H44: 5.815 | I44: 5.998 | J44: 6.158 | K44: 6.302 | L44: 6.431 | M44: 6.55 | N44: 6.658 | O44: 6.759 | P44: 6.852 | Q44: 7.02 | R44: 7.17 | S44: 7.303 | T44: 7.423 | U44: 7.533 | V44: 7.634 | W44: 7.728 | X44: 7.814 | Y44: 7.895 | Z44: 7.972 | AA44: 8.043 | AB44: 8.11 | AC44: 8.4 | AD44: 8.632 | AE44: 8.824 | AF44: 8.989 | AG44: 9.133 | AH44: 9.261
A45: 8 | B45: 3.261 | C45: 4.041 | D45: 4.529 | E45: 4.886 | F45: 5.167 | G45: 5.399 | H45: 5.597 | I45: 5.767 | J45: 5.918 | K45: 6.054 | L45: 6.175 | M45: 6.287 | N45: 6.389 | O45: 6.483 | P45: 6.571 | Q45: 6.729 | R45: 6.87 | S45: 6.995 | T45: 7.109 | U45: 7.212 | V45: 7.307 | W45: 7.395 | X45: 7.477 | Y45: 7.554 | Z45: 7.625 | AA45: 7.693 | AB45: 7.756 | AC45: 8.029 | AD45: 8.248 | AE45: 8.43 | AF45: 8.586 | AG45: 8.722 | AH45: 8.843
A46: 9 | B46: 3.199 | C46: 3.949 | D46: 4.415 | E46: 4.756 | F46: 5.024 | G46: 5.244 | H46: 5.432 | I46: 5.595 | J46: 5.739 | K46: 5.867 | L46: 5.983 | M46: 6.089 | N46: 6.186 | O46: 6.276 | P46: 6.359 | Q46: 6.51 | R46: 6.644 | S46: 6.763 | T46: 6.871 | U46: 6.97 | V46: 7.061 | W46: 7.145 | X46: 7.222 | Y46: 7.295 | Z46: 7.363 | AA46: 7.428 | AB46: 7.488 | AC46: 7.749 | AD46: 7.958 | AE46: 8.132 | AF46: 8.281 | AG46: 8.41 | AH46: 8.526
A47: 10 | B47: 3.151 | C47: 3.877 | D47: 4.327 | E47: 4.654 | F47: 4.912 | G47: 5.124 | H47: 5.305 | I47: 5.461 | J47: 5.599 | K47: 5.722 | L47: 5.833 | M47: 5.935 | N47: 6.028 | O47: 6.114 | P47: 6.194 | Q47: 6.339 | R47: 6.467 | S47: 6.582 | T47: 6.686 | U47: 6.781 | V47: 6.868 | W47: 6.948 | X47: 7.023 | Y47: 7.093 | Z47: 7.159 | AA47: 7.22 | AB47: 7.279 | AC47: 7.529 | AD47: 7.73 | AE47: 7.897 | AF47: 8.041 | AG47: 8.166 | AH47: 8.276
A48: 11 | B48: 3.113 | C48: 3.82 | D48: 4.256 | E48: 4.574 | F48: 4.823 | G48: 5.028 | H48: 5.202 | I48: 5.353 | J48: 5.487 | K48: 5.605 | L48: 5.713 | M48: 5.811 | N48: 5.901 | O48: 5.984 | P48: 6.062 | Q48: 6.202 | R48: 6.326 | S48: 6.436 | T48: 6.536 | U48: 6.628 | V48: 6.712 | W48: 6.79 | X48: 6.863 | Y48: 6.93 | Z48: 6.994 | AA48: 7.053 | AB48: 7.11 | AC48: 7.352 | AD48: 7.546 | AE48: 7.708 | AF48: 7.847 | AG48: 7.968 | AH48: 8.075
A49: 12 | B49: 3.082 | C49: 3.773 | D49: 4.199 | E49: 4.508 | F49: 4.751 | G49: 4.95 | H49: 5.119 | I49: 5.265 | J49: 5.395 | K49: 5.511 | L49: 5.615 | M49: 5.71 | N49: 5.798 | O49: 5.878 | P49: 5.953 | Q49: 6.089 | R49: 6.209 | S49: 6.317 | T49: 6.414 | U49: 6.503 | V49: 6.585 | W49: 6.66 | X49: 6.731 | Y49: 6.796 | Z49: 6.858 | AA49: 6.916 | AB49: 6.97 | AC49: 7.205 | AD49: 7.394 | AE49: 7.552 | AF49: 7.687 | AG49: 7.804 | AH49: 7.909
A50: 13 | B50: 3.055 | C50: 3.735 | D50: 4.151 | E50: 4.453 | F50: 4.69 | G50: 4.885 | H50: 5.049 | I50: 5.192 | J50: 5.318 | K50: 5.431 | L50: 5.533 | M50: 5.625 | N50: 5.711 | O50: 5.789 | P50: 5.862 | Q50: 5.995 | R50: 6.112 | S50: 6.217 | T50: 6.312 | U50: 6.398 | V50: 6.478 | W50: 6.551 | X50: 6.62 | Y50: 6.684 | Z50: 6.744 | AA50: 6.8 | AB50: 6.854 | AC50: 7.083 | AD50: 7.267 | AE50: 7.421 | AF50: 7.552 | AG50: 7.667 | AH50: 7.769
A51: 14 | B51: 3.033 | C51: 3.702 | D51: 4.111 | E51: 4.407 | F51: 4.639 | G51: 4.829 | H51: 4.99 | I51: 5.131 | J51: 5.254 | K51: 5.364 | L51: 5.463 | M51: 5.554 | N51: 5.637 | O51: 5.714 | P51: 5.786 | Q51: 5.915 | R51: 6.029 | S51: 6.132 | T51: 6.224 | U51: 6.309 | V51: 6.387 | W51: 6.459 | X51: 6.526 | Y51: 6.588 | Z51: 6.647 | AA51: 6.702 | AB51: 6.754 | AC51: 6.979 | AD51: 7.159 | AE51: 7.309 | AF51: 7.438 | AG51: 7.55 | AH51: 7.65
A52: 15 | B52: 3.014 | C52: 3.674 | D52: 4.076 | E52: 4.367 | F52: 4.595 | G52: 4.782 | H52: 4.94 | I52: 5.077 | J52: 5.198 | K52: 5.306 | L52: 5.404 | M52: 5.493 | N52: 5.574 | O52: 5.649 | P52: 5.72 | Q52: 5.846 | R52: 5.958 | S52: 6.059 | T52: 6.149 | U52: 6.233 | V52: 6.309 | W52: 6.379 | X52: 6.445 | Y52: 6.506 | Z52: 6.564 | AA52: 6.618 | AB52: 6.669 | AC52: 6.888 | AD52: 7.065 | AE52: 7.212 | AF52: 7.339 | AG52: 7.449 | AH52: 7.546
A53: 16 | B53: 2.998 | C53: 3.649 | D53: 4.046 | E53: 4.333 | F53: 4.557 | G53: 4.741 | H53: 4.897 | I53: 5.031 | J53: 5.15 | K53: 5.256 | L53: 5.352 | M53: 5.439 | N53: 5.52 | O53: 5.593 | P53: 5.662 | Q53: 5.786 | R53: 5.897 | S53: 5.995 | T53: 6.084 | U53: 6.166 | V53: 6.241 | W53: 6.31 | X53: 6.374 | Y53: 6.434 | Z53: 6.491 | AA53: 6.544 | AB53: 6.594 | AC53: 6.81 | AD53: 6.984 | AE53: 7.128 | AF53: 7.252 | AG53: 7.36 | AH53: 7.457
A54: 17 | B54: 2.984 | C54: 3.628 | D54: 4.02 | E54: 4.303 | F54: 4.524 | G54: 4.705 | H54: 4.858 | I54: 4.991 | J54: 5.108 | K54: 5.212 | L54: 5.307 | M54: 5.392 | N54: 5.471 | O54: 5.544 | P54: 5.612 | Q54: 5.734 | R54: 5.842 | S54: 5.94 | T54: 6.027 | U54: 6.107 | V54: 6.181 | W54: 6.249 | X54: 6.313 | Y54: 6.372 | Z54: 6.427 | AA54: 6.479 | AB54: 6.529 | AC54: 6.741 | AD54: 6.912 | AE54: 7.054 | AF54: 7.176 | AG54: 7.283 | AH54: 7.377
A55: 18 | B55: 2.971 | C55: 3.609 | D55: 3.997 | E55: 4.277 | F55: 4.495 | G55: 4.673 | H55: 4.824 | I55: 4.956 | J55: 5.071 | K55: 5.174 | L55: 5.267 | M55: 5.352 | N55: 5.429 | O55: 5.501 | P55: 5.568 | Q55: 5.688 | R55: 5.794 | S55: 5.89 | T55: 5.977 | U55: 6.055 | V55: 6.128 | W55: 6.195 | X55: 6.258 | Y55: 6.316 | Z55: 6.371 | AA55: 6.422 | AB55: 6.471 | AC55: 6.68 | AD55: 6.848 | AE55: 6.989 | AF55: 7.109 | AG55: 7.213 | AH55: 7.307
A56: 19 | B56: 2.96 | C56: 3.593 | D56: 3.977 | E56: 4.253 | F56: 4.469 | G56: 4.645 | H56: 4.794 | I56: 4.924 | J56: 5.038 | K56: 5.14 | L56: 5.231 | M56: 5.315 | N56: 5.391 | O56: 5.462 | P56: 5.528 | Q56: 5.647 | R56: 5.752 | S56: 5.846 | T56: 5.932 | U56: 6.009 | V56: 6.081 | W56: 6.147 | X56: 6.209 | Y56: 6.267 | Z56: 6.321 | AA56: 6.371 | AB56: 6.419 | AC56: 6.626 | AD56: 6.792 | AE56: 6.93 | AF56: 7.048 | AG56: 7.152 | AH56: 7.244
A57: 20 | B57: 2.95 | C57: 3.578 | D57: 3.958 | E57: 4.232 | F57: 4.445 | G57: 4.62 | H57: 4.768 | I57: 4.896 | J57: 5.008 | K57: 5.108 | L57: 5.199 | M57: 5.282 | N57: 5.357 | O57: 5.427 | P57: 5.493 | Q57: 5.61 | R57: 5.714 | S57: 5.807 | T57: 5.891 | U57: 5.968 | V57: 6.039 | W57: 6.104 | X57: 6.165 | Y57: 6.222 | Z57: 6.275 | AA57: 6.325 | AB57: 6.373 | AC57: 6.576 | AD57: 6.74 | AE57: 6.877 | AF57: 6.994 | AG57: 7.097 | AH57: 7.187
A58: 24 | B58: 2.919 | C58: 3.532 | D58: 3.901 | E58: 4.166 | F58: 4.373 | G58: 4.541 | H58: 4.684 | I58: 4.807 | J58: 4.915 | K58: 5.012 | L58: 5.099 | M58: 5.179 | N58: 5.251 | O58: 5.319 | P58: 5.381 | Q58: 5.494 | R58: 5.594 | S58: 5.683 | T58: 5.764 | U58: 5.838 | V58: 5.906 | W58: 5.968 | X58: 6.027 | Y58: 6.081 | Z58: 6.132 | AA58: 6.181 | AB58: 6.226 | AC58: 6.421 | AD58: 6.579 | AE58: 6.71 | AF58: 6.822 | AG58: 6.92 | AH58: 7.008
A59: 30 | B59: 2.888 | C59: 3.486 | D59: 3.845 | E59: 4.102 | F59: 4.302 | G59: 4.464 | H59: 4.602 | I59: 4.72 | J59: 4.824 | K59: 4.917 | L59: 5.001 | M59: 5.077 | N59: 5.147 | O59: 5.211 | P59: 5.271 | Q59: 5.379 | R59: 5.475 | S59: 5.561 | T59: 5.638 | U59: 5.709 | V59: 5.774 | W59: 5.833 | X59: 5.889 | Y59: 5.941 | Z59: 5.99 | AA59: 6.037 | AB59: 6.08 | AC59: 6.267 | AD59: 6.417 | AE59: 6.543 | AF59: 6.65 | AG59: 6.744 | AH59: 6.827
A60: 40 | B60: 2.858 | C60: 3.442 | D60: 3.791 | E60: 4.039 | F60: 4.232 | G60: 4.389 | H60: 4.521 | I60: 4.635 | J60: 4.735 | K60: 4.824 | L60: 4.904 | M60: 4.977 | N60: 5.044 | O60: 5.106 | P60: 5.163 | Q60: 5.266 | R60: 5.358 | S60: 5.439 | T60: 5.513 | U60: 5.581 | V60: 5.642 | W60: 5.7 | X60: 5.753 | Y60: 5.803 | Z60: 5.849 | AA60: 5.893 | AB60: 5.934 | AC60: 6.112 | AD60: 6.255 | AE60: 6.375 | AF60: 6.477 | AG60: 6.566 | AH60: 6.645
A61: 60 | B61: 2.829 | C61: 3.399 | D61: 3.737 | E61: 3.977 | F61: 4.163 | G61: 4.314 | H61: 4.441 | I61: 4.55 | J61: 4.646 | K61: 4.732 | L61: 4.808 | M61: 4.878 | N61: 4.942 | O61: 5.001 | P61: 5.056 | Q61: 5.154 | R61: 5.241 | S61: 5.319 | T61: 5.389 | U61: 5.453 | V61: 5.512 | W61: 5.566 | X61: 5.617 | Y61: 5.664 | Z61: 5.708 | AA61: 5.75 | AB61: 5.789 | AC61: 5.958 | AD61: 6.093 | AE61: 6.206 | AF61: 6.303 | AG61: 6.387 | AH61: 6.462
A62: 120 | B62: 2.8 | C62: 3.356 | D62: 3.685 | E62: 3.917 | F62: 4.096 | G62: 4.241 | H62: 4.363 | I62: 4.468 | J62: 4.56 | K62: 4.641 | L62: 4.714 | M62: 4.781 | N62: 4.842 | O62: 4.898 | P62: 4.95 | Q62: 5.044 | R62: 5.126 | S62: 5.2 | T62: 5.266 | U62: 5.327 | V62: 5.382 | W62: 5.434 | X62: 5.481 | Y62: 5.526 | Z62: 5.568 | AA62: 5.607 | AB62: 5.644 | AC62: 5.802 | AD62: 5.929 | AE62: 6.035 | AF62: 6.126 | AG62: 6.205 | AH62: 6.275
A63: 240 | B63: =AVERAGE(B62,B65) -> 2.786 | C63: =AVERAGE(C62,C65) -> 3.335 | D63: 3.659 | E63: 3.8875 | F63: 4.063 | G63: 4.2055 | H63: 4.3245 | I63: 4.4275 | J63: 4.517 | K63: 4.5965 | L63: 4.668 | M63: 4.733 | N63: 4.7925 | O63: 4.847 | P63: 4.8975 | Q63: 4.989 | R63: 5.069 | S63: 5.1405 | T63: 5.205 | U63: 5.264 | V63: 5.3175 | W63: 5.3675 | X63: 5.4135 | Y63: 5.457 | Z63: 5.4975 | AA63: 5.535 | AB63: 5.571 | AC63: 5.724 | AD63: 5.8465 | AE63: 5.949 | AF63: 6.0365 | AG63: 6.1125 | AH63: 6.18
A64: 480 | B64: =AVERAGE(B63,B65) -> 2.779 | C64: =AVERAGE(C63,C65) -> 3.3245 | D64: 3.646 | E64: 3.87275 | F64: 4.0465 | G64: 4.18775 | H64: 4.30525 | I64: 4.40725 | J64: 4.4955 | K64: 4.57425 | L64: 4.645 | M64: 4.709 | N64: 4.76775 | O64: 4.8215 | P64: 4.87125 | Q64: 4.9615 | R64: 5.0405 | S64: 5.11075 | T64: 5.1745 | U64: 5.2325 | V64: 5.28525 | W64: 5.33425 | X64: 5.37975 | Y64: 5.4225 | Z64: 5.46225 | AA64: 5.499 | AB64: 5.5345 | AC64: 5.685 | AD64: 5.80525 | AE64: 5.906 | AF64: 5.99175 | AG64: 6.06625 | AH64: 6.1325
A65: > | B65: 2.772 | C65: 3.314 | D65: 3.633 | E65: 3.858 | F65: 4.03 | G65: 4.17 | H65: 4.286 | I65: 4.387 | J65: 4.474 | K65: 4.552 | L65: 4.622 | M65: 4.685 | N65: 4.743 | O65: 4.796 | P65: 4.845 | Q65: 4.934 | R65: 5.012 | S65: 5.081 | T65: 5.144 | U65: 5.201 | V65: 5.253 | W65: 5.301 | X65: 5.346 | Y65: 5.388 | Z65: 5.427 | AA65: 5.463 | AB65: 5.498 | AC65: 5.646 | AD65: 5.764 | AE65: 5.863 | AF65: 5.947 | AG65: 6.02 | AH65: 6.085
A67: Alpha | B67: 0.025
B68: k -->
A69: df | B69: 2 | C69: =B69+1 -> 3 | D69: =C69+1 -> 4 | E69: 5 | F69: 6 | G69: 7 | H69: 8 | I69: 9 | J69: 10 | K69: 11 | L69: 12 | M69: 13 | N69: =M69+1 -> 14 | O69: =N69+1 -> 15 | P69: =O69+1 -> 16 | Q69: =P69+2 -> 18 | R69: =Q69+2 -> 20 | S69: 22 | T69: =R69+4 -> 24 | U69: 26 | V69: =T69+4 -> 28 | W69: 30 | X69: =V69+4 -> 32 | Y69: 34 | Z69: =X69+4 -> 36 | AA69: 38 | AB69: =Z69+4 -> 40 | AC69: 50 | AD69: 60 | AE69: 70 | AF69: 80 | AG69: 90 | AH69: 100
A70: 1 | B70: 35.99 | C70: 54 | D70: 65.69 | E70: 74.22 | F70: 80.87 | G70: 86.29 | H70: 90.85 | I70: 94.77 | J70: 98.2 | K70: 101.3 | L70: 104 | M70: 106.5 | N70: 108.8 | O70: 110.8 | P70: 112.7 | Q70: 116.2 | R70: 119.2 | S70: 121.9 | T70: 124.3 | U70: 126.5 | V70: 128.6 | W70: 130.4 | X70: 132.1 | Y70: 133.7 | Z70: 135.2 | AA70: 136.6 | AB70: 137.9 | AC70: 143.6 | AD70: 148.1 | AE70: 151.8 | AF70: 154.9 | AG70: 157.7 | AH70: 160
A71: 2 | B71: 8.776 | C71: 11.94 | D71: 14.01 | E71: 15.54 | F71: 16.75 | G71: 17.74 | H71: 18.58 | I71: 19.31 | J71: 19.95 | K71: 20.52 | L71: 21.03 | M71: 21.49 | N71: 21.91 | O71: 22.3 | P71: 22.67 | Q71: 23.32 | R71: 23.89 | S71: 24.41 | T71: 24.87 | U71: 25.29 | V71: 25.67 | W71: 26.03 | X71: 26.35 | Y71: 26.66 | Z71: 26.95 | AA71: 27.22 | AB71: 27.47 | AC71: 28.55 | AD71: 29.42 | AE71: 30.13 | AF71: 30.74 | AG71: 31.27 | AH71: 31.74
A72: 3 | B72: 5.907 | C72: 7.661 | D72: 8.808 | E72: 9.66 | F72: 10.34 | G72: 10.89 | H72: 11.37 | I72: 11.78 | J72: 12.14 | K72: 12.46 | L72: 12.75 | M72: 13.01 | N72: 13.26 | O72: 13.48 | P72: 13.69 | Q72: 14.06 | R72: 14.39 | S72: 14.69 | T72: 14.95 | U72: 15.19 | V72: 15.41 | W72: 15.62 | X72: 15.81 | Y72: 15.99 | Z72: 16.15 | AA72: 16.31 | AB72: 16.46 | AC72: 17.08 | AD72: 17.59 | AE72: 18 | AF72: 18.36 | AG72: 18.67 | AH72: 18.95
A73: 4 | B73: 4.943 | C73: 6.244 | D73: 7.088 | E73: 7.716 | F73: 8.213 | G73: 8.625 | H73: 8.976 | I73: 9.279 | J73: 9.548 | K73: 9.788 | L73: 10.01 | M73: 10.2 | N73: 10.39 | O73: 10.55 | P73: 10.71 | Q73: 10.99 | R73: 11.23 | S73: 11.46 | T73: 11.66 | U73: 11.84 | V73: 12 | W73: 12.16 | X73: 12.3 | Y73: 12.44 | Z73: 12.56 | AA73: 12.68 | AB73: 12.79 | AC73: 13.27 | AD73: 13.65 | AE73: 13.96 | AF73: 14.23 | AG73: 14.47 | AH73: 14.68
A74: 5 | B74: 4.474 | C74: 5.558 | D74: 6.257 | E74: 6.775 | F74: 7.186 | G74: 7.527 | H74: 7.816 | I74: 8.068 | J74: 8.291 | K74: 8.49 | L74: 8.67 | M74: 8.834 | N74: 8.984 | O74: 9.124 | P74: 9.253 | Q74: 9.486 | R74: 9.693 | S74: 9.878 | T74: 10.04 | U74: 10.2 | V74: 10.34 | W74: 10.47 | X74: 10.59 | Y74: 10.7 | Z74: 10.8 | AA74: 10.91 | AB74: 11 | AC74: 11.4 | AD74: 11.72 | AE74: 11.99 | AF74: 12.21 | AG74: 12.41 | AH74: 12.59
A75: 6 | B75: 4.199 | C75: 5.158 | D75: 5.772 | E75: 6.226 | F75: 6.586 | G75: 6.884 | H75: 7.138 | I75: 7.359 | J75: 7.554 | K75: 7.729 | L75: 7.887 | M75: 8.031 | N75: 8.163 | O75: 8.286 | P75: 8.399 | Q75: 8.605 | R75: 8.787 | S75: 8.949 | T75: 9.097 | U75: 9.231 | V75: 9.355 | W75: 9.469 | X75: 9.575 | Y75: 9.674 | Z75: 9.767 | AA75: 9.855 | AB75: 9.938 | AC75: 10.3 | AD75: 10.58 | AE75: 10.81 | AF75: 11.02 | AG75: 11.19 | AH75: 11.35
A76: 7 | B76: 4.018 | C76: 4.897 | D76: 5.455 | E76: 5.868 | F76: 6.194 | G76: 6.464 | H76: 6.695 | I76: 6.895 | J76: 7.072 | K76: 7.23 | L76: 7.373 | M76: 7.504 | N76: 7.624 | O76: 7.735 | P76: 7.839 | Q76: 8.025 | R76: 8.191 | S76: 8.339 | T76: 8.473 | U76: 8.595 | V76: 8.708 | W76: 8.812 | X76: 8.909 | Y76: 8.999 | Z76: 9.084 | AA76: 9.164 | AB76: 9.239 | AC76: 9.563 | AD76: 9.822 | AE76: 10.04 | AF76: 10.23 | AG76: 10.38 | AH76: 10.53
A77: 8 | B77: 3.892 | C77: 4.714 | D77: 5.233 | E77: 5.616 | F77: 5.919 | G77: 6.169 | H77: 6.382 | I77: 6.568 | J77: 6.732 | K77: 6.879 | L77: 7.011 | M77: 7.132 | N77: 7.244 | O77: 7.347 | P77: 7.443 | Q77: 7.616 | R77: 7.769 | S77: 7.907 | T77: 8.031 | U77: 8.145 | V77: 8.25 | W77: 8.346 | X77: 8.436 | Y77: 8.52 | Z77: 8.599 | AA77: 8.673 | AB77: 8.743 | AC77: 9.044 | AD77: 9.286 | AE77: 9.487 | AF77: 9.66 | AG77: 9.81 | AH77: 9.944
A78: 9 | B78: 3.797 | C78: 4.578 | D78: 5.069 | E78: 5.43 | F78: 5.715 | G78: 5.95 | H78: 6.151 | I78: 6.325 | J78: 6.479 | K78: 6.617 | L78: 6.742 | M78: 6.856 | N78: 6.961 | O78: 7.058 | P78: 7.148 | Q78: 7.311 | R78: 7.455 | S78: 7.585 | T78: 7.702 | U78: 7.809 | V78: 7.908 | W78: 7.999 | X78: 8.084 | Y78: 8.163 | Z78: 8.237 | AA78: 8.307 | AB78: 8.373 | AC78: 8.657 | AD78: 8.885 | AE78: 9.076 | AF78: 9.238 | AG78: 9.381 | AH78: 9.507
A79: 10 | B79: 3.725 | C79: 4.474 | D79: 4.943 | E79: 5.287 | F79: 5.558 | G79: 5.782 | H79: 5.972 | I79: 6.138 | J79: 6.285 | K79: 6.416 | L79: 6.534 | M79: 6.643 | N79: 6.742 | O79: 6.834 | P79: 6.92 | Q79: 7.075 | R79: 7.212 | S79: 7.335 | T79: 7.447 | U79: 7.549 | V79: 7.643 | W79: 7.729 | X79: 7.81 | Y79: 7.885 | Z79: 7.956 | AA79: 8.023 | AB79: 8.086 | AC79: 8.356 | AD79: 8.574 | AE79: 8.755 | AF79: 8.911 | AG79: 9.046 | AH79: 9.167
A80: 11 | B80: 3.667 | C80: 4.391 | D80: 4.843 | E80: 5.173 | F80: 5.433 | G80: 5.648 | H80: 5.831 | I80: 5.989 | J80: 6.13 | K80: 6.256 | L80: 6.369 | M80: 6.473 | N80: 6.568 | O80: 6.657 | P80: 6.739 | Q80: 6.887 | R80: 7.019 | S80: 7.137 | T80: 7.244 | U80: 7.341 | V80: 7.431 | W80: 7.514 | X80: 7.592 | Y80: 7.664 | Z80: 7.732 | AA80: 7.796 | AB80: 7.856 | AC80: 8.116 | AD80: 8.325 | AE80: 8.499 | AF80: 8.648 | AG80: 8.779 | AH80: 8.894
A81: 12 | B81: 3.62 | C81: 4.325 | D81: 4.762 | E81: 5.081 | F81: 5.332 | G81: 5.54 | H81: 5.716 | I81: 5.869 | J81: 6.004 | K81: 6.125 | L81: 6.235 | M81: 6.335 | N81: 6.427 | O81: 6.512 | P81: 6.591 | Q81: 6.734 | R81: 6.861 | S81: 6.974 | T81: 7.078 | U81: 7.172 | V81: 7.258 | W81: 7.338 | X81: 7.413 | Y81: 7.483 | Z81: 7.548 | AA81: 7.61 | AB81: 7.668 | AC81: 7.919 | AD81: 8.12 | AE81: 8.289 | AF81: 8.433 | AG81: 8.559 | AH81: 8.671
A82: 13 | B82: 3.582 | C82: 4.269 | D82: 4.694 | E82: 5.004 | F82: 5.248 | G82: 5.449 | H82: 5.62 | I82: 5.769 | J82: 5.9 | K82: 6.017 | L82: 6.123 | M82: 6.22 | N82: 6.309 | O82: 6.392 | P82: 6.468 | Q82: 6.607 | R82: 6.73 | S82: 6.84 | T82: 6.939 | U82: 7.031 | V82: 7.115 | W82: 7.192 | X82: 7.265 | Y82: 7.332 | Z82: 7.396 | AA82: 7.455 | AB82: 7.512 | AC82: 7.755 | AD82: 7.95 | AE82: 8.113 | AF82: 8.253 | AG82: 8.375 | AH82: 8.484
A83: 14 | B83: 3.55 | C83: 4.222 | D83: 4.638 | E83: 4.94 | F83: 5.178 | G83: 5.374 | H83: 5.54 | I83: 5.684 | J83: 5.811 | K83: 5.926 | L83: 6.029 | M83: 6.123 | N83: 6.21 | O83: 6.29 | P83: 6.364 | Q83: 6.499 | R83: 6.619 | S83: 6.726 | T83: 6.823 | U83: 6.911 | V83: 6.993 | W83: 7.069 | X83: 7.139 | Y83: 7.204 | Z83: 7.266 | AA83: 7.324 | AB83: 7.379 | AC83: 7.615 | AD83: 7.806 | AE83: 7.965 | AF83: 8.101 | AG83: 8.22 | AH83: 8.325
A84: 15 | B84: 3.522 | C84: 4.182 | D84: 4.589 | E84: 4.885 | F84: 5.118 | G84: 5.309 | H84: 5.471 | I84: 5.612 | J84: 5.737 | K84: 5.848 | L84: 5.949 | M84: 6.041 | N84: 6.125 | O84: 6.203 | P84: 6.276 | Q84: 6.407 | R84: 6.523 | S84: 6.628 | T84: 6.723 | U84: 6.809 | V84: 6.889 | W84: 6.962 | X84: 7.031 | Y84: 7.095 | Z84: 7.155 | AA84: 7.212 | AB84: 7.265 | AC84: 7.496 | AD84: 7.682 | AE84: 7.837 | AF84: 7.97 | AG84: 8.086 | AH84: 8.189
A85: 16 | B85: 3.498 | C85: 4.148 | D85: 4.548 | E85: 4.838 | F85: 5.066 | G85: 5.253 | H85: 5.412 | I85: 5.55 | J85: 5.672 | K85: 5.781 | L85: 5.879 | M85: 5.969 | N85: 6.052 | O85: 6.128 | P85: 6.199 | Q85: 6.328 | R85: 6.441 | S85: 6.543 | T85: 6.636 | U85: 6.721 | V85: 6.799 | W85: 6.87 | X85: 6.938 | Y85: 7 | Z85: 7.059 | AA85: 7.115 | AB85: 7.167 | AC85: 7.393 | AD85: 7.574 | AE85: 7.726 | AF85: 7.856 | AG85: 7.969 | AH85: 8.07
A86: 17 | B86: 3.477 | C86: 4.118 | D86: 4.512 | E86: 4.797 | F86: 5.02 | G86: 5.204 | H86: 5.361 | I86: 5.496 | J86: 5.615 | K86: 5.722 | L86: 5.818 | M86: 5.907 | N86: 5.987 | O86: 6.062 | P86: 6.132 | Q86: 6.258 | R86: 6.37 | S86: 6.469 | T86: 6.56 | U86: 6.644 | V86: 6.72 | W86: 6.79 | X86: 6.856 | Y86: 6.917 | Z86: 6.975 | AA86: 7.03 | AB86: 7.081 | AC86: 7.302 | AD86: 7.48 | AE86: 7.628 | AF86: 7.756 | AG86: 7.868 | AH86: 7.966
A87: 18 | B87: 3.458 | C87: 4.092 | D87: 4.48 | E87: 4.761 | F87: 4.981 | G87: 5.162 | H87: 5.315 | I87: 5.448 | J87: 5.565 | K87: 5.67 | L87: 5.765 | M87: 5.852 | N87: 5.931 | O87: 6.004 | P87: 6.073 | Q87: 6.197 | R87: 6.306 | S87: 6.404 | T87: 6.493 | U87: 6.575 | V87: 6.65 | W87: 6.72 | X87: 6.784 | Y87: 6.844 | Z87: 6.9 | AA87: 6.954 | AB87: 7.005 | AC87: 7.221 | AD87: 7.396 | AE87: 7.543 | AF87: 7.667 | AG87: 7.777 | AH87: 7.874
A88: 19 | B88: 3.442 | C88: 4.068 | D88: 4.451 | E88: 4.728 | F88: 4.945 | G88: 5.123 | H88: 5.275 | I88: 5.405 | J88: 5.521 | K88: 5.624 | L88: 5.718 | M88: 5.803 | N88: 5.881 | O88: 5.954 | P88: 6.02 | Q88: 6.142 | R88: 6.25 | S88: 6.347 | T88: 6.434 | U88: 6.514 | V88: 6.588 | W88: 6.656 | X88: 6.719 | Y88: 6.779 | Z88: 6.835 | AA88: 6.887 | AB88: 6.936 | AC88: 7.15 | AD88: 7.322 | AE88: 7.465 | AF88: 7.589 | AG88: 7.696 | AH88: 7.792
A89: 20 | B89: 3.427 | C89: 4.047 | D89: 4.426 | E89: 4.7 | F89: 4.914 | G89: 5.089 | H89: 5.238 | I89: 5.368 | J89: 5.481 | K89: 5.583 | L89: 5.675 | M89: 5.759 | N89: 5.836 | O89: 5.907 | P89: 5.974 | Q89: 6.093 | R89: 6.2 | S89: 6.295 | T89: 6.381 | U89: 6.46 | V89: 6.532 | W89: 6.6 | X89: 6.662 | Y89: 6.72 | Z89: 6.775 | AA89: 6.827 | AB89: 6.876 | AC89: 7.086 | AD89: 7.255 | AE89: 7.397 | AF89: 7.518 | AG89: 7.624 | AH89: 7.718
A90: 24 | B90: 3.381 | C90: 3.983 | D90: 4.347 | E90: 4.61 | F90: 4.816 | G90: 4.984 | H90: 5.216 | I90: 5.25 | J90: 5.358 | K90: 5.455 | L90: 5.543 | M90: 5.623 | N90: 5.697 | O90: 5.764 | P90: 5.827 | Q90: 5.941 | R90: 6.043 | S90: 6.133 | T90: 6.215 | U90: 6.29 | V90: 6.359 | W90: 6.423 | X90: 6.482 | Y90: 6.538 | Z90: 6.589 | AA90: 6.639 | AB90: 6.685 | AC90: 6.885 | AD90: 7.046 | AE90: 7.18 | AF90: 7.296 | AG90: 7.397 | AH90: 7.486
A91: 30 | B91: 3.337 | C91: 3.919 | D91: 4.271 | E91: 4.523 | F91: 4.72 | G91: 4.881 | H91: 5.017 | I91: 5.134 | J91: 5.238 | K91: 5.33 | L91: 5.414 | M91: 5.49 | N91: 5.56 | O91: 5.624 | P91: 5.684 | Q91: 5.792 | R91: 5.888 | S91: 5.974 | T91: 6.052 | U91: 6.123 | V91: 6.188 | W91: 6.248 | X91: 6.305 | Y91: 6.357 | Z91: 6.406 | AA91: 6.453 | AB91: 6.497 | AC91: 6.686 | AD91: 6.839 | AE91: 6.965 | AF91: 7.075 | AG91: 7.171 | AH91: 7.255
A92: 40 | B92: 3.294 | C92: 3.858 | D92: 4.197 | E92: 4.439 | F92: 4.627 | G92: 4.78 | H92: 4.91 | I92: 5.022 | J92: 5.12 | K92: 5.208 | L92: 5.288 | M92: 5.36 | N92: 5.426 | O92: 5.487 | P92: 5.544 | Q92: 5.646 | R92: 5.737 | S92: 5.818 | T92: 5.891 | U92: 5.958 | V92: 6.02 | W92: 6.077 | X92: 6.13 | Y92: 6.179 | Z92: 6.226 | AA92: 6.27 | AB92: 6.311 | AC92: 6.489 | AD92: 6.633 | AE92: 6.753 | AF92: 6.855 | AG92: 6.945 | AH92: 7.025
A93: 60 | B93: 3.251 | C93: 3.798 | D93: 4.124 | E93: 4.356 | F93: 4.536 | G93: 4.682 | H93: 4.806 | I93: 4.912 | J93: 5.006 | K93: 5.089 | L93: 5.164 | M93: 5.232 | N93: 5.295 | O93: 5.352 | P93: 5.406 | Q93: 5.503 | R93: 5.588 | S93: 5.664 | T93: 5.733 | U93: 5.797 | V93: 5.854 | W93: 5.908 | X93: 5.958 | Y93: 6.004 | Z93: 6.048 | AA93: 6.089 | AB93: 6.127 | AC93: 6.295 | AD93: 6.429 | AE93: 6.54 | AF93: 6.636 | AG93: 6.72 | AH93: 6.795
A94: 120 | B94: 3.21 | C94: 3.739 | D94: 4.053 | E94: 4.276 | F94: 4.447 | G94: 4.587 | H94: 4.704 | I94: 4.805 | J94: 4.894 | K94: 4.972 | L94: 5.043 | M94: 5.107 | N94: 5.166 | O94: 5.221 | P94: 5.271 | Q94: 5.362 | R94: 5.442 | S94: 5.513 | T94: 5.578 | U94: 5.637 | V94: 5.691 | W94: 5.741 | X94: 5.788 | Y94: 5.831 | Z94: 5.872 | AA94: 5.91 | AB94: 5.946 | AC94: 6.101 | AD94: 6.225 | AE94: 6.329 | AF94: 6.418 | AG94: 6.495 | AH94: 6.564
A95: 240 | B95: =AVERAGE(B94,B97) -> 3.19 | C95: =AVERAGE(C94,C97) -> 3.7105 | D95: 4.0185 | E95: 4.2365 | F95: 4.404 | G95: 4.5405 | H95: 4.6545 | I95: 4.7525 | J95: 4.839 | K95: 4.915 | L95: 4.984 | M95: 5.046 | N95: 5.1035 | O95: 5.1565 | P95: 5.205 | Q95: 5.293 | R95: 5.3705 | S95: 5.439 | T95: 5.5015 | U95: 5.5585 | V95: 5.6105 | W95: 5.659 | X95: 5.704 | Y95: 5.7455 | Z95: 5.785 | AA95: 5.8215 | AB95: 5.856 | AC95: 6.005 | AD95: 6.124 | AE95: 6.2235 | AF95: 6.3085 | AG95: 6.3825 | AH95: 6.4485
A96: 480 | B96: =AVERAGE(B95,B97) -> 3.18 | C96: =AVERAGE(C95,C97) -> 3.69625 | D96: 4.00125 | E96: 4.21675 | F96: 4.3825 | G96: 4.51725 | H96: 4.62975 | I96: 4.72625 | J96: 4.8115 | K96: 4.8865 | L96: 4.9545 | M96: 5.0155 | N96: 5.07225 | O96: 5.12425 | P96: 5.172 | Q96: 5.2585 | R96: 5.33475 | S96: 5.402 | T96: 5.46325 | U96: 5.51925 | V96: 5.57025 | W96: 5.618 | X96: 5.662 | Y96: 5.70275 | Z96: 5.7415 | AA96: 5.77725 | AB96: 5.811 | AC96: 5.957 | AD96: 6.0735 | AE96: 6.17075 | AF96: 6.25375 | AG96: 6.32625 | AH96: 6.39075
A97: > | B97: 3.17 | C97: 3.682 | D97: 3.984 | E97: 4.197 | F97: 4.361 | G97: 4.494 | H97: 4.605 | I97: 4.7 | J97: 4.784 | K97: 4.858 | L97: 4.925 | M97: 4.985 | N97: 5.041 | O97: 5.092 | P97: 5.139 | Q97: 5.224 | R97: 5.299 | S97: 5.365 | T97: 5.425 | U97: 5.48 | V97: 5.53 | W97: 5.577 | X97: 5.62 | Y97: 5.66 | Z97: 5.698 | AA97: 5.733 | AB97: 5.766 | AC97: 5.909 | AD97: 6.023 | AE97: 6.118 | AF97: 6.199 | AG97: 6.27 | AH97: 6.333
A99: Alpha | B99: 0.01
B100: k -->
A101: df | B101: 2 | C101: =B101+1 -> 3 | D101: =C101+1 -> 4 | E101: 5 | F101: 6 | G101: 7 | H101: 8 | I101: 9 | J101: 10 | K101: 11 | L101: 12 | M101: 13 | N101: =M101+1 -> 14 | O101: =N101+1 -> 15 | P101: =O101+1 -> 16 | Q101: =P101+2 -> 18 | R101: =Q101+2 -> 20 | S101: 22 | T101: =R101+4 -> 24 | U101: 26 | V101: =T101+4 -> 28 | W101: 30 | X101: =V101+4 -> 32 | Y101: 34 | Z101: =X101+4 -> 36 | AA101: 38 | AB101: =Z101+4 -> 40 | AC101: 50 | AD101: 60 | AE101: 70 | AF101: 80 | AG101: 90 | AH101: 100
A102: 1 | B102: 90.03 | C102: 135 | D102: 164.3 | E102: 185.6 | F102: 202.2 | G102: 215.8 | H102: 227.2 | I102: 237 | J102: 245.6 | K102: 253.2 | L102: 260 | M102: 266.2 | N102: 271.8 | O102: 277 | P102: 281.8 | Q102: 290.4 | R102: 298 | S102: 304.7 | T102: 310.8 | U102: 316.3 | V102: 321.3 | W102: 326 | X102: 330.3 | Y102: 334.3 | Z102: 338 | AA102: 341.5 | AB102: 344.8 | AC102: 358.9 | AD102: 370.1 | AE102: 379.4 | AF102: 387.3 | AG102: 394.1 | AH102: 400.1
A103: 2 | B103: 14.04 | C103: 19.02 | D103: 22.29 | E103: 24.72 | F103: 26.63 | G103: 28.2 | H103: 29.53 | I103: 30.68 | J103: 31.69 | K103: 32.59 | L103: 33.4 | M103: 34.13 | N103: 34.81 | O103: 35.43 | P103: 36 | Q103: 37.03 | R103: 37.95 | S103: 38.76 | T103: 39.49 | U103: 40.15 | V103: 40.76 | W103: 41.32 | X103: 41.84 | Y103: 42.33 | Z103: 42.78 | AA103: 43.21 | AB103: 43.61 | AC103: 45.33 | AD103: 46.7 | AE103: 47.83 | AF103: 48.8 | AG103: 49.64 | AH103: 50.38
A104: 3 | B104: 8.261 | C104: 10.62 | D104: 12.17 | E104: 13.33 | F104: 14.24 | G104: 15 | H104: 15.64 | I104: 16.2 | J104: 16.69 | K104: 17.13 | L104: 17.53 | M104: 17.89 | N104: 18.22 | O104: 18.52 | P104: 18.81 | Q104: 19.32 | R104: 19.77 | S104: 20.17 | T104: 20.53 | U104: 20.86 | V104: 21.16 | W104: 21.44 | X104: 21.7 | Y104: 21.95 | Z104: 22.17 | AA104: 22.39 | AB104: 22.59 | AC104: 23.45 | AD104: 24.13 | AE104: 24.71 | AF104: 25.19 | AG104: 25.67 | AH104: 25.99
A105: 4 | B105: 6.512 | C105: 8.12 | D105: 9.173 | E105: 9.958 | F105: 10.58 | G105: 11.1 | H105: 11.55 | I105: 11.93 | J105: 12.27 | K105: 12.57 | L105: 12.84 | M105: 13.09 | N105: 13.32 | O105: 13.53 | P105: 13.73 | Q105: 14.08 | R105: 14.4 | S105: 14.68 | T105: 14.93 | U105: 15.16 | V105: 15.37 | W105: 15.57 | X105: 15.75 | Y105: 15.92 | Z105: 16.08 | AA105: 16.23 | AB105: 16.37 | AC105: 16.98 | AD105: 17.46 | AE105: 17.86 | AF105: 18.2 | AG105: 18.5 | AH105: 18.77
A106: 5 | B106: 5.702 | C106: 6.976 | D106: 7.804 | E106: 8.421 | F106: 8.913 | G106: 9.321 | H106: 9.669 | I106: 9.972 | J106: 10.24 | K106: 10.48 | L106: 10.7 | M106: 10.89 | N106: 11.08 | O106: 11.24 | P106: 11.4 | Q106: 11.68 | R106: 11.93 | S106: 12.16 | T106: 12.36 | U106: 12.54 | V106: 12.71 | W106: 12.87 | X106: 13.02 | Y106: 13.15 | Z106: 13.28 | AA106: 13.4 | AB106: 13.52 | AC106: 14 | AD106: 14.39 | AE106: 14.72 | AF106: 14.99 | AG106: 15.23 | AH106: 15.45
A107: 6 | B107: 5.243 | C107: 6.331 | D107: 7.033 | E107: 7.556 | F107: 7.973 | G107: 8.318 | H107: 8.613 | I107: 8.869 | J107: 9.097 | K107: 9.301 | L107: 9.485 | M107: 9.653 | N107: 9.808 | O107: 9.951 | P107: 10.08 | Q107: 10.32 | R107: 10.54 | S107: 10.73 | T107: 10.91 | U107: 11.06 | V107: 11.21 | W107: 11.34 | X107: 11.47 | Y107: 11.58 | Z107: 11.69 | AA107: 11.8 | AB107: 11.9 | AC107: 12.31 | AD107: 12.65 | AE107: 12.92 | AF107: 13.16 | AG107: 13.37 | AH107: 13.55
A108: 7 | B108: 4.949 | C108: 5.919 | D108: 6.543 | E108: 7.005 | F108: 7.373 | G108: 7.679 | H108: 7.939 | I108: 8.166 | J108: 8.368 | K108: 8.548 | L108: 8.711 | M108: 8.86 | N108: 8.997 | O108: 9.124 | P108: 9.242 | Q108: 9.456 | R108: 9.646 | S108: 9.815 | T108: 9.97 | U108: 10.11 | V108: 10.24 | W108: 10.36 | X108: 10.47 | Y108: 10.58 | Z108: 10.67 | AA108: 10.77 | AB108: 10.85 | AC108: 11.23 | AD108: 11.52 | AE108: 11.77 | AF108: 11.99 | AG108: 12.17 | AH108: 12.34
A109: 8 | B109: 4.746 | C109: 5.635 | D109: 6.204 | E109: 6.625 | F109: 6.96 | G109: 7.237 | H109: 7.474 | I109: 7.681 | J109: 7.863 | K109: 8.027 | L109: 8.176 | M109: 8.312 | N109: 8.436 | O109: 8.552 | P109: 8.659 | Q109: 8.854 | R109: 9.027 | S109: 9.182 | T109: 9.322 | U109: 9.45 | V109: 9.569 | W109: 9.678 | X109: 9.779 | Y109: 9.874 | Z109: 9.964 | AA109: 10.05 | AB109: 10.13 | AC109: 10.47 | AD109: 10.75 | AE109: 10.97 | AF109: 11.17 | AG109: 11.34 | AH109: 11.49
A110: 9 | B110: 4.596 | C110: 5.428 | D110: 5.957 | E110: 6.348 | F110: 6.658 | G110: 6.915 | H110: 7.134 | I110: 7.325 | J110: 7.495 | K110: 7.647 | L110: 7.784 | M110: 7.91 | N110: 8.025 | O110: 8.132 | P110: 8.232 | Q110: 8.412 | R110: 8.573 | S110: 8.717 | T110: 8.847 | U110: 8.966 | V110: 9.075 | W110: 9.177 | X110: 9.271 | Y110: 9.36 | Z110: 9.443 | AA110: 9.521 | AB110: 9.594 | AC110: 9.912 | AD110: 10.17 | AE110: 10.38 | AF110: 10.57 | AG110: 10.73 | AH110: 10.87
A111: 10 | B111: 4.482 | C111: 5.27 | D111: 5.769 | E111: 6.136 | F111: 6.428 | G111: 6.669 | H111: 6.875 | I111: 7.055 | J111: 7.213 | K111: 7.356 | L111: 7.485 | M111: 7.603 | N111: 7.712 | O111: 7.812 | P111: 7.906 | Q111: 8.076 | R111: 8.226 | S111: 8.361 | T111: 8.483 | U111: 8.595 | V111: 8.698 | W111: 8.794 | X111: 8.883 | Y111: 8.966 | Z111: 9.044 | AA111: 9.117 | AB111: 9.187 | AC111: 9.486 | AD111: 9.726 | AE111: 9.927 | AF111: 10.1 | AG111: 10.25 | AH111: 10.39
A112: 11 | B112: 4.392 | C112: 5.146 | D112: 5.621 | E112: 5.97 | F112: 6.247 | G112: 6.476 | H112: 6.672 | I112: 6.842 | J112: 6.992 | K112: 7.128 | L112: 7.25 | M112: 7.362 | N112: 7.465 | O112: 7.56 | P112: 7.649 | Q112: 7.809 | R112: 7.952 | S112: 8.08 | T112: 8.196 | U112: 8.303 | V112: 8.4 | W112: 8.491 | X112: 8.575 | Y112: 8.654 | Z112: 8.728 | AA112: 8.798 | AB112: 8.864 | AC112: 9.148 | AD112: 9.377 | AE112: 9.568 | AF112: 9.732 | AG112: 9.875 | AH112: 10
A113: 12 | B113: 4.32 | C113: 5.046 | D113: 5.502 | E113: 5.836 | F113: 6.101 | G113: 6.321 | H113: 6.507 | I113: 6.67 | J113: 6.814 | K113: 6.943 | L113: 7.06 | M113: 7.167 | N113: 7.265 | O113: 7.356 | P113: 7.441 | Q113: 7.594 | R113: 7.731 | S113: 7.853 | T113: 7.964 | U113: 8.066 | V113: 8.159 | W113: 8.246 | X113: 8.327 | Y113: 8.402 | Z113: 8.473 | AA113: 8.539 | AB113: 8.603 | AC113: 8.875 | AD113: 9.094 | AE113: 9.277 | AF113: 9.434 | AG113: 9.571 | AH113: 9.693
A114: 13 | B114: 4.26 | C114: 4.964 | D114: 5.404 | E114: 5.727 | F114: 5.981 | G114: 6.192 | H114: 6.372 | I114: 6.528 | J114: 6.667 | K114: 6.791 | L114: 6.903 | M114: 7.006 | N114: 7.101 | O114: 7.188 | P114: 7.269 | Q114: 7.417 | R114: 7.548 | S114: 7.665 | T114: 7.772 | U114: 7.87 | V114: 7.96 | W114: 8.043 | X114: 8.121 | Y114: 8.193 | Z114: 8.262 | AA114: 8.326 | AB114: 8.387 | AC114: 8.648 | AD114: 8.859 | AE114: 9.035 | AF114: 9.187 | AG114: 9.318 | AH114: 9.436
A115: 14 | B115: 4.21 | C115: 4.895 | D115: 5.322 | E115: 5.634 | F115: 5.881 | G115: 6.085 | H115: 6.258 | I115: 6.409 | J115: 6.543 | K115: 6.664 | L115: 6.772 | M115: 5.871 | N115: 6.962 | O115: 7.047 | P115: 7.126 | Q115: 7.268 | R115: 7.395 | S115: 7.508 | T115: 7.611 | U115: 7.705 | V115: 7.792 | W115: 7.873 | X115: 7.948 | Y115: 8.018 | Z115: 8.084 | AA115: 8.146 | AB115: 8.204 | AC115: 8.457 | AD115: 8.661 | AE115: 8.832 | AF115: 8.978 | AG115: 9.106 | AH115: 9.219
A116: 15 | B116: 4.168 | C116: 4.836 | D116: 5.252 | E116: 5.556 | F116: 5.796 | G116: 5.994 | H116: 6.162 | I116: 6.309 | J116: 6.439 | K116: 6.555 | L116: 6.66 | M116: 5.757 | N116: 6.845 | O116: 6.927 | P116: 7.003 | Q116: 7.142 | R116: 7.264 | S116: 7.374 | T116: 7.474 | U116: 7.566 | V116: 7.65 | W116: 7.728 | X116: 7.8 | Y116: 7.369 | Z116: 7.932 | AA116: 7.992 | AB116: 8.049 | AC116: 8.295 | AD116: 8.492 | AE116: 8.658 | AF116: 8.8 | AG116: 8.924 | AH116: 9.035
A117: 16 | B117: 4.131 | C117: 4.786 | D117: 5.192 | E117: 5.489 | F117: 5.722 | G117: 5.915 | H117: 6.079 | I117: 6.222 | J117: 6.349 | K117: 6.462 | L117: 6.564 | M117: 5.658 | N117: 6.744 | O117: 6.823 | P117: 6.898 | Q117: 7.032 | R117: 7.152 | S117: 7.258 | T117: 7.356 | U117: 7.445 | V117: 7.527 | W117: 7.602 | X117: 7.673 | Y117: 7.739 | Z117: 7.802 | AA117: 7.86 | AB117: 7.916 | AC117: 8.154 | AD117: 8.347 | AE117: 8.507 | AF117: 8.646 | AG117: 8.767 | AH117: 8.874
A118: 17 | B118: 4.099 | C118: 4.742 | D118: 5.14 | E118: 5.43 | F118: 5.659 | G118: 5.847 | H118: 6.007 | I118: 6.147 | J118: 6.27 | K118: 6.381 | L118: 6.48 | M118: 5.572 | N118: 6.656 | O118: 6.734 | P118: 6.806 | Q118: 6.937 | R118: 7.053 | S118: 7.158 | T118: 7.253 | U118: 7.34 | V118: 7.42 | W118: 7.493 | X118: 7.563 | Y118: 7.627 | Z118: 7.687 | AA118: 7.745 | AB118: 7.799 | AC118: 8.031 | AD118: 8.229 | AE118: 8.377 | AF118: 8.511 | AG118: 8.63 | AH118: 8.735
A119: 18 | B119: 4.071 | C119: 4.703 | D119: 5.094 | E119: 5.379 | F119: 5.603 | G119: 5.788 | H119: 5.944 | I119: 6.081 | J119: 6.201 | K119: 6.31 | L119: 6.407 | M119: 5.497 | N119: 6.579 | O119: 6.655 | P119: 6.725 | Q119: 6.854 | R119: 6.968 | S119: 7.07 | T119: 7.163 | U119: 7.247 | V119: 7.325 | W119: 7.398 | X119: 7.465 | Y119: 7.528 | Z119: 7.587 | AA119: 7.643 | AB119: 7.696 | AC119: 7.924 | AD119: 8.107 | AE119: 8.261 | AF119: 8.393 | AG119: 8.508 | AH119: 8.611
A120: 19 | B120: 4.046 | C120: 1.67 | D120: 5.054 | E120: 5.334 | F120: 5.554 | G120: 5.735 | H120: 5.889 | I120: 6.022 | J120: 6.141 | K120: 6.247 | L120: 6.342 | M120: 5.43 | N120: 6.51 | O120: 6.585 | P120: 6.654 | Q120: 6.78 | R120: 6.891 | S120: 6.992 | T120: 7.082 | U120: 7.166 | V120: 7.242 | W120: 7.313 | X120: 7.379 | Y120: 7.44 | Z120: 7.498 | AA120: 7.553 | AB120: 7.605 | AC120: 7.828 | AD120: 8.008 | AE120: 8.159 | AF120: 8.288 | AG120: 8.401 | AH120: 8.502
A121: 20 | B121: 4.024 | C121: 4.639 | D121: 5.018 | E121: 5.294 | F121: 5.51 | G121: 5.688 | H121: 5.839 | I121: 5.97 | J121: 6.087 | K121: 6.191 | L121: 6.285 | M121: 5.371 | N121: 6.45 | O121: 6.523 | P121: 6.591 | Q121: 6.714 | R121: 6.823 | S121: 6.922 | T121: 7.011 | U121: 7.092 | V121: 7.168 | W121: 7.237 | X121: 7.302 | Y121: 7.362 | Z121: 7.419 | AA121: 7.473 | AB121: 7.523 | AC121: 7.742 | AD121: 7.919 | AE121: 8.067 | AF121: 8.194 | AG121: 8.305 | AH121: 8.404
A122: 24 | B122: 3.956 | C122: 4.546 | D122: 4.907 | E122: 5.168 | F122: 5.374 | G122: 5.542 | H122: 5.685 | I122: 5.809 | J122: 5.919 | K122: 6.017 | L122: 6.106 | M122: 5.186 | N122: 6.261 | O122: 6.33 | P122: 6.394 | Q122: 6.51 | R122: 6.612 | S122: 6.705 | T122: 6.789 | U122: 6.865 | V122: 6.936 | W122: 7.001 | X122: 7.062 | Y122: 7.119 | Z122: 7.173 | AA122: 7.223 | AB122: 7.27 | AC122: 7.476 | AD122: 7.642 | AE122: 7.78 | AF122: 7.9 | AG122: 8.004 | AH122: 8.097
A123: 30 | B123: 3.889 | C123: 4.455 | D123: 4.799 | E123: 5.048 | F123: 5.242 | G123: 5.401 | H123: 5.536 | I123: 5.653 | J123: 5.756 | K123: 5.849 | L123: 5.932 | M123: 5.008 | N123: 6.078 | O123: 6.143 | P123: 6.203 | Q123: 6.311 | R123: 6.407 | S123: 6.494 | T123: 6.572 | U123: 6.644 | V123: 6.71 | W123: 6.772 | X123: 6.828 | Y123: 6.881 | Z123: 6.932 | AA123: 6.978 | AB123: 7.023 | AC123: 7.215 | AD123: 7.37 | AE123: 7.5 | AF123: 7.611 | AG123: 7.709 | AH123: 7.796
A124: 40 | B124: 3.825 | C124: 4.367 | D124: 4.696 | E124: 4.931 | F124: 5.114 | G124: 5.265 | H124: 5.392 | I124: 5.502 | J124: 5.599 | K124: 5.686 | L124: 5.764 | M124: 5.835 | N124: 5.9 | O124: 5.961 | P124: 6.017 | Q124: 6.119 | R124: 6.209 | S124: 6.289 | T124: 6.362 | U124: 6.429 | V124: 6.49 | W124: 6.547 | X124: 6.6 | Y124: 6.65 | Z124: 6.697 | AA124: 6.74 | AB124: 6.782 | AC124: 6.96 | AD124: 7.104 | AE124: 7.225 | AF124: 7.328 | AG124: 7.419 | AH124: 7.5
A125: 60 | B125: 3.762 | C125: 4.282 | D125: 4.595 | E125: 4.818 | F125: 4.991 | G125: 5.133 | H125: 5.253 | I125: 5.356 | J125: 5.447 | K125: 5.528 | L125: 5.601 | M125: 5.667 | N125: 5.728 | O125: 5.785 | P125: 5.837 | Q125: 5.931 | R125: 6.015 | S125: 6.09 | T125: 6.158 | U125: 6.22 | V125: 6.277 | W125: 6.33 | X125: 6.378 | Y125: 6.424 | Z125: 6.467 | AA125: 6.507 | AB125: 6.546 | AC125: 6.71 | AD125: 6.843 | AE125: 6.954 | AF125: 7.05 | AG125: 7.133 | AH125: 7.207
A126: 120 | B126: 3.702 | C126: 4.2 | D126: 4.497 | E126: 4.709 | F126: 4.872 | G126: 5.005 | H126: 5.118 | I126: 5.214 | J126: 5.299 | K126: 5.375 | L126: 5.443 | M126: 5.505 | N126: 5.562 | O126: 5.614 | P126: 5.662 | Q126: 5.75 | R126: 5.827 | S126: 5.897 | T126: 5.959 | U126: 6.016 | V126: 6.069 | W126: 6.117 | X126: 6.162 | Y126: 6.204 | Z126: 6.244 | AA126: 6.281 | AB126: 6.316 | AC126: 6.467 | AD126: 6.588 | AE126: 6.689 | AF126: 6.776 | AG126: 6.852 | AH126: 6.919
A127: 240 | B127: =AVERAGE(B126,B129) -> 3.6725 | C127: =AVERAGE(C126,C129) -> 4.16 | D127: 4.45 | E127: 4.656 | F127: 4.8145 | G127: 4.9435 | H127: 5.0525 | I127: 5.146 | J127: 5.228 | K127: 5.301 | L127: 5.3665 | M127: 5.4265 | N127: 5.481 | O127: 5.531 | P127: 5.5775 | Q127: 5.662 | R127: 5.736 | S127: 5.803 | T127: 5.8625 | U127: 5.917 | V127: 5.9675 | W127: 6.014 | X127: 6.057 | Y127: 6.097 | Z127: 6.135 | AA127: 6.1705 | AB127: 6.204 | AC127: 6.3475 | AD127: 6.463 | AE127: 6.559 | AF127: 6.6415 | AG127: 6.7135 | AH127: 6.7775
A128: 480 | B128: =AVERAGE(B127,B129) -> 3.65775 | C128: =AVERAGE(C127,C129) -> 4.14 | D128: 4.4265 | E128: 4.6295 | F128: 4.78575 | G128: 4.91275 | H128: 5.01975 | I128: 5.112 | J128: 5.1925 | K128: 5.264 | L128: 5.32825 | M128: 5.38725 | N128: 5.4405 | O128: 5.4895 | P128: 5.53525 | Q128: 5.618 | R128: 5.6905 | S128: 5.756 | T128: 5.81425 | U128: 5.8675 | V128: 5.91675 | W128: 5.9625 | X128: 6.0045 | Y128: 6.0435 | Z128: 6.0805 | AA128: 6.11525 | AB128: 6.148 | AC128: 6.28775 | AD128: 6.4005 | AE128: 6.494 | AF128: 6.57425 | AG128: 6.64425 | AH128: 6.70675
A129: > | B129: 3.643 | C129: 4.12 | D129: 4.403 | E129: 4.603 | F129: 4.757 | G129: 4.882 | H129: 4.987 | I129: 5.078 | J129: 5.157 | K129: 5.227 | L129: 5.29 | M129: 5.348 | N129: 5.4 | O129: 5.448 | P129: 5.493 | Q129: 5.574 | R129: 5.645 | S129: 5.709 | T129: 5.766 | U129: 5.818 | V129: 5.866 | W129: 5.911 | X129: 5.952 | Y129: 5.99 | Z129: 6.026 | AA129: 6.06 | AB129: 6.092 | AC129: 6.228 | AD129: 6.338 | AE129: 6.429 | AF129: 6.507 | AG129: 6.575 | AH129: 6.636
A131: Alpha | B131: 0.005
B132: k -->
A133: df | B133: 2 | C133: =B133+1 -> 3 | D133: =C133+1 -> 4 | E133: 5 | F133: 6 | G133: 7 | H133: 8 | I133: 9 | J133: 10 | K133: 11 | L133: 12 | M133: 13 | N133: =M133+1 -> 14 | O133: =N133+1 -> 15 | P133: =O133+1 -> 16 | Q133: =P133+2 -> 18 | R133: =Q133+2 -> 20 | S133: 22 | T133: =R133+4 -> 24 | U133: 26 | V133: =T133+4 -> 28 | W133: 30 | X133: =V133+4 -> 32 | Y133: 34 | Z133: =X133+4 -> 36 | AA133: 38 | AB133: =Z133+4 -> 40 | AC133: 50 | AD133: 60 | AE133: 70 | AF133: 80 | AG133: 90 | AH133: 100
A134: 1 | B134: 180.1 | C134: 270.1 | D134: 328.5 | E134: 371.2 | F134: 404.4 | G134: 431.6 | H134: 454.4 | I134: 474 | J134: 491.1 | K134: 506.3 | L134: 520 | M134: 532.4 | N134: 543.6 | O134: 554 | P134: 563.6 | Q134: 580.9 | R134: 596 | S134: 609.5 | T134: 621.7 | U134: 632.6 | V134: 642.7 | W134: 652 | X134: 660.6 | Y134: 668.5 | Z134: 676 | AA134: 683 | AB134: 689.6 | AC134: 717.8 | AD134: 740.2 | AE134: 758.8 | AF134: 774.5 | AG134: 788.2 | AH134: 800.3
A135: 2 | B135: 19.93 | C135: 26.97 | D135: 31.6 | E135: 35.02 | F135: 37.73 | G135: 39.95 | H135: 41.83 | I135: 43.46 | J135: 44.89 | K135: 46.16 | L135: 47.31 | M135: 48.35 | N135: 49.3 | O135: 50.17 | P135: 50.99 | Q135: 52.45 | R135: 53.74 | S135: 54.89 | T135: 55.92 | U135: 56.86 | V135: 57.73 | W135: 58.52 | X135: 59.26 | Y135: 59.95 | Z135: 60.59 | AA135: 61.19 | AB135: 61.76 | AC135: 64.19 | AD135: 66.13 | AE135: 67.74 | AF135: 69.1 | AG135: 70.29 | AH135: 71.35
A136: 3 | B136: 10.55 | C136: 13.5 | D136: 15.45 | E136: 16.91 | F136: 18.06 | G136: 19.01 | H136: 19.83 | I136: 20.53 | J136: 21.15 | K136: 21.7 | L136: 22.2 | M136: 22.66 | N136: 23.08 | O136: 23.46 | P136: 23.82 | Q136: 24.46 | R136: 25.03 | S136: 25.54 | T136: 26 | U136: 26.42 | V136: 26.8 | W136: 27.15 | X136: 27.48 | Y136: 27.79 | Z136: 28.07 | AA136: 28.34 | AB136: 28.6 | AC136: 29.68 | AD136: 30.55 | AE136: 31.27 | AF136: 31.88 | AG136: 32.42 | AH136: 32.9
A137: 4 | B137: 7.916 | C137: 9.814 | D137: 11.06 | E137: 11.99 | F137: 12.74 | G137: 13.35 | H137: 13.88 | I137: 14.33 | J137: 14.74 | K137: 15.1 | L137: 15.42 | M137: 15.72 | N137: 15.99 | O137: 16.24 | P137: 16.48 | Q137: 16.9 | R137: 17.28 | S137: 17.61 | T137: 17.91 | U137: 18.19 | V137: 18.44 | W137: 18.68 | X137: 18.89 | Y137: 19.09 | Z137: 19.28 | AA137: 19.46 | AB137: 19.63 | AC137: 20.36 | AD137: 20.93 | AE137: 21.42 | AF137: 21.83 | AG137: 22.18 | AH137: 22.5
A138: 5 | B138: 6.751 | C138: 8.196 | D138: 9.141 | E138: 9.847 | F138: 10.41 | G138: 10.88 | H138: 11.28 | I138: 11.63 | J138: 11.93 | K138: 12.21 | L138: 12.46 | M138: 12.69 | N138: 12.9 | O138: 13.09 | P138: 13.27 | Q138: 13.6 | R138: 13.89 | S138: 14.14 | T138: 14.38 | U138: 14.59 | V138: 14.79 | W138: 14.96 | X138: 15.13 | Y138: 15.29 | Z138: 15.44 | AA138: 15.58 | AB138: 15.71 | AC138: 16.27 | AD138: 16.72 | AE138: 17.09 | AF138: 17.41 | AG138: 17.69 | AH138: 17.94
A139: 6 | B139: 6.105 | C139: 7.306 | D139: 8.088 | E139: 8.67 | F139: 9.135 | G139: 9.522 | H139: 9.852 | I139: 10.14 | J139: 10.4 | K139: 10.63 | L139: 10.83 | M139: 11.02 | N139: 11.2 | O139: 11.36 | P139: 11.51 | Q139: 11.78 | R139: 12.02 | S139: 12.23 | T139: 12.43 | U139: 12.61 | V139: 12.77 | W139: 12.92 | X139: 13.06 | Y139: 13.19 | Z139: 13.32 | AA139: 13.43 | AB139: 13.54 | AC139: 14.02 | AD139: 14.4 | AE139: 14.71 | AF139: 14.98 | AG139: 15.21 | AH139: 15.43
A140: 7 | B140: 5.699 | C140: 6.75 | D140: 7.429 | E140: 7.935 | F140: 8.339 | G140: 8.674 | H140: 8.961 | I140: 9.211 | J140: 9.433 | K140: 9.632 | L140: 9.812 | M140: 9.977 | N140: 10.13 | O140: 10.27 | P140: 10.4 | Q140: 10.64 | R140: 10.85 | S140: 11.03 | T140: 11.21 | U140: 11.36 | V140: 11.5 | W140: 11.64 | X140: 11.76 | Y140: 11.88 | Z140: 11.99 | AA140: 12.09 | AB140: 12.18 | AC140: 12.6 | AD140: 12.93 | AE140: 13.21 | AF140: 13.44 | AG140: 13.65 | AH140: 13.84
A141: 8 | B141: 5.42 | C141: 6.37 | D141: 6.981 | E141: 7.435 | F141: 7.797 | G141: 8.097 | H141: 8.354 | I141: 8.578 | J141: 8.777 | K141: 8.955 | L141: 9.117 | M141: 9.265 | N141: 9.401 | O141: 9.527 | P141: 9.644 | Q141: 9.857 | R141: 10.04 | S141: 10.22 | T141: 10.37 | U141: 10.51 | V141: 10.64 | W141: 10.76 | X141: 10.87 | Y141: 10.97 | Z141: 11.07 | AA141: 11.16 | AB141: 11.25 | AC141: 11.63 | AD141: 11.93 | AE141: 12.18 | AF141: 12.39 | AG141: 12.58 | AH141: 12.75
A142: 9 | B142: 5.218 | C142: 6.096 | D142: 6.657 | E142: 7.074 | F142: 7.405 | G142: 7.68 | H142: 7.915 | I142: 8.12 | J142: 8.303 | K142: 8.466 | L142: 8.614 | M142: 8.749 | N142: 8.874 | O142: 8.99 | P142: 9.097 | Q142: 9.292 | R142: 9.465 | S142: 9.62 | T142: 9.761 | U142: 9.89 | V142: 10.01 | W142: 10.12 | X142: 10.22 | Y142: 10.32 | Z142: 10.41 | AA142: 10.49 | AB142: 10.58 | AC142: 10.92 | AD142: 11.2 | AE142: 11.43 | AF142: 11.63 | AG142: 11.8 | AH142: 11.96
A143: 10 | B143: 5.065 | C143: 5.888 | D143: 6.412 | E143: 6.8 | F143: 7.109 | G143: 7.365 | H143: 7.584 | I143: 7.775 | J143: 7.944 | K143: 8.096 | L143: 8.234 | M143: 8.36 | N143: 8.476 | O143: 8.583 | P143: 8.683 | Q143: 8.865 | R143: 9.026 | S143: 9.17 | T143: 9.302 | U143: 9.422 | V143: 9.532 | W143: 9.635 | X143: 9.73 | Y143: 9.82 | Z143: 9.904 | AA143: 9.983 | AB143: 10.06 | AC143: 10.38 | AD143: 10.64 | AE143: 10.86 | AF143: 11.04 | AG143: 11.2 | AH143: 11.35
A144: 11 | B144: 4.945 | C144: 5.727 | D144: 6.222 | E144: 6.588 | F144: 6.878 | G144: 7.119 | H144: 7.325 | I144: 7.505 | J144: 7.664 | K144: 7.807 | L144: 7.937 | M144: 8.055 | N144: 8.164 | O144: 8.265 | P144: 8.359 | Q144: 8.53 | R144: 8.682 | S144: 8.818 | T144: 8.941 | U144: 9.055 | V144: 9.159 | W144: 9.256 | X144: 9.345 | Y144: 9.43 | Z144: 9.509 | AA144: 9.583 | AB144: 9.654 | AC144: 9.957 | AD144: 10.2 | AE144: 10.41 | AF144: 10.59 | AG144: 10.74 | AH144: 10.88
A145: 12 | B145: 4.849 | C145: 5.597 | D145: 6.068 | E145: 6.416 | F145: 6.693 | G145: 6.922 | H145: 7.118 | I145: 7.288 | J145: 7.439 | K145: 7.575 | L145: 7.697 | M145: 7.81 | N145: 7.914 | O145: 8.009 | P145: 8.099 | Q145: 8.261 | R145: 8.405 | S145: 8.534 | T145: 8.652 | U145: 8.759 | V145: 8.858 | W145: 8.95 | X145: 9.036 | Y145: 9.116 | Z145: 9.191 | AA145: 9.262 | AB145: 9.328 | AC145: 9.617 | AD145: 9.85 | AE145: 10.04 | AF145: 10.21 | AG145: 10.36 | AH145: 10.49
A146: 13 | B146: 4.77 | C146: 5.49 | D146: 5.943 | E146: 6.277 | F146: 6.541 | G146: 6.76 | H146: 6.947 | I146: 7.111 | J146: 7.255 | K146: 7.384 | L146: 7.502 | M146: 7.609 | N146: 7.708 | O146: 7.8 | P146: 7.886 | Q146: 8.04 | R146: 8.178 | S146: 8.302 | T146: 8.414 | U146: 8.516 | V146: 8.611 | W146: 8.699 | X146: 8.781 | Y146: 8.857 | Z146: 8.929 | AA146: 8.997 | AB146: 9.061 | AC146: 9.337 | AD146: 9.56 | AE146: 9.747 | AF146: 9.907 | AG146: 10.05 | AH146: 10.17
A147: 14 | B147: 4.704 | C147: 5.401 | D147: 5.838 | E147: 6.16 | F147: 6.414 | G147: 6.626 | H147: 6.805 | I147: 6.962 | J147: 7.101 | K147: 7.225 | L147: 7.338 | M147: 7.442 | N147: 7.537 | O147: 7.625 | P147: 7.707 | Q147: 7.856 | R147: 7.988 | S147: 8.107 | T147: 8.215 | U147: 8.314 | V147: 8.404 | W147: 8.489 | X147: 8.568 | Y147: 8.641 | Z147: 8.71 | AA147: 8.775 | AB147: 8.837 | AC147: 9.103 | AD147: 9.317 | AE147: 9.497 | AF147: 9.652 | AG147: 9.787 | AH147: 9.907
A148: 15 | B148: 4.647 | C148: 5.325 | D148: 5.75 | E148: 6.061 | F148: 6.308 | G148: 6.511 | H148: 6.685 | I148: 6.837 | J148: 6.971 | K148: 7.091 | L148: 7.2 | M148: 7.3 | N148: 7.392 | O148: 7.477 | P148: 7.556 | Q148: 7.699 | R148: 7.827 | S148: 7.942 | T148: 8.046 | U148: 8.141 | V148: 8.229 | W148: 8.311 | X148: 8.387 | Y148: 8.458 | Z148: 8.524 | AA148: 8.587 | AB148: 8.647 | AC148: 8.904 | AD148: 9.111 | AE148: 9.285 | AF148: 9.434 | AG148: 9.565 | AH148: 9.68
A149: 16 | B149: 4.599 | C149: 5.261 | D149: 5.674 | E149: 5.977 | F149: 6.216 | G149: 6.413 | H149: 6.582 | I149: 6.729 | J149: 6.859 | K149: 6.976 | L149: 7.081 | M149: 7.178 | N149: 7.267 | O149: 7.349 | P149: 7.426 | Q149: 7.566 | R149: 7.689 | S149: 7.8 | T149: 7.901 | U149: 7.994 | V149: 8.078 | W149: 8.158 | X149: 8.231 | Y149: 8.3 | Z149: 8.365 | AA149: 8.425 | AB149: 8.483 | AC149: 8.733 | AD149: 8.933 | AE149: 9.102 | AF149: 9.247 | AG149: 9.373 | AH149: 9.486
A150: 17 | B150: 4.557 | C150: 5.205 | D150: 5.608 | E150: 5.903 | F150: 6.136 | G150: 6.329 | H150: 6.493 | I150: 6.636 | J150: 6.763 | K150: 6.876 | L150: 6.979 | M150: 7.072 | N150: 7.159 | O150: 7.239 | P150: 7.314 | Q150: 7.449 | R150: 7.569 | S150: 7.677 | T150: 7.775 | U150: 7.865 | V150: 7.948 | W150: 8.024 | X150: 8.096 | Y150: 8.163 | Z150: 8.226 | AA150: 8.285 | AB150: 8.341 | AC150: 8.583 | AD150: 8.779 | AE150: 8.943 | AF150: 9.084 | AG150: 9.206 | AH150: 9.316
A151: 18 | B151: 4.521 | C151: 5.156 | D151: 5.55 | E151: 5.839 | F151: 6.067 | G151: 6.255 | H151: 6.415 | I151: 6.554 | J151: 6.678 | K151: 6.788 | L151: 6.888 | M151: 6.98 | N151: 7.064 | O151: 7.142 | P151: 7.215 | Q151: 7.347 | R151: 7.464 | S151: 7.57 | T151: 7.665 | U151: 7.753 | V151: 7.833 | W151: 7.908 | X151: 7.978 | Y151: 8.043 | Z151: 8.104 | AA151: 8.162 | AB151: 8.217 | AC151: 8.452 | AD151: 8.643 | AE151: 8.803 | AF151: 8.94 | AG151: 9.061 | AH151: 9.167
A152: 19 | B152: 4.488 | C152: 5.113 | D152: 5.5 | E152: 5.783 | F152: 6.005 | G152: 6.189 | H152: 6.346 | I152: 6.482 | J152: 6.603 | K152: 6.711 | L152: 6.809 | M152: 6.898 | N152: 6.981 | O152: 7.057 | P152: 7.128 | Q152: 7.257 | R152: 7.372 | S152: 7.474 | T152: 7.568 | U152: 7.653 | V152: 7.732 | W152: 7.805 | X152: 7.873 | Y152: 7.937 | Z152: 7.996 | AA152: 8.053 | AB152: 8.106 | AC152: 8.337 | AD152: 8.523 | AE152: 8.679 | AF152: 8.813 | AG152: 8.931 | AH152: 9.036
A153: 20 | B153: 4.46 | C153: 5.074 | D153: 5.455 | E153: 5.732 | F153: 5.951 | G153: 6.131 | H153: 6.285 | I153: 6.418 | J153: 6.537 | K153: 6.642 | L153: 6.738 | M153: 6.826 | N153: 6.907 | O153: 6.981 | P153: 7.051 | Q153: 7.177 | R153: 7.289 | S153: 7.39 | T153: 7.481 | U153: 7.565 | V153: 7.642 | W153: 7.713 | X153: 7.78 | Y153: 7.842 | Z153: 7.901 | AA153: 7.956 | AB153: 8.008 | AC153: 8.234 | AD153: 8.416 | AE153: 8.569 | AF153: 8.7 | AG153: 8.815 | AH153: 8.917
A154: 24 | B154: 4.371 | C154: 4.955 | D154: 5.315 | E154: 5.577 | F154: 5.783 | G154: 5.952 | H154: 6.096 | I154: 6.221 | J154: 6.332 | K154: 6.431 | L154: 6.52 | M154: 6.602 | N154: 6.677 | O154: 6.747 | P154: 6.812 | Q154: 6.93 | R154: 7.034 | S154: 7.128 | T154: 7.213 | U154: 7.291 | V154: 7.362 | W154: 7.429 | X154: 7.491 | Y154: 7.549 | Z154: 7.603 | AA154: 7.655 | AB154: 7.704 | AC154: 7.914 | AD154: 8.083 | AE154: 8.226 | AF154: 8.348 | AG154: 8.455 | AH154: 8.551
A155: 30 | B155: 4.285 | C155: 4.841 | D155: 5.181 | E155: 5.428 | F155: 5.621 | G155: 5.78 | H155: 5.914 | I155: 6.031 | J155: 6.135 | K155: 6.227 | L155: 6.31 | M155: 6.387 | N155: 6.456 | O155: 6.521 | P155: 6.581 | Q155: 6.691 | R155: 6.788 | S155: 6.875 | T155: 6.954 | U155: 7.026 | V155: 7.093 | W155: 7.154 | X155: 7.212 | Y155: 7.265 | Z155: 7.316 | AA155: 7.364 | AB155: 7.409 | AC155: 7.603 | AD155: 7.76 | AE155: 7.893 | AF155: 8.006 | AG155: 8.105 | AH155: 8.193
A156: 40 | B156: 4.202 | C156: 4.731 | D156: 5.053 | E156: 5.284 | F156: 5.465 | G156: 5.614 | H156: 5.739 | I156: 5.848 | J156: 5.944 | K156: 6.03 | L156: 6.108 | M156: 6.179 | N156: 6.244 | O156: 6.304 | P156: 6.36 | Q156: 6.461 | R156: 6.55 | S156: 6.631 | T156: 6.704 | U156: 6.77 | V156: 6.832 | W156: 6.889 | X156: 6.942 | Y156: 6.991 | Z156: 7.038 | AA156: 7.082 | AB156: 7.123 | AC156: 7.302 | AD156: 7.447 | AE156: 7.568 | AF156: 7.672 | AG156: 7.763 | AH156: 7.845
A157: 60 | B157: 4.122 | C157: 4.625 | D157: 4.928 | E157: 5.146 | F157: 5.316 | G157: 5.454 | H157: 5.571 | I157: 5.673 | J157: 5.762 | K157: 5.841 | L157: 5.913 | M157: 5.979 | N157: 6.039 | O157: 6.094 | P157: 6.146 | Q157: 6.239 | R157: 6.321 | S157: 6.396 | T157: 6.462 | U157: 6.523 | V157: 6.58 | W157: 6.632 | X157: 6.681 | Y157: 6.726 | Z157: 6.769 | AA157: 6.808 | AB157: 6.846 | AC157: 7.01 | AD157: 7.143 | AE157: 7.252 | AF157: 7.347 | AG157: 7.431 | AH157: 7.504
A158: 120 | B158: 4.045 | C158: 4.523 | D158: 4.809 | E158: 5.013 | F158: 5.172 | G158: 5.301 | H158: 5.41 | I158: 5.504 | J158: 5.586 | K158: 5.66 | L158: 5.726 | M158: 5.786 | N158: 5.842 | O158: 5.893 | P158: 5.94 | Q158: 6.025 | R158: 6.101 | S158: 6.169 | T158: 6.23 | U158: 6.286 | V158: 6.337 | W158: 6.385 | X158: 6.428 | Y158: 6.47 | Z158: 6.508 | AA158: 6.545 | AB158: 6.58 | AC158: 6.728 | AD158: 6.846 | AE158: 6.946 | AF158: 7.032 | AG158: 7.107 | AH158: 7.173
A159: 240 | B159: =AVERAGE(B158,B161) -> 4.0075 | C159: =AVERAGE(C158,C161) -> 4.4735 | D159: 4.7515 | E159: 4.9495 | F159: 5.1025 | G159: 5.2275 | H159: 5.3325 | I159: 5.4225 | J159: 5.502 | K159: 5.5725 | L159: 5.636 | M159: 5.694 | N159: 5.747 | O159: 5.796 | P159: 5.841 | Q159: 5.9225 | R159: 5.995 | S159: 6.06 | T159: 6.118 | U159: 6.1715 | V159: 6.22 | W159: 6.2655 | X159: 6.307 | Y159: 6.3465 | Z159: 6.383 | AA159: 6.418 | AB159: 6.451 | AC159: 6.591 | AD159: 6.7035 | AE159: 6.7975 | AF159: 6.8785 | AG159: 6.9495 | AH159: 7.0115
A160: 480 | B160: =AVERAGE(B159,B161) -> 3.98875 | C160: =AVERAGE(C159,C161) -> 4.44875 | D160: 4.72275 | E160: 4.91775 | F160: 5.06775 | G160: 5.19075 | H160: 5.29375 | I160: 5.38175 | J160: 5.46 | K160: 5.52875 | L160: 5.591 | M160: 5.648 | N160: 5.6995 | O160: 5.7475 | P160: 5.7915 | Q160: 5.87125 | R160: 5.942 | S160: 6.0055 | T160: 6.062 | U160: 6.11425 | V160: 6.1615 | W160: 6.20575 | X160: 6.2465 | Y160: 6.28475 | Z160: 6.3205 | AA160: 6.3545 | AB160: 6.3865 | AC160: 6.5225 | AD160: 6.63225 | AE160: 6.72325 | AF160: 6.80175 | AG160: 6.87075 | AH160: 6.93075
A161: > | B161: 3.97 | C161: 4.424 | D161: 4.694 | E161: 4.886 | F161: 5.033 | G161: 5.154 | H161: 5.255 | I161: 5.341 | J161: 5.418 | K161: 5.485 | L161: 5.546 | M161: 5.602 | N161: 5.652 | O161: 5.699 | P161: 5.742 | Q161: 5.82 | R161: 5.889 | S161: 5.951 | T161: 6.006 | U161: 6.057 | V161: 6.103 | W161: 6.146 | X161: 6.186 | Y161: 6.223 | Z161: 6.258 | AA161: 6.291 | AB161: 6.322 | AC161: 6.454 | AD161: 6.561 | AE161: 6.649 | AF161: 6.725 | AG161: 6.792 | AH161: 6.85
A163: Alpha | B163: 0.001
B164: k -->
A165: df | B165: 2 | C165: =B165+1 -> 3 | D165: =C165+1 -> 4 | E165: 5 | F165: 6 | G165: 7 | H165: 8 | I165: 9 | J165: 10 | K165: 11 | L165: 12 | M165: 13 | N165: =M165+1 -> 14 | O165: =N165+1 -> 15 | P165: =O165+1 -> 16 | Q165: =P165+2 -> 18 | R165: =Q165+2 -> 20 | S165: 22 | T165: =R165+4 -> 24 | U165: 26 | V165: =T165+4 -> 28 | W165: 30 | X165: =V165+4 -> 32 | Y165: 34 | Z165: =X165+4 -> 36 | AA165: 38 | AB165: =Z165+4 -> 40 | AC165: 50 | AD165: 60 | AE165: 70 | AF165: 80 | AG165: 90 | AH165: 100
A166: 1 | B166: 900.3 | C166: 1351 | D166: 1643 | E166: 1856 | F166: 2022 | G166: 2158 | H166: 2272 | I166: 2370 | J166: 2455 | K166: 2532 | L166: 2600 | M166: 2662 | N166: 2718 | O166: 2770 | P166: 2818 | Q166: 2904 | R166: 2980 | S166: 3047 | T166: 3108 | U166: 3163 | V166: 3213 | W166: 3260 | X166: 3303 | Y166: 3343 | Z166: 3380 | AA166: 3415 | AB166: 3448 | AC166: 3589 | AD166: 3701 | AE166: 3794 | AF166: 3873 | AG166: 3941 | AH166: 4002
A167: 2 | B167: 44.69 | C167: 60.42 | D167: 70.77 | E167: 78.43 | F167: 84.49 | G167: 89.46 | H167: 93.67 | I167: 97.3 | J167: 100.5 | K167: 103.3 | L167: 105.9 | M167: 108.2 | N167: 110.4 | O167: 112.3 | P167: 114.2 | Q167: 117.4 | R167: 120.3 | S167: 122.9 | T167: 125.2 | U167: 127.3 | V167: 129.3 | W167: 131 | X167: 132.7 | Y167: 134.2 | Z167: 135.7 | AA167: 137 | AB167: 138.3 | AC167: 143.7 | AD167: 148 | AE167: 151.6 | AF167: 154.7 | AG167: 157.4 | AH167: 159.7
A168: 3 | B168: 18.28 | C168: 23.32 | D168: 26.65 | E168: 29.13 | F168: 31.11 | G168: 32.74 | H168: 34.12 | I168: 35.33 | J168: 36.39 | K168: 37.34 | L168: 38.2 | M168: 38.98 | N168: 39.69 | O168: 40.35 | P168: 40.97 | Q168: 42.07 | R168: 43.05 | S168: 43.92 | T168: 44.7 | U168: 45.42 | V168: 46.07 | W168: 46.68 | X168: 47.24 | Y168: 47.77 | Z168: 48.26 | AA168: 48.72 | AB168: 49.16 | AC168: 51.02 | AD168: 52.51 | AE168: 53.75 | AF168: 54.81 | AG168: 55.72 | AH168: 56.53
A169: 4 | B169: 12.18 | C169: 14.99 | D169: 16.84 | E169: 18.23 | F169: 19.34 | G169: 20.26 | H169: 21.04 | I169: 21.73 | J169: 22.33 | K169: 22.87 | L169: 23.36 | M169: 23.81 | N169: 24.21 | O169: 24.59 | P169: 24.94 | Q169: 25.58 | R169: 26.14 | S169: 26.65 | T169: 27.1 | U169: 27.51 | V169: 27.89 | W169: 28.24 | X169: 28.57 | Y169: 28.88 | Z169: 29.16 | AA169: 29.43 | AB169: 29.68 | AC169: 30.78 | AD169: 31.65 | AE169: 32.37 | AF169: 32.98 | AG169: 33.52 | AH169: 34
A170: 5 | B170: 9.714 | C170: 11.67 | D170: 12.96 | E170: 13.93 | F170: 14.71 | G170: 15.35 | H170: 15.9 | I170: 16.38 | J170: 16.81 | K170: 17.18 | L170: 17.53 | M170: 17.85 | N170: 18.13 | O170: 18.41 | P170: 18.66 | Q170: 19.1 | R170: 19.51 | S170: 19.86 | T170: 20.19 | U170: 20.48 | V170: 20.75 | W170: 21.01 | X170: 21.24 | Y170: 21.46 | Z170: 21.66 | AA170: 21.86 | AB170: 22.03 | AC170: 22.82 | AD170: 23.45 | AE170: 23.97 | AF170: 24.41 | AG170: 24.8 | AH170: 25.15
A171: 6 | B171: 8.427 | C171: 9.96 | D171: 10.97 | E171: 11.72 | F171: 12.32 | G171: 12.83 | H171: 13.26 | I171: 13.63 | J171: 13.97 | K171: 14.27 | L171: 14.54 | M171: 14.79 | N171: 15.01 | O171: 15.22 | P171: 15.42 | Q171: 15.78 | R171: 16.09 | S171: 16.38 | T171: 16.64 | U171: 16.87 | V171: 17.08 | W171: 17.28 | X171: 17.47 | Y171: 17.64 | Z171: 17.81 | AA171: 17.96 | AB171: 18.1 | AC171: 18.73 | AD171: 19.22 | AE171: 19.64 | AF171: 20 | AG171: 20.31 | AH171: 20.58
A172: 7 | B172: 7.648 | C172: 8.93 | D172: 9.768 | E172: 10.4 | F172: 10.9 | G172: 11.32 | H172: 11.68 | I172: 11.99 | J172: 12.27 | K172: 12.52 | L172: 12.74 | M172: 12.95 | N172: 13.14 | O172: 13.32 | P172: 13.48 | Q172: 13.78 | R172: 14.04 | S172: 14.29 | T172: 14.5 | U172: 14.7 | V172: 14.88 | W172: 15.05 | X172: 15.2 | Y172: 15.35 | Z172: 15.49 | AA172: 15.62 | AB172: 15.74 | AC172: 16.27 | AD172: 16.69 | AE172: 17.04 | AF172: 17.35 | AG172: 17.61 | AH172: 17.85
A173: 8 | B173: 7.13 | C173: 8.25 | D173: 8.978 | E173: 9.522 | F173: 9.958 | G173: 10.32 | H173: 10.64 | I173: 10.91 | J173: 11.15 | K173: 11.36 | L173: 11.56 | M173: 11.74 | N173: 11.91 | O173: 12.06 | P173: 12.21 | Q173: 12.47 | R173: 12.7 | S173: 12.91 | T173: 13.09 | U173: 13.26 | V173: 13.42 | W173: 13.57 | X173: 13.71 | Y173: 13.84 | Z173: 13.96 | AA173: 14.07 | AB173: 14.18 | AC173: 14.64 | AD173: 15.01 | AE173: 15.32 | AF173: 15.59 | AG173: 15.82 | AH173: 16.02
A174: 9 | B174: 6.762 | C174: 7.768 | D174: 8.419 | E174: 8.906 | F174: 9.295 | G174: 9.619 | H174: 9.897 | I174: 10.14 | J174: 10.36 | K174: 10.55 | L174: 10.73 | M174: 10.89 | N174: 11.03 | O174: 11.18 | P174: 11.3 | Q174: 11.54 | R174: 11.75 | S174: 11.93 | T174: 12.1 | U174: 12.25 | V174: 12.39 | W174: 12.53 | X174: 12.65 | Y174: 12.77 | Z174: 12.87 | AA174: 12.97 | AB174: 13.07 | AC174: 13.49 | AD174: 13.82 | AE174: 14.1 | AF174: 14.34 | AG174: 14.55 | AH174: 14.74
A175: 10 | B175: 6.487 | C175: 7.411 | D175: 8.006 | E175: 8.45 | F175: 8.804 | G175: 9.099 | H175: 9.352 | I175: 9.573 | J175: 9.769 | K175: 9.946 | L175: 10.11 | M175: 10.25 | N175: 10.39 | O175: 10.52 | P175: 10.64 | Q175: 10.85 | R175: 11.03 | S175: 11.2 | T175: 11.36 | U175: 11.5 | V175: 11.63 | W175: 11.75 | X175: 11.87 | Y175: 11.97 | Z175: 12.07 | AA175: 12.16 | AB175: 12.25 | AC175: 12.63 | AD175: 12.94 | AE175: 13.2 | AF175: 13.42 | AG175: 13.61 | AH175: 13.78
A176: 11 | B176: 6.275 | C176: 7.136 | D176: 7.687 | E176: 8.098 | F176: 8.426 | G176: 8.699 | H176: 8.933 | I176: 9.138 | J176: 9.319 | K176: 9.482 | L176: 9.63 | M176: 9.766 | N176: 9.892 | O176: 10.01 | P176: 10.12 | Q176: 10.31 | R176: 10.49 | S176: 10.65 | T176: 10.79 | U176: 10.92 | V176: 11.04 | W176: 11.16 | X176: 11.26 | Y176: 11.35 | Z176: 11.45 | AA176: 11.53 | AB176: 11.62 | AC176: 11.97 | AD176: 12.25 | AE176: 12.49 | AF176: 12.7 | AG176: 12.88 | AH176: 13.04
A177: 12 | B177: 6.106 | C177: 6.917 | D177: 7.436 | E177: 7.821 | F177: 8.127 | G177: 8.383 | H177: 8.601 | I177: 8.793 | J177: 8.962 | K177: 9.115 | L177: 9.254 | M177: 9.381 | N177: 9.498 | O177: 9.606 | P177: 9.707 | Q177: 9.891 | R177: 10.06 | S177: 10.2 | T177: 10.34 | U177: 10.46 | V177: 10.57 | W177: 10.68 | X177: 10.78 | Y177: 10.87 | Z177: 10.96 | AA177: 11.03 | AB177: 11.11 | AC177: 11.44 | AD177: 11.71 | AE177: 11.94 | AF177: 12.13 | AG177: 12.29 | AH177: 12.45
A178: 13 | B178: 5.97 | C178: 6.74 | D178: 7.231 | E178: 7.595 | F178: 7.885 | G178: 8.126 | H178: 8.333 | I178: 8.513 | J178: 8.673 | K178: 8.817 | L178: 8.948 | M178: 9.068 | N178: 9.178 | O178: 9.281 | P178: 9.376 | Q178: 9.55 | R178: 9.704 | S178: 9.843 | T178: 9.969 | U178: 10.09 | V178: 10.19 | W178: 10.29 | X178: 10.39 | Y178: 10.47 | Z178: 10.55 | AA178: 10.63 | AB178: 10.7 | AC178: 11.01 | AD178: 11.27 | AE178: 11.48 | AF178: 11.66 | AG178: 11.82 | AH178: 11.97
A179: 14 | B179: 5.856 | C179: 6.594 | D179: 7.062 | E179: 7.409 | F179: 7.685 | G179: 7.915 | H179: 8.11 | I179: 8.282 | J179: 8.434 | K179: 8.571 | L179: 8.696 | M179: 8.809 | N179: 8.914 | O179: 9.012 | P179: 9.103 | Q179: 9.267 | R179: 9.414 | S179: 9.546 | T179: 9.666 | U179: 9.776 | V179: 9.878 | W179: 9.972 | X179: 10.06 | Y179: 10.14 | Z179: 10.22 | AA179: 10.3 | AB179: 10.37 | AC179: 10.66 | AD179: 10.91 | AE179: 11.11 | AF179: 11.28 | AG179: 11.43 | AH179: 11.57
A180: 15 | B180: 5.76 | C180: 6.47 | D180: 6.92 | E180: 7.252 | F180: 7.517 | G180: 7.736 | H180: 7.925 | I180: 8.088 | J180: 8.234 | K180: 8.365 | L180: 8.483 | M180: 8.592 | N180: 8.693 | O180: 8.786 | P180: 8.872 | Q180: 9.03 | R180: 9.17 | S180: 9.296 | T180: 9.411 | U180: 9.517 | V180: 9.613 | W180: 97.03 | X180: 9.788 | Y180: 9.867 | Z180: 9.94 | AA180: 10.01 | AB180: 10.08 | AC180: 10.37 | AD180: 10.59 | AE180: 10.79 | AF180: 10.96 | AG180: 11.1 | AH180: 11.23
A181: 16 | B181: 5.678 | C181: 6.365 | D181: 6.799 | E181: 7.119 | F181: 7.374 | G181: 7.585 | H181: 7.766 | I181: 7.923 | J181: 8.063 | K181: 8.189 | L181: 8.303 | M181: 8.407 | N181: 8.504 | O181: 8.593 | P181: 8.676 | Q181: 8.828 | R181: 8.963 | S181: 9.084 | T181: 9.194 | U181: 9.295 | V181: 9.388 | W181: 9.475 | X181: 9.556 | Y181: 9.631 | Z181: 9.702 | AA181: 9.769 | AB181: 9.833 | AC181: 10.11 | AD181: 10.34 | AE181: 10.52 | AF181: 10.68 | AG181: 10.82 | AH181: 10.95
A182: 17 | B182: 5.608 | C182: 6.275 | D182: 6.695 | E182: 7.005 | F182: 7.25 | G182: 7.454 | H182: 7.629 | I182: 7.781 | J182: 7.916 | K182: 8.037 | L182: 8.148 | M182: 8.248 | N182: 8.342 | O182: 8.427 | P182: 8.508 | Q182: 8.654 | R182: 8.784 | S182: 8.9 | T182: 9.007 | U182: 9.104 | V182: 9.194 | W182: 9.277 | X182: 9.355 | Y182: 9.429 | Z182: 9.497 | AA182: 9.562 | AB182: 9.623 | AC182: 9.888 | AD182: 10.1 | AE182: 10.29 | AF182: 10.44 | AG182: 10.58 | AH182: 10.7
A183: 18 | B183: 5.546 | C183: 6.196 | D183: 6.604 | E183: 6.905 | F183: 7.143 | G183: 7.341 | H183: 7.51 | I183: 7.657 | J183: 7.788 | K183: 7.906 | L183: 8.012 | M183: 8.11 | N183: 8.199 | O183: 8.283 | P183: 8.361 | Q183: 8.502 | R183: 8.628 | S183: 8.741 | T183: 8.844 | U183: 8.938 | V183: 9.025 | W183: 9.106 | X183: 9.181 | Y183: 9.251 | Z183: 9.318 | AA183: 9.381 | AB183: 9.44 | AC183: 9.696 | AD183: 9.904 | AE183: 10.08 | AF183: 10.23 | AG183: 10.36 | AH183: 10.48
A184: 19 | B184: 5.492 | C184: 6.127 | D184: 6.525 | E184: 6.817 | F184: 7.049 | G184: 7.242 | H184: 7.405 | I184: 7.549 | J184: 7.676 | K184: 7.79 | L184: 7.893 | M184: 7.988 | N184: 8.075 | O184: 8.156 | P184: 8.232 | Q184: 8.369 | R184: 8.491 | S184: 8.601 | T184: 8.701 | U184: 8.792 | V184: 8.876 | W184: 8.955 | X184: 9.028 | Y184: 9.096 | Z184: 9.161 | AA184: 9.221 | AB184: 9.279 | AC184: 9.528 | AD184: 9.73 | AE184: 9.899 | AF184: 10.04 | AG184: 10.17 | AH184: 10.29
A185: 20 | B185: 5.444 | C185: 6.065 | D185: 6.454 | E185: 6.74 | F185: 6.966 | G185: 7.154 | H185: 7.313 | I185: 7.453 | J185: 7.577 | K185: 7.688 | L185: 7.788 | M185: 7.88 | N185: 7.966 | O185: 8.044 | P185: 8.118 | Q185: 8.251 | R185: 8.37 | S185: 8.477 | T185: 8.574 | U185: 8.663 | V185: 8.745 | W185: 8.821 | X185: 8.892 | Y185: 8.959 | Z185: 9.021 | AA185: 9.081 | AB185: 9.137 | AC185: 9.379 | AD185: 9.575 | AE185: 9.74 | AF185: 9.881 | AG185: 10.01 | AH185: 10.12
A186: 24 | B186: 5.297 | C186: 5.877 | D186: 6.238 | E186: 6.503 | F186: 6.712 | G186: 6.884 | H186: 7.031 | I186: 7.159 | J186: 7.272 | K186: 7.374 | L186: 7.467 | M186: 7.551 | N186: 7.629 | O186: 7.701 | P186: 7.768 | Q186: 7.89 | R186: 7.999 | S186: 8.097 | T186: 8.185 | U186: 8.267 | V186: 8.342 | W186: 8.411 | X186: 8.476 | Y186: 8.537 | Z186: 8.594 | AA186: 8.648 | AB186: 8.7 | AC186: 8.921 | AD186: 9.1 | AE186: 9.25 | AF186: 9.38 | AG186: 9.494 | AH186: 9.596
A187: 30 | B187: 5.156 | C187: 5.698 | D187: 6.033 | E187: 6.278 | F187: 6.47 | G187: 6.628 | H187: 6.763 | I187: 6.88 | J187: 6.984 | K187: 7.077 | L187: 7.162 | M187: 7.329 | N187: 7.31 | O187: 7.375 | P187: 7.437 | Q187: 7.548 | R187: 7.647 | S187: 7.735 | T187: 7.816 | U187: 7.89 | V187: 7.958 | W187: 8.021 | X187: 8.08 | Y187: 8.135 | Z187: 8.188 | AA187: 8.237 | AB187: 8.283 | AC187: 8.484 | AD187: 8.647 | AE187: 8.783 | AF187: 8.901 | AG187: 9.004 | AH187: 9.096
A188: 40 | B188: 5.022 | C188: 5.528 | D188: 5.838 | E188: 6.063 | F188: 6.24 | G188: 6.386 | H188: 6.509 | I188: 6.616 | J188: 6.711 | K188: 6.796 | L188: 6.872 | M188: 6.942 | N188: 7.007 | O188: 7.067 | P188: 7.122 | Q188: 7.223 | R188: 7.312 | S188: 7.393 | T188: 7.466 | U188: 7.533 | V188: 7.594 | W188: 7.651 | X188: 7.704 | Y188: 7.754 | Z188: 7.801 | AA188: 7.845 | AB188: 7.887 | AC188: 8.067 | AD188: 8.214 | AE188: 8.337 | AF188: 8.442 | AG188: 8.535 | AH188: 8.618
A189: 60 | B189: 4.894 | C189: 5.365 | D189: 5.653 | E189: 5.86 | F189: 6.022 | G189: 6.155 | H189: 6.268 | I189: 6.366 | J189: 6.451 | K189: 6.528 | L189: 6.598 | M189: 6.661 | N189: 6.72 | O189: 6.774 | P189: 6.824 | Q189: 6.914 | R189: 6.995 | S189: 7.067 | T189: 7.133 | U189: 7.193 | V189: 7.248 | W189: 7.299 | X189: 7.347 | Y189: 7.392 | Z189: 7.433 | AA189: 7.473 | AB189: 7.51 | AC189: 7.671 | AD189: 7.802 | AE189: 0.9243055556 | AF189: 8.005 | AG189: 8.088 | AH189: 8.161
A190: 120 | B190: 4.771 | C190: 5.211 | D190: 5.476 | E190: 5.667 | F190: 5.815 | G190: 5.937 | H190: 6.039 | I190: 6.128 | J190: 6.206 | K190: 6.276 | L190: 6.339 | M190: 6.396 | N190: 6.448 | O190: 6.496 | P190: 6.542 | Q190: 6.623 | R190: 6.695 | S190: 6.76 | T190: 6.818 | U190: 6.872 | V190: 6.921 | W190: 6.966 | X190: 7.008 | Y190: 7.048 | Z190: 7.085 | AA190: 7.121 | AB190: 7.153 | AC190: 7.296 | AD190: 7.411 | AE190: 7.507 | AF190: 7.59 | AG190: 7.662 | AH190: 7.726
A191: 240 | B191: =AVERAGE(B190,B193) -> 4.7125 | C191: =AVERAGE(C190,C193) -> 5.137 | D191: 5.3925 | E191: 5.5755 | F191: 5.717 | G191: 5.8335 | H191: 5.931 | I191: 6.0155 | J191: 6.0895 | K191: 6.156 | L191: 6.2155 | M191: 6.27 | N191: 6.3195 | O191: 6.365 | P191: 6.408 | Q191: 6.485 | R191: 6.553 | S191: 6.6145 | T191: 6.669 | U191: 6.72 | V191: 6.766 | W191: 6.8085 | X191: 6.8485 | Y191: 6.8855 | Z191: 6.9205 | AA191: 6.954 | AB191: 6.9845 | AC191: 7.1185 | AD191: 7.226 | AE191: 7.3155 | AF191: 7.393 | AG191: 7.4605 | AH191: 7.52
A192: 480 | B192: =AVERAGE(B191,B193) -> 4.68325 | C192: =AVERAGE(C191,C193) -> 5.1 | D192: 5.35075 | E192: 5.52975 | F192: 5.668 | G192: 5.78175 | H192: 5.877 | I192: 5.95925 | J192: 6.03125 | K192: 6.096 | L192: 6.15375 | M192: 6.207 | N192: 6.25525 | O192: 6.2995 | P192: 6.341 | Q192: 6.416 | R192: 6.482 | S192: 6.54175 | T192: 6.5945 | U192: 6.644 | V192: 6.6885 | W192: 6.72975 | X192: 6.76875 | Y192: 6.80425 | Z192: 6.83825 | AA192: 6.8705 | AB192: 6.90025 | AC192: 7.02975 | AD192: 7.1335 | AE192: 7.21975 | AF192: 7.2945 | AG192: 7.35975 | AH192: 7.417
A193: > | B193: 4.654 | C193: 5.063 | D193: 5.309 | E193: 5.484 | F193: 5.619 | G193: 5.73 | H193: 5.823 | I193: 5.903 | J193: 5.973 | K193: 6.036 | L193: 6.092 | M193: 6.144 | N193: 6.191 | O193: 6.234 | P193: 6.274 | Q193: 6.347 | R193: 6.411 | S193: 6.469 | T193: 6.52 | U193: 6.568 | V193: 6.611 | W193: 6.651 | X193: 6.689 | Y193: 6.723 | Z193: 6.756 | AA193: 6.787 | AB193: 6.816 | AC193: 6.941 | AD193: 7.041 | AE193: 7.124 | AF193: 7.196 | AG193: 7.259 | AH193: 7.314

Sheet Sp Rho Table
A1: Spearman's Rho Significance Table
A3: n \ α | B3: 0.002 | C3: 0.01 | D3: 0.02 | E3: 0.05 | F3: 0.1 | G3: 0.2
A4: 4 | B4: -- | C4: -- | D4: -- | E4: -- | F4: 1 | G4: 1
A5: =A4+1 -> 5 | B5: -- | C5: -- | D5: 1 | E5: 1 | F5: 0.9 | G5: 0.8
A6: 6 | B6: -- | C6: 1 | D6: 0.943 | E6: 0.886 | F6: 0.829 | G6: 0.657
A7: 7 | B7: 1 | C7: 0.929 | D7: 0.893 | E7: 0.786 | F7: 0.714 | G7: 0.571
A8: 8 | B8: 0.952 | C8: 0.881 | D8: 0.833 | E8: 0.738 | F8: 0.643 | G8: 0.524
A9: 9 | B9: 0.917 | C9: 0.833 | D9: 0.783 | E9: 0.7 | F9: 0.6 | G9: 0.483
A10: 10 | B10: 0.879 | C10: 0.794 | D10: 0.745 | E10: 0.648 | F10: 0.564 | G10: 0.455
A11: 11 | B11: 0.845 | C11: 0.755 | D11: 0.709 | E11: 0.618 | F11: 0.536 | G11: 0.427
A12: 12 | B12: 0.818 | C12: 0.727 | D12: 0.678 | E12: 0.587 | F12: 0.503 | G12: 0.406
A13: 13 | B13: 0.791 | C13: 0.703 | D13: 0.648 | E13: 0.56 | F13: 0.484 | G13: 0.385
A14: 14 | B14: 0.771 | C14: 0.679 | D14: 0.626 | E14: 0.538 | F14: 0.464 | G14: 0.367
A15: 15 | B15: 0.75 | C15: 0.654 | D15: 0.604 | E15: 0.521 | F15: 0.446 | G15: 0.354
A16: 16 | B16: 0.729 | C16: 0.635 | D16: 0.582 | E16: 0.503 | F16: 0.429 | G16: 0.341
A17: 17 | B17: 0.711 | C17: 0.618 | D17: 0.566 | E17: 0.488 | F17: 0.414 | G17: 0.328
A18: 18 | B18: 0.692 | C18: 0.6 | D18: 0.55 | E18: 0.472 | F18: 0.401 | G18: 0.317
A19: 19 | B19: 0.675 | C19: 0.584 | D19: 0.535 | E19: 0.46 | F19: 0.391 | G19: 0.309
A20: 20 | B20: 0.662 | C20: 0.57 | D20: 0.522 | E20: 0.447 | F20: 0.38 | G20: 0.299
A21: 21 | B21: 0.647 | C21: 0.556 | D21: 0.509 | E21: 0.436 | F21: 0.37 | G21: 0.292
A22: 22 | B22: 0.633 | C22: 0.544 | D22: 0.497 | E22: 0.425 | F22: 0.361 | G22: 0.284
A23: 23 | B23: 0.621 | C23: 0.532 | D23: 0.486 | E23: 0.416 | F23: 0.353 | G23: 0.278
A24: 24 | B24: 0.609 | C24: 0.521 | D24: 0.476 | E24: 0.407 | F24: 0.344 | G24: 0.271
A25: 25 | B25: 0.597 | C25: 0.511 | D25: 0.466 | E25: 0.398 | F25: 0.337 | G25: 0.265
A26: 26 | B26: 0.586 | C26: 0.501 | D26: 0.457 | E26: 0.39 | F26: 0.331 | G26: 0.259
A27: 27 | B27: 0.576 | C27: 0.492 | D27: 0.449 | E27: 0.383 | F27: 0.324 | G27: 0.255
A28: 28 | B28: 0.567 | C28: 0.483 | D28: 0.441 | E28: 0.375 | F28: 0.318 | G28: 0.25
A29: 29 | B29: 0.558 | C29: 0.475 | D29: 0.433 | E29: 0.368 | F29: 0.312 | G29: 0.245
A30: 30 | B30: 0.549 | C30: 0.467 | D30: 0.425 | E30: 0.362 | F30: 0.306 | G30: 0.24
A32: The table contains critical values for 2-tail tests. For 1-tail tests, divide α by 2.
A33: If the calculated Spearman's rho is greater than the critical value from the table, then reject the null hypothesis that there is no correlation

Sheet Ken Tau Table
A1: Kendall's Tau Significance Table
A3: n \ α | B3: 0.002 | C3: 0.01 | D3: 0.02 | E3: 0.05 | F3: 0.1 | G3: 0.2
A4: 4 | B4: -- | C4: -- | D4: -- | E4: -- | F4: 1 | G4: 1
A5: =A4+1 -> 5 | B5: -- | C5: -- | D5: 1 | E5: 1 | F5: 0.8 | G5: 0.8
A6: 6 | B6: -- | C6: 1 | D6: 0.867 | E6: 0.867 | F6: 0.733 | G6: 0.6
A7: 7 | B7: 1 | C7: 0.905 | D7: 0.81 | E7: 0.714 | F7: 0.619 | G7: 0.524
A8: 8 | B8: 0.857 | C8: 0.786 | D8: 0.714 | E8: 0.643 | F8: 0.571 | G8: 0.429
A9: 9 | B9: 0.833 | C9: 0.722 | D9: 0.667 | E9: 0.556 | F9: 0.5 | G9: 0.389
A10: =A9+1 -> 10 | B10: 0.778 | C10: 0.644 | D10: 0.6 | E10: 0.551 | F10: 0.467 | G10: 0.378
A11: =A10+1 -> 11 | B11: 0.709 | C11: 0.6 | D11: 0.564 | E11: 0.491 | F11: 0.418 | G11: 0.345
A12: 12 | B12: 0.667 | C12: 0.576 | D12: 0.545 | E12: 0.455 | F12: 0.394 | G12: 0.303
A13: 13 | B13: 0.641 | C13: 0.564 | D13: 0.513 | E13: 0.436 | F13: 0.359 | G13: 0.308
A14: 14 | B14: 0.604 | C14: 0.516 | D14: 0.473 | E14: 0.407 | F14: 0.363 | G14: 0.275
A15: 15 | B15: 0.581 | C15: 0.505 | D15: 0.467 | E15: 0.39 | F15: 0.333 | G15: 0.276
A16: 16 | B16: 0.567 | C16: 0.483 | D16: 0.433 | E16: 0.383 | F16: 0.317 | G16: 0.25
A17: 17 | B17: 0.544 | C17: 0.471 | D17: 0.426 | E17: 0.368 | F17: 0.309 | G17: 0.25
A18: 18 | B18: 0.529 | C18: 0.451 | D18: 0.412 | E18: 0.346 | F18: 0.294 | G18: 0.242
A19: 19 | B19: 0.509 | C19: 0.439 | D19: 0.392 | E19: 0.333 | F19: 0.287 | G19: 0.228
A20: 20 | B20: 0.495 | C20: 0.421 | D20: 0.379 | E20: 0.326 | F20: 0.274 | G20: 0.221
A21: 21 | B21: 0.486 | C21: 0.41 | D21: 0.371 | E21: 0.314 | F21: 0.267 | G21: 0.21
A22: 22 | B22: 0.472 | C22: 0.394 | D22: 0.359 | E22: 0.307 | F22: 0.264 | G22: 0.203
A23: 23 | B23: 0.455 | C23: 0.391 | D23: 0.352 | E23: 0.296 | F23: 0.257 | G23: 0.202
A24: 24 | B24: 0.449 | C24: 0.377 | D24: 0.341 | E24: 0.29 | F24: 0.246 | G24: 0.196
A25: 25 | B25: 0.44 | C25: 0.367 | D25: 0.333 | E25: 0.287 | F25: 0.24 | G25: 0.193
A26: 26 | B26: 0.428 | C26: 0.36 | D26: 0.329 | E26: 0.28 | F26: 0.237 | G26: 0.188
A27: 27 | B27: 0.419 | C27: 0.356 | D27: 0.322 | E27: 0.271 | F27: 0.231 | G27: 0.179
A28: 28 | B28: 0.413 | C28: 0.344 | D28: 0.312 | E28: 0.265 | F28: 0.228 | G28: 0.18
A29: 29 | B29: 0.404 | C29: 0.34 | D29: 0.31 | E29: 0.261 | F29: 0.222 | G29: 0.172
A30: 30 | B30: 0.393 | C30: 0.333 | D30: 0.301 | E30: 0.255 | F30: 0.218 | G30: 0.172
A32: The table contains critical values for 2-tail tests. For 1-tail tests, divide α by 2.
A33: If the calculated Kendall's tau is greater than the critical value from the table, then reject the null hypothesis that there is no correlation

Sheet Durbin Table
A1: Durbin-Watson Table | F1: Durbin-Watson Table | K1: Durbin-Watson Table
A3: Alpha = .01 | F3: Alpha = .025 | K3: Alpha = .05
A5: N | B5: K | C5: Lower | D5: Upper | F5: N | G5: K | H5: Lower | I5: Upper | K5: N | L5: K | M5: Lower | N5: Upper
A6: 6 | B6: 2 | C6: 0.38989 | D6: 1.14213 | F6: 6 | G6: 2 | H6: 0.48869 | I6: 1.25761 | K6: 6 | L6: 2 | M6: 0.61018 | N6: 1.40015
A7: 7 | B7: 2 | C7: 0.43534 | D7: 1.03614 | F7: 7 | G7: 2 | H7: 0.56422 | I7: 1.19119 | K7: 7 | L7: 2 | M7: 0.69955 | N7: 1.35635
A8: 7 | B8: 3 | C8: 0.29406 | D8: 1.67614 | F8: 7 | G8: 3 | H8: 0.37178 | I8: 1.77465 | K8: 7 | L8: 3 | M8: 0.46723 | N8: 1.89636
A9: 8 | B9: 2 | C9: 0.49727 | D9: 1.00296 | F9: 8 | G9: 2 | H9: 0.63287 | I9: 1.17217 | K9: 8 | L9: 2 | M9: 0.7629 | N9: 1.33238
A10: 8 | B10: 3 | C10: 0.34523 | D10: 1.48873 | F10: 8 | G10: 3 | H10: 0.4498 | I10: 1.62816 | K10: 8 | L10: 3 | M10: 0.55907 | N10: 1.77711
A11: 8 | B11: 4 | C11: 0.22904 | D11: 2.1017 | F11: 8 | G11: 4 | H11: 0.29119 | I11: 2.18442 | K11: 8 | L11: 4 | M11: 0.36744 | N11: 2.28664
A12: 9 | B12: 2 | C12: 0.55379 | D12: 0.99799 | F12: 9 | G12: 2 | H12: 0.68973 | I12: 1.1635 | K12: 9 | L12: 2 | M12: 0.82428 | N12: 1.31988
A13: 9 | B13: 3 | C13: 0.4082 | D13: 1.38859 | F13: 9 | G13: 3 | H13: 0.52029 | I13: 1.54712 | K13: 9 | L13: 3 | M13: 0.6291 | N13: 1.69926
A14: 9 | B14: 4 | C14: 0.27943 | D14: 1.87521 | F14: 9 | G14: 4 | H14: 0.36534 | I14: 1.99742 | K14: 9 | L14: 4 | M14: 0.45476 | N14: 2.12816
A15: 9 | B15: 5 | C15: 0.18313 | D15: 2.43272 | F15: 9 | G15: 5 | H15: 0.2337 | I15: 2.5022 | K15: 9 | L15: 5 | M15: 0.29571 | N15: 2.5881
A16: 10 | B16: 2 | C16: 0.60452 | D16: 1.0007 | F16: 10 | G16: 2 | H16: 0.7442 | I16: 1.16461 | K16: 10 | L16: 2 | M16: 0.87913 | N16: 1.31971
A17: 10 | B17: 3 | C17: 0.46572 | D17: 1.33245 | F17: 10 | G17: 3 | H17: 0.58172 | I17: 1.49301 | K17: 10 | L17: 3 | M17: 0.69715 | N17: 1.64134
A18: 10 | B18: 4 | C18: 0.33974 | D18: 1.7334 | F18: 10 | G18: 4 | H18: 0.43348 | I18: 1.87719 | K18: 10 | L18: 4 | M18: 0.52534 | N18: 2.01632
A19: 10 | B19: 5 | C19: 0.23028 | D19: 2.19346 | F19: 10 | G19: 5 | H19: 0.30181 | I19: 2.29979 | K19: 10 | L19: 5 | M19: 0.37602 | N19: 2.41365
A20: 10 | B20: 6 | C20: 0.14961 | D20: 2.69026 | F20: 10 | G20: 6 | H20: 0.19143 | I20: 2.74901 | K20: 10 | L20: 6 | M20: 0.24269 | N20: 2.82165
A21: 11 | B21: 2 | C21: 0.65279 | D21: 1.0098 | F21: 11 | G21: 2 | H21: 0.79337 | I21: 1.17253 | K21: 11 | L21: 2 | M21: 0.92733 | N21: 1.32409
A22: 11 | B22: 3 | C22: 0.5188 | D22: 1.29672 | F22: 11 | G22: 3 | H22: 0.64031 | I22: 1.4558 | K22: 11 | L22: 3 | M22: 0.75798 | N22: 1.60439
A23: 11 | B23: 4 | C23: 0.39564 | D23: 1.64046 | F23: 11 | G23: 4 | H23: 0.49529 | I23: 1.79073 | K23: 11 | L23: 4 | M23: 0.59477 | N23: 1.92802
A24: 11 | B24: 5 | C24: 0.28644 | D24: 2.02944 | F24: 11 | G24: 5 | H24: 0.36577 | I24: 2.15815 | K24: 11 | L24: 5 | M24: 0.44406 | N24: 2.28327
A25: 11 | B25: 6 | C25: 0.19276 | D25: 2.45291 | F25: 11 | G25: 6 | H25: 0.25308 | I25: 2.54544 | K25: 11 | L25: 6 | M25: 0.31549 | N25: 2.64456
A26: 11 | B26: 7 | C26: 0.12443 | D26: 2.89241 | F26: 11 | G26: 7 | H26: 0.15953 | I26: 2.94252 | K26: 11 | L26: 7 | M26: 0.20253 | N26: 3.00447
A27: 12 | B27: 2 | C27: 0.69728 | D27: 1.0231 | F27: 12 | G27: 2 | H27: 0.83779 | I27: 1.18319 | K27: 12 | L27: 2 | M27: 0.97076 | N27: 1.33137
A28: 12 | B28: 3 | C28: 0.56939 | D28: 1.27374 | F28: 12 | G28: 3 | H28: 0.69343 | I28: 1.43269 | K28: 12 | L28: 3 | M28: 0.81221 | N28: 1.57935
A29: 12 | B29: 4 | C29: 0.44855 | D29: 1.57457 | F29: 12 | G29: 4 | H29: 0.55467 | I29: 1.7249 | K29: 12 | L29: 4 | M29: 0.65765 | N29: 1.86397
A30: 12 | B30: 5 | C30: 0.33946 | D30: 1.91301 | F30: 12 | G30: 5 | H30: 0.42568 | I30: 2.05112 | K30: 12 | L30: 5 | M30: 0.51198 | N30: 2.17662
A31: 12 | B31: 6 | C31: 0.24437 | D31: 2.27962 | F31: 12 | G31: 6 | H31: 0.31223 | I31: 2.39432 | K31: 12 | L31: 6 | M31: 0.37956 | N31: 2.50609
A32: 12 | B32: 7 | C32: 0.16356 | D32: 2.66456 | F32: 12 | G32: 7 | H32: 0.21501 | I32: 2.74536 | K32: 12 | L32: 7 | M32: 0.26813 | N32: 2.83196
A33: 12 | B33: 8 | C33: 0.10505 | D33: 3.05298 | F33: 12 | G33: 8 | H33: 0.1349 | I33: 3.09609 | K33: 12 | L33: 8 | M33: 0.17144 | N33: 3.1494
A34: 13 | B34: 2 | C34: 0.73821 | D34: 1.03813 | F34: 13 | G34: 2 | H34: 0.8783 | I34: 1.1955 | K34: 13 | L34: 2 | M34: 1.00973 | N34: 1.3404
A35: 13 | B35: 3 | C35: 0.61624 | D35: 1.26074 | F35: 13 | G35: 3 | H35: 0.74188 | I35: 1.4181 | K35: 13 | L35: 3 | M35: 0.86124 | N35: 1.56212
A36: 13 | B36: 4 | C36: 0.49937 | D36: 1.52556 | F36: 13 | G36: 4 | H36: 0.60916 | I36: 1.67703 | K36: 13 | L36: 4 | M36: 0.71465 | N36: 1.81593
A37: 13 | B37: 5 | C37: 0.39074 | D37: 1.82575 | F37: 13 | G37: 5 | H37: 0.4839 | I37: 1.96573 | K37: 13 | L37: 5 | M37: 0.57446 | N37: 2.09428
A38: 13 | B38: 6 | C38: 0.29397 | D38: 2.14978 | F38: 13 | G38: 6 | H38: 0.36913 | I38: 2.27561 | K38: 13 | L38: 6 | M38: 0.44448 | N38: 2.38967
A39: 13 | B39: 7 | C39: 0.21068 | D39: 2.49005 | F39: 13 | G39: 7 | H39: 0.26932 | I39: 2.59227 | K39: 13 | L39: 7 | M39: 0.32775 | N39: 2.69204
A40: 13 | B40: 8 | C40: 0.14042 | D40: 2.83813 | F40: 13 | G40: 8 | H40: 0.18479 | I40: 2.90905 | K40: 13 | L40: 8 | M40: 0.23049 | N40: 2.98506
A41: 13 | B41: 9 | C41: 0.08985 | D41: 3.1821 | F41: 13 | G41: 9 | H41: 0.11551 | I41: 3.2195 | K41: 13 | L41: 9 | M41: 0.14693 | N41: 3.26577
A42: 14 | B42: 2 | C42: 0.77607 | D42: 1.05402 | F42: 14 | G42: 2 | H42: 0.91523 | I42: 1.20863 | K42: 14 | L42: 2 | M42: 1.04495 | N42: 1.35027
A43: 14 | B43: 3 | C43: 0.65963 | D43: 1.25412 | F43: 14 | G43: 3 | H43: 0.78624 | I43: 1.40923 | K43: 14 | L43: 3 | M43: 0.90544 | N43: 1.55066
A44: 14 | B44: 4 | C44: 0.54688 | D44: 1.49013 | F44: 14 | G44: 4 | H44: 0.65943 | I44: 1.6414 | K44: 14 | L44: 4 | M44: 0.76666 | N44: 1.77882
A45: 14 | B45: 5 | C45: 0.44051 | D45: 1.7573 | F45: 14 | G45: 5 | H45: 0.53805 | I45: 1.89964 | K45: 14 | L45: 5 | M45: 0.63206 | N45: 2.02955
A46: 14 | B46: 6 | C46: 0.34287 | D46: 2.04855 | F46: 14 | G46: 6 | H46: 0.42509 | I46: 2.17785 | K46: 14 | L46: 6 | M46: 0.50516 | N46: 2.29593
A47: 14 | B47: 7 | C47: 0.25675 | D47: 2.35389 | F47: 14 | G47: 7 | H47: 0.32273 | I47: 2.46814 | K47: 14 | L47: 7 | M47: 0.38897 | N47: 2.57158
A48: 14 | B48: 8 | C48: 0.18335 | D48: 2.66724 | F48: 14 | G48: 8 | H48: 0.23448 | I48: 2.75852 | K48: 14 | L48: 8 | M48: 0.28559 | N48: 2.84769
A49: 14 | B49: 9 | C49: 0.12181 | D49: 2.98152 | F49: 14 | G49: 9 | H49: 0.16041 | I49: 3.04411 | K49: 14 | L49: 9 | M49: 0.20013 | N49: 3.11121
A50: 14 | B50: 10 | C50: 0.07771 | D50: 3.28719 | F50: 14 | G50: 10 | H50: 0.09998 | I50: 3.31991 | K50: 14 | L50: 10 | M50: 0.12726 | N50: 3.36038
A51: 15 | B51: 2 | C51: 0.81106 | D51: 1.0702 | F51: 15 | G51: 2 | H51: 0.94905 | I51: 1.22202 | K51: 15 | L51: 2 | M51: 1.07697 | N51: 1.36054
A52: 15 | B52: 3 | C52: 0.69993 | D52: 1.25174 | F52: 15 | G52: 3 | H52: 0.82683 | I52: 1.40451 | K52: 15 | L52: 3 | M52: 0.94554 | N52: 1.54318
A53: 15 | B53: 4 | C53: 0.5913 | D53: 1.46442 | F53: 15 | G53: 4 | H53: 0.70582 | I53: 1.6144 | K53: 15 | L53: 4 | M53: 0.81396 | N53: 1.75014
A54: 15 | B54: 5 | C54: 0.48754 | D54: 1.70426 | F54: 15 | G54: 5 | H54: 0.58864 | I54: 1.8477 | K54: 15 | L54: 5 | M54: 0.68519 | N54: 1.97735
A55: 15 | B55: 6 | C55: 0.39083 | D55: 1.96648 | F55: 15 | G55: 6 | H55: 0.47788 | I55: 2.09916 | K55: 15 | L55: 6 | M55: 0.56197 | N55: 2.21981
A56: 15 | B56: 7 | C56: 0.30291 | D56: 2.24439 | F56: 15 | G56: 7 | H56: 0.3759 | I56: 2.36333 | K56: 15 | L56: 7 | M56: 0.44707 | N56: 2.47148
A57: 15 | B57: 8 | C57: 0.22598 | D57: 2.52951 | F57: 15 | G57: 8 | H57: 0.2843 | I57: 2.63315 | K57: 15 | L57: 8 | M57: 0.3429 | N57: 2.72698
A58: 15 | B58: 9 | C58: 0.16093 | D58: 2.81697 | F58: 15 | G58: 9 | H58: 0.20586 | I58: 2.89873 | K58: 15 | L58: 9 | M58: 0.2509 | N58: 2.97866
A59: 15 | B59: 10 | C59: 0.10663 | D59: 3.10094 | F59: 15 | G59: 10 | H59: 0.1405 | I59: 3.15648 | K59: 15 | L59: 10 | M59: 0.17531 | N59: 3.21604
A60: 15 | B60: 11 | C60: 0.06785 | D60: 3.3737 | F60: 15 | G60: 11 | H60: 0.08738 | I60: 3.40253 | K60: 15 | L60: 11 | M60: 0.11127 | N60: 3.43819
A61: 16 | B61: 2 | C61: 0.84349 | D61: 1.0863 | F61: 16 | G61: 2 | H61: 0.98013 | I61: 1.23538 | K61: 16 | L61: 2 | M61: 1.10617 | N61: 1.37092
A62: 16 | B62: 3 | C62: 0.73733 | D62: 1.25239 | F62: 16 | G62: 3 | H62: 0.86413 | I62: 1.40266 | K62: 16 | L62: 3 | M62: 0.98204 | N62: 1.5386
A63: 16 | B63: 4 | C63: 0.63282 | D63: 1.44558 | F63: 16 | G63: 4 | H63: 0.74858 | I63: 1.59395 | K63: 16 | L63: 4 | M63: 0.85718 | N63: 1.72773
A64: 16 | B64: 5 | C64: 0.53196 | D64: 1.66291 | F64: 16 | G64: 5 | H64: 0.63576 | I64: 1.80613 | K64: 16 | L64: 5 | M64: 0.734 | N64: 1.93506
A65: 16 | B65: 6 | C65: 0.43667 | D65: 1.90034 | F65: 16 | G65: 6 | H65: 0.52777 | I65: 2.03524 | K65: 16 | L65: 6 | M65: 0.61495 | N65: 2.15672
A66: 16 | B66: 7 | C66: 0.34868 | D66: 2.15336 | F66: 16 | G66: 7 | H66: 0.42671 | I66: 2.27648 | K66: 16 | L66: 7 | M66: 0.50223 | N66: 2.38813
A67: 16 | B67: 8 | C67: 0.26931 | D67: 2.41587 | F67: 16 | G67: 8 | H67: 0.33446 | I67: 2.5251 | K67: 16 | L67: 8 | M67: 0.39805 | N67: 2.62409
A68: 16 | B68: 9 | C68: 0.2003 | D68: 2.68077 | F68: 16 | G68: 9 | H68: 0.25217 | I68: 2.77488 | K68: 16 | L68: 9 | M68: 0.30433 | N68: 2.86009
A69: 16 | B69: 10 | C69: 0.14231 | D69: 2.94415 | F69: 16 | G69: 10 | H69: 0.18209 | I69: 3.01764 | K69: 16 | L69: 10 | M69: 0.22206 | N69: 3.08954
A70: 16 | B70: 11 | C70: 0.09409 | D70: 3.2012 | F70: 16 | G70: 11 | H70: 0.12405 | I70: 3.25076 | K70: 16 | L70: 11 | M70: 0.15479 | N70: 3.30391
A71: 16 | B71: 12 | C71: 0.05975 | D71: 3.44565 | F71: 16 | G71: 12 | H71: 0.07699 | I71: 3.47123 | K71: 16 | L71: 12 | M71: 0.09809 | N71: 3.50287
A72: 17 | B72: 2 | C72: 0.87363 | D72: 1.1021 | F72: 17 | G72: 2 | H72: 1.0088 | I72: 1.24851 | K72: 17 | L72: 2 | M72: 1.13295 | N72: 1.38122
A73: 17 | B73: 3 | C73: 0.77209 | D73: 1.25512 | F73: 17 | G73: 3 | H73: 0.89849 | I73: 1.40288 | K73: 17 | L73: 3 | M73: 1.01543 | N73: 1.53614
A74: 17 | B74: 4 | C74: 0.67158 | D74: 1.43193 | F74: 17 | G74: 4 | H74: 0.78811 | I74: 1.57843 | K74: 17 | L74: 4 | M74: 0.89675 | N74: 1.71009
A75: 17 | B75: 5 | C75: 0.5738 | D75: 1.63022 | F75: 17 | G75: 5 | H75: 0.67954 | I75: 1.77267 | K75: 17 | L75: 5 | M75: 0.77898 | N75: 1.90047
A76: 17 | B76: 6 | C76: 0.48038 | D76: 1.84681 | F76: 17 | G76: 6 | H76: 0.57469 | I76: 1.9825 | K76: 17 | L76: 6 | M76: 0.66414 | N76: 2.10414
A77: 17 | B77: 7 | C77: 0.39289 | D77: 2.07794 | F77: 17 | G77: 7 | H77: 0.47528 | I77: 2.20418 | K77: 17 | L77: 7 | M77: 0.55423 | N77: 2.31755
A78: 17 | B78: 8 | C78: 0.31271 | D78: 2.31946 | F78: 17 | G78: 8 | H78: 0.38297 | I78: 2.43347 | K78: 17 | L78: 8 | M78: 0.45107 | N78: 2.5366
A79: 17 | B79: 9 | C79: 0.24084 | D79: 2.56592 | F79: 17 | G79: 9 | H79: 0.29928 | I79: 2.66621 | K79: 17 | L79: 9 | M79: 0.35639 | N79: 2.75688
A80: 17 | B80: 10 | C80: 0.17867 | D80: 2.8114 | F80: 17 | G80: 10 | H80: 0.22507 | I80: 2.89702 | K80: 17 | L80: 10 | M80: 0.27177 | N80: 2.97455
A81: 17 | B81: 11 | C81: 0.1267 | D81: 3.05276 | F81: 17 | G81: 11 | H81: 0.16216 | I81: 3.11909 | K81: 17 | L81: 11 | M81: 0.19784 | N81: 3.184
A82: 17 | B82: 12 | C82: 0.08362 | D82: 3.28604 | F82: 17 | G82: 12 | H82: 0.11029 | I82: 3.33049 | K82: 17 | L82: 12 | M82: 0.13763 | N82: 3.37817
A83: 17 | B83: 13 | C83: 0.05302 | D83: 3.50608 | F83: 17 | G83: 13 | H83: 0.06835 | I83: 3.52892 | K83: 17 | L83: 13 | M83: 0.08711 | N83: 3.55716
A84: 18 | B84: 2 | C84: 0.90169 | D84: 1.11748 | F84: 18 | G84: 2 | H84: 1.03533 | I84: 1.26132 | K84: 18 | L84: 2 | M84: 1.15759 | N84: 1.39133
A85: 18 | B85: 3 | C85: 0.80448 | D85: 1.25932 | F85: 18 | G85: 3 | H85: 0.93024 | I85: 1.40458 | K85: 18 | L85: 3 | M85: 1.04607 | N85: 1.53525
A86: 18 | B86: 4 | C86: 0.7078 | D86: 1.42219 | F86: 18 | G86: 4 | H86: 0.82469 | I86: 1.56664 | K86: 18 | L86: 4 | M86: 0.9331 | N86: 1.69614
A87: 18 | B87: 5 | C87: 0.61312 | D87: 1.60423 | F87: 18 | G87: 5 | H87: 0.7203 | I87: 1.74553 | K87: 18 | L87: 5 | M87: 0.82044 | N87: 1.87189
A88: 18 | B88: 6 | C88: 0.52189 | D88: 1.80296 | F88: 18 | G88: 6 | H88: 0.61867 | I88: 1.9387 | K88: 18 | L88: 6 | M88: 0.70984 | N88: 2.06
A89: 18 | B89: 7 | C89: 0.43544 | D89: 2.01531 | F89: 18 | G89: 7 | H89: 0.52137 | I89: 2.14322 | K89: 18 | L89: 7 | M89: 0.60301 | N89: 2.2575
A90: 18 | B90: 8 | C90: 0.35504 | D90: 2.23783 | F90: 18 | G90: 8 | H90: 0.42982 | I90: 2.35565 | K90: 18 | L90: 8 | M90: 0.50158 | N90: 2.46122
A91: 18 | B91: 9 | C91: 0.28183 | D91: 2.46678 | F91: 18 | G91: 9 | H91: 0.34535 | I91: 2.57228 | K91: 18 | L91: 9 | M91: 0.40702 | N91: 2.66753
A92: 18 | B92: 10 | C92: 0.21654 | D92: 2.69738 | F92: 18 | G92: 10 | H92: 0.26924 | I92: 2.78955 | K92: 18 | L92: 10 | M92: 0.32076 | N92: 2.87268
A93: 18 | B93: 11 | C93: 0.16031 | D93: 2.92465 | F93: 18 | G93: 11 | H93: 0.20204 | I93: 3.00273 | K93: 18 | L93: 11 | M93: 0.24405 | N93: 3.07345
A94: 18 | B94: 12 | C94: 0.11349 | D94: 3.14607 | F94: 18 | G94: 12 | H94: 0.14529 | I94: 3.20615 | K94: 18 | L94: 12 | M94: 0.17732 | N94: 3.26497
A95: 18 | B95: 13 | C95: 0.07479 | D95: 3.35836 | F95: 18 | G95: 13 | H95: 0.09868 | I95: 3.39843 | K95: 18 | L95: 13 | M95: 0.12315 | N95: 3.44141
A96: 18 | B96: 14 | C96: 0.04736 | D96: 3.55729 | F96: 18 | G96: 14 | H96: 0.06107 | I96: 3.57779 | K96: 18 | L96: 14 | M96: 0.07786 | N96: 3.60315
A97: 19 | B97: 2 | C97: 0.9279 | D97: 1.13238 | F97: 19 | G97: 2 | H97: 1.05996 | I97: 1.27373 | K97: 19 | L97: 2 | M97: 1.18037 | N97: 1.40118
A98: 19 | B98: 3 | C98: 0.83472 | D98: 1.26454 | F98: 19 | G98: 3 | H98: 0.95967 | I98: 1.40735 | K98: 19 | L98: 3 | M98: 1.0743 | N98: 1.53553
A99: 19 | B99: 4 | C99: 0.74168 | D99: 1.41542 | F99: 19 | G99: 4 | H99: 0.85862 | I99: 1.55777 | K99: 19 | L99: 4 | M99: 0.96659 | N99: 1.68509
A100: 19 | B100: 5 | C100: 0.65007 | D100: 1.58349 | F100: 19 | G100: 5 | H100: 0.75823 | I100: 1.72336 | K100: 19 | L100: 5 | M100: 0.85876 | N100: 1.84815
A101: 19 | B101: 6 | C101: 0.56117 | D101: 1.76675 | F101: 19 | G101: 6 | H101: 0.65988 | I101: 1.90209 | K101: 19 | L101: 6 | M101: 0.75231 | N101: 2.02262
A102: 19 | B102: 7 | C102: 0.47616 | D102: 1.96278 | F102: 19 | G102: 7 | H102: 0.56493 | I102: 2.09149 | K102: 19 | L102: 7 | M102: 0.6487 | N102: 2.20614
A103: 19 | B103: 8 | C103: 0.39615 | D103: 2.16868 | F103: 19 | G103: 8 | H103: 0.47468 | I103: 2.28888 | K103: 19 | L103: 8 | M103: 0.54938 | N103: 2.39602
A104: 19 | B104: 9 | C104: 0.32219 | D104: 2.38135 | F104: 19 | G104: 9 | H104: 0.39029 | I104: 2.49116 | K104: 19 | L104: 9 | M104: 0.45571 | N104: 2.58939
A105: 19 | B105: 10 | C105: 0.25517 | D105: 2.59746 | F105: 19 | G105: 10 | H105: 0.31285 | I105: 2.69511 | K105: 19 | L105: 10 | M105: 0.36889 | N105: 2.78312
A106: 19 | B106: 11 | C106: 0.19567 | D106: 2.8128 | F106: 19 | G106: 11 | H106: 0.24338 | I106: 2.89762 | K106: 19 | L106: 11 | M106: 0.29008 | N106: 2.97399
A107: 19 | B107: 12 | C107: 0.14459 | D107: 3.02323 | F107: 19 | G107: 12 | H107: 0.1823 | I107: 3.09461 | K107: 19 | L107: 12 | M107: 0.22029 | N107: 3.1593
A108: 19 | B108: 13 | C108: 0.10223 | D108: 3.22669 | F108: 19 | G108: 13 | H108: 0.13088 | I108: 3.28131 | K108: 19 | L108: 13 | M108: 0.15979 | N108: 3.33481
A109: 19 | B109: 14 | C109: 0.06728 | D109: 3.42047 | F109: 19 | G109: 14 | H109: 0.0888 | I109: 3.45674 | K109: 19 | L109: 14 | M109: 0.11082 | N109: 3.49566
A110: 19 | B110: 15 | C110: 0.04255 | D110: 3.60102 | F110: 19 | G110: 15 | H110: 0.0549 | I110: 3.61952 | K110: 19 | L110: 15 | M110: 0.07001 | N110: 3.64241
A111: 20 | B111: 2 | C111: 0.95243 | D111: 1.14675 | F111: 20 | G111: 2 | H111: 1.08291 | I111: 1.28571 | K111: 20 | L111: 2 | M111: 1.20149 | N111: 1.41073
A112: 20 | B112: 3 | C112: 0.863 | D112: 1.27047 | F112: 20 | G112: 3 | H112: 0.98702 | I112: 1.4109 | K112: 20 | L112: 3 | M112: 1.1004 | N112: 1.53668
A113: 20 | B113: 4 | C113: 0.77342 | D113: 1.41093 | F113: 20 | G113: 4 | H113: 0.89018 | I113: 1.55116 | K113: 20 | L113: 4 | M113: 0.99755 | N113: 1.67634
A114: 20 | B114: 5 | C114: 0.68483 | D114: 1.5669 | F114: 20 | G114: 5 | H114: 0.79361 | I114: 1.70518 | K114: 20 | L114: 5 | M114: 0.89425 | N114: 1.82828
A115: 20 | B115: 6 | C115: 0.59833 | D115: 1.73672 | F115: 20 | G115: 6 | H115: 0.6985 | I115: 1.87124 | K115: 20 | L115: 6 | M115: 0.79179 | N115: 1.99079
A116: 20 | B116: 7 | C116: 0.51498 | D116: 1.91839 | F116: 20 | G116: 7 | H116: 0.60606 | I116: 2.04736 | K116: 20 | L116: 7 | M116: 0.69146 | N116: 2.16189
A117: 20 | B117: 8 | C117: 0.4358 | D117: 2.10962 | F117: 20 | G117: 8 | H117: 0.51742 | I117: 2.23128 | K117: 20 | L117: 8 | M117: 0.59454 | N117: 2.33937
A118: 20 | B118: 9 | C118: 0.36169 | D118: 2.30775 | F118: 20 | G118: 9 | H118: 0.43366 | I118: 2.42053 | K118: 20 | L118: 9 | M118: 0.5022 | N118: 2.52082
A119: 20 | B119: 10 | C119: 0.29352 | D119: 2.51003 | F119: 20 | G119: 10 | H119: 0.35575 | I119: 2.61234 | K119: 20 | L119: 10 | M119: 0.41559 | N119: 2.70374
A120: 20 | B120: 11 | C120: 0.23201 | D120: 2.71348 | F120: 20 | G120: 11 | H120: 0.28459 | I120: 2.80394 | K120: 20 | L120: 11 | M120: 0.33571 | N120: 2.88535
A121: 20 | B121: 12 | C121: 0.1776 | D121: 2.91444 | F121: 20 | G121: 12 | H121: 0.221 | I121: 2.99263 | K121: 20 | L121: 12 | M121: 0.26349 | N121: 3.06292
A122: 20 | B122: 13 | C122: 0.13105 | D122: 3.10941 | F122: 20 | G122: 13 | H122: 0.16528 | I122: 3.17485 | K122: 20 | L122: 13 | M122: 0.19978 | N122: 3.23417
A123: 20 | B123: 14 | C123: 0.09254 | D123: 3.29673 | F123: 20 | G123: 14 | H123: 0.1185 | I123: 3.34657 | K123: 20 | L123: 14 | M123: 0.14472 | N123: 3.3954
A124: 20 | B124: 15 | C124: 0.06084 | D124: 3.47414 | F124: 20 | G124: 15 | H124: 0.08032 | I124: 3.50712 | K124: 20 | L124: 15 | M124: 0.10024 | N124: 3.5425
A125: 20 | B125: 16 | C125: 0.03844 | D125: 3.63865 | F125: 20 | G125: 16 | H125: 0.04961 | I125: 3.65543 | K125: 20 | L125: 16 | M125: 0.06327 | N125: 3.67619
A126: 21 | B126: 2 | C126: 0.97545 | D126: 1.16059 | F126: 21 | G126: 2 | H126: 1.10433 | I126: 1.29727 | K126: 21 | L126: 2 | M126: 1.22115 | N126: 1.41997
A127: 21 | B127: 3 | C127: 0.8895 | D127: 1.27688 | F127: 21 | G127: 3 | H127: 1.01251 | I127: 1.415 | K127: 21 | L127: 3 | M127: 1.12461 | N127: 1.53849
A128: 21 | B128: 4 | C128: 0.80319 | D128: 1.40823 | F128: 21 | G128: 4 | H128: 0.9196 | I128: 1.54635 | K128: 21 | L128: 4 | M128: 1.02624 | N128: 1.66942
A129: 21 | B129: 5 | C129: 0.71752 | D129: 1.5536 | F129: 21 | G129: 5 | H129: 0.82664 | I129: 1.69018 | K129: 21 | L129: 5 | M129: 0.92719 | N129: 1.81157
A130: 21 | B130: 6 | C130: 0.63345 | D130: 1.71164 | F130: 21 | G130: 6 | H130: 0.73471 | I130: 1.84511 | K130: 21 | L130: 6 | M130: 0.82856 | N130: 1.9635
A131: 21 | B131: 7 | C131: 0.55192 | D131: 1.8807 | F131: 21 | G131: 7 | H131: 0.64483 | I131: 2.00947 | K131: 21 | L131: 7 | M131: 0.73149 | N131: 2.12355
A132: 21 | B132: 8 | C132: 0.47385 | D132: 2.05887 | F132: 21 | G132: 8 | H132: 0.55804 | I132: 2.18138 | K132: 21 | L132: 8 | M132: 0.6371 | N132: 2.28988
A133: 21 | B133: 9 | C133: 0.40006 | D133: 2.24398 | F133: 21 | G133: 9 | H133: 0.47529 | I133: 2.35875 | K133: 21 | L133: 9 | M133: 0.54645 | N133: 2.46051
A134: 21 | B134: 10 | C134: 0.33135 | D134: 2.43365 | F134: 21 | G134: 10 | H134: 0.39748 | I134: 2.53937 | K134: 21 | L134: 10 | M134: 0.46055 | N134: 2.63324
A135: 21 | B135: 11 | C135: 0.26839 | D135: 2.62543 | F135: 21 | G135: 11 | H135: 0.32544 | I135: 2.72078 | K135: 21 | L135: 11 | M135: 0.38035 | N135: 2.80588
A136: 21 | B136: 12 | C136: 0.21179 | D136: 2.8167 | F136: 21 | G136: 12 | H136: 0.25989 | I136: 2.9006 | K136: 21 | L136: 12 | M136: 0.30669 | N136: 2.976
A137: 21 | B137: 13 | C137: 0.16189 | D137: 3.00423 | F137: 21 | G137: 13 | H137: 0.20151 | I137: 3.07644 | K137: 21 | L137: 13 | M137: 0.24033 | N137: 3.14129
A138: 21 | B138: 14 | C138: 0.11929 | D138: 3.18509 | F138: 21 | G138: 14 | H138: 0.1505 | I138: 3.24525 | K138: 21 | L138: 14 | M138: 0.18198 | N138: 3.29979
A139: 21 | B139: 15 | C139: 0.08416 | D139: 3.3579 | F139: 21 | G139: 15 | H139: 0.10778 | I139: 3.40354 | K139: 21 | L139: 15 | M139: 0.13166 | N139: 3.44827
A140: 21 | B140: 16 | C140: 0.05528 | D140: 3.5208 | F140: 21 | G140: 16 | H140: 0.073 | I140: 3.55091 | K140: 21 | L140: 16 | M140: 0.09111 | N140: 3.58322
A141: 21 | B141: 17 | C141: 0.0349 | D141: 3.67125 | F141: 21 | G141: 17 | H141: 0.04504 | I141: 3.68653 | K141: 21 | L141: 17 | M141: 0.05747 | N141: 3.70544
A142: 22 | B142: 2 | C142: 0.9971 | D142: 1.17391 | F142: 22 | G142: 2 | H142: 1.12439 | I142: 1.30838 | K142: 22 | L142: 2 | M142: 1.23949 | N142: 1.42888
A143: 22 | B143: 3 | C143: 0.9144 | D143: 1.28361 | F143: 22 | G143: 3 | H143: 1.03633 | I143: 1.41949 | K143: 22 | L143: 3 | M143: 1.14713 | N143: 1.54079
A144: 22 | B144: 4 | C144: 0.83118 | D144: 1.40691 | F144: 22 | G144: 4 | H144: 0.94708 | I144: 1.54295 | K144: 22 | L144: 4 | M144: 1.05292 | N144: 1.66398
A145: 22 | B145: 5 | C145: 0.7483 | D145: 1.54297 | F145: 22 | G145: 5 | H145: 0.85755 | I145: 1.67781 | K145: 22 | L145: 5 | M145: 0.95783 | N145: 1.79744
A146: 22 | B146: 6 | C146: 0.66664 | D146: 1.69063 | F146: 22 | G146: 6 | H146: 0.76868 | I146: 1.82287 | K146: 22 | L146: 6 | M146: 0.86285 | N146: 1.93996
A147: 22 | B147: 7 | C147: 0.58703 | D147: 1.84853 | F147: 22 | G147: 7 | H147: 0.68138 | I147: 1.97677 | K147: 22 | L147: 7 | M147: 0.76898 | N147: 2.09015
A148: 22 | B148: 8 | C148: 0.51027 | D148: 2.01506 | F148: 22 | G148: 8 | H148: 0.59657 | I148: 2.13791 | K148: 22 | L148: 8 | M148: 0.67719 | N148: 2.24646
A149: 22 | B149: 9 | C149: 0.43714 | D149: 2.18841 | F149: 22 | G149: 9 | H149: 0.51511 | I149: 2.30454 | K149: 22 | L149: 9 | M149: 0.58843 | N149: 2.40718
A150: 22 | B150: 10 | C150: 0.36834 | D150: 2.36663 | F150: 22 | G150: 10 | H150: 0.43783 | I150: 2.47479 | K150: 22 | L150: 10 | M150: 0.50363 | N150: 2.57051
A151: 22 | B151: 11 | C151: 0.30453 | D151: 2.54756 | F151: 22 | G151: 11 | H151: 0.36547 | I151: 2.64666 | K151: 22 | L151: 11 | M151: 0.42363 | N151: 2.73452
A152: 22 | B152: 12 | C152: 0.24625 | D152: 2.72903 | F152: 22 | G152: 12 | H152: 0.29873 | I152: 2.81797 | K152: 22 | L152: 12 | M152: 0.34926 | N152: 2.89726
A153: 22 | B153: 13 | C153: 0.19405 | D153: 2.90874 | F153: 22 | G153: 13 | H153: 0.23819 | I153: 2.98665 | K153: 22 | L153: 13 | M153: 0.28119 | N153: 3.05662
A154: 22 | B154: 14 | C154: 0.14814 | D154: 3.08383 | F154: 22 | G154: 14 | H154: 0.18445 | I154: 3.15065 | K154: 22 | L154: 14 | M154: 0.22003 | N154: 3.21061
A155: 22 | B155: 15 | C155: 0.10904 | D155: 3.25183 | F155: 22 | G155: 15 | H155: 0.13761 | I155: 3.30727 | K155: 22 | L155: 15 | M155: 0.16642 | N155: 3.35756
A156: 22 | B156: 16 | C156: 0.07686 | D156: 3.41161 | F156: 22 | G156: 16 | H156: 0.09844 | I156: 3.45354 | K156: 22 | L156: 16 | M156: 0.12028 | N156: 3.49463
A157: 22 | B157: 17 | C157: 0.05044 | D157: 3.56162 | F157: 22 | G157: 17 | H157: 0.06662 | I157: 3.5892 | K157: 22 | L157: 17 | M157: 0.08315 | N157: 3.6188
A158: 22 | B158: 18 | C158: 0.03182 | D158: 3.69967 | F158: 22 | G158: 18 | H158: 0.04109 | I158: 3.71364 | K158: 22 | L158: 18 | M158: 0.05242 | N158: 3.73092
A159: 23 | B159: 2 | C159: 1.0175 | D159: 1.1867 | F159: 23 | G159: 2 | H159: 1.14322 | I159: 1.31906 | K159: 23 | L159: 2 | M159: 1.25665 | N159: 1.43747
A160: 23 | B160: 3 | C160: 0.93783 | D160: 1.29051 | F160: 23 | G160: 3 | H160: 1.05865 | I160: 1.42425 | K160: 23 | L160: 3 | M160: 1.16815 | N160: 1.54346
A161: 23 | B161: 4 | C161: 0.85752 | D161: 1.40669 | F161: 23 | G161: 4 | H161: 0.9728 | I161: 1.54069 | K161: 23 | L161: 4 | M161: 1.07778 | N161: 1.65974
A162: 23 | B162: 5 | C162: 0.77734 | D162: 1.53449 | F162: 23 | G162: 5 | H162: 0.88652 | I162: 1.66755 | K162: 23 | L162: 5 | M162: 0.98639 | N162: 1.78546
A163: 23 | B163: 6 | C163: 0.69803 | D163: 1.67295 | F163: 23 | G163: 6 | H163: 0.80058 | I163: 1.80384 | K163: 23 | L163: 6 | M163: 0.89488 | N163: 1.91958
A164: 23 | B164: 7 | C164: 0.62037 | D164: 1.82091 | F164: 23 | G164: 7 | H164: 0.71585 | I164: 1.94839 | K164: 23 | L164: 7 | M164: 0.8041 | N164: 2.06093
A165: 23 | B165: 8 | C165: 0.54507 | D165: 1.97705 | F165: 23 | G165: 8 | H165: 0.6331 | I165: 2.09985 | K165: 23 | L165: 8 | M165: 0.71493 | N165: 2.20816
A166: 23 | B166: 9 | C166: 0.47283 | D166: 2.13981 | F166: 23 | G166: 9 | H166: 0.55313 | I166: 2.25676 | K166: 23 | L166: 9 | M166: 0.62821 | N166: 2.35988
A167: 23 | B167: 10 | C167: 0.40429 | D167: 2.30755 | F167: 23 | G167: 10 | H167: 0.47667 | I167: 2.41749 | K167: 23 | L167: 10 | M167: 0.54478 | N167: 2.51449
A168: 23 | B168: 11 | C168: 0.34008 | D168: 2.47848 | F168: 23 | G168: 11 | H168: 0.40442 | I168: 2.58036 | K168: 23 | L168: 11 | M168: 0.46541 | N168: 2.67038
A169: 23 | B169: 12 | C169: 0.28072 | D169: 2.65066 | F169: 23 | G169: 12 | H169: 0.33703 | I169: 2.74357 | K169: 23 | L169: 12 | M169: 0.39083 | N169: 2.82585
A170: 23 | B170: 13 | C170: 0.22668 | D170: 2.82218 | F170: 23 | G170: 13 | H170: 0.27508 | I170: 2.90522 | K170: 23 | L170: 13 | M170: 0.32172 | N170: 2.97919
A171: 23 | B171: 14 | C171: 0.17841 | D171: 2.991 | F171: 23 | G171: 14 | H171: 0.21905 | I171: 3.06349 | K171: 23 | L171: 14 | M171: 0.25866 | N171: 3.12852
A172: 23 | B172: 15 | C172: 0.13604 | D172: 3.15462 | F172: 23 | G172: 15 | H172: 0.16942 | I172: 3.21661 | K172: 23 | L172: 15 | M172: 0.20216 | N172: 3.27216
A173: 23 | B173: 16 | C173: 0.10004 | D173: 3.31092 | F173: 23 | G173: 16 | H173: 0.12627 | I173: 3.36216 | K173: 23 | L173: 16 | M173: 0.15274 | N173: 3.40865
A174: 23 | B174: 17 | C174: 0.07046 | D174: 3.45898 | F174: 23 | G174: 17 | H174: 0.09025 | I174: 3.49762 | K174: 23 | L174: 17 | M174: 0.11029 | N174: 3.53549
A175: 23 | B175: 18 | C175: 0.04621 | D175: 3.59749 | F175: 23 | G175: 18 | H175: 0.06104 | I175: 3.62285 | K175: 23 | L175: 18 | M175: 0.07619 | N175: 3.65007
A176: 23 | B176: 19 | C176: 0.02913 | D176: 3.72459 | F176: 23 | G176: 19 | H176: 0.03762 | I176: 3.73742 | K176: 23 | L176: 19 | M176: 0.04801 | N176: 3.75327
A177: 24 | B177: 2 | C177: 1.03675 | D177: 1.19899 | F177: 24 | G177: 2 | H177: 1.16095 | I177: 1.32933 | K177: 24 | L177: 2 | M177: 1.27276 | N177: 1.44575
A178: 24 | B178: 3 | C178: 0.95993 | D178: 1.29753 | F178: 24 | G178: 3 | H178: 1.0796 | I178: 1.4292 | K178: 24 | L178: 3 | M178: 1.18781 | N178: 1.54639
A179: 24 | B179: 4 | C179: 0.88236 | D179: 1.40733 | F179: 24 | G179: 4 | H179: 0.99695 | I179: 1.53934 | K179: 24 | L179: 4 | M179: 1.101 | N179: 1.65649
A180: 24 | B180: 5 | C180: 0.80474 | D180: 1.52776 | F180: 24 | G180: 5 | H180: 0.91371 | I180: 1.65906 | K180: 24 | L180: 5 | M180: 1.01309 | N180: 1.77526
A181: 24 | B181: 6 | C181: 0.72774 | D181: 1.65803 | F181: 24 | G181: 6 | H181: 0.83061 | I181: 1.7875 | K181: 24 | L181: 6 | M181: 0.92486 | N181: 1.90184
A182: 24 | B182: 7 | C182: 0.65204 | D182: 1.79712 | F182: 24 | G182: 7 | H182: 0.74836 | I182: 1.92366 | K182: 24 | L182: 7 | M182: 0.83706 | N182: 2.03522
A183: 24 | B183: 8 | C183: 0.57828 | D183: 1.94392 | F183: 24 | G183: 8 | H183: 0.66771 | I183: 2.06641 | K183: 24 | L183: 8 | M183: 0.75048 | N183: 2.17427
A184: 24 | B184: 9 | C184: 0.5071 | D184: 2.09712 | F184: 24 | G184: 9 | H184: 0.58934 | I184: 2.21447 | K184: 24 | L184: 9 | M184: 0.66589 | N184: 2.31774
A185: 24 | B185: 10 | C185: 0.4391 | D185: 2.2553 | F185: 24 | G185: 10 | H185: 0.51395 | I185: 2.36647 | K185: 24 | L185: 10 | M185: 0.584 | N185: 2.46431
A186: 24 | B186: 11 | C186: 0.37483 | D186: 2.41697 | F186: 24 | G186: 11 | H186: 0.44214 | I186: 2.52097 | K186: 24 | L186: 11 | M186: 0.50554 | N186: 2.6126
A187: 24 | B187: 12 | C187: 0.31482 | D187: 2.58045 | F187: 24 | G187: 12 | H187: 0.37455 | I187: 2.67643 | K187: 24 | L187: 12 | M187: 0.43119 | N187: 2.76111
A188: 24 | B188: 13 | C188: 0.25951 | D188: 2.74406 | F188: 24 | G188: 13 | H188: 0.31169 | I188: 2.83123 | K188: 24 | L188: 13 | M188: 0.36156 | N188: 2.90835
A189: 24 | B189: 14 | C189: 0.2093 | D189: 2.90609 | F189: 24 | G189: 14 | H189: 0.25407 | I189: 2.98373 | K189: 24 | L189: 14 | M189: 0.29723 | N189: 3.05282
A190: 24 | B190: 15 | C190: 0.16454 | D190: 3.06475 | F190: 24 | G190: 15 | H190: 0.20208 | I190: 3.13229 | K190: 24 | L190: 15 | M190: 0.23869 | N190: 3.19285
A191: 24 | B191: 16 | C191: 0.12535 | D191: 3.21782 | F191: 24 | G191: 16 | H191: 0.15615 | I191: 3.27541 | K191: 24 | L191: 16 | M191: 0.18635 | N191: 3.327
A192: 24 | B192: 17 | C192: 0.09209 | D192: 3.36345 | F192: 24 | G192: 17 | H192: 0.11628 | I192: 3.41093 | K192: 24 | L192: 17 | M192: 0.14066 | N192: 3.45402
A193: 24 | B193: 18 | C193: 0.06482 | D193: 3.50096 | F193: 24 | G193: 18 | H193: 0.08304 | I193: 3.53667 | K193: 24 | L193: 18 | M193: 0.1015 | N193: 3.57167
A194: 24 | B194: 19 | C194: 0.04249 | D194: 3.6292 | F194: 24 | G194: 19 | H194: 0.05614 | I194: 3.65259 | K194: 24 | L194: 19 | M194: 0.07006 | N194: 3.67769
A195: 24 | B195: 20 | C195: 0.02677 | D195: 3.74656 | F195: 24 | G195: 20 | H195: 0.03458 | I195: 3.75836 | K195: 24 | L195: 20 | M195: 0.04413 | N195: 3.77297
A196: 25 | B196: 2 | C196: 1.05497 | D196: 1.2108 | F196: 25 | G196: 2 | H196: 1.17765 | I196: 1.3392 | K196: 25 | L196: 2 | M196: 1.28791 | N196: 1.45371
A197: 25 | B197: 3 | C197: 0.9808 | D197: 1.30457 | F197: 25 | G197: 3 | H197: 1.09933 | I197: 1.43425 | K197: 25 | L197: 3 | M197: 1.20625 | N197: 1.54954
A198: 25 | B198: 4 | C198: 0.90582 | D198: 1.40865 | F198: 25 | G198: 4 | H198: 1.01965 | I198: 1.53873 | K198: 25 | L198: 4 | M198: 1.12276 | N198: 1.65403
A199: 25 | B199: 5 | C199: 0.83065 | D199: 1.52249 | F199: 25 | G199: 5 | H199: 0.93929 | I199: 1.65203 | K199: 25 | L199: 5 | M199: 1.03811 | N199: 1.76655
A200: 25 | B200: 6 | C200: 0.75587 | D200: 1.6454 | F200: 25 | G200: 6 | H200: 0.85887 | I200: 1.77342 | K200: 25 | L200: 6 | M200: 0.95297 | N200: 1.88634
A201: 25 | B201: 7 | C201: 0.68212 | D201: 1.77654 | F201: 25 | G201: 7 | H201: 0.77907 | I201: 1.90202 | K201: 25 | L201: 7 | M201: 0.86803 | N201: 2.01252
A202: 25 | B202: 8 | C202: 0.60995 | D202: 1.91492 | F202: 25 | G202: 8 | H202: 0.70051 | I202: 2.03688 | K202: 25 | L202: 8 | M202: 0.784 | N202: 2.14412
... 4713 more rows

Sheet Dunnett Table
A1: Dunnett's Test Critical Values
A3: alpha | B3: 0.01
A5: df\k | B5: 2 | C5: 3 | D5: 4 | E5: 5 | F5: 6 | G5: 7 | H5: 8 | I5: 9 | J5: 10 | K5: 11 | L5: 12 | M5: 13 | N5: 14 | O5: 15 | P5: 16 | Q5: 17 | R5: 18 | S5: 19 | T5: 20 | U5: 21
A6: 1 | B6: 63.657 | C6: 86.959 | D6: 100.28 | E6: 109.36 | F6: 116.153 | G6: 121.535 | H6: 125.967 | I6: 129.72 | J6: 132.966 | K6: 135.818 | L6: 138.358 | M6: 140.645 | N6: 142.721 | O6: 144.621 | P6: 146.371 | Q6: 147.991 | R6: 149.499 | S6: 150.908 | T6: 152.231 | U6: 153.476
A7: 2 | B7: 9.925 | C7: 12.388 | D7: 13.826 | E7: 14.825 | F7: 15.582 | G7: 16.189 | H7: 16.692 | I7: 17.121 | J7: 17.494 | K7: 17.823 | L7: 18.117 | M7: 18.383 | N7: 18.624 | O7: 18.846 | P7: 19.051 | Q7: 19.241 | R7: 19.418 | S7: 19.583 | T7: 19.739 | U7: 19.886
A8: 3 | B8: 5.841 | C8: 6.974 | D8: 7.639 | E8: 8.104 | F8: 8.46 | G8: 8.746 | H8: 8.985 | I8: 9.189 | J8: 9.367 | K8: 9.525 | L8: 9.666 | M8: 9.794 | N8: 9.91 | O8: 10.017 | P8: 10.116 | Q8: 10.208 | R8: 10.294 | S8: 10.375 | T8: 10.45 | U8: 10.522
A9: 4 | B9: 4.604 | C9: 5.364 | D9: 5.809 | E9: 6.121 | F9: 6.361 | G9: 6.554 | H9: 6.716 | I9: 6.854 | J9: 6.975 | K9: 7.082 | L9: 7.179 | M9: 7.266 | N9: 7.346 | O9: 7.419 | P9: 7.487 | Q9: 7.55 | R9: 7.609 | S9: 7.664 | T9: 7.716 | U9: 7.765
A10: 5 | B10: 4.032 | C10: 4.627 | D10: 4.975 | E10: 5.219 | F10: 5.406 | G10: 5.557 | H10: 5.683 | I10: 5.792 | J10: 5.887 | K10: 5.971 | L10: 6.047 | M10: 6.116 | N10: 6.178 | O10: 6.236 | P10: 6.289 | Q10: 6.339 | R10: 6.386 | S10: 6.429 | T10: 6.47 | U10: 6.509
A11: 6 | B11: 3.707 | C11: 4.212 | D11: 4.506 | E11: 4.711 | F11: 4.869 | G11: 4.997 | H11: 5.104 | I11: 5.196 | J11: 5.276 | K11: 5.347 | L11: 5.411 | M11: 5.469 | N11: 5.523 | O11: 5.572 | P11: 5.617 | Q11: 5.659 | R11: 5.699 | S11: 5.736 | T11: 5.77 | U11: 5.803
A12: 7 | B12: 3.499 | C12: 3.948 | D12: 4.208 | E12: 4.389 | F12: 4.529 | G12: 4.642 | H12: 4.736 | I12: 4.817 | J12: 4.888 | K12: 4.951 | L12: 5.008 | M12: 5.059 | N12: 5.106 | O12: 5.15 | P12: 5.19 | Q12: 5.227 | R12: 5.262 | S12: 5.295 | T12: 5.326 | U12: 5.355
A13: 8 | B13: 3.355 | C13: 3.766 | D13: 4.002 | E13: 4.168 | F13: 4.295 | G13: 4.397 | H13: 4.483 | I13: 4.557 | J13: 4.621 | K13: 4.679 | L13: 4.73 | M13: 4.777 | N13: 4.82 | O13: 4.859 | P13: 4.896 | Q13: 4.93 | R13: 4.961 | S13: 4.991 | T13: 5.019 | U13: 5.046
A14: 9 | B14: 3.25 | C14: 3.633 | D14: 3.853 | E14: 4.006 | F14: 4.124 | G14: 4.219 | H14: 4.299 | I14: 4.367 | J14: 4.427 | K14: 4.48 | L14: 4.528 | M14: 4.571 | N14: 4.611 | O14: 4.647 | P14: 4.681 | Q14: 4.713 | R14: 4.742 | S14: 4.77 | T14: 4.796 | U14: 4.821
A15: 10 | B15: 3.169 | C15: 3.531 | D15: 3.739 | E15: 3.883 | F15: 3.994 | G15: 4.084 | H15: 4.159 | I15: 4.223 | J15: 4.279 | K15: 4.329 | L15: 4.374 | M15: 4.415 | N15: 4.452 | O15: 4.487 | P15: 4.519 | Q15: 4.548 | R15: 4.576 | S15: 4.602 | T15: 4.627 | U15: 4.65
A16: 11 | B16: 3.106 | C16: 3.452 | D16: 3.649 | E16: 3.787 | F16: 3.892 | G16: 3.978 | H16: 4.049 | I16: 4.11 | J16: 4.164 | K16: 4.211 | L16: 4.254 | M16: 4.293 | N16: 4.328 | O16: 4.361 | P16: 4.391 | Q16: 4.419 | R16: 4.446 | S16: 4.47 | T16: 4.494 | U16: 4.516
A17: 12 | B17: 3.055 | C17: 3.387 | D17: 3.577 | E17: 3.709 | F17: 3.811 | G17: 3.892 | H17: 3.96 | I17: 4.019 | J17: 4.07 | K17: 4.116 | L17: 4.157 | M17: 4.194 | N17: 4.228 | O17: 4.259 | P17: 4.288 | Q17: 4.315 | R17: 4.34 | S17: 4.364 | T17: 4.387 | U17: 4.408
A18: 13 | B18: 3.012 | C18: 3.335 | D18: 3.518 | E18: 3.646 | F18: 3.743 | G18: 3.822 | H18: 3.888 | I18: 3.944 | J18: 3.994 | K18: 4.038 | L18: 4.077 | M18: 4.113 | N18: 4.146 | O18: 4.176 | P18: 4.204 | Q18: 4.23 | R18: 4.254 | S18: 4.277 | T18: 4.299 | U18: 4.319
A19: 14 | B19: 2.977 | C19: 3.29 | D19: 3.468 | E19: 3.592 | F19: 3.687 | G19: 3.763 | H19: 3.827 | I19: 3.882 | J19: 3.93 | K19: 3.972 | L19: 4.011 | M19: 4.045 | N19: 4.077 | O19: 4.106 | P19: 4.133 | Q19: 4.158 | R19: 4.182 | S19: 4.204 | T19: 4.225 | U19: 4.245
A20: 15 | B20: 2.947 | C20: 3.253 | D20: 3.426 | E20: 3.547 | F20: 3.639 | G20: 3.713 | H20: 3.776 | I20: 3.829 | J20: 3.875 | K20: 3.917 | L20: 3.954 | M20: 3.988 | N20: 4.019 | O20: 4.047 | P20: 4.073 | Q20: 4.098 | R20: 4.121 | S20: 4.142 | T20: 4.163 | U20: 4.182
A21: 16 | B21: 2.921 | C21: 3.22 | D21: 3.39 | E21: 3.508 | F21: 3.598 | G21: 3.671 | H21: 3.731 | I21: 3.783 | J21: 3.829 | K21: 3.869 | L21: 3.905 | M21: 3.938 | N21: 3.968 | O21: 3.996 | P21: 4.022 | Q21: 4.046 | R21: 4.068 | S21: 4.089 | T21: 4.109 | U21: 4.128
A22: 17 | B22: 2.898 | C22: 3.192 | D22: 3.359 | E22: 3.474 | F22: 3.563 | G22: 3.634 | H22: 3.693 | I22: 3.744 | J22: 3.788 | K22: 3.828 | L22: 3.863 | M22: 3.896 | N22: 3.925 | O22: 3.952 | P22: 3.977 | Q22: 4.001 | R22: 4.023 | S22: 4.043 | T22: 4.062 | U22: 4.081
A23: 18 | B23: 2.878 | C23: 3.168 | D23: 3.331 | E23: 3.445 | F23: 3.531 | G23: 3.601 | H23: 3.659 | I23: 3.709 | J23: 3.753 | K23: 3.792 | L23: 3.826 | M23: 3.858 | N23: 3.887 | O23: 3.914 | P23: 3.938 | Q23: 3.961 | R23: 3.983 | S23: 4.003 | T23: 4.022 | U23: 4.04
A24: 19 | B24: 2.861 | C24: 3.146 | D24: 3.307 | E24: 3.419 | F24: 3.504 | G24: 3.572 | H24: 3.63 | I24: 3.679 | J24: 3.722 | K24: 3.76 | L24: 3.794 | M24: 3.825 | N24: 3.853 | O24: 3.879 | P24: 3.904 | Q24: 3.926 | R24: 3.947 | S24: 3.967 | T24: 3.986 | U24: 4.003
A25: 20 | B25: 2.845 | C25: 3.127 | D25: 3.285 | E25: 3.395 | F25: 3.479 | G25: 3.547 | H25: 3.603 | I25: 3.651 | J25: 3.694 | K25: 3.731 | L25: 3.765 | M25: 3.795 | N25: 3.823 | O25: 3.849 | P25: 3.873 | Q25: 3.895 | R25: 3.916 | S25: 3.935 | T25: 3.954 | U25: 3.971
A26: 21 | B26: 2.831 | C26: 3.109 | D26: 3.266 | E26: 3.375 | F26: 3.457 | G26: 3.524 | H26: 3.579 | I26: 3.627 | J26: 3.669 | K26: 3.706 | L26: 3.739 | M26: 3.769 | N26: 3.797 | O26: 3.822 | P26: 3.845 | Q26: 3.867 | R26: 3.888 | S26: 3.907 | T26: 3.925 | U26: 3.942
A27: 22 | B27: 2.819 | C27: 3.094 | D27: 3.249 | E27: 3.356 | F27: 3.437 | G27: 3.503 | H27: 3.558 | I27: 3.605 | J27: 3.646 | K27: 3.683 | L27: 3.716 | M27: 3.745 | N27: 3.773 | O27: 3.798 | P27: 3.821 | Q27: 3.842 | R27: 3.862 | S27: 3.881 | T27: 3.899 | U27: 3.916
A28: 23 | B28: 2.807 | C28: 3.08 | D28: 3.233 | E28: 3.339 | F28: 3.42 | G28: 3.485 | H28: 3.539 | I28: 3.585 | J28: 3.626 | K28: 3.662 | L28: 3.694 | M28: 3.724 | N28: 3.751 | O28: 3.775 | P28: 3.798 | Q28: 3.82 | R28: 3.84 | S28: 3.858 | T28: 3.876 | U28: 3.893
A29: 24 | B29: 2.797 | C29: 3.067 | D29: 3.218 | E29: 3.323 | F29: 3.403 | G29: 3.468 | H29: 3.521 | I29: 3.567 | J29: 3.608 | K29: 3.643 | L29: 3.675 | M29: 3.704 | N29: 3.731 | O29: 3.755 | P29: 3.778 | Q29: 3.799 | R29: 3.819 | S29: 3.837 | T29: 3.855 | U29: 3.871
A30: 25 | B30: 2.787 | C30: 3.055 | D30: 3.205 | E30: 3.309 | F30: 3.388 | G30: 3.452 | H30: 3.505 | I30: 3.551 | J30: 3.591 | K30: 3.626 | L30: 3.658 | M30: 3.686 | N30: 3.713 | O30: 3.737 | P30: 3.759 | Q30: 3.78 | R30: 3.8 | S30: 3.818 | T30: 3.835 | U30: 3.852
A31: 26 | B31: 2.779 | C31: 3.044 | D31: 3.193 | E31: 3.296 | F31: 3.375 | G31: 3.438 | H31: 3.491 | I31: 3.536 | J31: 3.575 | K31: 3.61 | L31: 3.642 | M31: 3.67 | N31: 3.696 | O31: 3.72 | P31: 3.742 | Q31: 3.763 | R31: 3.782 | S31: 3.8 | T31: 3.817 | U31: 3.834
A32: 27 | B32: 2.771 | C32: 3.034 | D32: 3.182 | E32: 3.284 | F32: 3.362 | G32: 3.425 | H32: 3.477 | I32: 3.522 | J32: 3.561 | K32: 3.596 | L32: 3.627 | M32: 3.655 | N32: 3.681 | O32: 3.705 | P32: 3.727 | Q32: 3.747 | R32: 3.766 | S32: 3.784 | T32: 3.801 | U32: 3.817
A33: 28 | B33: 2.763 | C33: 3.025 | D33: 3.172 | E33: 3.273 | F33: 3.351 | G33: 3.413 | H33: 3.465 | I33: 3.509 | J33: 3.548 | K33: 3.582 | L33: 3.613 | M33: 3.641 | N33: 3.667 | O33: 3.69 | P33: 3.712 | Q33: 3.732 | R33: 3.751 | S33: 3.769 | T33: 3.786 | U33: 3.802
A34: 29 | B34: 2.756 | C34: 3.017 | D34: 3.162 | E34: 3.263 | F34: 3.34 | G34: 3.402 | H34: 3.453 | I34: 3.497 | J34: 3.536 | K34: 3.57 | L34: 3.6 | M34: 3.628 | N34: 3.654 | O34: 3.677 | P34: 3.699 | Q34: 3.719 | R34: 3.738 | S34: 3.755 | T34: 3.772 | U34: 3.788
A35: 30 | B35: 2.75 | C35: 3.009 | D35: 3.154 | E35: 3.254 | F35: 3.33 | G35: 3.391 | H35: 3.442 | I35: 3.486 | J35: 3.524 | K35: 3.558 | L35: 3.589 | M35: 3.616 | N35: 3.641 | O35: 3.665 | P35: 3.686 | Q35: 3.706 | R35: 3.725 | S35: 3.743 | T35: 3.759 | U35: 3.775
A36: 31 | B36: 2.744 | C36: 3.001 | D36: 3.145 | E36: 3.245 | F36: 3.321 | G36: 3.381 | H36: 3.432 | I36: 3.476 | J36: 3.514 | K36: 3.547 | L36: 3.578 | M36: 3.605 | N36: 3.63 | O36: 3.653 | P36: 3.675 | Q36: 3.695 | R36: 3.713 | S36: 3.731 | T36: 3.747 | U36: 3.763
A37: 32 | B37: 2.738 | C37: 2.994 | D37: 3.138 | E37: 3.237 | F37: 3.312 | G37: 3.372 | H37: 3.423 | I37: 3.466 | J37: 3.504 | K37: 3.537 | L37: 3.567 | M37: 3.595 | N37: 3.62 | O37: 3.643 | P37: 3.664 | Q37: 3.684 | R37: 3.702 | S37: 3.719 | T37: 3.736 | U37: 3.751
A38: 33 | B38: 2.733 | C38: 2.988 | D38: 3.131 | E38: 3.229 | F38: 3.304 | G38: 3.364 | H38: 3.414 | I38: 3.457 | J38: 3.495 | K38: 3.528 | L38: 3.558 | M38: 3.585 | N38: 3.61 | O38: 3.633 | P38: 3.654 | Q38: 3.673 | R38: 3.692 | S38: 3.709 | T38: 3.725 | U38: 3.74
A39: 34 | B39: 2.728 | C39: 2.982 | D39: 3.124 | E39: 3.222 | F39: 3.296 | G39: 3.356 | H39: 3.406 | I39: 3.449 | J39: 3.486 | K39: 3.519 | L39: 3.549 | M39: 3.576 | N39: 3.601 | O39: 3.623 | P39: 3.644 | Q39: 3.664 | R39: 3.682 | S39: 3.699 | T39: 3.715 | U39: 3.73
A40: 35 | B40: 2.724 | C40: 2.976 | D40: 3.118 | E40: 3.215 | F40: 3.289 | G40: 3.349 | H40: 3.398 | I40: 3.441 | J40: 3.478 | K40: 3.511 | L40: 3.541 | M40: 3.567 | N40: 3.592 | O40: 3.614 | P40: 3.635 | Q40: 3.655 | R40: 3.673 | S40: 3.69 | T40: 3.706 | U40: 3.721
A41: 36 | B41: 2.719 | C41: 2.971 | D41: 3.112 | E41: 3.209 | F41: 3.282 | G41: 3.342 | H41: 3.391 | I41: 3.433 | J41: 3.47 | K41: 3.503 | L41: 3.533 | M41: 3.559 | N41: 3.584 | O41: 3.606 | P41: 3.627 | Q41: 3.646 | R41: 3.664 | S41: 3.681 | T41: 3.697 | U41: 3.712
A42: 37 | B42: 2.715 | C42: 2.966 | D42: 3.106 | E42: 3.203 | F42: 3.276 | G42: 3.335 | H42: 3.384 | I42: 3.426 | J42: 3.463 | K42: 3.496 | L42: 3.525 | M42: 3.552 | N42: 3.576 | O42: 3.598 | P42: 3.619 | Q42: 3.638 | R42: 3.656 | S42: 3.673 | T42: 3.689 | U42: 3.704
A43: 38 | B43: 2.712 | C43: 2.961 | D43: 3.101 | E43: 3.197 | F43: 3.27 | G43: 3.329 | H43: 3.378 | I43: 3.42 | J43: 3.456 | K43: 3.489 | L43: 3.518 | M43: 3.544 | N43: 3.569 | O43: 3.591 | P43: 3.611 | Q43: 3.631 | R43: 3.649 | S43: 3.665 | T43: 3.681 | U43: 3.696
A44: 39 | B44: 2.708 | C44: 2.957 | D44: 3.096 | E44: 3.192 | F44: 3.264 | G44: 3.323 | H44: 3.372 | I44: 3.413 | J44: 3.45 | K44: 3.482 | L44: 3.511 | M44: 3.538 | N44: 3.562 | O44: 3.584 | P44: 3.604 | Q44: 3.623 | R44: 3.641 | S44: 3.658 | T44: 3.674 | U44: 3.689
A45: 40 | B45: 2.704 | C45: 2.952 | D45: 3.091 | E45: 3.186 | F45: 3.259 | G45: 3.317 | H45: 3.366 | I45: 3.408 | J45: 3.444 | K45: 3.476 | L45: 3.505 | M45: 3.531 | N45: 3.555 | O45: 3.577 | P45: 3.598 | Q45: 3.617 | R45: 3.634 | S45: 3.651 | T45: 3.667 | U45: 3.682
A46: 48 | B46: 2.682 | C46: 2.925 | D46: 3.06 | E46: 3.154 | F46: 3.224 | G46: 3.281 | H46: 3.329 | I46: 3.369 | J46: 3.405 | K46: 3.436 | L46: 3.464 | M46: 3.49 | N46: 3.513 | O46: 3.535 | P46: 3.555 | Q46: 3.573 | R46: 3.59 | S46: 3.607 | T46: 3.622 | U46: 3.636
A47: 60 | B47: 2.66 | C47: 2.898 | D47: 3.03 | E47: 3.121 | F47: 3.19 | G47: 3.246 | H47: 3.292 | I47: 3.332 | J47: 3.366 | K47: 3.397 | L47: 3.424 | M47: 3.449 | N47: 3.472 | O47: 3.493 | P47: 3.512 | Q47: 3.53 | R47: 3.547 | S47: 3.563 | T47: 3.578 | U47: 3.592
A48: 80 | B48: 2.639 | C48: 2.871 | D48: 3.001 | E48: 3.09 | F48: 3.157 | G48: 3.211 | H48: 3.256 | I48: 3.295 | J48: 3.328 | K48: 3.358 | L48: 3.385 | M48: 3.409 | N48: 3.431 | O48: 3.452 | P48: 3.471 | Q48: 3.488 | R48: 3.504 | S48: 3.52 | T48: 3.534 | U48: 3.548
A49: 120 | B49: 2.617 | C49: 2.845 | D49: 2.972 | E49: 3.059 | F49: 3.124 | G49: 3.177 | H49: 3.221 | I49: 3.259 | J49: 3.291 | K49: 3.32 | L49: 3.346 | M49: 3.37 | N49: 3.392 | O49: 3.411 | P49: 3.43 | Q49: 3.447 | R49: 3.463 | S49: 3.478 | T49: 3.492 | U49: 3.505
A50: 240 | B50: 2.596 | C50: 2.82 | D50: 2.943 | E50: 3.028 | F50: 3.092 | G50: 3.143 | H50: 3.186 | I50: 3.223 | J50: 3.255 | K50: 3.283 | L50: 3.308 | M50: 3.331 | N50: 3.352 | O50: 3.372 | P50: 3.389 | Q50: 3.406 | R50: 3.422 | S50: 3.436 | T50: 3.45 | U50: 3.463
A51: > | B51: 2.576 | C51: 2.794 | D51: 2.915 | E51: 2.998 | F51: 3.06 | G51: 3.11 | H51: 3.152 | I51: 3.188 | J51: 3.219 | K51: 3.246 | L51: 3.271 | M51: 3.293 | N51: 3.314 | O51: 3.333 | P51: 3.35 | Q51: 3.366 | R51: 3.381 | S51: 3.395 | T51: 3.409 | U51: 3.421
A53: alpha | B53: 0.05
A55: df\k | B55: 2 | C55: 3 | D55: 4 | E55: 5 | F55: 6 | G55: 7 | H55: 8 | I55: 9 | J55: 10 | K55: 11 | L55: 12 | M55: 13 | N55: 14 | O55: 15 | P55: 16 | Q55: 17 | R55: 18 | S55: 19 | T55: 20 | U55: 21
A56: 1 | B56: 12.706 | C56: 17.369 | D56: 20.034 | E56: 21.85 | F56: 23.209 | G56: 24.285 | H56: 25.171 | I56: 25.922 | J56: 26.57 | K56: 27.141 | L56: 27.649 | M56: 28.106 | N56: 28.521 | O56: 28.901 | P56: 29.251 | Q56: 29.575 | R56: 29.876 | S56: 30.158 | T56: 30.422 | U56: 30.671
A57: 2 | B57: 4.303 | C57: 5.418 | D57: 6.065 | E57: 6.513 | F57: 6.852 | G57: 7.124 | H57: 7.349 | I57: 7.54 | J57: 7.707 | K57: 7.853 | L57: 7.985 | M57: 8.103 | N57: 8.211 | O57: 8.31 | P57: 8.401 | Q57: 8.485 | R57: 8.564 | S57: 8.638 | T57: 8.707 | U57: 8.773
A58: 3 | B58: 3.182 | C58: 3.867 | D58: 4.263 | E58: 4.538 | F58: 4.748 | G58: 4.916 | H58: 5.056 | I58: 5.176 | J58: 5.28 | K58: 5.372 | L58: 5.455 | M58: 5.529 | N58: 5.597 | O58: 5.66 | P58: 5.717 | Q58: 5.771 | R58: 5.821 | S58: 5.868 | T58: 5.912 | U58: 5.953
A59: 4 | B59: 2.776 | C59: 3.31 | D59: 3.618 | E59: 3.832 | F59: 3.994 | G59: 4.125 | H59: 4.235 | I59: 4.328 | J59: 4.41 | K59: 4.482 | L59: 4.546 | M59: 4.605 | N59: 4.658 | O59: 4.707 | P59: 4.752 | Q59: 4.794 | R59: 4.834 | S59: 4.87 | T59: 4.905 | U59: 4.938
A60: 5 | B60: 2.571 | C60: 3.03 | D60: 3.293 | E60: 3.476 | F60: 3.615 | G60: 3.727 | H60: 3.821 | I60: 3.9 | J60: 3.97 | K60: 4.032 | L60: 4.087 | M60: 4.137 | N60: 4.183 | O60: 4.225 | P60: 4.264 | Q60: 4.3 | R60: 4.334 | S60: 4.366 | T60: 4.395 | U60: 4.424
A61: 6 | B61: 2.447 | C61: 2.863 | D61: 3.099 | E61: 3.263 | F61: 3.388 | G61: 3.489 | H61: 3.573 | I61: 3.644 | J61: 3.707 | K61: 3.763 | L61: 3.812 | M61: 3.857 | N61: 3.898 | O61: 3.936 | P61: 3.971 | Q61: 4.004 | R61: 4.034 | S61: 4.063 | T61: 4.089 | U61: 4.115
A62: 7 | B62: 2.365 | C62: 2.752 | D62: 2.971 | E62: 3.123 | F62: 3.238 | G62: 3.331 | H62: 3.408 | I62: 3.475 | J62: 3.533 | K62: 3.584 | L62: 3.63 | M62: 3.671 | N62: 3.709 | O62: 3.744 | P62: 3.777 | Q62: 3.807 | R62: 3.835 | S62: 3.861 | T62: 3.886 | U62: 3.909
A63: 8 | B63: 2.306 | C63: 2.673 | D63: 2.88 | E63: 3.023 | F63: 3.131 | G63: 3.219 | H63: 3.292 | I63: 3.354 | J63: 3.408 | K63: 3.457 | L63: 3.5 | M63: 3.539 | N63: 3.575 | O63: 3.608 | P63: 3.638 | Q63: 3.666 | R63: 3.693 | S63: 3.718 | T63: 3.741 | U63: 3.763
A64: 9 | B64: 2.262 | C64: 2.614 | D64: 2.812 | E64: 2.948 | F64: 3.052 | G64: 3.135 | H64: 3.205 | I64: 3.264 | J64: 3.316 | K64: 3.362 | L64: 3.403 | M64: 3.44 | N64: 3.474 | O64: 3.506 | P64: 3.535 | Q64: 3.562 | R64: 3.587 | S64: 3.61 | T64: 3.633 | U64: 3.654
A65: 10 | B65: 2.228 | C65: 2.568 | D65: 2.759 | E65: 2.89 | F65: 2.99 | G65: 3.07 | H65: 3.137 | I65: 3.194 | J65: 3.244 | K65: 3.288 | L65: 3.328 | M65: 3.364 | N65: 3.396 | O65: 3.427 | P65: 3.454 | Q65: 3.48 | R65: 3.504 | S65: 3.527 | T65: 3.549 | U65: 3.569
A66: 11 | B66: 2.201 | C66: 2.532 | D66: 2.717 | E66: 2.845 | F66: 2.941 | G66: 3.019 | H66: 3.084 | I66: 3.139 | J66: 3.187 | K66: 3.23 | L66: 3.268 | M66: 3.303 | N66: 3.334 | O66: 3.363 | P66: 3.39 | Q66: 3.415 | R66: 3.439 | S66: 3.461 | T66: 3.481 | U66: 3.501
A67: 12 | B67: 2.179 | C67: 2.502 | D67: 2.683 | E67: 2.807 | F67: 2.901 | G67: 2.977 | H67: 3.04 | I67: 3.094 | J67: 3.14 | K67: 3.182 | L67: 3.219 | M67: 3.253 | N67: 3.284 | O67: 3.312 | P67: 3.338 | Q67: 3.363 | R67: 3.385 | S67: 3.407 | T67: 3.427 | U67: 3.446
A68: 13 | B68: 2.16 | C68: 2.478 | D68: 2.654 | E68: 2.776 | F68: 2.868 | G68: 2.942 | H68: 3.003 | I68: 3.056 | J68: 3.102 | K68: 3.142 | L68: 3.179 | M68: 3.212 | N68: 3.242 | O68: 3.269 | P68: 3.295 | Q68: 3.319 | R68: 3.341 | S68: 3.362 | T68: 3.381 | U68: 3.4
A69: 14 | B69: 2.145 | C69: 2.457 | D69: 2.631 | E69: 2.75 | F69: 2.84 | G69: 2.912 | H69: 2.973 | I69: 3.024 | J69: 3.069 | K69: 3.109 | L69: 3.144 | M69: 3.177 | N69: 3.206 | O69: 3.233 | P69: 3.258 | Q69: 3.282 | R69: 3.303 | S69: 3.324 | T69: 3.343 | U69: 3.361
A70: 15 | B70: 2.131 | C70: 2.439 | D70: 2.61 | E70: 2.727 | F70: 2.816 | G70: 2.887 | H70: 2.946 | I70: 2.997 | J70: 3.041 | K70: 3.08 | L70: 3.115 | M70: 3.147 | N70: 3.176 | O70: 3.202 | P70: 3.227 | Q70: 3.25 | R70: 3.271 | S70: 3.291 | T70: 3.31 | U70: 3.328
A71: 16 | B71: 2.12 | C71: 2.424 | D71: 2.592 | E71: 2.708 | F71: 2.795 | G71: 2.865 | H71: 2.924 | I71: 2.974 | J71: 3.017 | K71: 3.056 | L71: 3.09 | M71: 3.121 | N71: 3.15 | O71: 3.176 | P71: 3.2 | Q71: 3.222 | R71: 3.243 | S71: 3.263 | T71: 3.282 | U71: 3.299
A72: 17 | B72: 2.11 | C72: 2.41 | D72: 2.577 | E72: 2.691 | F72: 2.777 | G72: 2.846 | H72: 2.904 | I72: 2.953 | J72: 2.996 | K72: 3.034 | L72: 3.068 | M72: 3.099 | N72: 3.127 | O72: 3.152 | P72: 3.176 | Q72: 3.199 | R72: 3.219 | S72: 3.239 | T72: 3.257 | U72: 3.274
A73: 18 | B73: 2.101 | C73: 2.399 | D73: 2.563 | E73: 2.676 | F73: 2.761 | G73: 2.83 | H73: 2.887 | I73: 2.935 | J73: 2.977 | K73: 3.015 | L73: 3.048 | M73: 3.079 | N73: 3.107 | O73: 3.132 | P73: 3.156 | Q73: 3.177 | R73: 3.198 | S73: 3.217 | T73: 3.235 | U73: 3.252
A74: 19 | B74: 2.093 | C74: 2.388 | D74: 2.551 | E74: 2.663 | F74: 2.747 | G74: 2.815 | H74: 2.871 | I74: 2.919 | J74: 2.961 | K74: 2.998 | L74: 3.031 | M74: 3.061 | N74: 3.089 | O74: 3.114 | P74: 3.137 | Q74: 3.159 | R74: 3.179 | S74: 3.198 | T74: 3.216 | U74: 3.233
A75: 20 | B75: 2.086 | C75: 2.379 | D75: 2.54 | E75: 2.651 | F75: 2.735 | G75: 2.802 | H75: 2.857 | I75: 2.905 | J75: 2.946 | K75: 2.983 | L75: 3.016 | M75: 3.045 | N75: 3.073 | O75: 3.098 | P75: 3.121 | Q75: 3.142 | R75: 3.162 | S75: 3.181 | T75: 3.198 | U75: 3.215
A76: 21 | B76: 2.08 | C76: 2.37 | D76: 2.531 | E76: 2.64 | F76: 2.723 | G76: 2.79 | H76: 2.845 | I76: 2.892 | J76: 2.933 | K76: 2.969 | L76: 3.002 | M76: 3.031 | N76: 3.058 | O76: 3.083 | P76: 3.106 | Q76: 3.127 | R76: 3.147 | S76: 3.165 | T76: 3.183 | U76: 3.199
A77: 22 | B77: 2.074 | C77: 2.363 | D77: 2.522 | E77: 2.631 | F77: 2.713 | G77: 2.779 | H77: 2.834 | I77: 2.88 | J77: 2.921 | K77: 2.957 | L77: 2.989 | M77: 3.019 | N77: 3.045 | O77: 3.07 | P77: 3.092 | Q77: 3.113 | R77: 3.133 | S77: 3.151 | T77: 3.169 | U77: 3.185
A78: 23 | B78: 2.069 | C78: 2.356 | D78: 2.514 | E78: 2.622 | F78: 2.704 | G78: 2.769 | H78: 2.824 | I78: 2.87 | J78: 2.91 | K78: 2.946 | L78: 2.978 | M78: 3.007 | N78: 3.033 | O78: 3.058 | P78: 3.08 | Q78: 3.101 | R78: 3.121 | S78: 3.139 | T78: 3.156 | U78: 3.172
A79: 24 | B79: 2.064 | C79: 2.349 | D79: 2.507 | E79: 2.614 | F79: 2.695 | G79: 2.76 | H79: 2.814 | I79: 2.86 | J79: 2.9 | K79: 2.936 | L79: 2.968 | M79: 2.996 | N79: 3.023 | O79: 3.047 | P79: 3.069 | Q79: 3.09 | R79: 3.109 | S79: 3.127 | T79: 3.144 | U79: 3.161
A80: 25 | B80: 2.06 | C80: 2.344 | D80: 2.5 | E80: 2.607 | F80: 2.688 | G80: 2.752 | H80: 2.806 | I80: 2.851 | J80: 2.891 | K80: 2.927 | L80: 2.958 | M80: 2.987 | N80: 3.013 | O80: 3.037 | P80: 3.059 | Q80: 3.08 | R80: 3.099 | S80: 3.117 | T80: 3.134 | U80: 3.15
A81: 26 | B81: 2.056 | C81: 2.338 | D81: 2.494 | E81: 2.6 | F81: 2.68 | G81: 2.745 | H81: 2.798 | I81: 2.843 | J81: 2.883 | K81: 2.918 | L81: 2.949 | M81: 2.978 | N81: 3.004 | O81: 3.028 | P81: 3.05 | Q81: 3.07 | R81: 3.089 | S81: 3.107 | T81: 3.124 | U81: 3.14
A82: 27 | B82: 2.052 | C82: 2.333 | D82: 2.488 | E82: 2.594 | F82: 2.674 | G82: 2.738 | H82: 2.791 | I82: 2.836 | J82: 2.875 | K82: 2.91 | L82: 2.941 | M82: 2.97 | N82: 2.995 | O82: 3.019 | P82: 3.041 | Q82: 3.061 | R82: 3.08 | S82: 3.098 | T82: 3.115 | U82: 3.131
A83: 28 | B83: 2.048 | C83: 2.329 | D83: 2.483 | E83: 2.588 | F83: 2.668 | G83: 2.731 | H83: 2.784 | I83: 2.829 | J83: 2.868 | K83: 2.903 | L83: 2.934 | M83: 2.962 | N83: 2.988 | O83: 3.011 | P83: 3.033 | Q83: 3.053 | R83: 3.072 | S83: 3.09 | T83: 3.107 | U83: 3.122
A84: 29 | B84: 2.045 | C84: 2.325 | D84: 2.478 | E84: 2.583 | F84: 2.662 | G84: 2.725 | H84: 2.778 | I84: 2.823 | J84: 2.862 | K84: 2.896 | L84: 2.927 | M84: 2.955 | N84: 2.981 | O84: 3.004 | P84: 3.026 | Q84: 3.046 | R84: 3.065 | S84: 3.082 | T84: 3.099 | U84: 3.114
A85: 30 | B85: 2.042 | C85: 2.321 | D85: 2.474 | E85: 2.578 | F85: 2.657 | G85: 2.72 | H85: 2.772 | I85: 2.817 | J85: 2.856 | K85: 2.89 | L85: 2.921 | M85: 2.949 | N85: 2.974 | O85: 2.997 | P85: 3.019 | Q85: 3.039 | R85: 3.058 | S85: 3.075 | T85: 3.092 | U85: 3.107
A86: 31 | B86: 2.04 | C86: 2.317 | D86: 2.469 | E86: 2.574 | F86: 2.652 | G86: 2.715 | H86: 2.767 | I86: 2.811 | J86: 2.85 | K86: 2.884 | L86: 2.915 | M86: 2.942 | N86: 2.968 | O86: 2.991 | P86: 3.012 | Q86: 3.032 | R86: 3.051 | S86: 3.068 | T86: 3.085 | U86: 3.1
A87: 32 | B87: 2.037 | C87: 2.314 | D87: 2.466 | E87: 2.569 | F87: 2.647 | G87: 2.71 | H87: 2.762 | I87: 2.806 | J87: 2.845 | K87: 2.879 | L87: 2.909 | M87: 2.937 | N87: 2.962 | O87: 2.985 | P87: 3.006 | Q87: 3.026 | R87: 3.045 | S87: 3.062 | T87: 3.079 | U87: 3.094
A88: 33 | B88: 2.035 | C88: 2.31 | D88: 2.462 | E88: 2.565 | F88: 2.643 | G88: 2.705 | H88: 2.757 | I88: 2.801 | J88: 2.84 | K88: 2.873 | L88: 2.904 | M88: 2.931 | N88: 2.956 | O88: 2.979 | P88: 3.001 | Q88: 3.021 | R88: 3.039 | S88: 3.056 | T88: 3.073 | U88: 3.088
A89: 34 | B89: 2.032 | C89: 2.307 | D89: 2.458 | E89: 2.561 | F89: 2.639 | G89: 2.701 | H89: 2.753 | I89: 2.797 | J89: 2.835 | K89: 2.869 | L89: 2.899 | M89: 2.926 | N89: 2.951 | O89: 2.974 | P89: 2.996 | Q89: 3.015 | R89: 3.034 | S89: 3.051 | T89: 3.067 | U89: 3.082
A90: 35 | B90: 2.03 | C90: 2.305 | D90: 2.455 | E90: 2.558 | F90: 2.635 | G90: 2.697 | H90: 2.748 | I90: 2.792 | J90: 2.83 | K90: 2.864 | L90: 2.894 | M90: 2.922 | N90: 2.947 | O90: 2.969 | P90: 2.991 | Q90: 3.01 | R90: 3.029 | S90: 3.046 | T90: 3.062 | U90: 3.077
A91: 36 | B91: 2.028 | C91: 2.302 | D91: 2.452 | E91: 2.555 | F91: 2.632 | G91: 2.693 | H91: 2.745 | I91: 2.788 | J91: 2.826 | K91: 2.86 | L91: 2.89 | M91: 2.917 | N91: 2.942 | O91: 2.965 | P91: 2.986 | Q91: 3.005 | R91: 3.024 | S91: 3.041 | T91: 3.057 | U91: 3.072
A92: 37 | B92: 2.026 | C92: 2.299 | D92: 2.449 | E92: 2.551 | F92: 2.628 | G92: 2.69 | H92: 2.741 | I92: 2.784 | J92: 2.822 | K92: 2.856 | L92: 2.886 | M92: 2.913 | N92: 2.938 | O92: 2.96 | P92: 2.981 | Q92: 3.001 | R92: 3.019 | S92: 3.036 | T92: 3.052 | U92: 3.068
A93: 38 | B93: 2.024 | C93: 2.297 | D93: 2.447 | E93: 2.548 | F93: 2.625 | G93: 2.686 | H93: 2.737 | I93: 2.781 | J93: 2.819 | K93: 2.852 | L93: 2.882 | M93: 2.909 | N93: 2.934 | O93: 2.956 | P93: 2.977 | Q93: 2.997 | R93: 3.015 | S93: 3.032 | T93: 3.048 | U93: 3.063
A94: 39 | B94: 2.023 | C94: 2.295 | D94: 2.444 | E94: 2.546 | F94: 2.622 | G94: 2.683 | H94: 2.734 | I94: 2.777 | J94: 2.815 | K94: 2.848 | L94: 2.878 | M94: 2.905 | N94: 2.93 | O94: 2.952 | P94: 2.973 | Q94: 2.993 | R94: 3.011 | S94: 3.028 | T94: 3.044 | U94: 3.059
A95: 40 | B95: 2.021 | C95: 2.293 | D95: 2.441 | E95: 2.543 | F95: 2.619 | G95: 2.68 | H95: 2.731 | I95: 2.774 | J95: 2.812 | K95: 2.845 | L95: 2.875 | M95: 2.902 | N95: 2.926 | O95: 2.949 | P95: 2.97 | Q95: 2.989 | R95: 3.007 | S95: 3.024 | T95: 3.04 | U95: 3.055
A96: 48 | B96: 2.011 | C96: 2.279 | D96: 2.426 | E96: 2.526 | F96: 2.601 | G96: 2.661 | H96: 2.711 | I96: 2.753 | J96: 2.79 | K96: 2.823 | L96: 2.852 | M96: 2.879 | N96: 2.903 | O96: 2.925 | P96: 2.945 | Q96: 2.964 | R96: 2.982 | S96: 2.999 | T96: 3.015 | U96: 3.029
A97: 60 | B97: 2 | C97: 2.265 | D97: 2.41 | E97: 2.508 | F97: 2.582 | G97: 2.642 | H97: 2.691 | I97: 2.733 | J97: 2.769 | K97: 2.801 | L97: 2.83 | M97: 2.856 | N97: 2.88 | O97: 2.901 | P97: 2.922 | Q97: 2.94 | R97: 2.958 | S97: 2.974 | T97: 2.989 | U97: 3.004
A98: 80 | B98: 1.99 | C98: 2.252 | D98: 2.394 | E98: 2.491 | F98: 2.564 | G98: 2.623 | H98: 2.671 | I98: 2.712 | J98: 2.748 | K98: 2.78 | L98: 2.808 | M98: 2.833 | N98: 2.857 | O98: 2.878 | P98: 2.898 | Q98: 2.916 | R98: 2.933 | S98: 2.95 | T98: 2.965 | U98: 2.979
A99: 120 | B99: 1.98 | C99: 2.238 | D99: 2.379 | E99: 2.475 | F99: 2.547 | G99: 2.604 | H99: 2.651 | I99: 2.692 | J99: 2.727 | K99: 2.758 | L99: 2.786 | M99: 2.811 | N99: 2.834 | O99: 2.855 | P99: 2.875 | Q99: 2.893 | R99: 2.91 | S99: 2.925 | T99: 2.94 | U99: 2.954
A100: 240 | B100: 1.97 | C100: 2.225 | D100: 2.364 | E100: 2.458 | F100: 2.529 | G100: 2.585 | H100: 2.632 | I100: 2.672 | J100: 2.707 | K100: 2.737 | L100: 2.764 | M100: 2.789 | N100: 2.812 | O100: 2.832 | P100: 2.852 | Q100: 2.869 | R100: 2.886 | S100: 2.901 | T100: 2.916 | U100: 2.93
A101: > | B101: 1.96 | C101: 2.212 | D101: 2.349 | E101: 2.442 | F101: 2.511 | G101: 2.567 | H101: 2.613 | I101: 2.652 | J101: 2.686 | K101: 2.716 | L101: 2.743 | M101: 2.767 | N101: 2.79 | O101: 2.81 | P101: 2.829 | Q101: 2.846 | R101: 2.862 | S101: 2.878 | T101: 2.892 | U101: 2.905
A103: alpha | B103: 0.1
A105: df\k | B105: 2 | C105: 3 | D105: 4 | E105: 5 | F105: 6 | G105: 7 | H105: 8 | I105: 9 | J105: 10 | K105: 11 | L105: 12 | M105: 13 | N105: 14 | O105: 15 | P105: 16 | Q105: 17 | R105: 18 | S105: 19 | T105: 20 | U105: 21
A106: 1 | B106: 6.314 | C106: 8.65 | D106: 9.983 | E106: 10.891 | F106: 11.57 | G106: 12.108 | H106: 12.551 | I106: 12.926 | J106: 13.25 | K106: 13.535 | L106: 13.788 | M106: 14.017 | N106: 14.224 | O106: 14.414 | P106: 14.589 | Q106: 14.75 | R106: 14.901 | S106: 15.042 | T106: 15.174 | U106: 15.298
A107: 2 | B107: 2.92 | C107: 3.721 | D107: 4.182 | E107: 4.5 | F107: 4.74 | G107: 4.932 | H107: 5.091 | I107: 5.226 | J107: 5.344 | K107: 5.447 | L107: 5.54 | M107: 5.623 | N107: 5.699 | O107: 5.768 | P107: 5.833 | Q107: 5.892 | R107: 5.948 | S107: 6 | T107: 6.048 | U107: 6.094
A108: 3 | B108: 2.353 | C108: 2.912 | D108: 3.232 | E108: 3.453 | F108: 3.621 | G108: 3.755 | H108: 3.866 | I108: 3.961 | J108: 4.044 | K108: 4.117 | L108: 4.182 | M108: 4.242 | N108: 4.295 | O108: 4.345 | P108: 4.39 | Q108: 4.432 | R108: 4.472 | S108: 4.509 | T108: 4.543 | U108: 4.576
A109: 4 | B109: 2.132 | C109: 2.598 | D109: 2.863 | E109: 3.046 | F109: 3.185 | G109: 3.296 | H109: 3.389 | I109: 3.468 | J109: 3.536 | K109: 3.597 | L109: 3.652 | M109: 3.701 | N109: 3.746 | O109: 3.787 | P109: 3.825 | Q109: 3.86 | R109: 3.893 | S109: 3.924 | T109: 3.953 | U109: 3.98
A110: 5 | B110: 2.015 | C110: 2.433 | D110: 2.669 | E110: 2.832 | F110: 2.956 | G110: 3.055 | H110: 3.137 | I110: 3.207 | J110: 3.268 | K110: 3.322 | L110: 3.371 | M110: 3.415 | N110: 3.455 | O110: 3.491 | P110: 3.525 | Q110: 3.557 | R110: 3.586 | S110: 3.614 | T110: 3.64 | U110: 3.664
A111: 6 | B111: 1.943 | C111: 2.332 | D111: 2.551 | E111: 2.701 | F111: 2.815 | G111: 2.906 | H111: 2.982 | I111: 3.047 | J111: 3.103 | K111: 3.153 | L111: 3.198 | M111: 3.238 | N111: 3.275 | O111: 3.309 | P111: 3.34 | Q111: 3.369 | R111: 3.396 | S111: 3.422 | T111: 3.446 | U111: 3.468
A112: 7 | B112: 1.895 | C112: 2.264 | D112: 2.47 | E112: 2.612 | F112: 2.72 | G112: 2.806 | H112: 2.877 | I112: 2.938 | J112: 2.991 | K112: 3.038 | L112: 3.08 | M112: 3.119 | N112: 3.153 | O112: 3.185 | P112: 3.215 | Q112: 3.242 | R112: 3.268 | S112: 3.292 | T112: 3.314 | U112: 3.336
A113: 8 | B113: 1.86 | C113: 2.215 | D113: 2.413 | E113: 2.548 | F113: 2.651 | G113: 2.733 | H113: 2.802 | I113: 2.86 | J113: 2.911 | K113: 2.956 | L113: 2.996 | M113: 3.032 | N113: 3.065 | O113: 3.096 | P113: 3.124 | Q113: 3.15 | R113: 3.175 | S113: 3.198 | T113: 3.219 | U113: 3.239
A114: 9 | B114: 1.833 | C114: 2.178 | D114: 2.369 | E114: 2.5 | F114: 2.599 | G114: 2.679 | H114: 2.745 | I114: 2.801 | J114: 2.85 | K114: 2.893 | L114: 2.932 | M114: 2.967 | N114: 2.999 | O114: 3.028 | P114: 3.055 | Q114: 3.081 | R114: 3.104 | S114: 3.126 | T114: 3.147 | U114: 3.167
A115: 10 | B115: 1.812 | C115: 2.149 | D115: 2.335 | E115: 2.463 | F115: 2.559 | G115: 2.636 | H115: 2.7 | I115: 2.755 | J115: 2.802 | K115: 2.844 | L115: 2.882 | M115: 2.916 | N115: 2.947 | O115: 2.975 | P115: 3.002 | Q115: 3.026 | R115: 3.049 | S115: 3.07 | T115: 3.091 | U115: 3.11
A116: 11 | B116: 1.796 | C116: 2.126 | D116: 2.308 | E116: 2.433 | F116: 2.527 | G116: 2.602 | H116: 2.664 | I116: 2.718 | J116: 2.764 | K116: 2.805 | L116: 2.842 | M116: 2.875 | N116: 2.905 | O116: 2.933 | P116: 2.959 | Q116: 2.982 | R116: 3.005 | S116: 3.026 | T116: 3.045 | U116: 3.064
A117: 12 | B117: 1.782 | C117: 2.107 | D117: 2.286 | E117: 2.408 | F117: 2.5 | G117: 2.574 | H117: 2.635 | I117: 2.687 | J117: 2.733 | K117: 2.773 | L117: 2.809 | M117: 2.841 | N117: 2.871 | O117: 2.898 | P117: 2.923 | Q117: 2.947 | R117: 2.968 | S117: 2.989 | T117: 3.008 | U117: 3.026
A118: 13 | B118: 1.771 | C118: 2.091 | D118: 2.267 | E118: 2.387 | F118: 2.478 | G118: 2.55 | H118: 2.611 | I118: 2.662 | J118: 2.706 | K118: 2.746 | L118: 2.781 | M118: 2.813 | N118: 2.842 | O118: 2.869 | P118: 2.894 | Q118: 2.917 | R118: 2.938 | S118: 2.958 | T118: 2.977 | U118: 2.995
A119: 14 | B119: 1.761 | C119: 2.078 | D119: 2.252 | E119: 2.37 | F119: 2.459 | G119: 2.531 | H119: 2.59 | I119: 2.64 | J119: 2.684 | K119: 2.723 | L119: 2.758 | M119: 2.789 | N119: 2.818 | O119: 2.844 | P119: 2.868 | Q119: 2.891 | R119: 2.912 | S119: 2.932 | T119: 2.951 | U119: 2.968
A120: 15 | B120: 1.753 | C120: 2.066 | D120: 2.238 | E120: 2.355 | F120: 2.443 | G120: 2.514 | H120: 2.572 | I120: 2.622 | J120: 2.665 | K120: 2.703 | L120: 2.738 | M120: 2.769 | N120: 2.797 | O120: 2.823 | P120: 2.847 | Q120: 2.869 | R120: 2.89 | S120: 2.91 | T120: 2.928 | U120: 2.945
A121: 16 | B121: 1.746 | C121: 2.056 | D121: 2.226 | E121: 2.342 | F121: 2.429 | G121: 2.499 | H121: 2.557 | I121: 2.606 | J121: 2.649 | K121: 2.687 | L121: 2.72 | M121: 2.751 | N121: 2.779 | O121: 2.805 | P121: 2.828 | Q121: 2.85 | R121: 2.871 | S121: 2.89 | T121: 2.908 | U121: 2.925
A122: 17 | B122: 1.74 | C122: 2.048 | D122: 2.216 | E122: 2.331 | F122: 2.417 | G122: 2.486 | H122: 2.543 | I122: 2.592 | J122: 2.634 | K122: 2.672 | L122: 2.705 | M122: 2.735 | N122: 2.763 | O122: 2.788 | P122: 2.812 | Q122: 2.834 | R122: 2.854 | S122: 2.873 | T122: 2.891 | U122: 2.908
A123: 18 | B123: 1.734 | C123: 2.04 | D123: 2.207 | E123: 2.321 | F123: 2.406 | G123: 2.475 | H123: 2.531 | I123: 2.579 | J123: 2.621 | K123: 2.659 | L123: 2.692 | M123: 2.722 | N123: 2.749 | O123: 2.774 | P123: 2.797 | Q123: 2.819 | R123: 2.839 | S123: 2.858 | T123: 2.876 | U123: 2.892
A124: 19 | B124: 1.729 | C124: 2.033 | D124: 2.199 | E124: 2.312 | F124: 2.397 | G124: 2.464 | H124: 2.521 | I124: 2.568 | J124: 2.61 | K124: 2.647 | L124: 2.68 | M124: 2.71 | N124: 2.737 | O124: 2.762 | P124: 2.785 | Q124: 2.806 | R124: 2.826 | S124: 2.845 | T124: 2.862 | U124: 2.879
A125: 20 | B125: 1.725 | C125: 2.027 | D125: 2.192 | E125: 2.304 | F125: 2.388 | G125: 2.455 | H125: 2.511 | I125: 2.559 | J125: 2.6 | K125: 2.636 | L125: 2.669 | M125: 2.699 | N125: 2.726 | O125: 2.75 | P125: 2.773 | Q125: 2.794 | R125: 2.814 | S125: 2.833 | T125: 2.85 | U125: 2.866
A126: 21 | B126: 1.721 | C126: 2.021 | D126: 2.185 | E126: 2.297 | F126: 2.38 | G126: 2.447 | H126: 2.503 | I126: 2.55 | J126: 2.591 | K126: 2.627 | L126: 2.659 | M126: 2.689 | N126: 2.715 | O126: 2.74 | P126: 2.763 | Q126: 2.784 | R126: 2.803 | S126: 2.822 | T126: 2.839 | U126: 2.855
A127: 22 | B127: 1.717 | C127: 2.016 | D127: 2.179 | E127: 2.29 | F127: 2.373 | G127: 2.44 | H127: 2.495 | I127: 2.542 | J127: 2.583 | K127: 2.619 | L127: 2.651 | M127: 2.68 | N127: 2.706 | O127: 2.731 | P127: 2.753 | Q127: 2.774 | R127: 2.794 | S127: 2.812 | T127: 2.829 | U127: 2.845
A128: 23 | B128: 1.714 | C128: 2.012 | D128: 2.174 | E128: 2.284 | F128: 2.367 | G128: 2.433 | H128: 2.488 | I128: 2.534 | J128: 2.575 | K128: 2.611 | L128: 2.643 | M128: 2.672 | N128: 2.698 | O128: 2.722 | P128: 2.745 | Q128: 2.766 | R128: 2.785 | S128: 2.803 | T128: 2.82 | U128: 2.836
A129: 24 | B129: 1.711 | C129: 2.008 | D129: 2.169 | E129: 2.279 | F129: 2.361 | G129: 2.427 | H129: 2.481 | I129: 2.528 | J129: 2.568 | K129: 2.604 | L129: 2.636 | M129: 2.664 | N129: 2.691 | O129: 2.715 | P129: 2.737 | Q129: 2.758 | R129: 2.777 | S129: 2.795 | T129: 2.812 | U129: 2.828
A130: 25 | B130: 1.708 | C130: 2.004 | D130: 2.165 | E130: 2.274 | F130: 2.356 | G130: 2.421 | H130: 2.476 | I130: 2.522 | J130: 2.562 | K130: 2.597 | L130: 2.629 | M130: 2.658 | N130: 2.684 | O130: 2.708 | P130: 2.73 | Q130: 2.75 | R130: 2.77 | S130: 2.788 | T130: 2.804 | U130: 2.82
A131: 26 | B131: 1.706 | C131: 2 | D131: 2.161 | E131: 2.269 | F131: 2.351 | G131: 2.416 | H131: 2.47 | I131: 2.516 | J131: 2.556 | K131: 2.591 | L131: 2.623 | M131: 2.651 | N131: 2.677 | O131: 2.701 | P131: 2.723 | Q131: 2.744 | R131: 2.763 | S131: 2.781 | T131: 2.797 | U131: 2.813
A132: 27 | B132: 1.703 | C132: 1.997 | D132: 2.157 | E132: 2.265 | F132: 2.347 | G132: 2.411 | H132: 2.465 | I132: 2.511 | J132: 2.551 | K132: 2.586 | L132: 2.617 | M132: 2.646 | N132: 2.671 | O132: 2.695 | P132: 2.717 | Q132: 2.738 | R132: 2.757 | S132: 2.774 | T132: 2.791 | U132: 2.807
A133: 28 | B133: 1.701 | C133: 1.994 | D133: 2.153 | E133: 2.261 | F133: 2.342 | G133: 2.407 | H133: 2.461 | I133: 2.506 | J133: 2.546 | K133: 2.581 | L133: 2.612 | M133: 2.64 | N133: 2.666 | O133: 2.69 | P133: 2.712 | Q133: 2.732 | R133: 2.751 | S133: 2.768 | T133: 2.785 | U133: 2.801
A134: 29 | B134: 1.699 | C134: 1.991 | D134: 2.15 | E134: 2.258 | F134: 2.338 | G134: 2.403 | H134: 2.456 | I134: 2.502 | J134: 2.541 | K134: 2.576 | L134: 2.607 | M134: 2.635 | N134: 2.661 | O134: 2.685 | P134: 2.706 | Q134: 2.727 | R134: 2.745 | S134: 2.763 | T134: 2.78 | U134: 2.795
A135: 30 | B135: 1.697 | C135: 1.989 | D135: 2.147 | E135: 2.254 | F135: 2.335 | G135: 2.399 | H135: 2.452 | I135: 2.497 | J135: 2.537 | K135: 2.572 | L135: 2.603 | M135: 2.631 | N135: 2.656 | O135: 2.68 | P135: 2.701 | Q135: 2.722 | R135: 2.74 | S135: 2.758 | T135: 2.775 | U135: 2.79
A136: 31 | B136: 1.696 | C136: 1.986 | D136: 2.144 | E136: 2.251 | F136: 2.331 | G136: 2.395 | H136: 2.448 | I136: 2.494 | J136: 2.533 | K136: 2.567 | L136: 2.598 | M136: 2.626 | N136: 2.652 | O136: 2.675 | P136: 2.697 | Q136: 2.717 | R136: 2.736 | S136: 2.753 | T136: 2.77 | U136: 2.785
A137: 32 | B137: 1.694 | C137: 1.984 | D137: 2.142 | E137: 2.248 | F137: 2.328 | G137: 2.392 | H137: 2.445 | I137: 2.49 | J137: 2.529 | K137: 2.564 | L137: 2.594 | M137: 2.622 | N137: 2.648 | O137: 2.671 | P137: 2.693 | Q137: 2.713 | R137: 2.731 | S137: 2.749 | T137: 2.765 | U137: 2.781
A138: 33 | B138: 1.692 | C138: 1.982 | D138: 2.139 | E138: 2.245 | F138: 2.325 | G138: 2.389 | H138: 2.442 | I138: 2.487 | J138: 2.526 | K138: 2.56 | L138: 2.591 | M138: 2.619 | N138: 2.644 | O138: 2.667 | P138: 2.689 | Q138: 2.709 | R138: 2.727 | S138: 2.745 | T138: 2.761 | U138: 2.777
A139: 34 | B139: 1.691 | C139: 1.98 | D139: 2.137 | E139: 2.243 | F139: 2.323 | G139: 2.386 | H139: 2.439 | I139: 2.483 | J139: 2.522 | K139: 2.557 | L139: 2.587 | M139: 2.615 | N139: 2.64 | O139: 2.664 | P139: 2.685 | Q139: 2.705 | R139: 2.723 | S139: 2.741 | T139: 2.757 | U139: 2.773
A140: 35 | B140: 1.69 | C140: 1.978 | D140: 2.135 | E140: 2.24 | F140: 2.32 | G140: 2.383 | H140: 2.436 | I140: 2.48 | J140: 2.519 | K140: 2.553 | L140: 2.584 | M140: 2.612 | N140: 2.637 | O140: 2.66 | P140: 2.681 | Q140: 2.701 | R140: 2.72 | S140: 2.737 | T140: 2.753 | U140: 2.769
A141: 36 | B141: 1.688 | C141: 1.976 | D141: 2.132 | E141: 2.238 | F141: 2.318 | G141: 2.381 | H141: 2.433 | I141: 2.478 | J141: 2.516 | K141: 2.55 | L141: 2.581 | M141: 2.609 | N141: 2.634 | O141: 2.657 | P141: 2.678 | Q141: 2.698 | R141: 2.716 | S141: 2.734 | T141: 2.75 | U141: 2.765
A142: 37 | B142: 1.687 | C142: 1.975 | D142: 2.13 | E142: 2.236 | F142: 2.315 | G142: 2.378 | H142: 2.43 | I142: 2.475 | J142: 2.514 | K142: 2.548 | L142: 2.578 | M142: 2.606 | N142: 2.631 | O142: 2.654 | P142: 2.675 | Q142: 2.695 | R142: 2.713 | S142: 2.73 | T142: 2.747 | U142: 2.762
A143: 38 | B143: 1.686 | C143: 1.973 | D143: 2.129 | E143: 2.234 | F143: 2.313 | G143: 2.376 | H143: 2.428 | I143: 2.472 | J143: 2.511 | K143: 2.545 | L143: 2.575 | M143: 2.603 | N143: 2.628 | O143: 2.651 | P143: 2.672 | Q143: 2.692 | R143: 2.71 | S143: 2.727 | T143: 2.743 | U143: 2.759
A144: 39 | B144: 1.685 | C144: 1.972 | D144: 2.127 | E144: 2.232 | F144: 2.311 | G144: 2.374 | H144: 2.426 | I144: 2.47 | J144: 2.508 | K144: 2.542 | L144: 2.573 | M144: 2.6 | N144: 2.625 | O144: 2.648 | P144: 2.669 | Q144: 2.689 | R144: 2.707 | S144: 2.724 | T144: 2.74 | U144: 2.756
A145: 40 | B145: 1.684 | C145: 1.97 | D145: 2.125 | E145: 2.23 | F145: 2.309 | G145: 2.372 | H145: 2.424 | I145: 2.468 | J145: 2.506 | K145: 2.54 | L145: 2.57 | M145: 2.598 | N145: 2.623 | O145: 2.645 | P145: 2.667 | Q145: 2.686 | R145: 2.704 | S145: 2.722 | T145: 2.738 | U145: 2.753
A146: 48 | B146: 1.677 | C146: 1.961 | D146: 2.114 | E146: 2.218 | F146: 2.296 | G146: 2.358 | H146: 2.409 | I146: 2.453 | J146: 2.491 | K146: 2.524 | L146: 2.554 | M146: 2.581 | N146: 2.606 | O146: 2.628 | P146: 2.649 | Q146: 2.669 | R146: 2.687 | S146: 2.704 | T146: 2.719 | U146: 2.734
A147: 60 | B147: 1.671 | C147: 1.952 | D147: 2.104 | E147: 2.206 | F147: 2.283 | G147: 2.345 | H147: 2.395 | I147: 2.438 | J147: 2.476 | K147: 2.509 | L147: 2.538 | M147: 2.565 | N147: 2.589 | O147: 2.612 | P147: 2.632 | Q147: 2.651 | R147: 2.669 | S147: 2.686 | T147: 2.701 | U147: 2.716
A148: 80 | B148: 1.664 | C148: 1.943 | D148: 2.093 | E148: 2.195 | F148: 2.271 | G148: 2.331 | H148: 2.381 | I148: 2.424 | J148: 2.461 | K148: 2.494 | L148: 2.523 | M148: 2.549 | N148: 2.573 | O148: 2.595 | P148: 2.615 | Q148: 2.634 | R148: 2.652 | S148: 2.668 | T148: 2.684 | U148: 2.698
A149: 120 | B149: 1.658 | C149: 1.934 | D149: 2.083 | E149: 2.183 | F149: 2.258 | G149: 2.318 | H149: 2.368 | I149: 2.41 | J149: 2.446 | K149: 2.478 | L149: 2.507 | M149: 2.533 | N149: 2.557 | O149: 2.578 | P149: 2.598 | Q149: 2.617 | R149: 2.634 | S149: 2.651 | T149: 2.666 | U149: 2.68
A150: 240 | B150: 1.651 | C150: 1.925 | D150: 2.072 | E150: 2.172 | F150: 2.246 | G150: 2.305 | H150: 2.354 | I150: 2.395 | J150: 2.432 | K150: 2.463 | L150: 2.492 | M150: 2.517 | N150: 2.541 | O150: 2.562 | P150: 2.582 | Q150: 2.6 | R150: 2.617 | S150: 2.633 | T150: 2.648 | U150: 2.663
A151: > | B151: 1.645 | C151: 1.916 | D151: 2.062 | E151: 2.16 | F151: 2.234 | G151: 2.292 | H151: 2.34 | I151: 2.381 | J151: 2.417 | K151: 2.448 | L151: 2.476 | M151: 2.502 | N151: 2.525 | O151: 2.546 | P151: 2.565 | Q151: 2.583 | R151: 2.6 | S151: 2.616 | T151: 2.631 | U151: 2.645
A153: two-tailed comparisons
A154: k includes the control group

Sheet Dunnett 1
A1: Dunnett's Test Critical Values
A3: alpha | B3: 0.01
A5: df\k | B5: 2 | C5: 3 | D5: 4 | E5: 5 | F5: 6 | G5: 7 | H5: 8 | I5: 9 | J5: 10 | K5: 11 | L5: 12 | M5: 13 | N5: 14 | O5: 15 | P5: 16 | Q5: 17 | R5: 18 | S5: 19 | T5: 20 | U5: 21
A6: 1 | B6: 31.821 | C6: 47.739 | D6: 58.069 | E6: 65.607 | F6: 71.488 | G6: 76.282 | H6: 80.312 | I6: 83.777 | J6: 86.809 | K6: 89.499 | L6: 91.914 | M6: 94.1 | N6: 96.097 | O6: 97.933 | P6: 99.63 | Q6: 101.21 | R6: 102.68 | S6: 104.06 | T6: 105.36 | U6: 106.58
A7: 2 | B7: 6.965 | C7: 8.878 | D7: 10.042 | E7: 10.872 | F7: 11.513 | G7: 12.034 | H7: 12.47 | I7: 12.846 | J7: 13.174 | K7: 13.466 | L7: 13.728 | M7: 13.965 | N7: 14.182 | O7: 14.382 | P7: 14.567 | Q7: 14.74 | R7: 14.9 | S7: 15.051 | T7: 15.194 | U7: 15.328
A8: 3 | B8: 4.541 | C8: 5.482 | D8: 6.042 | E8: 6.439 | F8: 6.745 | G8: 6.992 | H8: 7.2 | I8: 7.379 | J8: 7.535 | K8: 7.674 | L8: 7.799 | M8: 7.912 | N8: 8.015 | O8: 8.111 | P8: 8.199 | Q8: 8.281 | R8: 8.358 | S8: 8.43 | T8: 8.498 | U8: 8.563
A9: 4 | B9: 3.747 | C9: 4.408 | D9: 4.796 | E9: 5.069 | F9: 5.28 | G9: 5.45 | H9: 5.593 | I9: 5.715 | J9: 5.823 | K9: 5.918 | L9: 6.004 | M9: 6.082 | N9: 6.153 | O9: 6.219 | P9: 6.279 | Q9: 6.336 | R9: 6.389 | S9: 6.439 | T9: 6.485 | U9: 6.53
A10: 5 | B10: 3.365 | C10: 3.9 | D10: 4.211 | E10: 4.429 | F10: 4.597 | G10: 4.733 | H10: 4.846 | I10: 4.944 | J10: 5.03 | K10: 5.106 | L10: 5.174 | M10: 5.236 | N10: 5.292 | O10: 5.345 | P10: 5.393 | Q10: 5.438 | R10: 5.48 | S10: 5.52 | T10: 5.557 | U10: 5.592
A11: 6 | B11: 3.143 | C11: 3.607 | D11: 3.876 | E11: 4.064 | F11: 4.208 | G11: 4.324 | H11: 4.422 | I11: 4.505 | J11: 4.579 | K11: 4.644 | L11: 4.702 | M11: 4.755 | N11: 4.804 | O11: 4.849 | P11: 4.89 | Q11: 4.929 | R11: 4.965 | S11: 4.999 | T11: 5.031 | U11: 5.061
A12: 7 | B12: 2.998 | C12: 3.418 | D12: 3.66 | E12: 3.828 | F12: 3.957 | G12: 4.062 | H12: 4.149 | I12: 4.224 | J12: 4.29 | K12: 4.348 | L12: 4.4 | M12: 4.448 | N12: 4.491 | O12: 4.531 | P12: 4.568 | Q12: 4.603 | R12: 4.635 | S12: 4.665 | T12: 4.694 | U12: 4.721
A13: 8 | B13: 2.896 | C13: 3.286 | D13: 3.509 | E13: 3.665 | F13: 3.784 | G13: 3.88 | H13: 3.96 | I13: 4.029 | J13: 4.089 | K13: 4.143 | L13: 4.191 | M13: 4.234 | N13: 4.274 | O13: 4.311 | P13: 4.345 | Q13: 4.377 | R13: 4.406 | S13: 4.434 | T13: 4.46 | U13: 4.485
A14: 9 | B14: 2.821 | C14: 3.189 | D14: 3.399 | E14: 3.545 | F14: 3.656 | G14: 3.746 | H14: 3.821 | I14: 3.886 | J14: 3.942 | K14: 3.992 | L14: 4.037 | M14: 4.078 | N14: 4.115 | O14: 4.15 | P14: 4.182 | Q14: 4.211 | R14: 4.239 | S14: 4.265 | T14: 4.289 | U14: 4.313
A15: 10 | B15: 2.764 | C15: 3.115 | D15: 3.314 | E15: 3.453 | F15: 3.559 | G15: 3.644 | H15: 3.715 | I15: 3.777 | J15: 3.83 | K15: 3.878 | L15: 3.92 | M15: 3.959 | N15: 3.994 | O15: 4.027 | P15: 4.057 | Q15: 4.085 | R15: 4.111 | S15: 4.136 | T15: 4.159 | U15: 4.181
A16: 11 | B16: 2.718 | C16: 3.056 | D16: 3.247 | E16: 3.38 | F16: 3.482 | G16: 3.564 | H16: 3.632 | I16: 3.69 | J16: 3.742 | K16: 3.787 | L16: 3.828 | M16: 3.865 | N16: 3.899 | O16: 3.93 | P16: 3.959 | Q16: 3.985 | R16: 4.011 | S16: 4.034 | T16: 4.056 | U16: 4.077
A17: 12 | B17: 2.681 | C17: 3.008 | D17: 3.193 | E17: 3.322 | F17: 3.42 | G17: 3.499 | H17: 3.564 | I17: 3.621 | J17: 3.67 | K17: 3.714 | L17: 3.753 | M17: 3.789 | N17: 3.821 | O17: 3.851 | P17: 3.879 | Q17: 3.905 | R17: 3.929 | S17: 3.952 | T17: 3.973 | U17: 3.994
